Workbook

Sheet INPUT - Engineering Analysis
B2: INPUT from Engineering Analysis | H2: Navigation
C5: PG1 | D5: Cable Base | E5: Baseline | F5: CSL 1 | G5: CSL 2 | H5: CSL 3
D7: Annual Energy Consumption | E7: 169.0096 | F7: 107.08005 | G7: 95.29372131 | H7: 74.65840649
D8: Manufacturer Production Cost | E8: 79.28 | F8: 83.18 | G8: 83.97 | H8: 84.41
D9: Incremental Production Cost | E9: 0 | F9: 3.9 | G9: 4.69 | H9: 5.13
D10: PWATCH | E10: 19.71 | F10: 12.5 | G10: 11.12412178 | H10: 10.85714286
D11: PSLEEP | E11: 18.71 | F11: 12.11 | G11: 10.77704918 | H11: 7.561387024
D12: PAPD | E12: N/A | F12: 12.11 | G12: 10.77704918 | H12: 7.561387024
D13: PMULTISTREAM | E13: N/A | F13: N/A | G13: N/A | H13: N/A
C17: PG2 | D17: Cable Video Client | E17: Baseline | F17: CSL 1 | G17: CSL 2 | H17: CSL 3
D19: Annual Energy Consumption | E19: 192.0119 | F19: 130.1326816 | G19: 100.4225269 | H19: 79.66412077
D20: Manufacturer Production Cost | E20: 85.08 | F20: 88.98 | G20: 93.97 | H20: 94.41
D21: Incremental Production Cost | E21: 0 | F21: 3.9 | G21: 8.89 | H21: 9.33
D22: PWATCH | E22: 22.34 | F22: 15.13157895 | G22: 11.70960187 | H22: 11.42857143
D23: PSLEEP | E23: 21.33 | F23: 14.74157895 | G23: 11.36252927 | H23: 8.132815596
D24: PAPD | E24: N/A | F24: 14.74157895 | G24: 11.36252927 | H24: 8.132815596
D25: PMULTISTREAM | E25: N/A | F25: N/A | G25: N/A | H25: N/A
C29: PG3 | D29: Cable Video Server | E29: Baseline | F29: CSL 1 | G29: CSL 2 | H29: CSL 3
D31: Annual Energy Consumption | E31: 216.0976059 | F31: 180.4927074 | G31: 153.6071392 | H31: 115.0494403
D32: Manufacturer Production Cost | E32: 159.07 | F32: 164.54 | G32: 174.23 | H32: 175.55
D33: Incremental Production Cost | E33: 0 | F33: 5.47 | G33: 15.16 | H33: 16.48
D34: PWATCH | E34: 24.83117647 | F34: 20.87102273 | G34: 16.97329545 | H34: 16.41373626
D35: PSLEEP | E35: 24.44117647 | F35: 20.49431818 | G35: 16.59659091 | H35: 10.65158958
D36: PAPD | E36: N/A | F36: 20.49431818 | G36: 16.59659091 | H36: 10.65158958
D37: PMULTISTREAM | E37: 24.83117647 | F37: 20.87102273 | G37: 20.95056818 | H37: 20.25989011
C41: PG4 | D41: Cable with DVR | E41: Baseline | F41: CSL 1 | G41: CSL 2 | H41: CSL 3
D43: Annual Energy Consumption | E43: 242.7396 | F43: 181.8048409 | G43: 144.1766591 | H43: 104.9240589
D44: Manufacturer Production Cost | E44: 119.38 | F44: 129.35 | G44: 146.83 | H44: 148.15
D45: Incremental Production Cost | E45: 0 | F45: 9.97 | G45: 27.45 | H45: 28.77
D46: PWATCH | E46: 27.71 | F46: 20.75397727 | G46: 16.45852273 | H46: 15.91593407
D47: PSLEEP | E47: 27.71 | F47: 20.75397727 | G47: 16.45852273 | H47: 10.35597862
D48: PAPD | E48: N/A | F48: 20.75397727 | G48: 16.45852273 | H48: 10.35597862
D49: PMULTISTREAM | E49: 27.71 | F49: 20.75397727 | G49: 16.45852273 | H49: 15.91593407
C53: PG5 | D53: Cable with DVR & Video Server | E53: Baseline | F53: CSL 1 | G53: CSL 2 | H53: CSL 3
D55: Annual Energy Consumption | E55: 277.9329 | F55: 207.1625938 | G55: 169.5344119 | H55: 120.9054843
D56: Manufacturer Production Cost | E56: 208.57 | F56: 222.74 | G56: 240.22 | H56: 241.54
D57: Incremental Production Cost | E57: 0 | F57: 14.17 | G57: 31.65 | H57: 32.97
D58: PWATCH | E58: 31.89 | F58: 23.08693182 | G58: 18.79147727 | H58: 18.17197802
D59: PSLEEP | E59: 31.5 | F59: 22.71022727 | G59: 18.41477273 | H59: 10.8713698
D60: PAPD | E60: N/A | F60: 22.71022727 | G60: 18.41477273 | H60: 10.8713698
D61: PMULTISTREAM | E61: 31.89 | F61: 27.06420455 | G61: 22.76875 | H61: 22.01813187
C65: PG6 | D65: Satellite Base | E65: Baseline | F65: CSL 1 | G65: CSL 2 | H65: CSL 3
D67: Annual Energy Consumption | E67: 123.37 | F67: 90.59180328 | G67: 62.342 | H67: 47.24097654
D68: Manufacturer Production Cost | E68: 48.52 | F68: 52.37 | G68: 55.24 | H68: 55.68
D69: Incremental Production Cost | E69: 0 | F69: 3.85 | G69: 6.72 | H69: 7.16
D70: PWATCH | E70: 14.5 | F70: 10.97189696 | G70: 7.4 | H70: 7.2224
D71: PSLEEP | E71: 13.5 | F71: 10.08196721 | G71: 7 | H71: 4.639443117
D72: PAPD | E72: N/A | F72: 10.08196721 | G72: 7 | H72: 4.639443117
D73: PMULTISTREAM | E73: N/A | F73: N/A | G73: N/A | H73: N/A
C77: PG7 | D77: Satellite Video Client | E77: Baseline | F77: CSL 1 | G77: CSL 2 | H77: CSL 3
D79: Annual Energy Consumption | E79: 130.086 | F79: 94.74955504 | G79: 79.36313817 | H79: 61.77489006
D80: Manufacturer Production Cost | E80: 54.32 | F80: 58.17 | G80: 62.37 | H80: 62.81
D81: Incremental Production Cost | E81: 0 | F81: 3.85 | G81: 8.05 | H81: 8.49
D82: PWATCH | E82: 15.6 | F82: 11.95081967 | G82: 10.19437939 | H82: 9.949714286
D83: PSLEEP | E83: 13.8 | F83: 10.34894614 | G83: 8.592505855 | H83: 5.858722008
D84: PAPD | E84: N/A | F84: 10.34894614 | G84: 8.592505855 | H84: 5.858722008
D85: PMULTISTREAM | E85: N/A | F85: N/A | G85: N/A | H85: N/A
C89: PG8 | D89: Satellite Video Server | E89: Baseline | F89: CSL 1 | G89: CSL 2 | H89: CSL 3
D91: Annual Energy Consumption | E91: 186.2917059 | F91: 155.7540882 | G91: 126.3459943 | H91: 93.40979287
D92: Manufacturer Production Cost | E92: 89.04 | F92: 92.93 | G92: 101.77 | H92: 103.09
D93: Incremental Production Cost | E93: 0 | F93: 3.89 | G93: 12.73 | H93: 14.05
D94: PWATCH | E94: 21.64117647 | F94: 18.41764706 | G94: 14.21022727 | H94: 13.74175824
D95: PSLEEP | E95: 20.74117647 | F95: 17.51764706 | G95: 13.34090909 | H95: 8.264362578
D96: PAPD | E96: N/A | F96: 17.51764706 | G96: 13.34090909 | H96: 8.264362578
D97: PMULTISTREAM | E97: 21.64117647 | F97: 18.41764706 | G97: 18.1875 | H97: 17.58791209
C101: PG9 | D101: Satellite with DVR | E101: Baseline | F101: CSL 1 | G101: CSL 2 | H101: CSL 3
D103: Annual Energy Consumption | E103: 217.467 | F103: 155.1726989 | G103: 120.3317898 | H103: 86.13614154
D104: Manufacturer Production Cost | E104: 98.02 | F104: 107.99 | G104: 123.04 | H104: 124.36
D105: Incremental Production Cost | E105: 0 | F105: 9.97 | G105: 25.02 | H105: 26.34
D106: PWATCH | E106: 25.2 | F106: 18.32954545 | G106: 14.35227273 | H106: 13.87912088
D107: PSLEEP | E107: 24.3 | F107: 17.46022727 | G107: 13.48295455 | H107: 8.166798983
D108: PAPD | E108: N/A | F108: 17.46022727 | G108: 13.48295455 | H108: 8.166798983
D109: PMULTISTREAM | E109: 25.2 | F109: 18.32954545 | G109: 14.35227273 | H109: 13.87912088
C113: PG10 | D113: Satellite with DVR & Video Server | E113: Baseline | F113: CSL 1 | G113: CSL 2 | H113: CSL 3
D115: Annual Energy Consumption | E115: 248.127 | F115: 177.1141761 | G115: 142.273267 | H115: 99.27940803
D116: Manufacturer Production Cost | E116: 138.54 | F116: 152.71 | G116: 167.76 | H116: 169.08
D117: Incremental Production Cost | E117: 0 | F117: 14.17 | G117: 29.22 | H117: 30.54
D118: PWATCH | E118: 28.7 | F118: 20.00568182 | G118: 16.02840909 | H118: 15.5
D119: PSLEEP | E119: 27.8 | F119: 19.13636364 | G119: 15.15909091 | H119: 8.486329938
D120: PAPD | E120: N/A | F120: 19.13636364 | G120: 15.15909091 | H120: 8.486329938
D121: PMULTISTREAM | E121: 28.7 | F121: 23.98295455 | G121: 20.00568182 | H121: 19.34615385
C125: PG11 | D125: IP Base | E125: Baseline | F125: CSL 1 | G125: CSL 2 | H125: CSL 3
D127: Annual Energy Consumption | E127: 107.0837 | F127: 94.22829742 | G127: 70.73836768 | H127: 60.16799022
D128: Manufacturer Production Cost | E128: 46.55 | F128: 47.34 | G128: 50.84 | H128: 51.28
D129: Incremental Production Cost | E129: 0 | F129: 0.79 | G129: 4.29 | H129: 4.73
D130: PWATCH | E130: 12.42 | F130: 11.0529274 | G130: 8.371428571 | H130: 8.170514286
D131: PSLEEP | E131: 11.95 | F131: 10.63466042 | G131: 7.953161593 | H131: 6.332365224
D132: PAPD | E132: N/A | F132: 10.63466042 | G132: 7.953161593 | H132: 6.332365224
D133: PMULTISTREAM | E133: N/A | F133: N/A | G133: N/A | H133: N/A
C137: PG12 | D137: IP Video Client | E137: Baseline | F137: CSL 1 | G137: CSL 2 | H137: CSL 3
D139: Annual Energy Consumption | E139: 114.9677 | F139: 101.2445035 | G139: 77.75457377 | H139: 64.47527829
D140: Manufacturer Production Cost | E140: 51.8 | F140: 52.59 | G140: 56.09 | H140: 56.53
D141: Incremental Production Cost | E141: 0 | F141: 0.79 | G141: 4.29 | H141: 4.73
D142: PWATCH | E142: 13.32 | F142: 11.85386417 | G142: 9.17236534 | H142: 8.952228571
D143: PSLEEP | E143: 12.85 | F143: 11.43559719 | G143: 8.754098361 | H143: 6.704646944
D144: PAPD | E144: N/A | F144: 11.43559719 | G144: 8.754098361 | H144: 6.704646944
D145: PMULTISTREAM | E145: N/A | F145: N/A | G145: N/A | H145: N/A
C149: PG13 | D149: IP Video Server | E149: Baseline | F149: CSL 1 | G149: CSL 2 | H149: CSL 3
D151: Annual Energy Consumption | E151: 115.5444 | F151: 100.0978735 | G151: 76.60794379 | H151: 63.36520042
D152: Manufacturer Production Cost | E152: 51.8 | F152: 52.59 | G152: 56.09 | H152: 56.53
D153: Incremental Production Cost | E153: 0 | F153: 0.79 | G153: 4.29 | H153: 4.73
D154: PWATCH | E154: 13.69 | F154: 12.18313817 | G154: 9.501639344 | H154: 9.2736
D155: PSLEEP | E155: 12.49 | F155: 11.11522248 | G155: 8.433723653 | H155: 6.39341699
D156: PAPD | E156: N/A | F156: 11.11522248 | G156: 8.433723653 | H156: 6.39341699
D157: PMULTISTREAM | E157: 13.69 | F157: 12.18313817 | G157: 9.501639344 | H157: 9.2736
C161: PG14 | D161: IP with DVR | E161: Baseline | F161: CSL 1 | G161: CSL 2 | H161: CSL 3
D163: Annual Energy Consumption | E163: 145.7153 | F163: 119.0760653 | G163: 87.3339233 | H163: 73.48925151
D164: Manufacturer Production Cost | E164: 80.28 | F164: 86.36 | G164: 101.85 | H164: 103.17
D165: Incremental Production Cost | E165: 0 | F165: 6.08 | G165: 21.57 | H165: 22.89
D166: PWATCH | E166: 18.73 | F166: 15.19375 | G166: 10.48920455 | H166: 10.14340659
D167: PSLEEP | E167: 13.7 | F167: 12.93409091 | G167: 9.755681818 | H167: 7.666856996
D168: PAPD | E168: N/A | F168: 12.93409091 | G168: 9.755681818 | H168: 7.666856996
D169: PMULTISTREAM | E169: 18.73 | F169: 15.19375 | G169: 10.48920455 | H169: 10.14340659
C173: PG15 | D173: IP with DVR & Video Server | E173: Baseline | F173: CSL 1 | G173: CSL 2 | H173: CSL 3
D175: Annual Energy Consumption | E175: 151.0589 | F175: 124.2374972 | G175: 92.49535511 | H175: 78.48052623
D176: Manufacturer Production Cost | E176: 96.04 | F176: 102.12 | G176: 117.61 | H176: 118.93
D177: Incremental Production Cost | E177: 0 | F177: 6.08 | G177: 21.57 | H177: 22.89
D178: PWATCH | E178: 19.34 | F178: 15.78295455 | G178: 11.07840909 | H178: 10.71318681
D179: PSLEEP | E179: 14.31 | F179: 13.52329545 | G179: 10.34488636 | H179: 8.236637216
D180: PAPD | E180: N/A | F180: 13.52329545 | G180: 10.34488636 | H180: 8.236637216
D181: PMULTISTREAM | E181: 19.34 | F181: 15.78295455 | G181: 11.07840909 | H181: 10.71318681
C185: PG16 | D185: OTT | E185: Baseline | F185: CSL 1 | G185: CSL 2
D187: Annual Energy Consumption | E187: 68.2769 | F187: 19.1041 | G187: 5.89475
D188: Manufacturer Production Cost | E188: 57.67 | F188: 49.28 | G188: 52.36
D189: Incremental Production Cost | E189: 0 | F189: -8.39 | G189: -5.31
D190: PWATCH | E190: 13.48 | F190: 7.04 | G190: 1.87
D191: PSLEEP | E191: 0.52 | F191: 0.18 | G191: 0.18
D192: PAPD | E192: 12.5 | F192: 0.18 | G192: 0.18
D193: PMULTISTREAM | E193: N/A | F193: N/A | G193: N/A
C197: PG17 | D197: Thin-client | E197: Baseline | F197: CSL 1 | G197: CSL 2 | H197: CSL 3
D199: Annual Energy Consumption | E199: 79.8912 | F199: 66.18244965 | G199: 47.2164 | H199: 43.15143585
D200: Manufacturer Production Cost | E200: 40.44 | F200: 45.43 | G200: 47.78 | H200: 48.22
D201: Incremental Production Cost | E201: 0 | F201: 4.99 | G201: 7.34 | H201: 7.78
D202: PWATCH | E202: 9.12 | F202: 10.45807963 | G202: 5.9 | H202: 5.7584
D203: PSLEEP | E203: 9.12 | F203: 6.35971897 | G203: 5.18 | H203: 4.583194819
D204: PAPD | E204: 9.12 | F204: 6.35971897 | G204: 5.18 | H204: 4.583194819
D205: PMULTISTREAM | E205: N/A | F205: N/A | G205: N/A | H205: N/A

Sheet INPUT - Shipments Analysis
C2: INPUT from Shipments Analysis | U2: Navigation
D5: TOTAL SHIPMENTS | E5: Cable Base | F5: Cable With Video Client | G5: Cable With Video Server | H5: Cable With DVR | I5: Cable With DVR & Video Server | J5: Satellite Base | K5: Satellite With Video Client | L5: Satellite With Video Server | M5: Satellite With DVR | N5: Satellite With DVR & Video Server | O5: IP Base | P5: IP With Video Client | Q5: IP With Video Server | R5: IP With DVR | S5: IP With DVR & Video Server | T5: IP OTT | U5: Thin-client Total
D7: (millions) | E7: PG 1 | F7: PG 2 | G7: PG 3 | H7: PG 4 | I7: PG 5 | J7: PG 6 | K7: PG 7 | L7: PG 8 | M7: PG 9 | N7: PG 10 | O7: PG 11 | P7: PG 12 | Q7: PG 13 | R7: PG 14 | S7: PG 15 | T7: PG 16 | U7: PG 17
D8: 2011 | E8: 17.67577058 | F8: 0.001415109388 | G8: 1.132532278 | H8: 2.873775941 | I8: 2.448031357 | J8: 8.043905036 | K8: 0.0001096087622 | L8: 1.28725885 | M8: 3.137691823 | N8: 2.782481428 | O8: 1.221807642 | P8: 0.0009965418998 | Q8: 0.1749773435 | R8: 0.444001191 | S8: 0.3782232367 | T8: 6.166666667 | U8: 0.008095121998
D9: 2012 | E9: 11.91871241 | F9: 0.1546375775 | G9: 0.7485124196 | H9: 1.899333931 | I9: 1.617951126 | J9: 4.952534786 | K9: 0.1171745692 | L9: 1.370894914 | M9: 3.341554623 | N9: 2.963265421 | O9: 1.706800762 | P9: 0.2139966439 | Q9: 0.2272566574 | R9: 0.576658809 | S9: 0.4912278744 | T9: 7.866666667 | U9: 0.9577060016
D10: 2013 | E10: 8.545410013 | F10: 0.2356495524 | G10: 0.8762562151 | H10: 2.223481025 | I10: 1.894076428 | J10: 4.551115557 | K10: 0.3171345656 | L10: 1.656270936 | M10: 4.037158317 | N10: 3.580121526 | O10: 2.269851322 | P10: 0.4094681934 | Q10: 0.334049129 | R10: 0.8476423754 | S10: 0.7220657272 | T10: 10 | U10: 1.555729111
D11: 2014 | E11: 8.104087766 | F11: 0.4096477719 | G11: 1.233678066 | H11: 3.130431172 | I11: 2.666663591 | J11: 3.209395422 | K11: 0.681105787 | L11: 1.754300678 | M11: 4.27610569 | N11: 3.792018254 | O11: 1.996529299 | P11: 0.5519327233 | Q11: 0.364672546 | R11: 0.9253486276 | S11: 0.788259942 | T11: 12.3 | U11: 2.794648175
D12: 2015 | E12: 4.687404229 | F12: 0.6500015266 | G12: 1.288192115 | H12: 3.268759381 | I12: 2.784498732 | J12: 1.921669676 | K12: 1.28379305 | L12: 1.987652747 | M12: 4.844901063 | N12: 4.296421698 | O12: 1.62404378 | P12: 0.7966643759 | Q12: 0.3463915877 | R12: 0.8789610951 | S12: 0.7487446365 | T12: 15 | U12: 4.575469358
D13: 2016 | E13: 1.270720693 | F13: 0.8903552813 | G13: 1.342706164 | H13: 3.407087591 | I13: 2.902333874 | J13: 1.914754872 | K13: 1.530369977 | L13: 2.031874914 | M13: 4.952692541 | N13: 4.392010367 | O13: 1.301261907 | P13: 0.991692383 | Q13: 0.3281106295 | R13: 0.8325735625 | S13: 0.7092293311 | T13: 19.12658825 | U13: 6.108824036
D14: 2017 | E14: 1.2834279 | F14: 0.8992588341 | G14: 1.356133225 | H14: 3.441158467 | I14: 2.931357212 | J14: 1.933902421 | K14: 1.545673677 | L14: 2.052193664 | M14: 5.002219467 | N14: 4.43593047 | O14: 1.314274526 | P14: 1.001609307 | Q14: 0.3313917358 | R14: 0.8408992982 | S14: 0.7163216244 | T14: 19.31785413 | U14: 6.169912276
D15: 2018 | E15: 1.296262179 | F15: 0.9082514225 | G15: 1.369694558 | H15: 3.475570051 | I15: 2.960670784 | J15: 1.953241445 | K15: 1.561130413 | L15: 2.0727156 | M15: 5.052241661 | N15: 4.480289775 | O15: 1.327417271 | P15: 1.0116254 | Q15: 0.3347056532 | R15: 0.8493082911 | S15: 0.7234848406 | T15: 19.51103268 | U15: 6.231611399
D16: 2019 | E16: 1.309224801 | F16: 0.9173339367 | G16: 1.383391503 | H16: 3.510325752 | I16: 2.990277492 | J16: 1.972773859 | K16: 1.576741717 | L16: 2.093442756 | M16: 5.102764078 | N16: 4.525092673 | O16: 1.340691444 | P16: 1.021741654 | Q16: 0.3380527097 | R16: 0.8578013741 | S16: 0.730719689 | T16: 19.706143 | U16: 6.293927513
D17: 2020 | E17: 1.322317049 | F17: 0.9265072761 | G17: 1.397225418 | H17: 3.545429009 | I17: 3.020180267 | J17: 1.992501598 | K17: 1.592509135 | L17: 2.114377184 | M17: 5.153791719 | N17: 4.5703436 | O17: 1.354098358 | P17: 1.03195907 | Q17: 0.3414332368 | R17: 0.8663793878 | S17: 0.7380268859 | T17: 19.90320443 | U17: 6.356866788
D18: 2021 | E18: 1.335540219 | F18: 0.9357723488 | G18: 1.411197672 | H18: 3.580883299 | I18: 3.05038207 | J18: 2.012426614 | K18: 1.608434226 | L18: 2.135520956 | M18: 5.205329636 | N18: 4.616047036 | O18: 1.367639342 | P18: 1.042278661 | Q18: 0.3448475692 | R18: 0.8750431817 | S18: 0.7454071548 | T18: 20.10223648 | U18: 6.420435456
D19: 2022 | E19: 1.348895621 | F19: 0.9451300723 | G19: 1.425309649 | H19: 3.616692132 | I19: 3.080885891 | J19: 2.03255088 | K19: 1.624518568 | L19: 2.156876165 | M19: 5.257382932 | N19: 4.662207506 | O19: 1.381315735 | P19: 1.052701448 | Q19: 0.3482960449 | R19: 0.8837936135 | S19: 0.7528612263 | T19: 20.30325884 | U19: 6.48463981
D20: 2023 | E20: 1.362384577 | F20: 0.954581373 | G20: 1.439562746 | H20: 3.652859054 | I20: 3.111694749 | J20: 2.052876389 | K20: 1.640763754 | L20: 2.178444927 | M20: 5.309956762 | N20: 4.708829581 | O20: 1.395128892 | P20: 1.063228462 | Q20: 0.3517790053 | R20: 0.8926315496 | S20: 0.7603898386 | T20: 20.50629143 | U20: 6.549486208
D21: 2024 | E21: 1.376008423 | F21: 0.9641271868 | G21: 1.453958373 | H21: 3.689387644 | I21: 3.142811697 | J21: 2.073405153 | K21: 1.657171391 | L21: 2.200229376 | M21: 5.363056329 | N21: 4.755917877 | O21: 1.409080181 | P21: 1.073860747 | Q21: 0.3552967954 | R21: 0.9015578651 | S21: 0.767993737 | T21: 20.71135434 | U21: 6.614981071
D22: 2025 | E22: 1.389768507 | F22: 0.9737684586 | G22: 1.468497957 | H22: 3.726281521 | I22: 3.174239814 | J22: 2.094139204 | K22: 1.673743105 | L22: 2.22223167 | M22: 5.416686892 | N22: 4.803477056 | O22: 1.423170983 | P22: 1.084599354 | Q22: 0.3588497633 | R22: 0.9105734438 | S22: 0.7756736743 | T22: 20.91846789 | U22: 6.681130881
D23: 2026 | E23: 1.403666193 | F23: 0.9835061432 | G23: 1.483182936 | H23: 3.763544336 | I23: 3.205982212 | J23: 2.115080596 | K23: 1.690480536 | L23: 2.244453987 | M23: 5.470853761 | N23: 4.851511826 | O23: 1.437402693 | P23: 1.095445348 | Q23: 0.362438261 | R23: 0.9196791782 | S23: 0.7834304111 | T23: 21.12765257 | U23: 6.74794219
D24: 2027 | E24: 1.417702854 | F24: 0.9933412047 | G24: 1.498014766 | H24: 3.801179779 | I24: 3.238042034 | J24: 2.136231402 | K24: 1.707385342 | L24: 2.266898526 | M24: 5.525562299 | N24: 4.900026944 | O24: 1.45177672 | P24: 1.106399801 | Q24: 0.3660626436 | R24: 0.92887597 | S24: 0.7912647152 | T24: 21.33892909 | U24: 6.815421612
D25: 2028 | E25: 1.431879883 | F25: 1.003274617 | G25: 1.512994913 | H25: 3.839191577 | I25: 3.270422454 | J25: 2.157593716 | K25: 1.724459195 | L25: 2.289567512 | M25: 5.580817922 | N25: 4.949027214 | O25: 1.466294487 | P25: 1.117463799 | Q25: 0.36972327 | R25: 0.9381647297 | S25: 0.7991773623 | T25: 21.55231838 | U25: 6.883575828
D26: 2029 | E26: 1.446198682 | F26: 1.013307363 | G26: 1.528124863 | H26: 3.877583493 | I26: 3.303126679 | J26: 2.179169653 | K26: 1.741703787 | L26: 2.312463187 | M26: 5.636626101 | N26: 4.998517486 | O26: 1.480957432 | P26: 1.128638437 | Q26: 0.3734205027 | R26: 0.947546377 | S26: 0.807169136 | T26: 21.76784157 | U26: 6.952411586
D27: 2030 | E27: 1.460660669 | F27: 1.023440437 | G27: 1.543406111 | H27: 3.916359328 | I27: 3.336157946 | J27: 2.20096135 | K27: 1.759120825 | L27: 2.335587819 | M27: 5.692992362 | N27: 5.048502661 | O27: 1.495767006 | P27: 1.139924822 | Q27: 0.3771547077 | R27: 0.9570218408 | S27: 0.8152408273 | T27: 21.98551998 | U27: 7.021935702
D28: 2031 | E28: 1.475267275 | F28: 1.033674841 | G28: 1.558840172 | H28: 3.955522921 | I28: 3.369519525 | J28: 2.222970963 | K28: 1.776712033 | L28: 2.358943697 | M28: 5.749922286 | N28: 5.098987687 | O28: 1.510724676 | P28: 1.15132407 | Q28: 0.3809262548 | R28: 0.9665920592 | S28: 0.8233932356 | T28: 22.20537518 | U28: 7.092155059
D29: 2032 | E29: 1.490019948 | F29: 1.044011589 | G29: 1.574428574 | H29: 3.99507815 | I29: 3.403214721 | J29: 2.245200673 | K29: 1.794479154 | L29: 2.382533134 | M29: 5.807421509 | N29: 5.149977564 | O29: 1.525831923 | P29: 1.162837311 | Q29: 0.3847355174 | R29: 0.9762579798 | S29: 0.8316271679 | T29: 22.42742893 | U29: 7.16307661
D30: 2033 | E30: 1.504920148 | F30: 1.054451705 | G30: 1.59017286 | H30: 4.035028932 | I30: 3.437246868 | J30: 2.26765268 | K30: 1.812423945 | L30: 2.406358465 | M30: 5.865495724 | N30: 5.20147734 | O30: 1.541090242 | P30: 1.174465684 | Q30: 0.3885828725 | R30: 0.9860205596 | S30: 0.8399434396 | T30: 22.65170322 | U30: 7.234707376
D31: 2034 | E31: 1.519969349 | F31: 1.064996222 | G31: 1.606074588 | H31: 4.075379221 | I31: 3.471619336 | J31: 2.290329207 | K31: 1.830548185 | L31: 2.43042205 | M31: 5.924150681 | N31: 5.253492113 | O31: 1.556501145 | P31: 1.186210341 | Q31: 0.3924687013 | R31: 0.9958807652 | S31: 0.848342874 | T31: 22.87822026 | U31: 7.30705445
D32: 2035 | E32: 1.535169043 | F32: 1.075646184 | G32: 1.622135334 | H32: 4.116133013 | I32: 3.50633553 | J32: 2.313232499 | K32: 1.848853666 | L32: 2.45472627 | M32: 5.983392188 | N32: 5.306027035 | O32: 1.572066156 | P32: 1.198072444 | Q32: 0.3963933883 | R32: 1.005839573 | S32: 0.8568263028 | T32: 23.10700246 | U32: 7.380124994
D33: 2036 | E33: 1.550520733 | F33: 1.086402646 | G33: 1.638356688 | H33: 4.157294343 | I33: 3.541398885 | J33: 2.336364824 | K33: 1.867342203 | L33: 2.479273533 | M33: 6.04322611 | N33: 5.359087305 | O33: 1.587786818 | P33: 1.210053168 | Q33: 0.4003573222 | R33: 1.015897969 | S33: 0.8653945658 | T33: 23.33807248 | U33: 7.453926244
D34: 2037 | E34: 1.56602594 | F34: 1.097266673 | G34: 1.654740255 | H34: 4.198867287 | I34: 3.576812874 | J34: 2.359728472 | K34: 1.886015625 | L34: 2.504066268 | M34: 6.103658371 | N34: 5.412678178 | O34: 1.603664686 | P34: 1.2221537 | Q34: 0.4043608954 | R34: 1.026056948 | S34: 0.8740485114 | T34: 23.57145321 | U34: 7.528465507
D35: 2038 | E35: 1.5816862 | F35: 1.108239339 | G35: 1.671287657 | H35: 4.24085596 | I35: 3.612581003 | J35: 2.383325757 | K35: 1.904875781 | L35: 2.529106931 | M35: 6.164694955 | N35: 5.46680496 | O35: 1.619701333 | P35: 1.234375237 | Q35: 0.4084045043 | R35: 1.036317518 | S35: 0.8827889966 | T35: 23.80716774 | U35: 7.603750162
D36: 2039 | E36: 1.597503062 | F36: 1.119321733 | G36: 1.688000534 | H36: 4.283264519 | I36: 3.648706813 | J36: 2.407159014 | K36: 1.923924539 | L36: 2.554398 | M36: 6.226341904 | N36: 5.521473009 | O36: 1.635898346 | P36: 1.246718989 | Q36: 0.4124885494 | R36: 1.046680693 | S36: 0.8916168865 | T36: 24.04523942 | U36: 7.679787663
D37: 2040 | E37: 1.613478092 | F37: 1.13051495 | G37: 1.704880539 | H37: 4.326097164 | I37: 3.685193881 | J37: 2.431230604 | K37: 1.943163785 | L37: 2.57994198 | M37: 6.288605323 | N37: 5.576687739 | O37: 1.65225733 | P37: 1.259186179 | Q37: 0.4166134349 | R37: 1.0571475 | S37: 0.9005330554 | T37: 24.28569181 | U37: 7.75658554
D38: 2041 | E38: 1.629612873 | F38: 1.1418201 | G38: 1.721929344 | H38: 4.369358136 | I38: 3.72204582 | J38: 2.45554291 | K38: 1.962595422 | L38: 2.6057414 | M38: 6.351491376 | N38: 5.632454617 | O38: 1.668779903 | P38: 1.271778041 | Q38: 0.4207795692 | R38: 1.067718975 | S38: 0.9095383859 | T38: 24.52854873 | U38: 7.834151395
D39: 2042 | E39: 1.645909002 | F39: 1.153238301 | G39: 1.739148638 | H39: 4.413051717 | I39: 3.759266278 | J39: 2.480098339 | K39: 1.982221377 | L39: 2.631798814 | M39: 6.41500629 | N39: 5.688779163 | O39: 1.685467702 | P39: 1.284495822 | Q39: 0.4249873649 | R39: 1.078396165 | S39: 0.9186337698 | T39: 24.77383422 | U39: 7.912492909
D40: 2043 | E40: 1.662368092 | F40: 1.164770684 | G40: 1.756540124 | H40: 4.457182235 | I40: 3.796858941 | J40: 2.504899323 | K40: 2.00204359 | L40: 2.658116802 | M40: 6.479156353 | N40: 5.745666955 | O40: 1.702322379 | P40: 1.29734078 | Q40: 0.4292372386 | R40: 1.089180126 | S40: 0.9278201075 | T40: 25.02157256 | U40: 7.991617838
D41: 2044 | E41: 1.678991773 | F41: 1.176418391 | G41: 1.774105525 | H41: 4.501754057 | I41: 3.83482753 | J41: 2.529948316 | K41: 2.022064026 | L41: 2.68469797 | M41: 6.543947917 | N41: 5.803123624 | O41: 1.719345603 | P41: 1.310314188 | Q41: 0.4335296109 | R41: 1.100071927 | S41: 0.9370983086 | T41: 25.27178828 | U41: 8.071534017
D42: 2045 | E42: 1.695781691 | F42: 1.188182574 | G42: 1.791846581 | H42: 4.546771598 | I42: 3.873175805 | J42: 2.555247799 | K42: 2.042284667 | L42: 2.71154495 | M42: 6.609387396 | N42: 5.86115486 | O42: 1.736539059 | P42: 1.323417329 | Q42: 0.4378649071 | R42: 1.111072647 | S42: 0.9464692917 | T42: 25.52450617 | U42: 8.152249357
D43: 2046 | E43: 1.712739508 | F43: 1.2000644 | G43: 1.809765047 | H43: 4.592239314 | I43: 3.911907563 | J43: 2.580800277 | K43: 2.062707513 | L43: 2.7386604 | M43: 6.67548127 | N43: 5.919766409 | O43: 1.753904449 | P43: 1.336651503 | Q43: 0.4422435561 | R43: 1.122183373 | S43: 0.9559339846 | T43: 25.77975123 | U43: 8.233771851
D44: 2047 | E44: 1.729866903 | F44: 1.212065044 | G44: 1.827862697 | H44: 4.638161707 | I44: 3.951026639 | J44: 2.60660828 | K44: 2.083334588 | L44: 2.766047004 | M44: 6.742236082 | N44: 5.978964073 | O44: 1.771443494 | P44: 1.350018018 | Q44: 0.4466659917 | R44: 1.133405207 | S44: 0.9654933244 | T44: 26.03754874 | U44: 8.316109569

Sheet INPUT - Efficiency Distribution
B2: INPUT from Shipments Analysis | Q2: Navigation
C5: EFFICIENCY DISTRIBUTIONS
C7: BASE CASE | D7: Baseline | E7: EL 1 | F7: EL 2 | G7: EL 3 | H7: TOTAL | J7: TSL 1 | K7: Baseline | L7: EL 1 | M7: EL 2 | N7: EL 3 | O7: TOTAL | Q7: TSL 2 | R7: Baseline | S7: EL 1 | T7: EL 2 | U7: EL 3 | V7: TOTAL | X7: TSL 3 | Y7: Baseline | Z7: EL 1 | AA7: EL 2 | AB7: EL 3 | AC7: TOTAL
C8: 2011 | D8: 0.5 | E8: 0.4 | F8: 0.1 | G8: 0 | H8: 1 | J8: 2011 | K8: 0.5 | L8: 0.4 | M8: 0.1 | N8: 0 | O8: 1 | Q8: 2011 | R8: 0.5 | S8: 0.4 | T8: 0.1 | U8: 0 | V8: 1 | X8: 2011 | Y8: 0.5 | Z8: 0.4 | AA8: 0.1 | AB8: 0 | AC8: 1
C9: 2012 | D9: 0.5 | E9: 0.4 | F9: 0.1 | G9: 0 | H9: 1 | J9: 2012 | K9: 0.5 | L9: 0.4 | M9: 0.1 | N9: 0 | O9: 1 | Q9: 2012 | R9: 0.5 | S9: 0.4 | T9: 0.1 | U9: 0 | V9: 1 | X9: 2012 | Y9: 0.5 | Z9: 0.4 | AA9: 0.1 | AB9: 0 | AC9: 1
C10: 2013 | D10: 0.5 | E10: 0.4 | F10: 0.1 | G10: 0 | H10: 1 | J10: 2013 | K10: 0.5 | L10: 0.4 | M10: 0.1 | N10: 0 | O10: 1 | Q10: 2013 | R10: 0.5 | S10: 0.4 | T10: 0.1 | U10: 0 | V10: 1 | X10: 2013 | Y10: 0.5 | Z10: 0.4 | AA10: 0.1 | AB10: 0 | AC10: 1
C11: 2014 | D11: 0.5 | E11: 0.4 | F11: 0.1 | G11: 0 | H11: 1 | J11: 2014 | K11: 0.5 | L11: 0.4 | M11: 0.1 | N11: 0 | O11: 1 | Q11: 2014 | R11: 0.5 | S11: 0.4 | T11: 0.1 | U11: 0 | V11: 1 | X11: 2014 | Y11: 0.5 | Z11: 0.4 | AA11: 0.1 | AB11: 0 | AC11: 1
C12: 2015 | D12: 0.5 | E12: 0.4 | F12: 0.1 | G12: 0 | H12: 1 | J12: 2015 | K12: 0.5 | L12: 0.4 | M12: 0.1 | N12: 0 | O12: 1 | Q12: 2015 | R12: 0.5 | S12: 0.4 | T12: 0.1 | U12: 0 | V12: 1 | X12: 2015 | Y12: 0.5 | Z12: 0.4 | AA12: 0.1 | AB12: 0 | AC12: 1
C13: 2016 | D13: 0.5 | E13: 0.4 | F13: 0.1 | G13: 0 | H13: 1 | J13: 2016 | K13: 0.5 | L13: 0.4 | M13: 0.1 | N13: 0 | O13: 1 | Q13: 2016 | R13: 0.5 | S13: 0.4 | T13: 0.1 | U13: 0 | V13: 1 | X13: 2016 | Y13: 0.5 | Z13: 0.4 | AA13: 0.1 | AB13: 0 | AC13: 1
C14: 2017 | D14: 0.5 | E14: 0.4 | F14: 0.1 | G14: 0 | H14: 1 | J14: 2017 | K14: 0.5 | L14: 0.4 | M14: 0.1 | N14: 0 | O14: 1 | Q14: 2017 | R14: 0.5 | S14: 0.4 | T14: 0.1 | U14: 0 | V14: 1 | X14: 2017 | Y14: 0.5 | Z14: 0.4 | AA14: 0.1 | AB14: 0 | AC14: 1
C15: 2018 | D15: 0.5 | E15: 0.4 | F15: 0.1 | G15: 0 | H15: 1 | J15: 2018 | K15: 0 | L15: 0.9 | M15: 0.1 | N15: 0 | O15: 1 | Q15: 2018 | R15: 0 | S15: 0 | T15: 1 | U15: 0 | V15: 1 | X15: 2018 | Y15: 0 | Z15: 0 | AA15: 0 | AB15: 1 | AC15: 1
C16: 2019 | D16: 0.4375 | E16: 0.4125 | F16: 0.1375 | G16: 0.0125 | H16: 1 | J16: 2019 | K16: 0 | L16: 0.85 | M16: 0.1375 | N16: 0.0125 | O16: 1 | Q16: 2019 | R16: 0 | S16: 0 | T16: 0.9875 | U16: 0.0125 | V16: 1 | X16: 2019 | Y16: 0 | Z16: 0 | AA16: 0 | AB16: 1 | AC16: 1
C17: 2020 | D17: 0.375 | E17: 0.425 | F17: 0.175 | G17: 0.025 | H17: 1 | J17: 2020 | K17: 0 | L17: 0.8 | M17: 0.175 | N17: 0.025 | O17: 1 | Q17: 2020 | R17: 0 | S17: 0 | T17: 0.975 | U17: 0.025 | V17: 1 | X17: 2020 | Y17: 0 | Z17: 0 | AA17: 0 | AB17: 1 | AC17: 1
C18: 2021 | D18: 0.3125 | E18: 0.4375 | F18: 0.2125 | G18: 0.0375 | H18: 1 | J18: 2021 | K18: 0 | L18: 0.75 | M18: 0.2125 | N18: 0.0375 | O18: 1 | Q18: 2021 | R18: 0 | S18: 0 | T18: 0.9625 | U18: 0.0375 | V18: 1 | X18: 2021 | Y18: 0 | Z18: 0 | AA18: 0 | AB18: 1 | AC18: 1
C19: 2022 | D19: 0.25 | E19: 0.45 | F19: 0.25 | G19: 0.05 | H19: 1 | J19: 2022 | K19: 0 | L19: 0.7 | M19: 0.25 | N19: 0.05 | O19: 1 | Q19: 2022 | R19: 0 | S19: 0 | T19: 0.95 | U19: 0.05 | V19: 1 | X19: 2022 | Y19: 0 | Z19: 0 | AA19: 0 | AB19: 1 | AC19: 1
C20: 2023 | D20: 0.1875 | E20: 0.4625 | F20: 0.2875 | G20: 0.0625 | H20: 1 | J20: 2023 | K20: 0 | L20: 0.65 | M20: 0.2875 | N20: 0.0625 | O20: 1 | Q20: 2023 | R20: 0 | S20: 0 | T20: 0.9375 | U20: 0.0625 | V20: 1 | X20: 2023 | Y20: 0 | Z20: 0 | AA20: 0 | AB20: 1 | AC20: 1
C21: 2024 | D21: 0.125 | E21: 0.475 | F21: 0.325 | G21: 0.075 | H21: 1 | J21: 2024 | K21: 0 | L21: 0.6 | M21: 0.325 | N21: 0.075 | O21: 1 | Q21: 2024 | R21: 0 | S21: 0 | T21: 0.925 | U21: 0.075 | V21: 1 | X21: 2024 | Y21: 0 | Z21: 0 | AA21: 0 | AB21: 1 | AC21: 1
C22: 2025 | D22: 0.0625 | E22: 0.4875 | F22: 0.3625 | G22: 0.0875 | H22: 1 | J22: 2025 | K22: 0 | L22: 0.55 | M22: 0.3625 | N22: 0.0875 | O22: 1 | Q22: 2025 | R22: 0 | S22: 0 | T22: 0.9125 | U22: 0.0875 | V22: 1 | X22: 2025 | Y22: 0 | Z22: 0 | AA22: 0 | AB22: 1 | AC22: 1
C23: 2026 | D23: 0 | E23: 0.5 | F23: 0.4 | G23: 0.1 | H23: 1 | J23: 2026 | K23: 0 | L23: 0.5 | M23: 0.4 | N23: 0.1 | O23: 1 | Q23: 2026 | R23: 0 | S23: 0 | T23: 0.9 | U23: 0.1 | V23: 1 | X23: 2026 | Y23: 0 | Z23: 0 | AA23: 0 | AB23: 1 | AC23: 1
C24: 2027 | D24: 0 | E24: 0.5 | F24: 0.4 | G24: 0.1 | H24: 1 | J24: 2027 | K24: 0 | L24: 0.5 | M24: 0.4 | N24: 0.1 | O24: 1 | Q24: 2027 | R24: 0 | S24: 0 | T24: 0.9 | U24: 0.1 | V24: 1 | X24: 2027 | Y24: 0 | Z24: 0 | AA24: 0 | AB24: 1 | AC24: 1
C25: 2028 | D25: 0 | E25: 0.5 | F25: 0.4 | G25: 0.1 | H25: 1 | J25: 2028 | K25: 0 | L25: 0.5 | M25: 0.4 | N25: 0.1 | O25: 1 | Q25: 2028 | R25: 0 | S25: 0 | T25: 0.9 | U25: 0.1 | V25: 1 | X25: 2028 | Y25: 0 | Z25: 0 | AA25: 0 | AB25: 1 | AC25: 1
C26: 2029 | D26: 0 | E26: 0.5 | F26: 0.4 | G26: 0.1 | H26: 1 | J26: 2029 | K26: 0 | L26: 0.5 | M26: 0.4 | N26: 0.1 | O26: 1 | Q26: 2029 | R26: 0 | S26: 0 | T26: 0.9 | U26: 0.1 | V26: 1 | X26: 2029 | Y26: 0 | Z26: 0 | AA26: 0 | AB26: 1 | AC26: 1
C27: 2030 | D27: 0 | E27: 0.5 | F27: 0.4 | G27: 0.1 | H27: 1 | J27: 2030 | K27: 0 | L27: 0.5 | M27: 0.4 | N27: 0.1 | O27: 1 | Q27: 2030 | R27: 0 | S27: 0 | T27: 0.9 | U27: 0.1 | V27: 1 | X27: 2030 | Y27: 0 | Z27: 0 | AA27: 0 | AB27: 1 | AC27: 1
C28: 2031 | D28: 0 | E28: 0.5 | F28: 0.4 | G28: 0.1 | H28: 1 | J28: 2031 | K28: 0 | L28: 0.5 | M28: 0.4 | N28: 0.1 | O28: 1 | Q28: 2031 | R28: 0 | S28: 0 | T28: 0.9 | U28: 0.1 | V28: 1 | X28: 2031 | Y28: 0 | Z28: 0 | AA28: 0 | AB28: 1 | AC28: 1
C29: 2032 | D29: 0 | E29: 0.5 | F29: 0.4 | G29: 0.1 | H29: 1 | J29: 2032 | K29: 0 | L29: 0.5 | M29: 0.4 | N29: 0.1 | O29: 1 | Q29: 2032 | R29: 0 | S29: 0 | T29: 0.9 | U29: 0.1 | V29: 1 | X29: 2032 | Y29: 0 | Z29: 0 | AA29: 0 | AB29: 1 | AC29: 1
C30: 2033 | D30: 0 | E30: 0.5 | F30: 0.4 | G30: 0.1 | H30: 1 | J30: 2033 | K30: 0 | L30: 0.5 | M30: 0.4 | N30: 0.1 | O30: 1 | Q30: 2033 | R30: 0 | S30: 0 | T30: 0.9 | U30: 0.1 | V30: 1 | X30: 2033 | Y30: 0 | Z30: 0 | AA30: 0 | AB30: 1 | AC30: 1
C31: 2034 | D31: 0 | E31: 0.5 | F31: 0.4 | G31: 0.1 | H31: 1 | J31: 2034 | K31: 0 | L31: 0.5 | M31: 0.4 | N31: 0.1 | O31: 1 | Q31: 2034 | R31: 0 | S31: 0 | T31: 0.9 | U31: 0.1 | V31: 1 | X31: 2034 | Y31: 0 | Z31: 0 | AA31: 0 | AB31: 1 | AC31: 1
C32: 2035 | D32: 0 | E32: 0.5 | F32: 0.4 | G32: 0.1 | H32: 1 | J32: 2035 | K32: 0 | L32: 0.5 | M32: 0.4 | N32: 0.1 | O32: 1 | Q32: 2035 | R32: 0 | S32: 0 | T32: 0.9 | U32: 0.1 | V32: 1 | X32: 2035 | Y32: 0 | Z32: 0 | AA32: 0 | AB32: 1 | AC32: 1
C33: 2036 | D33: 0 | E33: 0.5 | F33: 0.4 | G33: 0.1 | H33: 1 | J33: 2036 | K33: 0 | L33: 0.5 | M33: 0.4 | N33: 0.1 | O33: 1 | Q33: 2036 | R33: 0 | S33: 0 | T33: 0.9 | U33: 0.1 | V33: 1 | X33: 2036 | Y33: 0 | Z33: 0 | AA33: 0 | AB33: 1 | AC33: 1
C34: 2037 | D34: 0 | E34: 0.5 | F34: 0.4 | G34: 0.1 | H34: 1 | J34: 2037 | K34: 0 | L34: 0.5 | M34: 0.4 | N34: 0.1 | O34: 1 | Q34: 2037 | R34: 0 | S34: 0 | T34: 0.9 | U34: 0.1 | V34: 1 | X34: 2037 | Y34: 0 | Z34: 0 | AA34: 0 | AB34: 1 | AC34: 1
C35: 2038 | D35: 0 | E35: 0.5 | F35: 0.4 | G35: 0.1 | H35: 1 | J35: 2038 | K35: 0 | L35: 0.5 | M35: 0.4 | N35: 0.1 | O35: 1 | Q35: 2038 | R35: 0 | S35: 0 | T35: 0.9 | U35: 0.1 | V35: 1 | X35: 2038 | Y35: 0 | Z35: 0 | AA35: 0 | AB35: 1 | AC35: 1
C36: 2039 | D36: 0 | E36: 0.5 | F36: 0.4 | G36: 0.1 | H36: 1 | J36: 2039 | K36: 0 | L36: 0.5 | M36: 0.4 | N36: 0.1 | O36: 1 | Q36: 2039 | R36: 0 | S36: 0 | T36: 0.9 | U36: 0.1 | V36: 1 | X36: 2039 | Y36: 0 | Z36: 0 | AA36: 0 | AB36: 1 | AC36: 1
C37: 2040 | D37: 0 | E37: 0.5 | F37: 0.4 | G37: 0.1 | H37: 1 | J37: 2040 | K37: 0 | L37: 0.5 | M37: 0.4 | N37: 0.1 | O37: 1 | Q37: 2040 | R37: 0 | S37: 0 | T37: 0.9 | U37: 0.1 | V37: 1 | X37: 2040 | Y37: 0 | Z37: 0 | AA37: 0 | AB37: 1 | AC37: 1
C38: 2041 | D38: 0 | E38: 0.5 | F38: 0.4 | G38: 0.1 | H38: 1 | J38: 2041 | K38: 0 | L38: 0.5 | M38: 0.4 | N38: 0.1 | O38: 1 | Q38: 2041 | R38: 0 | S38: 0 | T38: 0.9 | U38: 0.1 | V38: 1 | X38: 2041 | Y38: 0 | Z38: 0 | AA38: 0 | AB38: 1 | AC38: 1
C39: 2042 | D39: 0 | E39: 0.5 | F39: 0.4 | G39: 0.1 | H39: 1 | J39: 2042 | K39: 0 | L39: 0.5 | M39: 0.4 | N39: 0.1 | O39: 1 | Q39: 2042 | R39: 0 | S39: 0 | T39: 0.9 | U39: 0.1 | V39: 1 | X39: 2042 | Y39: 0 | Z39: 0 | AA39: 0 | AB39: 1 | AC39: 1
C40: 2043 | D40: 0 | E40: 0.5 | F40: 0.4 | G40: 0.1 | H40: 1 | J40: 2043 | K40: 0 | L40: 0.5 | M40: 0.4 | N40: 0.1 | O40: 1 | Q40: 2043 | R40: 0 | S40: 0 | T40: 0.9 | U40: 0.1 | V40: 1 | X40: 2043 | Y40: 0 | Z40: 0 | AA40: 0 | AB40: 1 | AC40: 1
C41: 2044 | D41: 0 | E41: 0.5 | F41: 0.4 | G41: 0.1 | H41: 1 | J41: 2044 | K41: 0 | L41: 0.5 | M41: 0.4 | N41: 0.1 | O41: 1 | Q41: 2044 | R41: 0 | S41: 0 | T41: 0.9 | U41: 0.1 | V41: 1 | X41: 2044 | Y41: 0 | Z41: 0 | AA41: 0 | AB41: 1 | AC41: 1
C42: 2045 | D42: 0 | E42: 0.5 | F42: 0.4 | G42: 0.1 | H42: 1 | J42: 2045 | K42: 0 | L42: 0.5 | M42: 0.4 | N42: 0.1 | O42: 1 | Q42: 2045 | R42: 0 | S42: 0 | T42: 0.9 | U42: 0.1 | V42: 1 | X42: 2045 | Y42: 0 | Z42: 0 | AA42: 0 | AB42: 1 | AC42: 1
C43: 2046 | D43: 0 | E43: 0.5 | F43: 0.4 | G43: 0.1 | H43: 1 | J43: 2046 | K43: 0 | L43: 0.5 | M43: 0.4 | N43: 0.1 | O43: 1 | Q43: 2046 | R43: 0 | S43: 0 | T43: 0.9 | U43: 0.1 | V43: 1 | X43: 2046 | Y43: 0 | Z43: 0 | AA43: 0 | AB43: 1 | AC43: 1
C44: 2047 | D44: 0 | E44: 0.5 | F44: 0.4 | G44: 0.1 | H44: 1 | J44: 2047 | K44: 0 | L44: 0.5 | M44: 0.4 | N44: 0.1 | O44: 1 | Q44: 2047 | R44: 0 | S44: 0 | T44: 0.9 | U44: 0.1 | V44: 1 | X44: 2047 | Y44: 0 | Z44: 0 | AA44: 0 | AB44: 1 | AC44: 1

Sheet INPUT - Price Trends
C2: INPUT from NIA (Price Trends) | F2: Navigation
C5: Year | D5: Multiplier
C6: 2018 | D6: 1
C7: 2019 | D7: 0.9182743254
C8: 2020 | D8: 0.8432277366
C9: 2021 | D9: 0.7743143809
C10: 2022 | D10: 0.7110330158
C11: 2023 | D11: 0.6529233629
C12: 2024 | D12: 0.5995627605
C13: 2025 | D13: 0.5505630894
C14: 2026 | D14: 0.5055679495
C15: 2027 | D15: 0.4642500678
C16: 2028 | D16: 0.4263089178
C17: 2029 | D17: 0.3914685339
C18: 2030 | D18: 0.3594755038
C19: 2031 | D19: 0.3300971258
C20: 2032 | D20: 0.3031197155
C21: 2033 | D21: 0.2783470522
C22: 2034 | D22: 0.2555989516
C23: 2035 | D23: 0.2347099548
C24: 2036 | D24: 0.2155281254
C25: 2037 | D25: 0.197913944
C26: 2038 | D26: 0.1817392934
C27: 2039 | D27: 0.166886527
C28: 2040 | D28: 0.153247613
C29: 2041 | D29: 0.1407233484
C30: 2042 | D30: 0.1292226379
C31: 2043 | D31: 0.1186618306
C32: 2044 | D32: 0.1089641124
C33: 2045 | D33: 0.1000589468
C34: 2046 | D34: 0.0918815619
C35: 2047 | D35: 0.08437247927

Sheet OUTPUT - LCC and NIA
B2: OUTPUT to LCC and NIA | H2: Navigation
C5: PG1 | D5: Cable Base | E5: Baseline | F5: EL 1 | G5: EL 2 | H5: EL 3
D7: Annual Energy Consumption | E7: ='INPUT - Engineering Analysis'!E7 -> 169.0096 | F7: ='INPUT - Engineering Analysis'!F7 -> 107.08005 | G7: ='INPUT - Engineering Analysis'!G7 -> 95.29372131 | H7: ='INPUT - Engineering Analysis'!H7 -> 74.65840649
D8: Manufacturer Selling Price | E8: =OFFSET(MSP!$I$6,((MATCH($C5,PC_LIST,0)-1)* 9) + MATCH(E5,EL_List,0),0) -> 106.2352 | F8: =OFFSET(MSP!$I$6,((MATCH($C5,PC_LIST,0)-1)* 9) + MATCH(F5,EL_List,0),0) -> 111.4612 | G8: =OFFSET(MSP!$I$6,((MATCH($C5,PC_LIST,0)-1)* 9) + MATCH(G5,EL_List,0),0) -> 112.5198 | H8: =OFFSET(MSP!$I$6,((MATCH($C5,PC_LIST,0)-1)* 9) + MATCH(H5,EL_List,0),0) -> 116.2530467
D9: Incremental Selling Price | E9: =E8-$E8 -> 0 | F9: =F8-$E8 -> 5.226 | G9: =G8-$E8 -> 6.2846 | H9: 10.0178467
D10: PWATCH | E10: ='INPUT - Engineering Analysis'!E10 -> 19.71 | F10: ='INPUT - Engineering Analysis'!F10 -> 12.5 | G10: ='INPUT - Engineering Analysis'!G10 -> 11.12412178 | H10: ='INPUT - Engineering Analysis'!H10 -> 10.85714286
D11: PSLEEP | E11: ='INPUT - Engineering Analysis'!E11 -> 18.71 | F11: ='INPUT - Engineering Analysis'!F11 -> 12.11 | G11: ='INPUT - Engineering Analysis'!G11 -> 10.77704918 | H11: ='INPUT - Engineering Analysis'!H11 -> 7.561387024
D12: PAPD | E12: ='INPUT - Engineering Analysis'!E12 -> N/A | F12: ='INPUT - Engineering Analysis'!F12 -> 12.11 | G12: ='INPUT - Engineering Analysis'!G12 -> 10.77704918 | H12: ='INPUT - Engineering Analysis'!H12 -> 7.561387024
D13: PMULTISTREAM | E13: ='INPUT - Engineering Analysis'!E13 -> N/A | F13: ='INPUT - Engineering Analysis'!F13 -> N/A | G13: ='INPUT - Engineering Analysis'!G13 -> N/A | H13: ='INPUT - Engineering Analysis'!H13 -> N/A
C17: PG2 | D17: Cable Video Client | E17: Baseline | F17: EL 1 | G17: EL 2 | H17: EL 3
D19: Annual Energy Consumption | E19: ='INPUT - Engineering Analysis'!E19 -> 192.0119 | F19: ='INPUT - Engineering Analysis'!F19 -> 130.1326816 | G19: ='INPUT - Engineering Analysis'!G19 -> 100.4225269 | H19: ='INPUT - Engineering Analysis'!H19 -> 79.66412077
D20: Manufacturer Selling Price | E20: =OFFSET(MSP!$I$6,((MATCH($C17,PC_LIST,0)-1)* 9) + MATCH(E17,EL_List,0),0) -> 114.0072 | F20: =OFFSET(MSP!$I$6,((MATCH($C17,PC_LIST,0)-1)* 9) + MATCH(F17,EL_List,0),0) -> 119.2332 | G20: =OFFSET(MSP!$I$6,((MATCH($C17,PC_LIST,0)-1)* 9) + MATCH(G17,EL_List,0),0) -> 125.9198 | H20: =OFFSET(MSP!$I$6,((MATCH($C17,PC_LIST,0)-1)* 9) + MATCH(H17,EL_List,0),0) -> 127.2571721
D21: Incremental Selling Price | E21: =E20-$E20 -> 0 | F21: =F20-$E20 -> 5.226 | G21: =G20-$E20 -> 11.9126 | H21: =H20-$E20 -> 13.24997208
D22: PWATCH | E22: ='INPUT - Engineering Analysis'!E22 -> 22.34 | F22: ='INPUT - Engineering Analysis'!F22 -> 15.13157895 | G22: ='INPUT - Engineering Analysis'!G22 -> 11.70960187 | H22: ='INPUT - Engineering Analysis'!H22 -> 11.42857143
D23: PSLEEP | E23: ='INPUT - Engineering Analysis'!E23 -> 21.33 | F23: ='INPUT - Engineering Analysis'!F23 -> 14.74157895 | G23: ='INPUT - Engineering Analysis'!G23 -> 11.36252927 | H23: ='INPUT - Engineering Analysis'!H23 -> 8.132815596
D24: PAPD | E24: ='INPUT - Engineering Analysis'!E24 -> N/A | F24: ='INPUT - Engineering Analysis'!F24 -> 14.74157895 | G24: ='INPUT - Engineering Analysis'!G24 -> 11.36252927 | H24: ='INPUT - Engineering Analysis'!H24 -> 8.132815596
D25: PMULTISTREAM | E25: ='INPUT - Engineering Analysis'!E25 -> N/A | F25: ='INPUT - Engineering Analysis'!F25 -> N/A | G25: ='INPUT - Engineering Analysis'!G25 -> N/A | H25: ='INPUT - Engineering Analysis'!H25 -> N/A
C29: PG3 | D29: Cable Video Server | E29: Baseline | F29: EL 1 | G29: EL 2 | H29: EL 3
D31: Annual Energy Consumption | E31: ='INPUT - Engineering Analysis'!E31 -> 216.0976059 | F31: ='INPUT - Engineering Analysis'!F31 -> 180.4927074 | G31: ='INPUT - Engineering Analysis'!G31 -> 153.6071392 | H31: ='INPUT - Engineering Analysis'!H31 -> 115.0494403
D32: Manufacturer Selling Price | E32: =OFFSET(MSP!$I$6,((MATCH($C29,PC_LIST,0)-1)* 9) + MATCH(E29,EL_List,0),0) -> 213.1538 | F32: =OFFSET(MSP!$I$6,((MATCH($C29,PC_LIST,0)-1)* 9) + MATCH(F29,EL_List,0),0) -> 220.4836 | G32: =OFFSET(MSP!$I$6,((MATCH($C29,PC_LIST,0)-1)* 9) + MATCH(G29,EL_List,0),0) -> 233.4682 | H32: =OFFSET(MSP!$I$6,((MATCH($C29,PC_LIST,0)-1)* 9) + MATCH(H29,EL_List,0),0) -> 235.6088886
D33: Incremental Selling Price | E33: =E32-$E32 -> 0 | F33: =F32-$E32 -> 7.3298 | G33: =G32-$E32 -> 20.3144 | H33: =H32-$E32 -> 22.4550886
D34: PWATCH | E34: ='INPUT - Engineering Analysis'!E34 -> 24.83117647 | F34: ='INPUT - Engineering Analysis'!F34 -> 20.87102273 | G34: ='INPUT - Engineering Analysis'!G34 -> 16.97329545 | H34: ='INPUT - Engineering Analysis'!H34 -> 16.41373626
D35: PSLEEP | E35: ='INPUT - Engineering Analysis'!E35 -> 24.44117647 | F35: ='INPUT - Engineering Analysis'!F35 -> 20.49431818 | G35: ='INPUT - Engineering Analysis'!G35 -> 16.59659091 | H35: ='INPUT - Engineering Analysis'!H35 -> 10.65158958
D36: PAPD | E36: ='INPUT - Engineering Analysis'!E36 -> N/A | F36: ='INPUT - Engineering Analysis'!F36 -> 20.49431818 | G36: ='INPUT - Engineering Analysis'!G36 -> 16.59659091 | H36: ='INPUT - Engineering Analysis'!H36 -> 10.65158958
D37: PMULTISTREAM | E37: ='INPUT - Engineering Analysis'!E37 -> 24.83117647 | F37: ='INPUT - Engineering Analysis'!F37 -> 20.87102273 | G37: ='INPUT - Engineering Analysis'!G37 -> 20.95056818 | H37: ='INPUT - Engineering Analysis'!H37 -> 20.25989011
C41: PG4 | D41: Cable with DVR | E41: Baseline | F41: EL 1 | G41: EL 2 | H41: EL 3
D43: Annual Energy Consumption | E43: ='INPUT - Engineering Analysis'!E43 -> 242.7396 | F43: ='INPUT - Engineering Analysis'!F43 -> 181.8048409 | G43: ='INPUT - Engineering Analysis'!G43 -> 144.1766591 | H43: ='INPUT - Engineering Analysis'!H43 -> 104.9240589
D44: Manufacturer Selling Price | E44: =OFFSET(MSP!$I$6,((MATCH($C41,PC_LIST,0)-1)* 9) + MATCH(E41,EL_List,0),0) -> 159.9692 | F44: =OFFSET(MSP!$I$6,((MATCH($C41,PC_LIST,0)-1)* 9) + MATCH(F41,EL_List,0),0) -> 173.329 | G44: =OFFSET(MSP!$I$6,((MATCH($C41,PC_LIST,0)-1)* 9) + MATCH(G41,EL_List,0),0) -> 196.7522 | H44: =OFFSET(MSP!$I$6,((MATCH($C41,PC_LIST,0)-1)* 9) + MATCH(H41,EL_List,0),0) -> 199.0583806
D45: Incremental Selling Price | E45: =E44-$E44 -> 0 | F45: =F44-$E44 -> 13.3598 | G45: =G44-$E44 -> 36.783 | H45: =H44-$E44 -> 39.08918059
D46: PWATCH | E46: ='INPUT - Engineering Analysis'!E46 -> 27.71 | F46: ='INPUT - Engineering Analysis'!F46 -> 20.75397727 | G46: ='INPUT - Engineering Analysis'!G46 -> 16.45852273 | H46: ='INPUT - Engineering Analysis'!H46 -> 15.91593407
D47: PSLEEP | E47: ='INPUT - Engineering Analysis'!E47 -> 27.71 | F47: ='INPUT - Engineering Analysis'!F47 -> 20.75397727 | G47: ='INPUT - Engineering Analysis'!G47 -> 16.45852273 | H47: ='INPUT - Engineering Analysis'!H47 -> 10.35597862
D48: PAPD | E48: ='INPUT - Engineering Analysis'!E48 -> N/A | F48: ='INPUT - Engineering Analysis'!F48 -> 20.75397727 | G48: ='INPUT - Engineering Analysis'!G48 -> 16.45852273 | H48: ='INPUT - Engineering Analysis'!H48 -> 10.35597862
D49: PMULTISTREAM | E49: ='INPUT - Engineering Analysis'!E49 -> 27.71 | F49: ='INPUT - Engineering Analysis'!F49 -> 20.75397727 | G49: ='INPUT - Engineering Analysis'!G49 -> 16.45852273 | H49: ='INPUT - Engineering Analysis'!H49 -> 15.91593407
C53: PG5 | D53: Cable with DVR & Video Server | E53: Baseline | F53: EL 1 | G53: EL 2 | H53: EL 3
D55: Annual Energy Consumption | E55: ='INPUT - Engineering Analysis'!E55 -> 277.9329 | F55: ='INPUT - Engineering Analysis'!F55 -> 207.1625938 | G55: ='INPUT - Engineering Analysis'!G55 -> 169.5344119 | H55: ='INPUT - Engineering Analysis'!H55 -> 120.9054843
D56: Manufacturer Selling Price | E56: =OFFSET(MSP!$I$6,((MATCH($C53,PC_LIST,0)-1)* 9) + MATCH(E53,EL_List,0),0) -> 279.4838 | F56: =OFFSET(MSP!$I$6,((MATCH($C53,PC_LIST,0)-1)* 9) + MATCH(F53,EL_List,0),0) -> 298.4716 | G56: =OFFSET(MSP!$I$6,((MATCH($C53,PC_LIST,0)-1)* 9) + MATCH(G53,EL_List,0),0) -> 321.8948 | H56: =OFFSET(MSP!$I$6,((MATCH($C53,PC_LIST,0)-1)* 9) + MATCH(H53,EL_List,0),0) -> 324.1223913
D57: Incremental Selling Price | E57: =E56-$E56 -> 0 | F57: =F56-$E56 -> 18.9878 | G57: =G56-$E56 -> 42.411 | H57: =H56-$E56 -> 44.63859134
D58: PWATCH | E58: ='INPUT - Engineering Analysis'!E58 -> 31.89 | F58: ='INPUT - Engineering Analysis'!F58 -> 23.08693182 | G58: ='INPUT - Engineering Analysis'!G58 -> 18.79147727 | H58: ='INPUT - Engineering Analysis'!H58 -> 18.17197802
D59: PSLEEP | E59: ='INPUT - Engineering Analysis'!E59 -> 31.5 | F59: ='INPUT - Engineering Analysis'!F59 -> 22.71022727 | G59: ='INPUT - Engineering Analysis'!G59 -> 18.41477273 | H59: ='INPUT - Engineering Analysis'!H59 -> 10.8713698
D60: PAPD | E60: ='INPUT - Engineering Analysis'!E60 -> N/A | F60: ='INPUT - Engineering Analysis'!F60 -> 22.71022727 | G60: ='INPUT - Engineering Analysis'!G60 -> 18.41477273 | H60: ='INPUT - Engineering Analysis'!H60 -> 10.8713698
D61: PMULTISTREAM | E61: ='INPUT - Engineering Analysis'!E61 -> 31.89 | F61: ='INPUT - Engineering Analysis'!F61 -> 27.06420455 | G61: ='INPUT - Engineering Analysis'!G61 -> 22.76875 | H61: ='INPUT - Engineering Analysis'!H61 -> 22.01813187
C65: PG6 | D65: Satellite Base | E65: Baseline | F65: EL 1 | G65: EL 2 | H65: EL 3
D67: Annual Energy Consumption | E67: ='INPUT - Engineering Analysis'!E67 -> 123.37 | F67: ='INPUT - Engineering Analysis'!F67 -> 90.59180328 | G67: ='INPUT - Engineering Analysis'!G67 -> 62.342 | H67: ='INPUT - Engineering Analysis'!H67 -> 47.24097654
D68: Manufacturer Selling Price | E68: =OFFSET(MSP!$I$6,((MATCH($C65,PC_LIST,0)-1)* 9) + MATCH(E65,EL_List,0),0) -> 65.0168 | F68: =OFFSET(MSP!$I$6,((MATCH($C65,PC_LIST,0)-1)* 9) + MATCH(F65,EL_List,0),0) -> 70.1758 | G68: =OFFSET(MSP!$I$6,((MATCH($C65,PC_LIST,0)-1)* 9) + MATCH(G65,EL_List,0),0) -> 74.0216 | H68: =OFFSET(MSP!$I$6,((MATCH($C65,PC_LIST,0)-1)* 9) + MATCH(H65,EL_List,0),0) -> 75.26913566
D69: Incremental Selling Price | E69: =E68-$E68 -> 0 | F69: =F68-$E68 -> 5.159 | G69: =G68-$E68 -> 9.0048 | H69: =H68-$E68 -> 10.25233566
D70: PWATCH | E70: ='INPUT - Engineering Analysis'!E70 -> 14.5 | F70: ='INPUT - Engineering Analysis'!F70 -> 10.97189696 | G70: ='INPUT - Engineering Analysis'!G70 -> 7.4 | H70: ='INPUT - Engineering Analysis'!H70 -> 7.2224
D71: PSLEEP | E71: ='INPUT - Engineering Analysis'!E71 -> 13.5 | F71: ='INPUT - Engineering Analysis'!F71 -> 10.08196721 | G71: ='INPUT - Engineering Analysis'!G71 -> 7 | H71: ='INPUT - Engineering Analysis'!H71 -> 4.639443117
D72: PAPD | E72: ='INPUT - Engineering Analysis'!E72 -> N/A | F72: ='INPUT - Engineering Analysis'!F72 -> 10.08196721 | G72: ='INPUT - Engineering Analysis'!G72 -> 7 | H72: ='INPUT - Engineering Analysis'!H72 -> 4.639443117
D73: PMULTISTREAM | E73: ='INPUT - Engineering Analysis'!E73 -> N/A | F73: ='INPUT - Engineering Analysis'!F73 -> N/A | G73: ='INPUT - Engineering Analysis'!G73 -> N/A | H73: ='INPUT - Engineering Analysis'!H73 -> N/A
C77: PG7 | D77: Satellite Video Client | E77: Baseline | F77: EL 1 | G77: EL 2 | H77: EL 3
D79: Annual Energy Consumption | E79: ='INPUT - Engineering Analysis'!E79 -> 130.086 | F79: ='INPUT - Engineering Analysis'!F79 -> 94.74955504 | G79: ='INPUT - Engineering Analysis'!G79 -> 79.36313817 | H79: ='INPUT - Engineering Analysis'!H79 -> 61.77489006
D80: Manufacturer Selling Price | E80: =OFFSET(MSP!$I$6,((MATCH($C77,PC_LIST,0)-1)* 9) + MATCH(E77,EL_List,0),0) -> 72.7888 | F80: =OFFSET(MSP!$I$6,((MATCH($C77,PC_LIST,0)-1)* 9) + MATCH(F77,EL_List,0),0) -> 77.9478 | G80: =OFFSET(MSP!$I$6,((MATCH($C77,PC_LIST,0)-1)* 9) + MATCH(G77,EL_List,0),0) -> 83.5758 | H80: =OFFSET(MSP!$I$6,((MATCH($C77,PC_LIST,0)-1)* 9) + MATCH(H77,EL_List,0),0) -> 84.30259836
D81: Incremental Selling Price | E81: =E80-$E80 -> 0 | F81: =F80-$E80 -> 5.159 | G81: =G80-$E80 -> 10.787 | H81: =H80-$E80 -> 11.51379836
D82: PWATCH | E82: ='INPUT - Engineering Analysis'!E82 -> 15.6 | F82: ='INPUT - Engineering Analysis'!F82 -> 11.95081967 | G82: ='INPUT - Engineering Analysis'!G82 -> 10.19437939 | H82: ='INPUT - Engineering Analysis'!H82 -> 9.949714286
D83: PSLEEP | E83: ='INPUT - Engineering Analysis'!E83 -> 13.8 | F83: ='INPUT - Engineering Analysis'!F83 -> 10.34894614 | G83: ='INPUT - Engineering Analysis'!G83 -> 8.592505855 | H83: ='INPUT - Engineering Analysis'!H83 -> 5.858722008
D84: PAPD | E84: ='INPUT - Engineering Analysis'!E84 -> N/A | F84: ='INPUT - Engineering Analysis'!F84 -> 10.34894614 | G84: ='INPUT - Engineering Analysis'!G84 -> 8.592505855 | H84: ='INPUT - Engineering Analysis'!H84 -> 5.858722008
D85: PMULTISTREAM | E85: ='INPUT - Engineering Analysis'!E85 -> N/A | F85: ='INPUT - Engineering Analysis'!F85 -> N/A | G85: ='INPUT - Engineering Analysis'!G85 -> N/A | H85: ='INPUT - Engineering Analysis'!H85 -> N/A
C89: PG8 | D89: Satellite Video Server | E89: Baseline | F89: EL 1 | G89: EL 2 | H89: EL 3
D91: Annual Energy Consumption | E91: ='INPUT - Engineering Analysis'!E91 -> 186.2917059 | F91: ='INPUT - Engineering Analysis'!F91 -> 155.7540882 | G91: ='INPUT - Engineering Analysis'!G91 -> 126.3459943 | H91: ='INPUT - Engineering Analysis'!H91 -> 93.40979287
D92: Manufacturer Selling Price | E92: =OFFSET(MSP!$I$6,((MATCH($C89,PC_LIST,0)-1)* 9) + MATCH(E89,EL_List,0),0) -> 119.3136 | F92: =OFFSET(MSP!$I$6,((MATCH($C89,PC_LIST,0)-1)* 9) + MATCH(F89,EL_List,0),0) -> 124.5262 | G92: =OFFSET(MSP!$I$6,((MATCH($C89,PC_LIST,0)-1)* 9) + MATCH(G89,EL_List,0),0) -> 136.3718 | H92: =OFFSET(MSP!$I$6,((MATCH($C89,PC_LIST,0)-1)* 9) + MATCH(H89,EL_List,0),0) -> 138.2181014
D93: Incremental Selling Price | E93: =E92-$E92 -> 0 | F93: =F92-$E92 -> 5.2126 | G93: =G92-$E92 -> 17.0582 | H93: =H92-$E92 -> 18.90450142
D94: PWATCH | E94: ='INPUT - Engineering Analysis'!E94 -> 21.64117647 | F94: ='INPUT - Engineering Analysis'!F94 -> 18.41764706 | G94: ='INPUT - Engineering Analysis'!G94 -> 14.21022727 | H94: ='INPUT - Engineering Analysis'!H94 -> 13.74175824
D95: PSLEEP | E95: ='INPUT - Engineering Analysis'!E95 -> 20.74117647 | F95: ='INPUT - Engineering Analysis'!F95 -> 17.51764706 | G95: ='INPUT - Engineering Analysis'!G95 -> 13.34090909 | H95: ='INPUT - Engineering Analysis'!H95 -> 8.264362578
D96: PAPD | E96: ='INPUT - Engineering Analysis'!E96 -> N/A | F96: ='INPUT - Engineering Analysis'!F96 -> 17.51764706 | G96: ='INPUT - Engineering Analysis'!G96 -> 13.34090909 | H96: ='INPUT - Engineering Analysis'!H96 -> 8.264362578
D97: PMULTISTREAM | E97: ='INPUT - Engineering Analysis'!E97 -> 21.64117647 | F97: ='INPUT - Engineering Analysis'!F97 -> 18.41764706 | G97: ='INPUT - Engineering Analysis'!G97 -> 18.1875 | H97: ='INPUT - Engineering Analysis'!H97 -> 17.58791209
C101: PG9 | D101: Satellite with DVR | E101: Baseline | F101: EL 1 | G101: EL 2 | H101: EL 3
D103: Annual Energy Consumption | E103: ='INPUT - Engineering Analysis'!E103 -> 217.467 | F103: ='INPUT - Engineering Analysis'!F103 -> 155.1726989 | G103: ='INPUT - Engineering Analysis'!G103 -> 120.3317898 | H103: ='INPUT - Engineering Analysis'!H103 -> 86.13614154
D104: Manufacturer Selling Price | E104: =OFFSET(MSP!$I$6,((MATCH($C101,PC_LIST,0)-1)* 9) + MATCH(E101,EL_List,0),0) -> 131.3468 | F104: =OFFSET(MSP!$I$6,((MATCH($C101,PC_LIST,0)-1)* 9) + MATCH(F101,EL_List,0),0) -> 144.7066 | G104: =OFFSET(MSP!$I$6,((MATCH($C101,PC_LIST,0)-1)* 9) + MATCH(G101,EL_List,0),0) -> 164.8736 | H104: =OFFSET(MSP!$I$6,((MATCH($C101,PC_LIST,0)-1)* 9) + MATCH(H101,EL_List,0),0) -> 166.7589834
D105: Incremental Selling Price | E105: =E104-$E104 -> 0 | F105: =F104-$E104 -> 13.3598 | G105: =G104-$E104 -> 33.5268 | H105: =H104-$E104 -> 35.41218339
D106: PWATCH | E106: ='INPUT - Engineering Analysis'!E106 -> 25.2 | F106: ='INPUT - Engineering Analysis'!F106 -> 18.32954545 | G106: ='INPUT - Engineering Analysis'!G106 -> 14.35227273 | H106: ='INPUT - Engineering Analysis'!H106 -> 13.87912088
D107: PSLEEP | E107: ='INPUT - Engineering Analysis'!E107 -> 24.3 | F107: ='INPUT - Engineering Analysis'!F107 -> 17.46022727 | G107: ='INPUT - Engineering Analysis'!G107 -> 13.48295455 | H107: ='INPUT - Engineering Analysis'!H107 -> 8.166798983
D108: PAPD | E108: ='INPUT - Engineering Analysis'!E108 -> N/A | F108: ='INPUT - Engineering Analysis'!F108 -> 17.46022727 | G108: ='INPUT - Engineering Analysis'!G108 -> 13.48295455 | H108: ='INPUT - Engineering Analysis'!H108 -> 8.166798983
D109: PMULTISTREAM | E109: ='INPUT - Engineering Analysis'!E109 -> 25.2 | F109: ='INPUT - Engineering Analysis'!F109 -> 18.32954545 | G109: ='INPUT - Engineering Analysis'!G109 -> 14.35227273 | H109: ='INPUT - Engineering Analysis'!H109 -> 13.87912088
C113: PG10 | D113: Satellite with DVR & Video Server | E113: Baseline | F113: EL 1 | G113: EL 2 | H113: EL 3
D115: Annual Energy Consumption | E115: ='INPUT - Engineering Analysis'!E115 -> 248.127 | F115: ='INPUT - Engineering Analysis'!F115 -> 177.1141761 | G115: ='INPUT - Engineering Analysis'!G115 -> 142.273267 | H115: ='INPUT - Engineering Analysis'!H115 -> 99.27940803
D116: Manufacturer Selling Price | E116: =OFFSET(MSP!$I$6,((MATCH($C113,PC_LIST,0)-1)* 9) + MATCH(E113,EL_List,0),0) -> 185.6436 | F116: =OFFSET(MSP!$I$6,((MATCH($C113,PC_LIST,0)-1)* 9) + MATCH(F113,EL_List,0),0) -> 204.6314 | G116: =OFFSET(MSP!$I$6,((MATCH($C113,PC_LIST,0)-1)* 9) + MATCH(G113,EL_List,0),0) -> 224.7984 | H116: =OFFSET(MSP!$I$6,((MATCH($C113,PC_LIST,0)-1)* 9) + MATCH(H113,EL_List,0),0) -> 226.6628119
D117: Incremental Selling Price | E117: =E116-$E116 -> 0 | F117: =F116-$E116 -> 18.9878 | G117: =G116-$E116 -> 39.1548 | H117: =H116-$E116 -> 41.01921191
D118: PWATCH | E118: ='INPUT - Engineering Analysis'!E118 -> 28.7 | F118: ='INPUT - Engineering Analysis'!F118 -> 20.00568182 | G118: ='INPUT - Engineering Analysis'!G118 -> 16.02840909 | H118: ='INPUT - Engineering Analysis'!H118 -> 15.5
D119: PSLEEP | E119: ='INPUT - Engineering Analysis'!E119 -> 27.8 | F119: ='INPUT - Engineering Analysis'!F119 -> 19.13636364 | G119: ='INPUT - Engineering Analysis'!G119 -> 15.15909091 | H119: ='INPUT - Engineering Analysis'!H119 -> 8.486329938
D120: PAPD | E120: ='INPUT - Engineering Analysis'!E120 -> N/A | F120: ='INPUT - Engineering Analysis'!F120 -> 19.13636364 | G120: ='INPUT - Engineering Analysis'!G120 -> 15.15909091 | H120: ='INPUT - Engineering Analysis'!H120 -> 8.486329938
D121: PMULTISTREAM | E121: ='INPUT - Engineering Analysis'!E121 -> 28.7 | F121: ='INPUT - Engineering Analysis'!F121 -> 23.98295455 | G121: ='INPUT - Engineering Analysis'!G121 -> 20.00568182 | H121: ='INPUT - Engineering Analysis'!H121 -> 19.34615385
C125: PG11 | D125: IP Base | E125: Baseline | F125: EL 1 | G125: EL 2 | H125: EL 3
D127: Annual Energy Consumption | E127: ='INPUT - Engineering Analysis'!E127 -> 107.0837 | F127: ='INPUT - Engineering Analysis'!F127 -> 94.22829742 | G127: ='INPUT - Engineering Analysis'!G127 -> 70.73836768 | H127: ='INPUT - Engineering Analysis'!H127 -> 60.16799022
D128: Manufacturer Selling Price | E128: =OFFSET(MSP!$I$6,((MATCH($C125,PC_LIST,0)-1)* 9) + MATCH(E125,EL_List,0),0) -> 62.377 | F128: =OFFSET(MSP!$I$6,((MATCH($C125,PC_LIST,0)-1)* 9) + MATCH(F125,EL_List,0),0) -> 63.4356 | G128: =OFFSET(MSP!$I$6,((MATCH($C125,PC_LIST,0)-1)* 9) + MATCH(G125,EL_List,0),0) -> 68.1256 | H128: =OFFSET(MSP!$I$6,((MATCH($C125,PC_LIST,0)-1)* 9) + MATCH(H125,EL_List,0),0) -> 70.42872464
D129: Incremental Selling Price | E129: =E128-$E128 -> 0 | F129: =F128-$E128 -> 1.0586 | G129: =G128-$E128 -> 5.7486 | H129: =H128-$E128 -> 8.051724644
D130: PWATCH | E130: ='INPUT - Engineering Analysis'!E130 -> 12.42 | F130: ='INPUT - Engineering Analysis'!F130 -> 11.0529274 | G130: ='INPUT - Engineering Analysis'!G130 -> 8.371428571 | H130: ='INPUT - Engineering Analysis'!H130 -> 8.170514286
D131: PSLEEP | E131: ='INPUT - Engineering Analysis'!E131 -> 11.95 | F131: ='INPUT - Engineering Analysis'!F131 -> 10.63466042 | G131: ='INPUT - Engineering Analysis'!G131 -> 7.953161593 | H131: ='INPUT - Engineering Analysis'!H131 -> 6.332365224
D132: PAPD | E132: ='INPUT - Engineering Analysis'!E132 -> N/A | F132: ='INPUT - Engineering Analysis'!F132 -> 10.63466042 | G132: ='INPUT - Engineering Analysis'!G132 -> 7.953161593 | H132: ='INPUT - Engineering Analysis'!H132 -> 6.332365224
D133: PMULTISTREAM | E133: ='INPUT - Engineering Analysis'!E133 -> N/A | F133: ='INPUT - Engineering Analysis'!F133 -> N/A | G133: ='INPUT - Engineering Analysis'!G133 -> N/A | H133: ='INPUT - Engineering Analysis'!H133 -> N/A
C137: PG12 | D137: IP Video Client | E137: Baseline | F137: EL 1 | G137: EL 2 | H137: EL 3
D139: Annual Energy Consumption | E139: ='INPUT - Engineering Analysis'!E139 -> 114.9677 | F139: ='INPUT - Engineering Analysis'!F139 -> 101.2445035 | G139: ='INPUT - Engineering Analysis'!G139 -> 77.75457377 | H139: ='INPUT - Engineering Analysis'!H139 -> 64.47527829
D140: Manufacturer Selling Price | E140: =OFFSET(MSP!$I$6,((MATCH($C137,PC_LIST,0)-1)* 9) + MATCH(E137,EL_List,0),0) -> 69.412 | F140: =OFFSET(MSP!$I$6,((MATCH($C137,PC_LIST,0)-1)* 9) + MATCH(F137,EL_List,0),0) -> 70.4706 | G140: =OFFSET(MSP!$I$6,((MATCH($C137,PC_LIST,0)-1)* 9) + MATCH(G137,EL_List,0),0) -> 75.1606 | H140: =OFFSET(MSP!$I$6,((MATCH($C137,PC_LIST,0)-1)* 9) + MATCH(H137,EL_List,0),0) -> 77.09925403
D141: Incremental Selling Price | E141: =E140-$E140 -> 0 | F141: =F140-$E140 -> 1.0586 | G141: =G140-$E140 -> 5.7486 | H141: =H140-$E140 -> 7.687254032
D142: PWATCH | E142: ='INPUT - Engineering Analysis'!E142 -> 13.32 | F142: ='INPUT - Engineering Analysis'!F142 -> 11.85386417 | G142: ='INPUT - Engineering Analysis'!G142 -> 9.17236534 | H142: ='INPUT - Engineering Analysis'!H142 -> 8.952228571
D143: PSLEEP | E143: ='INPUT - Engineering Analysis'!E143 -> 12.85 | F143: ='INPUT - Engineering Analysis'!F143 -> 11.43559719 | G143: ='INPUT - Engineering Analysis'!G143 -> 8.754098361 | H143: ='INPUT - Engineering Analysis'!H143 -> 6.704646944
D144: PAPD | E144: ='INPUT - Engineering Analysis'!E144 -> N/A | F144: ='INPUT - Engineering Analysis'!F144 -> 11.43559719 | G144: ='INPUT - Engineering Analysis'!G144 -> 8.754098361 | H144: ='INPUT - Engineering Analysis'!H144 -> 6.704646944
D145: PMULTISTREAM | E145: ='INPUT - Engineering Analysis'!E145 -> N/A | F145: ='INPUT - Engineering Analysis'!F145 -> N/A | G145: ='INPUT - Engineering Analysis'!G145 -> N/A | H145: ='INPUT - Engineering Analysis'!H145 -> N/A
C149: PG13 | D149: IP Video Server | E149: Baseline | F149: EL 1 | G149: EL 2 | H149: EL 3
D151: Annual Energy Consumption | E151: ='INPUT - Engineering Analysis'!E151 -> 115.5444 | F151: ='INPUT - Engineering Analysis'!F151 -> 100.0978735 | G151: ='INPUT - Engineering Analysis'!G151 -> 76.60794379 | H151: ='INPUT - Engineering Analysis'!H151 -> 63.36520042
D152: Manufacturer Selling Price | E152: =OFFSET(MSP!$I$6,((MATCH($C149,PC_LIST,0)-1)* 9) + MATCH(E149,EL_List,0),0) -> 69.412 | F152: =OFFSET(MSP!$I$6,((MATCH($C149,PC_LIST,0)-1)* 9) + MATCH(F149,EL_List,0),0) -> 70.4706 | G152: =OFFSET(MSP!$I$6,((MATCH($C149,PC_LIST,0)-1)* 9) + MATCH(G149,EL_List,0),0) -> 75.1606 | H152: =OFFSET(MSP!$I$6,((MATCH($C149,PC_LIST,0)-1)* 9) + MATCH(H149,EL_List,0),0) -> 77.10934179
D153: Incremental Selling Price | E153: =E152-$E152 -> 0 | F153: =F152-$E152 -> 1.0586 | G153: =G152-$E152 -> 5.7486 | H153: =H152-$E152 -> 7.697341792
D154: PWATCH | E154: ='INPUT - Engineering Analysis'!E154 -> 13.69 | F154: ='INPUT - Engineering Analysis'!F154 -> 12.18313817 | G154: ='INPUT - Engineering Analysis'!G154 -> 9.501639344 | H154: ='INPUT - Engineering Analysis'!H154 -> 9.2736
D155: PSLEEP | E155: ='INPUT - Engineering Analysis'!E155 -> 12.49 | F155: ='INPUT - Engineering Analysis'!F155 -> 11.11522248 | G155: ='INPUT - Engineering Analysis'!G155 -> 8.433723653 | H155: ='INPUT - Engineering Analysis'!H155 -> 6.39341699
D156: PAPD | E156: ='INPUT - Engineering Analysis'!E156 -> N/A | F156: ='INPUT - Engineering Analysis'!F156 -> 11.11522248 | G156: ='INPUT - Engineering Analysis'!G156 -> 8.433723653 | H156: ='INPUT - Engineering Analysis'!H156 -> 6.39341699
D157: PMULTISTREAM | E157: ='INPUT - Engineering Analysis'!E157 -> 13.69 | F157: ='INPUT - Engineering Analysis'!F157 -> 12.18313817 | G157: ='INPUT - Engineering Analysis'!G157 -> 9.501639344 | H157: ='INPUT - Engineering Analysis'!H157 -> 9.2736
C161: PG14 | D161: IP with DVR | E161: Baseline | F161: EL 1 | G161: EL 2 | H161: EL 3
D163: Annual Energy Consumption | E163: ='INPUT - Engineering Analysis'!E163 -> 145.7153 | F163: ='INPUT - Engineering Analysis'!F163 -> 119.0760653 | G163: ='INPUT - Engineering Analysis'!G163 -> 87.3339233 | H163: ='INPUT - Engineering Analysis'!H163 -> 73.48925151
D164: Manufacturer Selling Price | E164: =OFFSET(MSP!$I$6,((MATCH($C161,PC_LIST,0)-1)* 9) + MATCH(E161,EL_List,0),0) -> 107.5752 | F164: =OFFSET(MSP!$I$6,((MATCH($C161,PC_LIST,0)-1)* 9) + MATCH(F161,EL_List,0),0) -> 115.7224 | G164: =OFFSET(MSP!$I$6,((MATCH($C161,PC_LIST,0)-1)* 9) + MATCH(G161,EL_List,0),0) -> 136.479 | H164: =OFFSET(MSP!$I$6,((MATCH($C161,PC_LIST,0)-1)* 9) + MATCH(H161,EL_List,0),0) -> 139.854681
D165: Incremental Selling Price | E165: =E164-$E164 -> 0 | F165: =F164-$E164 -> 8.1472 | G165: =G164-$E164 -> 28.9038 | H165: =H164-$E164 -> 32.27948096
D166: PWATCH | E166: ='INPUT - Engineering Analysis'!E166 -> 18.73 | F166: ='INPUT - Engineering Analysis'!F166 -> 15.19375 | G166: ='INPUT - Engineering Analysis'!G166 -> 10.48920455 | H166: ='INPUT - Engineering Analysis'!H166 -> 10.14340659
D167: PSLEEP | E167: ='INPUT - Engineering Analysis'!E167 -> 13.7 | F167: ='INPUT - Engineering Analysis'!F167 -> 12.93409091 | G167: ='INPUT - Engineering Analysis'!G167 -> 9.755681818 | H167: ='INPUT - Engineering Analysis'!H167 -> 7.666856996
D168: PAPD | E168: ='INPUT - Engineering Analysis'!E168 -> N/A | F168: ='INPUT - Engineering Analysis'!F168 -> 12.93409091 | G168: ='INPUT - Engineering Analysis'!G168 -> 9.755681818 | H168: ='INPUT - Engineering Analysis'!H168 -> 7.666856996
D169: PMULTISTREAM | E169: ='INPUT - Engineering Analysis'!E169 -> 18.73 | F169: ='INPUT - Engineering Analysis'!F169 -> 15.19375 | G169: ='INPUT - Engineering Analysis'!G169 -> 10.48920455 | H169: ='INPUT - Engineering Analysis'!H169 -> 10.14340659
C173: PG15 | D173: IP with DVR & Video Server | E173: Baseline | F173: EL 1 | G173: EL 2 | H173: EL 3
D175: Annual Energy Consumption | E175: ='INPUT - Engineering Analysis'!E175 -> 151.0589 | F175: ='INPUT - Engineering Analysis'!F175 -> 124.2374972 | G175: ='INPUT - Engineering Analysis'!G175 -> 92.49535511 | H175: ='INPUT - Engineering Analysis'!H175 -> 78.48052623
D176: Manufacturer Selling Price | E176: =OFFSET(MSP!$I$6,((MATCH($C173,PC_LIST,0)-1)* 9) + MATCH(E173,EL_List,0),0) -> 128.6936 | F176: =OFFSET(MSP!$I$6,((MATCH($C173,PC_LIST,0)-1)* 9) + MATCH(F173,EL_List,0),0) -> 136.8408 | G176: =OFFSET(MSP!$I$6,((MATCH($C173,PC_LIST,0)-1)* 9) + MATCH(G173,EL_List,0),0) -> 157.5974 | H176: =OFFSET(MSP!$I$6,((MATCH($C173,PC_LIST,0)-1)* 9) + MATCH(H173,EL_List,0),0) -> 161.881318
D177: Incremental Selling Price | E177: =E176-$E176 -> 0 | F177: =F176-$E176 -> 8.1472 | G177: =G176-$E176 -> 28.9038 | H177: =H176-$E176 -> 33.18771803
D178: PWATCH | E178: ='INPUT - Engineering Analysis'!E178 -> 19.34 | F178: ='INPUT - Engineering Analysis'!F178 -> 15.78295455 | G178: ='INPUT - Engineering Analysis'!G178 -> 11.07840909 | H178: ='INPUT - Engineering Analysis'!H178 -> 10.71318681
D179: PSLEEP | E179: ='INPUT - Engineering Analysis'!E179 -> 14.31 | F179: ='INPUT - Engineering Analysis'!F179 -> 13.52329545 | G179: ='INPUT - Engineering Analysis'!G179 -> 10.34488636 | H179: ='INPUT - Engineering Analysis'!H179 -> 8.236637216
D180: PAPD | E180: ='INPUT - Engineering Analysis'!E180 -> N/A | F180: ='INPUT - Engineering Analysis'!F180 -> 13.52329545 | G180: ='INPUT - Engineering Analysis'!G180 -> 10.34488636 | H180: ='INPUT - Engineering Analysis'!H180 -> 8.236637216
D181: PMULTISTREAM | E181: ='INPUT - Engineering Analysis'!E181 -> 19.34 | F181: ='INPUT - Engineering Analysis'!F181 -> 15.78295455 | G181: ='INPUT - Engineering Analysis'!G181 -> 11.07840909 | H181: ='INPUT - Engineering Analysis'!H181 -> 10.71318681
C185: PG16 | D185: OTT | E185: Baseline | F185: EL 1 | G185: EL 2
D187: Annual Energy Consumption | E187: ='INPUT - Engineering Analysis'!E187 -> 68.2769 | F187: ='INPUT - Engineering Analysis'!F187 -> 19.1041 | G187: ='INPUT - Engineering Analysis'!G187 -> 5.89475
D188: Manufacturer Selling Price | E188: =OFFSET(MSP!$I$6,((MATCH($C185,PC_LIST,0)-1)* 9) + MATCH(E185,EL_List,0),0) -> 77.2778 | F188: =OFFSET(MSP!$I$6,((MATCH($C185,PC_LIST,0)-1)* 9) + MATCH(F185,EL_List,0),0) -> 66.0352 | G188: =OFFSET(MSP!$I$6,((MATCH($C185,PC_LIST,0)-1)* 9) + MATCH(G185,EL_List,0),0) -> 70.1624
D189: Incremental Selling Price | E189: =E188-$E188 -> 0 | F189: =F188-$E188 -> -11.2426 | G189: =G188-$E188 -> -7.1154
D190: PWATCH | E190: ='INPUT - Engineering Analysis'!E190 -> 13.48 | F190: ='INPUT - Engineering Analysis'!F190 -> 7.04 | G190: ='INPUT - Engineering Analysis'!G190 -> 1.87
D191: PSLEEP | E191: ='INPUT - Engineering Analysis'!E191 -> 0.52 | F191: ='INPUT - Engineering Analysis'!F191 -> 0.18 | G191: ='INPUT - Engineering Analysis'!G191 -> 0.18
D192: PAPD | E192: ='INPUT - Engineering Analysis'!E192 -> 12.5 | F192: ='INPUT - Engineering Analysis'!F192 -> 0.18 | G192: ='INPUT - Engineering Analysis'!G192 -> 0.18
D193: PMULTISTREAM | E193: ='INPUT - Engineering Analysis'!E193 -> N/A | F193: ='INPUT - Engineering Analysis'!F193 -> N/A | G193: ='INPUT - Engineering Analysis'!G193 -> N/A
C197: PG17 | D197: Thin-client | E197: Baseline | F197: EL 1 | G197: EL 2 | H197: EL 3
D199: Annual Energy Consumption | E199: ='INPUT - Engineering Analysis'!E199 -> 79.8912 | F199: ='INPUT - Engineering Analysis'!F199 -> 66.18244965 | G199: ='INPUT - Engineering Analysis'!G199 -> 47.2164 | H199: ='INPUT - Engineering Analysis'!H199 -> 43.15143585
D200: Manufacturer Selling Price | E200: =OFFSET(MSP!$I$6,((MATCH($C197,PC_LIST,0)-1)* 9) + MATCH(E197,EL_List,0)-1,0) -> 54.1896 | F200: =OFFSET(MSP!$I$6,((MATCH($C197,PC_LIST,0)-1)* 9) + MATCH(F197,EL_List,0)-1,0) -> 60.8762 | G200: =OFFSET(MSP!$I$6,((MATCH($C197,PC_LIST,0)-1)* 9) + MATCH(G197,EL_List,0)-1,0) -> 64.0252 | H200: =OFFSET(MSP!$I$6,((MATCH($C197,PC_LIST,0)-1)* 9) + MATCH(H197,EL_List,0)-1,0) -> 64.6148
D201: Incremental Selling Price | E201: =E200-$E200 -> 0 | F201: =F200-$E200 -> 6.6866 | G201: =G200-$E200 -> 9.8356 | H201: =H200-$E200 -> 10.4252
D202: PWATCH | E202: ='INPUT - Engineering Analysis'!E202 -> 9.12 | F202: ='INPUT - Engineering Analysis'!F202 -> 10.45807963 | G202: ='INPUT - Engineering Analysis'!G202 -> 5.9 | H202: ='INPUT - Engineering Analysis'!H202 -> 5.7584
D203: PSLEEP | E203: ='INPUT - Engineering Analysis'!E203 -> 9.12 | F203: ='INPUT - Engineering Analysis'!F203 -> 6.35971897 | G203: ='INPUT - Engineering Analysis'!G203 -> 5.18 | H203: ='INPUT - Engineering Analysis'!H203 -> 4.583194819
D204: PAPD | E204: ='INPUT - Engineering Analysis'!E204 -> 9.12 | F204: ='INPUT - Engineering Analysis'!F204 -> 6.35971897 | G204: ='INPUT - Engineering Analysis'!G204 -> 5.18 | H204: ='INPUT - Engineering Analysis'!H204 -> 4.583194819
D205: PMULTISTREAM | E205: ='INPUT - Engineering Analysis'!E205 -> N/A | F205: ='INPUT - Engineering Analysis'!F205 -> N/A | G205: ='INPUT - Engineering Analysis'!G205 -> N/A | H205: ='INPUT - Engineering Analysis'!H205 -> N/A

Sheet Intro
C2: Introduction | I2: Navigation
C6: NAVIGANT CONSULTING, INC. | G6: Government
C7: 1200 19th Street NW, Suite 700 | G7: Regulatory Impact
C8: Washington DC 20036 | G8: Model (GRIM)
C10: Set-top Box Efficiency Standards | G10: Prepared on February 19, 2013
C14: Because software is inherently complex and may not
C15: be completely free of errors, you are advised to verify
C16: your work. In no event will Navigant Consulting be liable
C17: for direct, indirect, special, incidental, or
C18: consequential damages arising out of the use of
C19: or inability to use the software or documentation,
C20: even if advised of the possibility of such damages.

Sheet Instructions
C2: Instructions | L2: Navigation
C5: Welcome to the Government Regulatory Impact Model (GRIM) for the Set-top Box Efficiency Standards Rulemaking
C6: User Instructions
C7: 1. Dark blue tabs contain input from other analyses and ouputs that feed into other analyses. The orange-tabbed sheets pertain to overview information. The light blue-tabbed sheets refer to input information pulled from other analyses or developed specifically for the GRIM. The purple-tabbed sheets represent calculations. The green-tabbed sheets contain numerical and graphical output for the set-top box manufacturing industry, whereas these tabs are gray in color for the sheets which contain numerical output for each MVPD industry. See the Navigation Tab (orange) for a map of the tabs in this spreadsheet.
C8: 2. Use the "Scenario" sheet (light blue) to choose the desired scenario. Check boxes to select the desired product groups for analysis. Use the drop down menu in cell F5 to examine effects at a particular trial standard level (TSL) for the selected product group(s). Cells F7 and F11 are used to select the markup and price trend scenarios respectively.
C9: 3. After selecting the desired scenarios, click on the red button in the "Scenario" sheet to populate the INPV tables located in the "Summary Report" sheet. These results are the primary output of the MIA.

Sheet Navigation
B2: Navigation
C5: INPUT / OUTPUT | E5: Information Tabs | G5: Input Tabs | I5: Calculation Tabs | K5: DCF and Summary Tabs | M5: Graphical Output | O5: Primary Results
C7: INPUT - Engineering Analysis | E7: Intro | G7: Scenario | I7: MSP | K7: Base Case DCF | M7: Data for Graphs | O7: Summary Report
C10: INPUT - Shipments Analysis | E10: Instructions | G10: Financials | I10: Base Revenue & Cost | K10: Standards Case DCF | M10: Dashboard
C13: INPUT - Efficiency Distribution | E13: Navigation | G13: EL and TSL Setup | I13: Standards Revenue & Cost | K13: Cable Base Case DCF | M13: Cable Data for Graphs
C16: INPUT - Price Trends | E16: Glossary of Terms | G16: Markups | K16: Cable Standards Case DCF | M16: Cable Dashboard
C19: OUTPUT - LCC and NIA | E19: INPV Calculation | G19: MPC Breakdown | K19: Satellite Base Case DCF | M19: Satellite Data for Graphs
G22: Price Trends | K22: Satellite Standards Case DCF | M22: Satellite Dashboard
G25: Shipments | K25: IPTV Base Case DCF | M25: IPTV Data for Graphs
G28: Conversion Costs | K28: IPTV Standards Case DCF | M28: IPTV Dashboard
G31: Conversion Cost Timing

Sheet Glossary
C2: Glossary | E2: Navigation
C5: Base Case | D5: The "no standard" case. The industry valuation is conducted assuming that an energy conservation standard is not implemented.
C6: Capital Conversion Costs | D6: One-time investments in plant, property, and equipment resulting from an energy conservation standard's implementation.
C7: Capital Expenditures | D7: Outlay of money to acquire or improve capital assets such as plant, property, and equipment.
C8: Conversion Costs | D8: Conversion costs include Product Conversion Costs and Capital Conversion Costs.
C9: Cost of Goods Sold (COGS) | D9: The cost of buying raw materials and producing finished goods. COGS includes materials, labor, overhead, and depreciation.
C10: Depreciation | D10: Amortization of fixed assets (such as PPE) to allocate the cost over their depreciable life. Depreciation does not reduce free cash flow, but it does reduce taxable income.
C11: Discount Rate | D11: Weighted average cost of capital
C12: Earnings Before Interest and Taxes (EBIT) | D12: Revenue less COGS and SG&A expenses (including R&D, product conversion expenses, and annual compliance costs). EBIT equals earnings before taxes (EBT) in the "income statement" portion of the GRIM. | E12: Revenue less COGS and SG&A expenses (including R&D, product conversion expenses, and annual compliance costs). EBIT equals earnings before taxes (EBT) in the "income statement" portion of the GRIM.
C13: Free Cash Flow | D13: Cash not required for operations or for reinvestment. | E13: Cash not required for operations or for reinvestment.
C14: Governmental Regulatory Impact Model (GRIM) | D14: The industry cash flow model used by DOE to assess impacts on manufacturers due to proposed energy conservation standards. | E14: The industry cash flow model used by DOE to assess impacts on manufacturers due to proposed energy conservation standards.
C15: (Income) Tax Rate | D15: The effective tax rate assessed on a company's earnings before taxes (EBT). | E15: The effective tax rate assessed on a company's earnings before taxes (EBT).
C16: Industry Net Present Value (INPV) | D16: The discounted sum of industry free cash flows plus a discounted terminal value. | E16: The discounted sum of industry free cash flows plus a discounted terminal value.
C17: Labor Costs | D17: The portion of COGS that includes direct labor, commissions, dismissal pay, bonuses, vacation, sick leave, social security contributions, fringe, and assembly labor up-time. | E17: The portion of COGS that includes direct labor, commissions, dismissal pay, bonuses, vacation, sick leave, social security contributions, fringe, and assembly labor up-time.
C18: Manufacturer Impact Analysis (MIA) | D18: The analysis of potential impacts on manufacturers resulting from various trial standard levels (TSLs). The MIA influences the energy conservation standards that are proposed in the NOPR. The MIA will be published in the TSD that accompanies the NOPR. | E18: The analysis of potential impacts on manufacturers resulting from various trial standard levels (TSLs). The MIA influences the energy conservation standards that are proposed in the NOPR. The MIA will be published in the TSD that accompanies the NOPR.
C19: Manufacturer Markup | D19: The markup that converts Full Production Cost to a Manufacturer Selling Price. The manufacturer markup includes SG&A, R&D, interest, and profit. | E19: The markup that converts Full Production Cost to a Manufacturer Selling Price. The manufacturer markup includes SG&A, R&D, interest, and profit.
C20: Manufacturer Selling Price | D20: The result of applying the Manufacturer Markup to the Full Production Cost. | E20: The result of applying the Manufacturer Markup to the Full Production Cost.
C21: Manufacturing Production Cost | D21: Includes direct labor, direct material, factory overhead, and depreciation. This includes the same cost categories that comprise Cost of Goods Sold in the discounted cash flow analysis. | E21: Includes direct labor, direct material, factory overhead, and depreciation. This includes the same cost categories that comprise Cost of Goods Sold in the discounted cash flow analysis.
C22: Material Costs | D22: The portion of COGS that includes all materials and scrap. | E22: The portion of COGS that includes all materials and scrap.
C23: Net Operating Profit After Taxes (NOPAT) | D23: EBIT less taxes. | E23: EBIT less taxes.
C24: Notice of Proposed Rulemaking (NOPR) | D24: Federal Register notice detailing analyses conducted by the DOE to establish proposed energy conservation standards. The GRIM and associated Manufacturer Impact Analysis (MIA) will be incorporated in the NOPR and the NOPR TSD. | E24: Federal Register notice detailing analyses conducted by the DOE to establish proposed energy conservation standards. The GRIM and associated Manufacturer Impact Analysis (MIA) will be incorporated in the NOPR and the NOPR TSD.
C25: Overhead (factory overhead) | D25: The portion of COGS that includes indirect labor, indirect material, maintenance, depreciation, property taxes, and insurance related to assets. | E25: The portion of COGS that includes indirect labor, indirect material, maintenance, depreciation, property taxes, and insurance related to assets.
C26: Product Conversion Expenses | D26: Non-capital conversion costs incurred prior to the energy conservation standard's effective date. Product conversion expenses include engineering design costs, marketing, and preparation for testing. | E26: Non-capital conversion costs incurred prior to the energy conservation standard's effective date. Product conversion expenses include engineering design costs, marketing, and preparation for testing.
C27: Product Mix | D27: The mix of product efficiencies sold by a company or industry. | E27: The mix of product efficiencies sold by a company or industry.
C28: Property, Plant, & Equipment, net (PPE, net) | D28: PPE are fixed assets, or long-lived assets, including building, machinery, and equipment. PPE, net is PPE less accumulated depreciation. | E28: PPE are fixed assets, or long-lived assets, including building, machinery, and equipment. PPE, net is PPE less accumulated depreciation.
C29: Return on Invested Capital (ROIC) | D29: ROIC is equal to NOPAT / (PPE, net working capital). When ROIC is greater than WACC, a company or industry is creating value. | E29: ROIC is equal to NOPAT / (PPE, net working capital). When ROIC is greater than WACC, a company or industry is creating value.
C30: Return on Sales | D30: Return on Sales is equal to EBIT / revenue. | E30: Return on Sales is equal to EBIT / revenue.
C31: Revenue | D31: Net sales. | E31: Net sales.
C32: Selling, General, and Administrative Expenses (SG&A) | D32: A major component of the manufacturer selling price, accounted for in the GRIM as part of the Non-Production Cost markup. See Product Costs. | E32: A major component of the manufacturer selling price, accounted for in the GRIM as part of the Non-Production Cost markup. See Product Costs.
C33: Shipment Model | D33: A sub-model used in the National Impact Analysis that provides base case and standard case shipment projections. | E33: A sub-model used in the National Impact Analysis that provides base case and standard case shipment projections.
C34: Standard Case | D34: The case where energy conservation standards are implemented. Compare to base case. | E34: The case where energy conservation standards are implemented. Compare to base case.
C35: Standard Year Tier-1 | D35: The year the new standard is implemented. The standard year is 2015 for most analyzed efficiency levels. | E35: The year the new standard is implemented. The standard year is 2015 for most analyzed efficiency levels.
C36: Standard Year Tier-2 | D36: Similmar to Standard Year Tier-1 except the standard size top-loading RCWs have a more stringent effective date in 2018 to match the proposal in the Consensus Agreement. | E36: Similmar to Standard Year Tier-1 except the standard size top-loading RCWs have a more stringent effective date in 2018 to match the proposal in the Consensus Agreement.
C37: Technical Support Document (TSD) | D37: TSD's are published by the DOE as companion documents to Federal Register notices. The TSD's include technical detail that supports the notices. The NOPR TSD includes the discussion of the Manufacturer Impact Analysis (MIA) | E37: TSD's are published by the DOE as companion documents to Federal Register notices. The TSD's include technical detail that supports the notices. The NOPR TSD includes the discussion of the Manufacturer Impact Analysis (MIA)
C38: Trial Standard Level (TSL) | D38: A proposed energy conservation standard evaluated by the DOE during the NOPR phase analyses. | E38: A proposed energy conservation standard evaluated by the DOE during the NOPR phase analyses.
C39: Weighted Average Cost of Capital (WACC) | D39: The weighted average cost of debt and equity capital, based on industry capital structure. The cost of debt includes the impact of the tax shield provided by debt-financing. | E39: The weighted average cost of debt and equity capital, based on industry capital structure. The cost of debt includes the impact of the tax shield provided by debt-financing.
C40: (Net) Working Capital (NWC) | D40: Current assets less current liabilities. The change in working capital is the difference in required working capital between a given year and the previous year. | E40: Current assets less current liabilities. The change in working capital is the difference in required working capital between a given year and the previous year.

Sheet INPV Calculation
C2: INPV Calculation | I2: Navigation

Sheet Scenario
D2: Scenario for Analysis | F2: Navigation
D5: Trial Standard Level Selected: | F5: TSL 3 | K5: Selected Product Groups
K6: =NAMES!D6&" - "&NAMES!E6 -> PG1 - Cable Base
D7: Markup Scenario: | F7: Preservation of OP | K7: =NAMES!D7&" - "&NAMES!E7 -> PG2 - Cable Video Client
K8: =NAMES!D8&" - "&NAMES!E8 -> PG3 - Cable Video Server
K9: =NAMES!D9&" - "&NAMES!E9 -> PG4 - Cable with DVR
K10: =NAMES!D10&" - "&NAMES!E10 -> PG5 - Cable with DVR & Video Server
K11: =NAMES!D11&" - "&NAMES!E11 -> PG6 - Satellite Base
K12: =NAMES!D12&" - "&NAMES!E12 -> PG7 - Satellite Video Client
K13: =NAMES!D13&" - "&NAMES!E13 -> PG8 - Satellite Video Server
K14: =NAMES!D14&" - "&NAMES!E14 -> PG9 - Satellite with DVR
K15: =NAMES!D15&" - "&NAMES!E15 -> PG10 - Satellite with DVR & Video Server
D16: Price Trends: | F16: Yes | K16: =NAMES!D16&" - "&NAMES!E16 -> PG11 - IP Base
K17: =NAMES!D17&" - "&NAMES!E17 -> PG12 - IP Video Client
K18: =NAMES!D18&" - "&NAMES!E18 -> PG13 - IP Video Server
K19: =NAMES!D19&" - "&NAMES!E19 -> PG14 - IP with DVR
K20: =NAMES!D20&" - "&NAMES!E20 -> PG15 - IP with DVR & Video Server
K21: =NAMES!D21&" - "&NAMES!E21 -> PG16 - OTT
K22: =NAMES!D22&" - "&NAMES!E22 -> PG17 - Thin-client

Sheet Financials
C2: Financial Parameters | E2: * Developed in MIA | J2: Navigation
C5: Set-top Box Manufacturing Industry Financials | J5: Multichannel Video Programming Distributor Industry Financials | U5: Multichannel Video Programming Distributor Industry Growth Projections
C7: Base Year | E7: 2012
C8: Announcement Year | E8: 2013
C9: Standard Year | E9: 2018 | V9: 2011 | W9: 2012 | X9: 2013 | Y9: 2014 | Z9: 2015 | AA9: 2016 | AB9: 2017 | AC9: 2018 | AD9: 2019 | AE9: 2020 | AF9: 2021 | AG9: 2022 | AH9: 2023 | AI9: 2024 | AJ9: 2025 | AK9: 2026 | AL9: 2027 | AM9: 2028 | AN9: 2029 | AO9: 2030 | AP9: 2031 | AQ9: 2032 | AR9: 2033 | AS9: 2034 | AT9: 2035 | AU9: 2036 | AV9: 2037 | AW9: 2038 | AX9: 2039 | AY9: 2040 | AZ9: 2041 | BA9: 2042 | BB9: 2043 | BC9: 2044 | BD9: 2045 | BE9: 2046 | BF9: 2047
C10: Terminal Year | E10: =Standard_Year+29 -> 2047 | L10: Cable | N10: Satellite | P10: IPTV | U10: Cable | V10: 0.02646475572 | W10: 0.02489865722 | X10: 0.02342523535 | Y10: 0.02203900582 | Z10: 0.02073480885 | AA10: 0.01950779004 | AB10: 0.01835338223 | AC10: 0.01726728853 | AD10: 0.01624546634 | AE10: 0.01528411227 | AF10: 0.01437964802 | AG10: 0.01352870704 | AH10: 0.01272812199 | AI10: 0.01197491296 | AJ10: 0.01126627641 | AK10: 0.01059957467 | AL10: 0.009972326184 | AM10: 0.009382196228 | AN10: 0.008826988252 | AO10: 0.008304635685 | AP10: 0.00781319425 | AQ10: 0.007350834727 | AR10: 0.006915836143 | AS10: 0.006506579366 | AT10: 0.006121541079 | AU10: 0.00575928811 | AV10: 0.005418472099 | AW10: 0.005097824475 | AX10: 0.004796151738 | AY10: 0.004512331017 | AZ10: 0.004245305886 | BA10: 0.003994082437 | BB10: 0.003757725579 | BC10: 0.003535355553 | BD10: 0.003326144665 | BE10: 0.0031293142 | BF10: 0.002944131524
J11: 2011 TV Service Subscriber Revnues | L11: 56938 | N11: 38207.8 | P11: 3943.4 | Q11: $ Millions
U12: Satellite | V12: 0.06785818205 | W12: 0.05890314543 | X12: 0.05112987759 | Y12: 0.04438242412 | Z12: 0.03852541144 | AA12: 0.03344133079 | AB12: 0.02902818071 | AC12: 0.02519742054 | AD12: 0.02187219406 | AE12: 0.01898578755 | AF12: 0.01648029127 | AG12: 0.01430543766 | AH12: =AH10 -> 0.01272812199 | AI12: =AI10 -> 0.01197491296 | AJ12: 0.01126627641 | AK12: 0.01059957467 | AL12: 0.009972326184 | AM12: 0.009382196228 | AN12: 0.008826988252 | AO12: 0.008304635685 | AP12: 0.00781319425 | AQ12: 0.007350834727 | AR12: 0.006915836143 | AS12: 0.006506579366 | AT12: 0.006121541079 | AU12: 0.00575928811 | AV12: 0.005418472099 | AW12: 0.005097824475 | AX12: 0.004796151738 | AY12: 0.004512331017 | AZ12: 0.004245305886 | BA12: 0.003994082437 | BB12: 0.003757725579 | BC12: 0.003535355553 | BD12: 0.003326144665 | BE12: 0.0031293142 | BF12: 0.002944131524
C13: Tax Rate | E13: 0.2893685589 | F13: % of EBT | J13: Tax Rate | L13: 0.36 | N13: 0.3794133018 | P13: 0.374 | Q13: % of EBT
C14: Discount Rate for NPV (real) | E14: 0.083 | J14: Discount Rate for NPV (real) | L14: 0.046 | N14: 0.0332 | P14: 0.0362 | U14: IPTV | V14: 0.2522343975 | W14: 0.1813733091 | X14: 0.1365522263 | Y14: 0.105210244 | Z14: 0.08168081016 | AA14: 0.06301936906 | AB14: 0.04753053511 | AC14: 0.03415432815 | AD14: =AD12 -> 0.02187219406 | AE14: =AE12 -> 0.01898578755 | AF14: 0.01648029127 | AG14: 0.01430543766 | AH14: 0.01272812199 | AI14: 0.01197491296 | AJ14: 0.01126627641 | AK14: 0.01059957467 | AL14: 0.009972326184 | AM14: 0.009382196228 | AN14: 0.008826988252 | AO14: 0.008304635685 | AP14: 0.00781319425 | AQ14: 0.007350834727 | AR14: 0.006915836143 | AS14: 0.006506579366 | AT14: 0.006121541079 | AU14: 0.00575928811 | AV14: 0.005418472099 | AW14: 0.005097824475 | AX14: 0.004796151738 | AY14: 0.004512331017 | AZ14: 0.004245305886 | BA14: 0.003994082437 | BB14: 0.003757725579 | BC14: 0.003535355553 | BD14: 0.003326144665 | BE14: 0.0031293142 | BF14: 0.002944131524
C17: Working Capital | E17: 0.24 | F17: % of Revenue | J17: Working Capital | L17: 0.026 | N17: 0.022 | P17: =Working_Capital_Cable -> 0.026 | Q17: % of Revenue
C18: Net Property, Plant & Equipment | E18: 0.151 | F18: % of Revenue | J18: Net Property, Plant & Equipment | L18: 0.685 | N18: 0.2568877546 | P18: 0.822 | Q18: % of Revenue
C19: Standard SG&A | E19: 0.112 | F19: % of Revenue | J19: Operating Expenses including SG&A | L19: 0.648 | N19: 0.7284869619 | P19: 0.666 | Q19: % of Revenue
C20: Research and Development | E20: 0.094 | F20: % of Revenue
C21: Depreciation | E21: 0.035 | F21: % of Revenue | J21: Depreciation | L21: 0.149915155 | N21: 0.07828591181 | P21: 0.1616011988 | Q21: % of Revenue
C22: Capital Expenditures | E22: 0.035 | F22: % of Revenue | J22: Capital Expenditures | L22: 0.162 | N22: 0.09671441982 | P22: 0.174689804 | Q22: % of Revenue
J24: Customer Premise Equipment | L24: 0.504 | N24: 0.7776267066 | P24: =CPE_Cable -> 0.504 | Q24: % of CapEx
J25: Set-top Boxes | L25: 0.7254026881 | N25: 0.589277926 | P25: 0.5510429041 | Q25: % of CPE
C27: Terminal growth rate | E27: 0.01 | J27: Terminal growth rate | L27: 0.01 | N27: 0.01 | P27: 0.01
J29: Thin Client Allocation | L29: 0.85 | N29: 0.41 | P29: 0 | Q29: % of Clients

Sheet EL and TSL Setup
C2: EL and TSL Setup | E2: * Developed in MIA | I2: Navigation
C5: PG1 | I5: =C5&" at Selected TSL" -> PG1 at Selected TSL | K5: Base Case | L5: TSL 1 | M5: TSL 2 | N5: TSL 3
C6: =VLOOKUP(C5,PC_Table,2,FALSE) -> Cable Base | I6: =OFFSET(J6,0,MATCH(TSL_X,OFFSET(K5,0,0,1,NAMES!$K$4+1),FALSE)) -> EL 3 | K6: Baseline | L6: EL 1 | M6: EL 2 | N6: EL 3
E7: Efficiency Factors at each EL
E8: Annual Energy Consumption (AEC) | H8: AEC | I8: =OFFSET(E8,MATCH(OFFSET($I$1,MATCH(C5,$C:$C,0),0),EL_List,FALSE),0) -> 74.65840649 | K8: =OFFSET($E8,MATCH(K6,EL_List,0),0) -> 169.0096 | L8: =OFFSET($E8,MATCH(L6,EL_List,0),0) -> 107.08005 | M8: =OFFSET($E8,MATCH(M6,EL_List,0),0) -> 95.29372131 | N8: =OFFSET($E8,MATCH(N6,EL_List,0),0) -> 74.65840649
C9: Baseline | E9: =OFFSET('INPUT - Engineering Analysis'!$D$7,(MATCH(C5,PC_LIST,0)-1)*12,MATCH(C9,EL_List,0)) -> 169.0096
C10: EL 1 | E10: =OFFSET('INPUT - Engineering Analysis'!$D$7,(MATCH(C5,PC_LIST,0)-1)*12,MATCH(C10,EL_List,0)) -> 107.08005
C11: EL 2 | E11: =OFFSET('INPUT - Engineering Analysis'!$D$7,(MATCH(C5,PC_LIST,0)-1)*12,MATCH(C11,EL_List,0)) -> 95.29372131
C12: EL 3 | E12: =OFFSET('INPUT - Engineering Analysis'!$D$7,(MATCH(C5,PC_LIST,0)-1)*12,MATCH(C12,EL_List,0)) -> 74.65840649
C16: PG2 | I16: =C16&" at Selected TSL" -> PG2 at Selected TSL | K16: Base Case | L16: TSL 1 | M16: TSL 2 | N16: TSL 3
C17: =VLOOKUP(C16,PC_Table,2,FALSE) -> Cable Video Client | I17: =OFFSET(J17,0,MATCH(TSL_X,OFFSET(K16,0,0,1,NAMES!$K$4+1),FALSE)) -> EL 3 | K17: Baseline | L17: EL 1 | M17: EL 2 | N17: EL 3
E18: Efficiency Factors at each EL
E19: Annual Energy Consumption (AEC) | H19: AEC | I19: =OFFSET(E19,MATCH(OFFSET($I$1,MATCH(C16,$C:$C,0),0),EL_List,FALSE),0) -> 79.66412077 | K19: =OFFSET($E19,MATCH(K17,EL_List,0),0) -> 192.0119 | L19: =OFFSET($E19,MATCH(L17,EL_List,0),0) -> 130.1326816 | M19: =OFFSET($E19,MATCH(M17,EL_List,0),0) -> 100.4225269 | N19: =OFFSET($E19,MATCH(N17,EL_List,0),0) -> 79.66412077
C20: Baseline | E20: =OFFSET('INPUT - Engineering Analysis'!$D$7,(MATCH(C16,PC_LIST,0)-1)*12,MATCH(C20,EL_List,0)) -> 192.0119
C21: EL 1 | E21: =OFFSET('INPUT - Engineering Analysis'!$D$7,(MATCH(C16,PC_LIST,0)-1)*12,MATCH(C21,EL_List,0)) -> 130.1326816
C22: EL 2 | E22: =OFFSET('INPUT - Engineering Analysis'!$D$7,(MATCH(C16,PC_LIST,0)-1)*12,MATCH(C22,EL_List,0)) -> 100.4225269
C23: EL 3 | E23: =OFFSET('INPUT - Engineering Analysis'!$D$7,(MATCH(C16,PC_LIST,0)-1)*12,MATCH(C23,EL_List,0)) -> 79.66412077
C27: PG3 | I27: =C27&" at Selected TSL" -> PG3 at Selected TSL | K27: Base Case | L27: TSL 1 | M27: TSL 2 | N27: TSL 3
C28: =VLOOKUP(C27,PC_Table,2,FALSE) -> Cable Video Server | I28: =OFFSET(J28,0,MATCH(TSL_X,OFFSET(K27,0,0,1,NAMES!$K$4+1),FALSE)) -> EL 3 | K28: Baseline | L28: EL 1 | M28: EL 2 | N28: EL 3
E29: Efficiency Factors at each EL
E30: Annual Energy Consumption (AEC) | H30: AEC | I30: =OFFSET(E30,MATCH(OFFSET($I$1,MATCH(C27,$C:$C,0),0),EL_List,FALSE),0) -> 115.0494403 | K30: =OFFSET($E30,MATCH(K28,EL_List,0),0) -> 216.0976059 | L30: =OFFSET($E30,MATCH(L28,EL_List,0),0) -> 180.4927074 | M30: =OFFSET($E30,MATCH(M28,EL_List,0),0) -> 153.6071392 | N30: =OFFSET($E30,MATCH(N28,EL_List,0),0) -> 115.0494403
C31: Baseline | E31: =OFFSET('INPUT - Engineering Analysis'!$D$7,(MATCH(C27,PC_LIST,0)-1)*12,MATCH(C31,EL_List,0)) -> 216.0976059
C32: EL 1 | E32: =OFFSET('INPUT - Engineering Analysis'!$D$7,(MATCH(C27,PC_LIST,0)-1)*12,MATCH(C32,EL_List,0)) -> 180.4927074
C33: EL 2 | E33: =OFFSET('INPUT - Engineering Analysis'!$D$7,(MATCH(C27,PC_LIST,0)-1)*12,MATCH(C33,EL_List,0)) -> 153.6071392
C34: EL 3 | E34: =OFFSET('INPUT - Engineering Analysis'!$D$7,(MATCH(C27,PC_LIST,0)-1)*12,MATCH(C34,EL_List,0)) -> 115.0494403
C38: PG4 | I38: =C38&" at Selected TSL" -> PG4 at Selected TSL | K38: Base Case | L38: TSL 1 | M38: TSL 2 | N38: TSL 3
C39: =VLOOKUP(C38,PC_Table,2,FALSE) -> Cable with DVR | I39: =OFFSET(J39,0,MATCH(TSL_X,OFFSET(K38,0,0,1,NAMES!$K$4+1),FALSE)) -> EL 3 | K39: Baseline | L39: EL 1 | M39: EL 2 | N39: EL 3
E40: Efficiency Factors at each EL
E41: Annual Energy Consumption (AEC) | H41: AEC | I41: =OFFSET(E41,MATCH(OFFSET($I$1,MATCH(C38,$C:$C,0),0),EL_List,FALSE),0) -> 104.9240589 | K41: =OFFSET($E41,MATCH(K39,EL_List,0),0) -> 242.7396 | L41: =OFFSET($E41,MATCH(L39,EL_List,0),0) -> 181.8048409 | M41: =OFFSET($E41,MATCH(M39,EL_List,0),0) -> 144.1766591 | N41: =OFFSET($E41,MATCH(N39,EL_List,0),0) -> 104.9240589
C42: Baseline | E42: =OFFSET('INPUT - Engineering Analysis'!$D$7,(MATCH(C38,PC_LIST,0)-1)*12,MATCH(C42,EL_List,0)) -> 242.7396
C43: EL 1 | E43: =OFFSET('INPUT - Engineering Analysis'!$D$7,(MATCH(C38,PC_LIST,0)-1)*12,MATCH(C43,EL_List,0)) -> 181.8048409
C44: EL 2 | E44: =OFFSET('INPUT - Engineering Analysis'!$D$7,(MATCH(C38,PC_LIST,0)-1)*12,MATCH(C44,EL_List,0)) -> 144.1766591
C45: EL 3 | E45: =OFFSET('INPUT - Engineering Analysis'!$D$7,(MATCH(C38,PC_LIST,0)-1)*12,MATCH(C45,EL_List,0)) -> 104.9240589
C49: PG5 | I49: =C49&" at Selected TSL" -> PG5 at Selected TSL | K49: Base Case | L49: TSL 1 | M49: TSL 2 | N49: TSL 3
C50: =VLOOKUP(C49,PC_Table,2,FALSE) -> Cable with DVR & Video Server | I50: =OFFSET(J50,0,MATCH(TSL_X,OFFSET(K49,0,0,1,NAMES!$K$4+1),FALSE)) -> EL 3 | K50: Baseline | L50: EL 1 | M50: EL 2 | N50: EL 3
E51: Efficiency Factors at each EL
E52: Annual Energy Consumption (AEC) | H52: AEC | I52: =OFFSET(E52,MATCH(OFFSET($I$1,MATCH(C49,$C:$C,0),0),EL_List,FALSE),0) -> 120.9054843 | K52: =OFFSET($E52,MATCH(K50,EL_List,0),0) -> 277.9329 | L52: =OFFSET($E52,MATCH(L50,EL_List,0),0) -> 207.1625938 | M52: =OFFSET($E52,MATCH(M50,EL_List,0),0) -> 169.5344119 | N52: =OFFSET($E52,MATCH(N50,EL_List,0),0) -> 120.9054843
C53: Baseline | E53: =OFFSET('INPUT - Engineering Analysis'!$D$7,(MATCH(C49,PC_LIST,0)-1)*12,MATCH(C53,EL_List,0)) -> 277.9329
C54: EL 1 | E54: =OFFSET('INPUT - Engineering Analysis'!$D$7,(MATCH(C49,PC_LIST,0)-1)*12,MATCH(C54,EL_List,0)) -> 207.1625938
C55: EL 2 | E55: =OFFSET('INPUT - Engineering Analysis'!$D$7,(MATCH(C49,PC_LIST,0)-1)*12,MATCH(C55,EL_List,0)) -> 169.5344119
C56: EL 3 | E56: =OFFSET('INPUT - Engineering Analysis'!$D$7,(MATCH(C49,PC_LIST,0)-1)*12,MATCH(C56,EL_List,0)) -> 120.9054843
C60: PG6 | I60: =C60&" at Selected TSL" -> PG6 at Selected TSL | K60: Base Case | L60: TSL 1 | M60: TSL 2 | N60: TSL 3
C61: =VLOOKUP(C60,PC_Table,2,FALSE) -> Satellite Base | I61: =OFFSET(J61,0,MATCH(TSL_X,OFFSET(K60,0,0,1,NAMES!$K$4+1),FALSE)) -> EL 3 | K61: Baseline | L61: EL 1 | M61: EL 2 | N61: EL 3
E62: Efficiency Factors at each EL
E63: Annual Energy Consumption (AEC) | H63: AEC | I63: =OFFSET(E63,MATCH(OFFSET($I$1,MATCH(C60,$C:$C,0),0),EL_List,FALSE),0) -> 47.24097654 | K63: =OFFSET($E63,MATCH(K61,EL_List,0),0) -> 123.37 | L63: =OFFSET($E63,MATCH(L61,EL_List,0),0) -> 90.59180328 | M63: =OFFSET($E63,MATCH(M61,EL_List,0),0) -> 62.342 | N63: =OFFSET($E63,MATCH(N61,EL_List,0),0) -> 47.24097654
C64: Baseline | E64: =OFFSET('INPUT - Engineering Analysis'!$D$7,(MATCH(C60,PC_LIST,0)-1)*12,MATCH(C64,EL_List,0)) -> 123.37
C65: EL 1 | E65: =OFFSET('INPUT - Engineering Analysis'!$D$7,(MATCH(C60,PC_LIST,0)-1)*12,MATCH(C65,EL_List,0)) -> 90.59180328
C66: EL 2 | E66: =OFFSET('INPUT - Engineering Analysis'!$D$7,(MATCH(C60,PC_LIST,0)-1)*12,MATCH(C66,EL_List,0)) -> 62.342
C67: EL 3 | E67: =OFFSET('INPUT - Engineering Analysis'!$D$7,(MATCH(C60,PC_LIST,0)-1)*12,MATCH(C67,EL_List,0)) -> 47.24097654
C71: PG7 | I71: =C71&" at Selected TSL" -> PG7 at Selected TSL | K71: Base Case | L71: TSL 1 | M71: TSL 2 | N71: TSL 3
C72: =VLOOKUP(C71,PC_Table,2,FALSE) -> Satellite Video Client | I72: =OFFSET(J72,0,MATCH(TSL_X,OFFSET(K71,0,0,1,NAMES!$K$4+1),FALSE)) -> EL 3 | K72: Baseline | L72: EL 1 | M72: EL 2 | N72: EL 3
E73: Efficiency Factors at each EL
E74: Annual Energy Consumption (AEC) | H74: AEC | I74: =OFFSET(E74,MATCH(OFFSET($I$1,MATCH(C71,$C:$C,0),0),EL_List,FALSE),0) -> 61.77489006 | K74: =OFFSET($E74,MATCH(K72,EL_List,0),0) -> 130.086 | L74: =OFFSET($E74,MATCH(L72,EL_List,0),0) -> 94.74955504 | M74: =OFFSET($E74,MATCH(M72,EL_List,0),0) -> 79.36313817 | N74: =OFFSET($E74,MATCH(N72,EL_List,0),0) -> 61.77489006
C75: Baseline | E75: =OFFSET('INPUT - Engineering Analysis'!$D$7,(MATCH(C71,PC_LIST,0)-1)*12,MATCH(C75,EL_List,0)) -> 130.086
C76: EL 1 | E76: =OFFSET('INPUT - Engineering Analysis'!$D$7,(MATCH(C71,PC_LIST,0)-1)*12,MATCH(C76,EL_List,0)) -> 94.74955504
C77: EL 2 | E77: =OFFSET('INPUT - Engineering Analysis'!$D$7,(MATCH(C71,PC_LIST,0)-1)*12,MATCH(C77,EL_List,0)) -> 79.36313817
C78: EL 3 | E78: =OFFSET('INPUT - Engineering Analysis'!$D$7,(MATCH(C71,PC_LIST,0)-1)*12,MATCH(C78,EL_List,0)) -> 61.77489006
C82: PG8 | I82: =C82&" at Selected TSL" -> PG8 at Selected TSL | K82: Base Case | L82: TSL 1 | M82: TSL 2 | N82: TSL 3
C83: =VLOOKUP(C82,PC_Table,2,FALSE) -> Satellite Video Server | I83: =OFFSET(J83,0,MATCH(TSL_X,OFFSET(K82,0,0,1,NAMES!$K$4+1),FALSE)) -> EL 3 | K83: Baseline | L83: EL 1 | M83: EL 2 | N83: EL 3
E84: Efficiency Factors at each EL
E85: Annual Energy Consumption (AEC) | H85: AEC | I85: =OFFSET(E85,MATCH(OFFSET($I$1,MATCH(C82,$C:$C,0),0),EL_List,FALSE),0) -> 93.40979287 | K85: =OFFSET($E85,MATCH(K83,EL_List,0),0) -> 186.2917059 | L85: =OFFSET($E85,MATCH(L83,EL_List,0),0) -> 155.7540882 | M85: =OFFSET($E85,MATCH(M83,EL_List,0),0) -> 126.3459943 | N85: =OFFSET($E85,MATCH(N83,EL_List,0),0) -> 93.40979287
C86: Baseline | E86: =OFFSET('INPUT - Engineering Analysis'!$D$7,(MATCH(C82,PC_LIST,0)-1)*12,MATCH(C86,EL_List,0)) -> 186.2917059
C87: EL 1 | E87: =OFFSET('INPUT - Engineering Analysis'!$D$7,(MATCH(C82,PC_LIST,0)-1)*12,MATCH(C87,EL_List,0)) -> 155.7540882
C88: EL 2 | E88: =OFFSET('INPUT - Engineering Analysis'!$D$7,(MATCH(C82,PC_LIST,0)-1)*12,MATCH(C88,EL_List,0)) -> 126.3459943
C89: EL 3 | E89: =OFFSET('INPUT - Engineering Analysis'!$D$7,(MATCH(C82,PC_LIST,0)-1)*12,MATCH(C89,EL_List,0)) -> 93.40979287
C93: PG9 | I93: =C93&" at Selected TSL" -> PG9 at Selected TSL | K93: Base Case | L93: TSL 1 | M93: TSL 2 | N93: TSL 3
C94: =VLOOKUP(C93,PC_Table,2,FALSE) -> Satellite with DVR | I94: =OFFSET(J94,0,MATCH(TSL_X,OFFSET(K93,0,0,1,NAMES!$K$4+1),FALSE)) -> EL 3 | K94: Baseline | L94: EL 1 | M94: EL 2 | N94: EL 3
E95: Efficiency Factors at each EL
E96: Annual Energy Consumption (AEC) | H96: AEC | I96: =OFFSET(E96,MATCH(OFFSET($I$1,MATCH(C93,$C:$C,0),0),EL_List,FALSE),0) -> 86.13614154 | K96: =OFFSET($E96,MATCH(K94,EL_List,0),0) -> 217.467 | L96: =OFFSET($E96,MATCH(L94,EL_List,0),0) -> 155.1726989 | M96: =OFFSET($E96,MATCH(M94,EL_List,0),0) -> 120.3317898 | N96: =OFFSET($E96,MATCH(N94,EL_List,0),0) -> 86.13614154
C97: Baseline | E97: =OFFSET('INPUT - Engineering Analysis'!$D$7,(MATCH(C93,PC_LIST,0)-1)*12,MATCH(C97,EL_List,0)) -> 217.467
C98: EL 1 | E98: =OFFSET('INPUT - Engineering Analysis'!$D$7,(MATCH(C93,PC_LIST,0)-1)*12,MATCH(C98,EL_List,0)) -> 155.1726989
C99: EL 2 | E99: =OFFSET('INPUT - Engineering Analysis'!$D$7,(MATCH(C93,PC_LIST,0)-1)*12,MATCH(C99,EL_List,0)) -> 120.3317898
C100: EL 3 | E100: =OFFSET('INPUT - Engineering Analysis'!$D$7,(MATCH(C93,PC_LIST,0)-1)*12,MATCH(C100,EL_List,0)) -> 86.13614154
C104: PG10 | I104: =C104&" at Selected TSL" -> PG10 at Selected TSL | K104: Base Case | L104: TSL 1 | M104: TSL 2 | N104: TSL 3
C105: =VLOOKUP(C104,PC_Table,2,FALSE) -> Satellite with DVR & Video Server | I105: =OFFSET(J105,0,MATCH(TSL_X,OFFSET(K104,0,0,1,NAMES!$K$4+1),FALSE)) -> EL 3 | K105: Baseline | L105: EL 1 | M105: EL 2 | N105: EL 3
E106: Efficiency Factors at each EL
E107: Annual Energy Consumption (AEC) | H107: AEC | I107: =OFFSET(E107,MATCH(OFFSET($I$1,MATCH(C104,$C:$C,0),0),EL_List,FALSE),0) -> 99.27940803 | K107: =OFFSET($E107,MATCH(K105,EL_List,0),0) -> 248.127 | L107: =OFFSET($E107,MATCH(L105,EL_List,0),0) -> 177.1141761 | M107: =OFFSET($E107,MATCH(M105,EL_List,0),0) -> 142.273267 | N107: =OFFSET($E107,MATCH(N105,EL_List,0),0) -> 99.27940803
C108: Baseline | E108: =OFFSET('INPUT - Engineering Analysis'!$D$7,(MATCH(C104,PC_LIST,0)-1)*12,MATCH(C108,EL_List,0)) -> 248.127
C109: EL 1 | E109: =OFFSET('INPUT - Engineering Analysis'!$D$7,(MATCH(C104,PC_LIST,0)-1)*12,MATCH(C109,EL_List,0)) -> 177.1141761
C110: EL 2 | E110: =OFFSET('INPUT - Engineering Analysis'!$D$7,(MATCH(C104,PC_LIST,0)-1)*12,MATCH(C110,EL_List,0)) -> 142.273267
C111: EL 3 | E111: =OFFSET('INPUT - Engineering Analysis'!$D$7,(MATCH(C104,PC_LIST,0)-1)*12,MATCH(C111,EL_List,0)) -> 99.27940803
C115: PG11 | I115: =C115&" at Selected TSL" -> PG11 at Selected TSL | K115: Base Case | L115: TSL 1 | M115: TSL 2 | N115: TSL 3
C116: =VLOOKUP(C115,PC_Table,2,FALSE) -> IP Base | I116: =OFFSET(J116,0,MATCH(TSL_X,OFFSET(K115,0,0,1,NAMES!$K$4+1),FALSE)) -> EL 3 | K116: Baseline | L116: EL 1 | M116: EL 2 | N116: EL 3
E117: Efficiency Factors at each EL
E118: Annual Energy Consumption (AEC) | H118: AEC | I118: =OFFSET(E118,MATCH(OFFSET($I$1,MATCH(C115,$C:$C,0),0),EL_List,FALSE),0) -> 60.16799022 | K118: =OFFSET($E118,MATCH(K116,EL_List,0),0) -> 107.0837 | L118: =OFFSET($E118,MATCH(L116,EL_List,0),0) -> 94.22829742 | M118: =OFFSET($E118,MATCH(M116,EL_List,0),0) -> 70.73836768 | N118: =OFFSET($E118,MATCH(N116,EL_List,0),0) -> 60.16799022
C119: Baseline | E119: =OFFSET('INPUT - Engineering Analysis'!$D$7,(MATCH(C115,PC_LIST,0)-1)*12,MATCH(C119,EL_List,0)) -> 107.0837
C120: EL 1 | E120: =OFFSET('INPUT - Engineering Analysis'!$D$7,(MATCH(C115,PC_LIST,0)-1)*12,MATCH(C120,EL_List,0)) -> 94.22829742
C121: EL 2 | E121: =OFFSET('INPUT - Engineering Analysis'!$D$7,(MATCH(C115,PC_LIST,0)-1)*12,MATCH(C121,EL_List,0)) -> 70.73836768
C122: EL 3 | E122: =OFFSET('INPUT - Engineering Analysis'!$D$7,(MATCH(C115,PC_LIST,0)-1)*12,MATCH(C122,EL_List,0)) -> 60.16799022
C126: PG12 | I126: =C126&" at Selected TSL" -> PG12 at Selected TSL | K126: Base Case | L126: TSL 1 | M126: TSL 2 | N126: TSL 3
C127: =VLOOKUP(C126,PC_Table,2,FALSE) -> IP Video Client | I127: =OFFSET(J127,0,MATCH(TSL_X,OFFSET(K126,0,0,1,NAMES!$K$4+1),FALSE)) -> EL 3 | K127: Baseline | L127: EL 1 | M127: EL 2 | N127: EL 3
E128: Efficiency Factors at each EL
E129: Annual Energy Consumption (AEC) | H129: AEC | I129: =OFFSET(E129,MATCH(OFFSET($I$1,MATCH(C126,$C:$C,0),0),EL_List,FALSE),0) -> 64.47527829 | K129: =OFFSET($E129,MATCH(K127,EL_List,0),0) -> 114.9677 | L129: =OFFSET($E129,MATCH(L127,EL_List,0),0) -> 101.2445035 | M129: =OFFSET($E129,MATCH(M127,EL_List,0),0) -> 77.75457377 | N129: =OFFSET($E129,MATCH(N127,EL_List,0),0) -> 64.47527829
C130: Baseline | E130: =OFFSET('INPUT - Engineering Analysis'!$D$7,(MATCH(C126,PC_LIST,0)-1)*12,MATCH(C130,EL_List,0)) -> 114.9677
C131: EL 1 | E131: =OFFSET('INPUT - Engineering Analysis'!$D$7,(MATCH(C126,PC_LIST,0)-1)*12,MATCH(C131,EL_List,0)) -> 101.2445035
C132: EL 2 | E132: =OFFSET('INPUT - Engineering Analysis'!$D$7,(MATCH(C126,PC_LIST,0)-1)*12,MATCH(C132,EL_List,0)) -> 77.75457377
C133: EL 3 | E133: =OFFSET('INPUT - Engineering Analysis'!$D$7,(MATCH(C126,PC_LIST,0)-1)*12,MATCH(C133,EL_List,0)) -> 64.47527829
C137: PG13 | I137: =C137&" at Selected TSL" -> PG13 at Selected TSL | K137: Base Case | L137: TSL 1 | M137: TSL 2 | N137: TSL 3
C138: =VLOOKUP(C137,PC_Table,2,FALSE) -> IP Video Server | I138: =OFFSET(J138,0,MATCH(TSL_X,OFFSET(K137,0,0,1,NAMES!$K$4+1),FALSE)) -> EL 3 | K138: Baseline | L138: EL 1 | M138: EL 2 | N138: EL 3
E139: Efficiency Factors at each EL
E140: Annual Energy Consumption (AEC) | H140: AEC | I140: =OFFSET(E140,MATCH(OFFSET($I$1,MATCH(C137,$C:$C,0),0),EL_List,FALSE),0) -> 63.36520042 | K140: =OFFSET($E140,MATCH(K138,EL_List,0),0) -> 115.5444 | L140: =OFFSET($E140,MATCH(L138,EL_List,0),0) -> 100.0978735 | M140: =OFFSET($E140,MATCH(M138,EL_List,0),0) -> 76.60794379 | N140: =OFFSET($E140,MATCH(N138,EL_List,0),0) -> 63.36520042
C141: Baseline | E141: =OFFSET('INPUT - Engineering Analysis'!$D$7,(MATCH(C137,PC_LIST,0)-1)*12,MATCH(C141,EL_List,0)) -> 115.5444
C142: EL 1 | E142: =OFFSET('INPUT - Engineering Analysis'!$D$7,(MATCH(C137,PC_LIST,0)-1)*12,MATCH(C142,EL_List,0)) -> 100.0978735
C143: EL 2 | E143: =OFFSET('INPUT - Engineering Analysis'!$D$7,(MATCH(C137,PC_LIST,0)-1)*12,MATCH(C143,EL_List,0)) -> 76.60794379
C144: EL 3 | E144: =OFFSET('INPUT - Engineering Analysis'!$D$7,(MATCH(C137,PC_LIST,0)-1)*12,MATCH(C144,EL_List,0)) -> 63.36520042
C148: PG14 | I148: =C148&" at Selected TSL" -> PG14 at Selected TSL | K148: Base Case | L148: TSL 1 | M148: TSL 2 | N148: TSL 3
C149: =VLOOKUP(C148,PC_Table,2,FALSE) -> IP with DVR | I149: =OFFSET(J149,0,MATCH(TSL_X,OFFSET(K148,0,0,1,NAMES!$K$4+1),FALSE)) -> EL 3 | K149: Baseline | L149: EL 1 | M149: EL 2 | N149: EL 3
E150: Efficiency Factors at each EL
E151: Annual Energy Consumption (AEC) | H151: AEC | I151: =OFFSET(E151,MATCH(OFFSET($I$1,MATCH(C148,$C:$C,0),0),EL_List,FALSE),0) -> 73.48925151 | K151: =OFFSET($E151,MATCH(K149,EL_List,0),0) -> 145.7153 | L151: =OFFSET($E151,MATCH(L149,EL_List,0),0) -> 119.0760653 | M151: =OFFSET($E151,MATCH(M149,EL_List,0),0) -> 87.3339233 | N151: =OFFSET($E151,MATCH(N149,EL_List,0),0) -> 73.48925151
C152: Baseline | E152: =OFFSET('INPUT - Engineering Analysis'!$D$7,(MATCH(C148,PC_LIST,0)-1)*12,MATCH(C152,EL_List,0)) -> 145.7153
C153: EL 1 | E153: =OFFSET('INPUT - Engineering Analysis'!$D$7,(MATCH(C148,PC_LIST,0)-1)*12,MATCH(C153,EL_List,0)) -> 119.0760653
C154: EL 2 | E154: =OFFSET('INPUT - Engineering Analysis'!$D$7,(MATCH(C148,PC_LIST,0)-1)*12,MATCH(C154,EL_List,0)) -> 87.3339233
C155: EL 3 | E155: =OFFSET('INPUT - Engineering Analysis'!$D$7,(MATCH(C148,PC_LIST,0)-1)*12,MATCH(C155,EL_List,0)) -> 73.48925151
C159: PG15 | I159: =C159&" at Selected TSL" -> PG15 at Selected TSL | K159: Base Case | L159: TSL 1 | M159: TSL 2 | N159: TSL 3
C160: =VLOOKUP(C159,PC_Table,2,FALSE) -> IP with DVR & Video Server | I160: =OFFSET(J160,0,MATCH(TSL_X,OFFSET(K159,0,0,1,NAMES!$K$4+1),FALSE)) -> EL 3 | K160: Baseline | L160: EL 1 | M160: EL 2 | N160: EL 3
E161: Efficiency Factors at each EL
E162: Annual Energy Consumption (AEC) | H162: AEC | I162: =OFFSET(E162,MATCH(OFFSET($I$1,MATCH(C159,$C:$C,0),0),EL_List,FALSE),0) -> 78.48052623 | K162: =OFFSET($E162,MATCH(K160,EL_List,0),0) -> 151.0589 | L162: =OFFSET($E162,MATCH(L160,EL_List,0),0) -> 124.2374972 | M162: =OFFSET($E162,MATCH(M160,EL_List,0),0) -> 92.49535511 | N162: =OFFSET($E162,MATCH(N160,EL_List,0),0) -> 78.48052623
C163: Baseline | E163: =OFFSET('INPUT - Engineering Analysis'!$D$7,(MATCH(C159,PC_LIST,0)-1)*12,MATCH(C163,EL_List,0)) -> 151.0589
C164: EL 1 | E164: =OFFSET('INPUT - Engineering Analysis'!$D$7,(MATCH(C159,PC_LIST,0)-1)*12,MATCH(C164,EL_List,0)) -> 124.2374972
C165: EL 2 | E165: =OFFSET('INPUT - Engineering Analysis'!$D$7,(MATCH(C159,PC_LIST,0)-1)*12,MATCH(C165,EL_List,0)) -> 92.49535511
C166: EL 3 | E166: =OFFSET('INPUT - Engineering Analysis'!$D$7,(MATCH(C159,PC_LIST,0)-1)*12,MATCH(C166,EL_List,0)) -> 78.48052623
C170: PG16 | I170: =C170&" at Selected TSL" -> PG16 at Selected TSL | K170: Base Case | L170: TSL 1 | M170: TSL 2 | N170: TSL 3
C171: =VLOOKUP(C170,PC_Table,2,FALSE) -> OTT | I171: =OFFSET(J171,0,MATCH(TSL_X,OFFSET(K170,0,0,1,NAMES!$K$4+1),FALSE)) -> EL 2 | K171: Baseline | L171: EL 1 | M171: EL 2 | N171: EL 2
E172: Efficiency Factors at each EL
E173: Annual Energy Consumption (AEC) | H173: AEC | I173: =OFFSET(E173,MATCH(OFFSET($I$1,MATCH(C170,$C:$C,0),0),EL_List,FALSE),0) -> 5.89475 | K173: =OFFSET($E173,MATCH(K171,EL_List,0),0) -> 68.2769 | L173: =OFFSET($E173,MATCH(L171,EL_List,0),0) -> 19.1041 | M173: =OFFSET($E173,MATCH(M171,EL_List,0),0) -> 5.89475 | N173: =OFFSET($E173,MATCH(N171,EL_List,0),0) -> 5.89475
C174: Baseline | E174: =OFFSET('INPUT - Engineering Analysis'!$D$7,(MATCH(C170,PC_LIST,0)-1)*12,MATCH(C174,EL_List,0)) -> 68.2769
C175: EL 1 | E175: =OFFSET('INPUT - Engineering Analysis'!$D$7,(MATCH(C170,PC_LIST,0)-1)*12,MATCH(C175,EL_List,0)) -> 19.1041
C176: EL 2 | E176: =OFFSET('INPUT - Engineering Analysis'!$D$7,(MATCH(C170,PC_LIST,0)-1)*12,MATCH(C176,EL_List,0)) -> 5.89475
C180: PG17 | I180: =C180&" at Selected TSL" -> PG17 at Selected TSL | K180: Base Case | L180: TSL 1 | M180: TSL 2 | N180: TSL 3
C181: =VLOOKUP(C180,PC_Table,2,FALSE) -> Thin-client | I181: =OFFSET(J181,0,MATCH(TSL_X,OFFSET(K180,0,0,1,NAMES!$K$4+1),FALSE)) -> EL 3 | K181: Baseline | L181: EL 1 | M181: EL 2 | N181: EL 3
E182: Efficiency Factors at each EL
E183: Annual Energy Consumption (AEC) | H183: AEC | I183: =OFFSET(E183,MATCH(OFFSET($I$1,MATCH(C180,$C:$C,0),0),EL_List,FALSE),0) -> 43.15143585 | K183: =OFFSET($E183,MATCH(K181,EL_List,0),0) -> 79.8912 | L183: =OFFSET($E183,MATCH(L181,EL_List,0),0) -> 66.18244965 | M183: =OFFSET($E183,MATCH(M181,EL_List,0),0) -> 47.2164 | N183: =OFFSET($E183,MATCH(N181,EL_List,0),0) -> 43.15143585
C184: Baseline | E184: =OFFSET('INPUT - Engineering Analysis'!$D$7,(MATCH(C180,PC_LIST,0)-1)*12,MATCH(C184,EL_List,0)) -> 79.8912
C185: EL 1 | E185: =OFFSET('INPUT - Engineering Analysis'!$D$7,(MATCH(C180,PC_LIST,0)-1)*12,MATCH(C185,EL_List,0)) -> 66.18244965
C186: EL 2 | E186: =OFFSET('INPUT - Engineering Analysis'!$D$7,(MATCH(C180,PC_LIST,0)-1)*12,MATCH(C186,EL_List,0)) -> 47.2164
C187: EL 3 | E187: =OFFSET('INPUT - Engineering Analysis'!$D$7,(MATCH(C180,PC_LIST,0)-1)*12,MATCH(C187,EL_List,0)) -> 43.15143585

Sheet Markups
C2: Markups | E2: * Developed in MIA | J2: Navigation
E5: Baseline Markup | X5: Preservation of OP Calibration | AC5: Amortized Software Calibration
C6: PG1 | E6: 1.34 | G6: =Markup_Scenario_1 -> Flat Markup | L6: Preservation of OP | Q6: Amortized Software
C7: =VLOOKUP(C6,PC_Table,2,FALSE) -> Cable Base | X7: OP Ratio | Y7: =OFFSET('STANDARDS CASE DCF'!$E$14,0,MATCH(Standard_Year,DATES,0)+1)/ OFFSET('BASE CASE DCF'!$E$14,0,MATCH(Standard_Year,DATES,0)+1) -> 0.9999988126 | AC7: Amortization Years | AD7: 3
E8: Selected Markup | G8: Baseline | H8: EL 1 | I8: EL 2 | J8: EL 3 | L8: Baseline | M8: EL 1 | N8: EL 2 | O8: EL 3 | Q8: Baseline | R8: EL 1 | S8: EL 2 | T8: EL 3
C9: Baseline | E9: =OFFSET(E9,0,(MATCH(Markup_Scenario_X,G$6:ZW$6,0) +MATCH(OFFSET('EL and TSL Setup'!$I$1,MATCH(OFFSET($C9,-(MATCH($C9,EL_List,0)+2),0),'EL and TSL Setup'!$C:$C,0),0),EL_List,0))) -> 0 | G9: =OFFSET(G9,-3,-2-(MATCH(G6,Markup_Scenario_List,0)-1)*(NAMES!$F$4+2)) -> 1.34 | H9: 0 | I9: 0 | J9: 0 | L9: =OFFSET(L9,-3,-2-(MATCH(L6,Markup_Scenario_List,0)-1)*(NAMES!$F$4+2)) -> 1.34 | M9: 0 | N9: 0 | O9: 0 | Q9: =G9 -> 1.34 | R9: =H9 -> 0 | S9: =I9 -> 0 | T9: 0 | X9: Compliant EL | Y9: Multiplier | AC9: Compliant EL | AD9: $ / Unit
C10: EL 1 | E10: =OFFSET(E10,0,(MATCH(Markup_Scenario_X,G$6:ZW$6,0) +MATCH(OFFSET('EL and TSL Setup'!$I$1,MATCH(OFFSET($C10,-(MATCH($C10,EL_List,0)+2),0),'EL and TSL Setup'!$C:$C,0),0),EL_List,0))) -> 0 | G10: =G9 -> 1.34 | H10: =IF(RIGHT(H$8,1)<=RIGHT($C10),G10,0) -> 1.34 | I10: =IF(RIGHT(I$8,1)<=RIGHT($C10),H10,0) -> 0 | J10: =IF(RIGHT(J$8,1)<=RIGHT($C10),H10,0) -> 0 | L10: =L9 -> 1.34 | M10: =IF(RIGHT(M$8,1)<RIGHT($C10),L10, IF(RIGHT(M$8,1)=RIGHT($C10),L10*$Y10,0)) -> 1.338111558 | N10: 0 | O10: 0 | Q10: =G10 -> 1.34 | R10: 1.34 | S10: 0 | T10: 0 | X10: EL1 | Y10: 0.9985907149 | AC10: EL1 | AD10: 0
C11: EL 2 | E11: =OFFSET(E11,0,(MATCH(Markup_Scenario_X,G$6:ZW$6,0) +MATCH(OFFSET('EL and TSL Setup'!$I$1,MATCH(OFFSET($C11,-(MATCH($C11,EL_List,0)+2),0),'EL and TSL Setup'!$C:$C,0),0),EL_List,0))) -> 0 | G11: =G10 -> 1.34 | H11: 1.34 | I11: 1.34 | J11: =IF(RIGHT(J$8,1)<=RIGHT($C11),H11,0) -> 0 | L11: =L10 -> 1.34 | M11: 1.34 | N11: 1.337690102 | O11: 0 | Q11: 1.34 | R11: 1.34 | S11: 1.34 | T11: 0 | X11: EL2 | Y11: 0.9982761952 | AC11: EL2 | AD11: 0
C12: EL 3 | E12: =OFFSET(E12,0,(MATCH(Markup_Scenario_X,G$6:ZW$6,0) +MATCH(OFFSET('EL and TSL Setup'!$I$1,MATCH(OFFSET($C12,-(MATCH($C12,EL_List,0)+2),0),'EL and TSL Setup'!$C:$C,0),0),EL_List,0))) -> 1.337781746 | G12: =G10 -> 1.34 | H12: 1.34 | I12: 1.34 | J12: =IF(RIGHT(J$8,1)<=RIGHT($C12),H12,0) -> 1.34 | L12: =Q12 -> 1.377242586 | M12: 1.377242586 | N12: 1.377242586 | O12: =IF(RIGHT(O$8,1)<RIGHT($C12),N12, IF(RIGHT(O$8,1)=RIGHT($C12),N12*$Y12,0)) -> 1.337781746 | Q12: =R12 -> 1.377242586 | R12: 1.377242586 | S12: =T12 -> 1.377242586 | T12: =E6*('MPC Breakdown'!$E10+$AD12)/'MPC Breakdown'!$E10 -> 1.377242586 | X12: EL3 | Y12: 0.9713479377 | AC12: EL3 | AD12: ='Conversion Costs'!R16/SUM(OFFSET(Shipments!M380,0,0,1,AD7)) -> 2.346005
E16: Baseline Markup | X16: Preservation of OP Calibration | AC16: Amortized Software Calibration
C17: PG2 | E17: 1.34 | G17: =Markup_Scenario_1 -> Flat Markup | L17: Preservation of OP | Q17: Amortized Software
C18: =VLOOKUP(C17,PC_Table,2,FALSE) -> Cable Video Client | X18: OP Ratio | Y18: =OFFSET('STANDARDS CASE DCF'!$E$14,0,MATCH(Standard_Year,DATES,0)+1)/ OFFSET('BASE CASE DCF'!$E$14,0,MATCH(Standard_Year,DATES,0)+1) -> 0.9999988126 | AC18: Amortization Years | AD18: =$AD$7 -> 3
E19: Selected Markup | G19: Baseline | H19: EL 1 | I19: EL 2 | J19: EL 3 | L19: Baseline | M19: EL 1 | N19: EL 2 | O19: EL 3 | Q19: Baseline | R19: EL 1 | S19: EL 2 | T19: EL 3
C20: Baseline | E20: =OFFSET(E20,0,(MATCH(Markup_Scenario_X,G$6:ZW$6,0) +MATCH(OFFSET('EL and TSL Setup'!$I$1,MATCH(OFFSET($C20,-(MATCH($C20,EL_List,0)+2),0),'EL and TSL Setup'!$C:$C,0),0),EL_List,0))) -> 0 | G20: =OFFSET(G20,-3,-2-(MATCH(G17,Markup_Scenario_List,0)-1)*(NAMES!$F$4+2)) -> 1.34 | H20: 0 | I20: 0 | J20: 0 | L20: =OFFSET(L20,-3,-2-(MATCH(L17,Markup_Scenario_List,0)-1)*(NAMES!$F$4+2)) -> 1.34 | M20: 0 | N20: 0 | O20: 0 | Q20: =G20 -> 1.34 | R20: =H20 -> 0 | S20: 0 | T20: 0 | X20: Compliant EL | Y20: Multiplier | AC20: Compliant EL | AD20: $ / Unit
C21: EL 1 | E21: =OFFSET(E21,0,(MATCH(Markup_Scenario_X,G$6:ZW$6,0) +MATCH(OFFSET('EL and TSL Setup'!$I$1,MATCH(OFFSET($C21,-(MATCH($C21,EL_List,0)+2),0),'EL and TSL Setup'!$C:$C,0),0),EL_List,0))) -> 0 | G21: =G20 -> 1.34 | H21: =IF(RIGHT(H$8,1)<=RIGHT($C21),G21,0) -> 1.34 | I21: 0 | J21: =IF(RIGHT(J$8,1)<=RIGHT($C21),H21,0) -> 0 | L21: =L20 -> 1.34 | M21: =IF(RIGHT(M$8,1)<RIGHT($C21),L21, IF(RIGHT(M$8,1)=RIGHT($C21),L21*$Y21,0)) -> 1.338234653 | N21: 0 | O21: 0 | Q21: =G21 -> 1.34 | R21: =H21 -> 1.34 | S21: =I21 -> 0 | T21: =J21 -> 0 | X21: EL1 | Y21: 0.9986825766 | AC21: EL1 | AD21: 0
C22: EL 2 | E22: =OFFSET(E22,0,(MATCH(Markup_Scenario_X,G$6:ZW$6,0) +MATCH(OFFSET('EL and TSL Setup'!$I$1,MATCH(OFFSET($C22,-(MATCH($C22,EL_List,0)+2),0),'EL and TSL Setup'!$C:$C,0),0),EL_List,0))) -> 0 | G22: =G21 -> 1.34 | H22: 1.34 | I22: 1.34 | J22: =IF(RIGHT(J$8,1)<=RIGHT($C22),H22,0) -> 0 | L22: =L21 -> 1.34 | M22: 1.34 | N22: 1.334836855 | O22: 0 | Q22: 1.34 | R22: 1.34 | S22: 1.34 | T22: 0 | X22: EL2 | Y22: 0.9961469067 | AC22: EL2 | AD22: 0
C23: EL 3 | E23: =OFFSET(E23,0,(MATCH(Markup_Scenario_X,G$6:ZW$6,0) +MATCH(OFFSET('EL and TSL Setup'!$I$1,MATCH(OFFSET($C23,-(MATCH($C23,EL_List,0)+2),0),'EL and TSL Setup'!$C:$C,0),0),EL_List,0))) -> 1.33465695 | G23: =G21 -> 1.34 | H23: 1.34 | I23: 1.34 | J23: =IF(RIGHT(J$8,1)<=RIGHT($C23),H23,0) -> 1.34 | L23: =Q23 -> 1.347920475 | M23: 1.347920475 | N23: 1.347920475 | O23: 1.33465695 | Q23: =R23 -> 1.347920475 | R23: 1.347920475 | S23: =T23 -> 1.347920475 | T23: =E17*('MPC Breakdown'!$E19+$AD23)/'MPC Breakdown'!$E19 -> 1.347920475 | X23: EL3 | Y23: 0.9901600092 | AC23: EL3 | AD23: ='Conversion Costs'!R25/SUM(OFFSET(Shipments!M387,0,0,1,AD18)) -> 0.558038864
E27: Baseline Markup | X27: Preservation of OP Calibration | AC27: Amortized Software Calibration
C28: PG3 | E28: 1.34 | G28: =Markup_Scenario_1 -> Flat Markup | L28: Preservation of OP | Q28: Amortized Software
C29: =VLOOKUP(C28,PC_Table,2,FALSE) -> Cable Video Server | X29: OP Ratio | Y29: =OFFSET('STANDARDS CASE DCF'!$E$14,0,MATCH(Standard_Year,DATES,0)+1)/ OFFSET('BASE CASE DCF'!$E$14,0,MATCH(Standard_Year,DATES,0)+1) -> 0.9999988126 | AC29: Amortization Years | AD29: =$AD$7 -> 3
E30: Selected Markup | G30: Baseline | H30: EL 1 | I30: EL 2 | J30: EL 3 | L30: Baseline | M30: EL 1 | N30: EL 2 | O30: EL 3 | Q30: Baseline | R30: EL 1 | S30: EL 2 | T30: EL 3
C31: Baseline | E31: =OFFSET(E31,0,(MATCH(Markup_Scenario_X,G$6:ZW$6,0) +MATCH(OFFSET('EL and TSL Setup'!$I$1,MATCH(OFFSET($C31,-(MATCH($C31,EL_List,0)+2),0),'EL and TSL Setup'!$C:$C,0),0),EL_List,0))) -> 0 | G31: =OFFSET(G31,-3,-2-(MATCH(G28,Markup_Scenario_List,0)-1)*(NAMES!$F$4+2)) -> 1.34 | H31: 0 | I31: 0 | J31: 0 | L31: =OFFSET(L31,-3,-2-(MATCH(L28,Markup_Scenario_List,0)-1)*(NAMES!$F$4+2)) -> 1.34 | M31: 0 | N31: 0 | O31: 0 | Q31: =G31 -> 1.34 | R31: =H31 -> 0 | S31: 0 | T31: 0 | X31: Compliant EL | Y31: Multiplier | AC31: Compliant EL | AD31: $ / Unit
C32: EL 1 | E32: =OFFSET(E32,0,(MATCH(Markup_Scenario_X,G$6:ZW$6,0) +MATCH(OFFSET('EL and TSL Setup'!$I$1,MATCH(OFFSET($C32,-(MATCH($C32,EL_List,0)+2),0),'EL and TSL Setup'!$C:$C,0),0),EL_List,0))) -> 0 | G32: =G31 -> 1.34 | H32: =IF(RIGHT(H$8,1)<=RIGHT($C32),G32,0) -> 1.34 | I32: 0 | J32: =IF(RIGHT(J$8,1)<=RIGHT($C32),H32,0) -> 0 | L32: =L31 -> 1.34 | M32: =IF(RIGHT(M$8,1)<RIGHT($C32),L32, IF(RIGHT(M$8,1)=RIGHT($C32),L32*$Y32,0)) -> 1.338621639 | N32: 0 | O32: 0 | Q32: =G32 -> 1.34 | R32: 1.34 | S32: 0 | T32: 0 | X32: EL1 | Y32: 0.9989713725 | AC32: EL1 | AD32: 0
C33: EL 2 | E33: =OFFSET(E33,0,(MATCH(Markup_Scenario_X,G$6:ZW$6,0) +MATCH(OFFSET('EL and TSL Setup'!$I$1,MATCH(OFFSET($C33,-(MATCH($C33,EL_List,0)+2),0),'EL and TSL Setup'!$C:$C,0),0),EL_List,0))) -> 0 | G33: =G32 -> 1.34 | H33: 1.34 | I33: 1.34 | J33: =IF(RIGHT(J$8,1)<=RIGHT($C33),H33,0) -> 0 | L33: =L32 -> 1.34 | M33: 1.34 | N33: 1.33502325 | O33: 0 | Q33: 1.34 | R33: 1.34 | S33: 1.34 | T33: 0 | X33: EL2 | Y33: 0.9962860072 | AC33: EL2 | AD33: 0
C34: EL 3 | E34: =OFFSET(E34,0,(MATCH(Markup_Scenario_X,G$6:ZW$6,0) +MATCH(OFFSET('EL and TSL Setup'!$I$1,MATCH(OFFSET($C34,-(MATCH($C34,EL_List,0)+2),0),'EL and TSL Setup'!$C:$C,0),0),EL_List,0))) -> 1.334550759 | G34: =G32 -> 1.34 | H34: 1.34 | I34: 1.34 | J34: =IF(RIGHT(J$8,1)<=RIGHT($C34),H34,0) -> 1.34 | L34: =Q34 -> 1.34211842 | M34: 1.34211842 | N34: 1.34211842 | O34: 1.334550759 | Q34: =R34 -> 1.34211842 | R34: 1.34211842 | S34: =T34 -> 1.34211842 | T34: =E28*('MPC Breakdown'!$E28+$AD34)/'MPC Breakdown'!$E28 -> 1.34211842 | X34: EL3 | Y34: 0.9943614063 | AC34: EL3 | AD34: ='Conversion Costs'!R34/SUM(OFFSET(Shipments!M394,0,0,1,AD$29)) -> 0.2775288052
E38: Baseline Markup | X38: Preservation of OP Calibration | AC38: Amortized Software Calibration
C39: PG4 | E39: 1.34 | G39: =Markup_Scenario_1 -> Flat Markup | L39: Preservation of OP | Q39: Amortized Software
C40: =VLOOKUP(C39,PC_Table,2,FALSE) -> Cable with DVR | X40: OP Ratio | Y40: =OFFSET('STANDARDS CASE DCF'!$E$14,0,MATCH(Standard_Year,DATES,0)+1)/ OFFSET('BASE CASE DCF'!$E$14,0,MATCH(Standard_Year,DATES,0)+1) -> 0.9999988126 | AC40: Amortization Years | AD40: =$AD$7 -> 3
E41: Selected Markup | G41: Baseline | H41: EL 1 | I41: EL 2 | J41: EL 3 | L41: Baseline | M41: EL 1 | N41: EL 2 | O41: EL 3 | Q41: Baseline | R41: EL 1 | S41: EL 2 | T41: EL 3
C42: Baseline | E42: =OFFSET(E42,0,(MATCH(Markup_Scenario_X,G$6:ZW$6,0) +MATCH(OFFSET('EL and TSL Setup'!$I$1,MATCH(OFFSET($C42,-(MATCH($C42,EL_List,0)+2),0),'EL and TSL Setup'!$C:$C,0),0),EL_List,0))) -> 0 | G42: =OFFSET(G42,-3,-2-(MATCH(G39,Markup_Scenario_List,0)-1)*(NAMES!$F$4+2)) -> 1.34 | H42: 0 | I42: 0 | J42: 0 | L42: =OFFSET(L42,-3,-2-(MATCH(L39,Markup_Scenario_List,0)-1)*(NAMES!$F$4+2)) -> 1.34 | M42: 0 | N42: 0 | O42: 0 | Q42: =G42 -> 1.34 | R42: =H42 -> 0 | S42: 0 | T42: 0 | X42: Compliant EL | Y42: Multiplier | AC42: Compliant EL | AD42: $ / Unit
C43: EL 1 | E43: =OFFSET(E43,0,(MATCH(Markup_Scenario_X,G$6:ZW$6,0) +MATCH(OFFSET('EL and TSL Setup'!$I$1,MATCH(OFFSET($C43,-(MATCH($C43,EL_List,0)+2),0),'EL and TSL Setup'!$C:$C,0),0),EL_List,0))) -> 0 | G43: =G42 -> 1.34 | H43: =IF(RIGHT(H$8,1)<=RIGHT($C43),G43,0) -> 1.34 | I43: 0 | J43: =IF(RIGHT(J$8,1)<=RIGHT($C43),H43,0) -> 0 | L43: =L42 -> 1.34 | M43: =IF(RIGHT(M$8,1)<RIGHT($C43),L43, IF(RIGHT(M$8,1)=RIGHT($C43),L43*$Y43,0)) -> 1.336895536 | N43: 0 | O43: 0 | Q43: =G43 -> 1.34 | R43: 1.34 | S43: 0 | T43: 0 | X43: EL1 | Y43: 0.9976832355 | AC43: EL1 | AD43: 0
C44: EL 2 | E44: =OFFSET(E44,0,(MATCH(Markup_Scenario_X,G$6:ZW$6,0) +MATCH(OFFSET('EL and TSL Setup'!$I$1,MATCH(OFFSET($C44,-(MATCH($C44,EL_List,0)+2),0),'EL and TSL Setup'!$C:$C,0),0),EL_List,0))) -> 0 | G44: =G43 -> 1.34 | H44: 1.34 | I44: 1.34 | J44: =IF(RIGHT(J$8,1)<=RIGHT($C44),H44,0) -> 0 | L44: =L43 -> 1.34 | M44: 1.34 | N44: =IF(RIGHT(N$8,1)<RIGHT($C44),M44, IF(RIGHT(N$8,1)=RIGHT($C44),M44*$Y44,0)) -> 1.329322081 | O44: 0 | Q44: 1.34 | R44: 1.34 | S44: 1.34 | T44: 0 | X44: EL2 | Y44: 0.992031404 | AC44: EL2 | AD44: 0
C45: EL 3 | E45: =OFFSET(E45,0,(MATCH(Markup_Scenario_X,G$6:ZW$6,0) +MATCH(OFFSET('EL and TSL Setup'!$I$1,MATCH(OFFSET($C45,-(MATCH($C45,EL_List,0)+2),0),'EL and TSL Setup'!$C:$C,0),0),EL_List,0))) -> 1.328886089 | G45: =G43 -> 1.34 | H45: 1.34 | I45: 1.34 | J45: =IF(RIGHT(J$8,1)<=RIGHT($C45),H45,0) -> 1.34 | L45: =Q45 -> 1.343627274 | M45: 1.343627274 | N45: 1.343627274 | O45: 1.328886089 | Q45: =R45 -> 1.343627274 | R45: 1.343627274 | S45: =T45 -> 1.343627274 | T45: =E39*('MPC Breakdown'!$E37+$AD45)/'MPC Breakdown'!$E37 -> 1.343627274 | X45: EL3 | Y45: 0.9890288141 | AC45: EL3 | AD45: ='Conversion Costs'!R43/SUM(OFFSET(Shipments!M401,0,0,1,$AD$40)) -> 0.4010302936
E49: Baseline Markup | X49: Preservation of OP Calibration | AC49: Amortized Software Calibration
C50: PG5 | E50: 1.34 | G50: =Markup_Scenario_1 -> Flat Markup | L50: Preservation of OP | Q50: Amortized Software
C51: =VLOOKUP(C50,PC_Table,2,FALSE) -> Cable with DVR & Video Server | X51: OP Ratio | Y51: =OFFSET('STANDARDS CASE DCF'!$E$14,0,MATCH(Standard_Year,DATES,0)+1)/ OFFSET('BASE CASE DCF'!$E$14,0,MATCH(Standard_Year,DATES,0)+1) -> 0.9999988126 | AC51: Amortization Years | AD51: =$AD$7 -> 3
E52: Selected Markup | G52: Baseline | H52: EL 1 | I52: EL 2 | J52: EL 3 | L52: Baseline | M52: EL 1 | N52: EL 2 | O52: EL 3 | Q52: Baseline | R52: EL 1 | S52: EL 2 | T52: EL 3
C53: Baseline | E53: =OFFSET(E53,0,(MATCH(Markup_Scenario_X,G$6:ZW$6,0) +MATCH(OFFSET('EL and TSL Setup'!$I$1,MATCH(OFFSET($C53,-(MATCH($C53,EL_List,0)+2),0),'EL and TSL Setup'!$C:$C,0),0),EL_List,0))) -> 0 | G53: =OFFSET(G53,-3,-2-(MATCH(G50,Markup_Scenario_List,0)-1)*(NAMES!$F$4+2)) -> 1.34 | H53: 0 | I53: 0 | J53: 0 | L53: =OFFSET(L53,-3,-2-(MATCH(L50,Markup_Scenario_List,0)-1)*(NAMES!$F$4+2)) -> 1.34 | M53: 0 | N53: 0 | O53: 0 | Q53: =G53 -> 1.34 | R53: =H53 -> 0 | S53: 0 | T53: 0 | X53: Compliant EL | Y53: Multiplier | AC53: Compliant EL | AD53: $ / Unit
C54: EL 1 | E54: =OFFSET(E54,0,(MATCH(Markup_Scenario_X,G$6:ZW$6,0) +MATCH(OFFSET('EL and TSL Setup'!$I$1,MATCH(OFFSET($C54,-(MATCH($C54,EL_List,0)+2),0),'EL and TSL Setup'!$C:$C,0),0),EL_List,0))) -> 0 | G54: =G53 -> 1.34 | H54: =IF(RIGHT(H$8,1)<=RIGHT($C54),G54,0) -> 1.34 | I54: 0 | J54: =IF(RIGHT(J$8,1)<=RIGHT($C54),H54,0) -> 0 | L54: =L53 -> 1.34 | M54: =IF(RIGHT(M$8,1)<RIGHT($C54),L54, IF(RIGHT(M$8,1)=RIGHT($C54),L54*$Y54,0)) -> 1.337362341 | N54: 0 | O54: 0 | Q54: =G54 -> 1.34 | R54: 1.34 | S54: 0 | T54: 0 | X54: EL1 | Y54: 0.9980315974 | AC54: EL1 | AD54: 0
C55: EL 2 | E55: =OFFSET(E55,0,(MATCH(Markup_Scenario_X,G$6:ZW$6,0) +MATCH(OFFSET('EL and TSL Setup'!$I$1,MATCH(OFFSET($C55,-(MATCH($C55,EL_List,0)+2),0),'EL and TSL Setup'!$C:$C,0),0),EL_List,0))) -> 0 | G55: =G54 -> 1.34 | H55: 1.34 | I55: 1.34 | J55: =IF(RIGHT(J$8,1)<=RIGHT($C55),H55,0) -> 0 | L55: =L54 -> 1.34 | M55: 1.34 | N55: 1.332849343 | O55: 0 | Q55: 1.34 | R55: 1.34 | S55: 1.34 | T55: 0 | X55: EL2 | Y55: 0.9946636892 | AC55: EL2 | AD55: 0
C56: EL 3 | E56: =OFFSET(E56,0,(MATCH(Markup_Scenario_X,G$6:ZW$6,0) +MATCH(OFFSET('EL and TSL Setup'!$I$1,MATCH(OFFSET($C56,-(MATCH($C56,EL_List,0)+2),0),'EL and TSL Setup'!$C:$C,0),0),EL_List,0))) -> 1.332566339 | G56: =G54 -> 1.34 | H56: 1.34 | I56: 1.34 | J56: =IF(RIGHT(J$8,1)<=RIGHT($C56),H56,0) -> 1.34 | L56: =Q56 -> 1.341899442 | M56: 1.341899442 | N56: 1.341899442 | O56: 1.332566339 | Q56: =R56 -> 1.341899442 | R56: 1.341899442 | S56: =T56 -> 1.341899442 | T56: =E50*('MPC Breakdown'!$E46+$AD56)/'MPC Breakdown'!$E46 -> 1.341899442 | X56: EL3 | Y56: 0.9930448561 | AC56: EL3 | AD56: ='Conversion Costs'!R52/SUM(OFFSET(Shipments!M408,0,0,1,$AD$51)) -> 0.3423815946
E60: Baseline Markup | X60: Preservation of OP Calibration | AC60: Amortized Software Calibration
C61: PG6 | E61: 1.34 | G61: =Markup_Scenario_1 -> Flat Markup | L61: Preservation of OP | Q61: Amortized Software
C62: =VLOOKUP(C61,PC_Table,2,FALSE) -> Satellite Base | X62: OP Ratio | Y62: =OFFSET('STANDARDS CASE DCF'!$E$14,0,MATCH(Standard_Year,DATES,0)+1)/ OFFSET('BASE CASE DCF'!$E$14,0,MATCH(Standard_Year,DATES,0)+1) -> 0.9999988126 | AC62: Amortization Years | AD62: =$AD$7 -> 3
E63: Selected Markup | G63: Baseline | H63: EL 1 | I63: EL 2 | J63: EL 3 | L63: Baseline | M63: EL 1 | N63: EL 2 | O63: EL 3 | Q63: Baseline | R63: EL 1 | S63: EL 2 | T63: EL 3
C64: Baseline | E64: =OFFSET(E64,0,(MATCH(Markup_Scenario_X,G$6:ZW$6,0) +MATCH(OFFSET('EL and TSL Setup'!$I$1,MATCH(OFFSET($C64,-(MATCH($C64,EL_List,0)+2),0),'EL and TSL Setup'!$C:$C,0),0),EL_List,0))) -> 0 | G64: =OFFSET(G64,-3,-2-(MATCH(G61,Markup_Scenario_List,0)-1)*(NAMES!$F$4+2)) -> 1.34 | H64: 0 | I64: 0 | J64: 0 | L64: =OFFSET(L64,-3,-2-(MATCH(L61,Markup_Scenario_List,0)-1)*(NAMES!$F$4+2)) -> 1.34 | M64: 0 | N64: 0 | O64: 0 | Q64: =G64 -> 1.34 | R64: =H64 -> 0 | S64: =I64 -> 0 | T64: 0 | X64: Compliant EL | Y64: Multiplier | AC64: Compliant EL | AD64: $ / Unit
C65: EL 1 | E65: =OFFSET(E65,0,(MATCH(Markup_Scenario_X,G$6:ZW$6,0) +MATCH(OFFSET('EL and TSL Setup'!$I$1,MATCH(OFFSET($C65,-(MATCH($C65,EL_List,0)+2),0),'EL and TSL Setup'!$C:$C,0),0),EL_List,0))) -> 0 | G65: =G64 -> 1.34 | H65: =IF(RIGHT(H$8,1)<=RIGHT($C65),G65,0) -> 1.34 | I65: 0 | J65: =IF(RIGHT(J$8,1)<=RIGHT($C65),H65,0) -> 0 | L65: =L64 -> 1.34 | M65: =IF(RIGHT(M$8,1)<RIGHT($C65),L65, IF(RIGHT(M$8,1)=RIGHT($C65),L65*$Y65,0)) -> 1.337040249 | N65: 0 | O65: 0 | Q65: =G65 -> 1.34 | R65: 1.34 | S65: 0 | T65: 0 | X65: EL1 | Y65: 0.9977912309 | AC65: EL1 | AD65: 0
C66: EL 2 | E66: =OFFSET(E66,0,(MATCH(Markup_Scenario_X,G$6:ZW$6,0) +MATCH(OFFSET('EL and TSL Setup'!$I$1,MATCH(OFFSET($C66,-(MATCH($C66,EL_List,0)+2),0),'EL and TSL Setup'!$C:$C,0),0),EL_List,0))) -> 0 | G66: =G65 -> 1.34 | H66: 1.34 | I66: 1.34 | J66: =IF(RIGHT(J$8,1)<=RIGHT($C66),H66,0) -> 0 | L66: =L65 -> 1.34 | M66: 1.34 | N66: 1.333901257 | O66: 0 | Q66: 1.34 | R66: 1.34 | S66: 1.34 | T66: 0 | X66: EL2 | Y66: 0.9954486995 | AC66: EL2 | AD66: 0
C67: EL 3 | E67: =OFFSET(E67,0,(MATCH(Markup_Scenario_X,G$6:ZW$6,0) +MATCH(OFFSET('EL and TSL Setup'!$I$1,MATCH(OFFSET($C67,-(MATCH($C67,EL_List,0)+2),0),'EL and TSL Setup'!$C:$C,0),0),EL_List,0))) -> 1.333552948 | G67: =G65 -> 1.34 | H67: 1.34 | I67: 1.34 | J67: =IF(RIGHT(J$8,1)<=RIGHT($C67),H67,0) -> 1.34 | L67: =Q67 -> 1.351816373 | M67: 1.351816373 | N67: 1.351816373 | O67: 1.333552948 | Q67: =R67 -> 1.351816373 | R67: 1.351816373 | S67: =T67 -> 1.351816373 | T67: =E61*('MPC Breakdown'!$E55+$AD67)/'MPC Breakdown'!$E55 -> 1.351816373 | X67: EL3 | Y67: 0.9864897144 | AC67: EL3 | AD67: ='Conversion Costs'!R61/SUM(OFFSET(Shipments!M415,0,0,1,$AD$62)) -> 0.490996764
E71: Baseline Markup | X71: Preservation of OP Calibration | AC71: Amortized Software Calibration
C72: PG7 | E72: 1.34 | G72: =Markup_Scenario_1 -> Flat Markup | L72: Preservation of OP | Q72: Amortized Software
C73: =VLOOKUP(C72,PC_Table,2,FALSE) -> Satellite Video Client | X73: OP Ratio | Y73: =OFFSET('STANDARDS CASE DCF'!$E$14,0,MATCH(Standard_Year,DATES,0)+1)/ OFFSET('BASE CASE DCF'!$E$14,0,MATCH(Standard_Year,DATES,0)+1) -> 0.9999988126 | AC73: Amortization Years | AD73: =$AD$7 -> 3
E74: Selected Markup | G74: Baseline | H74: EL 1 | I74: EL 2 | J74: EL 3 | L74: Baseline | M74: EL 1 | N74: EL 2 | O74: EL 3 | Q74: Baseline | R74: EL 1 | S74: EL 2 | T74: EL 3
C75: Baseline | E75: =OFFSET(E75,0,(MATCH(Markup_Scenario_X,G$6:ZW$6,0) +MATCH(OFFSET('EL and TSL Setup'!$I$1,MATCH(OFFSET($C75,-(MATCH($C75,EL_List,0)+2),0),'EL and TSL Setup'!$C:$C,0),0),EL_List,0))) -> 0 | G75: =OFFSET(G75,-3,-2-(MATCH(G72,Markup_Scenario_List,0)-1)*(NAMES!$F$4+2)) -> 1.34 | H75: 0 | I75: 0 | J75: 0 | L75: =OFFSET(L75,-3,-2-(MATCH(L72,Markup_Scenario_List,0)-1)*(NAMES!$F$4+2)) -> 1.34 | M75: 0 | N75: 0 | O75: 0 | Q75: =G75 -> 1.34 | R75: =H75 -> 0 | S75: 0 | T75: 0 | X75: Compliant EL | Y75: Multiplier | AC75: Compliant EL | AD75: $ / Unit
C76: EL 1 | E76: =OFFSET(E76,0,(MATCH(Markup_Scenario_X,G$6:ZW$6,0) +MATCH(OFFSET('EL and TSL Setup'!$I$1,MATCH(OFFSET($C76,-(MATCH($C76,EL_List,0)+2),0),'EL and TSL Setup'!$C:$C,0),0),EL_List,0))) -> 0 | G76: =G75 -> 1.34 | H76: =IF(RIGHT(H$8,1)<=RIGHT($C76),G76,0) -> 1.34 | I76: 0 | J76: =IF(RIGHT(J$8,1)<=RIGHT($C76),H76,0) -> 0 | L76: =L75 -> 1.34 | M76: =IF(RIGHT(M$8,1)<RIGHT($C76),L76, IF(RIGHT(M$8,1)=RIGHT($C76),L76*$Y76,0)) -> 1.337335145 | N76: 0 | O76: 0 | Q76: =G76 -> 1.34 | R76: 1.34 | S76: 0 | T76: 0 | X76: EL1 | Y76: 0.9980113023 | AC76: EL1 | AD76: 0
C77: EL 2 | E77: =OFFSET(E77,0,(MATCH(Markup_Scenario_X,G$6:ZW$6,0) +MATCH(OFFSET('EL and TSL Setup'!$I$1,MATCH(OFFSET($C77,-(MATCH($C77,EL_List,0)+2),0),'EL and TSL Setup'!$C:$C,0),0),EL_List,0))) -> 0 | G77: =G76 -> 1.34 | H77: 1.34 | I77: 1.34 | J77: =IF(RIGHT(J$8,1)<=RIGHT($C77),H77,0) -> 0 | L77: =L76 -> 1.34 | M77: 1.34 | N77: 1.333123741 | O77: 0 | Q77: 1.34 | R77: 1.34 | S77: 1.34 | T77: 0 | X77: EL2 | Y77: 0.9948684637 | AC77: EL2 | AD77: 0
C78: EL 3 | E78: =OFFSET(E78,0,(MATCH(Markup_Scenario_X,G$6:ZW$6,0) +MATCH(OFFSET('EL and TSL Setup'!$I$1,MATCH(OFFSET($C78,-(MATCH($C78,EL_List,0)+2),0),'EL and TSL Setup'!$C:$C,0),0),EL_List,0))) -> 1.332742456 | G78: =G76 -> 1.34 | H78: 1.34 | I78: 1.34 | J78: =IF(RIGHT(J$8,1)<=RIGHT($C78),H78,0) -> 1.34 | L78: =Q78 -> 1.342184339 | M78: 1.342184339 | N78: 1.342184339 | O78: 1.332742456 | Q78: =R78 -> 1.342184339 | R78: 1.342184339 | S78: =T78 -> 1.342184339 | T78: =E72*('MPC Breakdown'!$E64+$AD78)/'MPC Breakdown'!$E64 -> 1.342184339 | X78: EL3 | Y78: 0.9929652856 | AC78: EL3 | AD78: ='Conversion Costs'!R70/SUM(OFFSET(Shipments!M422,0,0,1,$AD$73)) -> 0.1023868368
E82: Baseline Markup | X82: Preservation of OP Calibration | AC82: Amortized Software Calibration
C83: PG8 | E83: 1.34 | G83: =Markup_Scenario_1 -> Flat Markup | L83: Preservation of OP | Q83: Amortized Software
C84: =VLOOKUP(C83,PC_Table,2,FALSE) -> Satellite Video Server | X84: OP Ratio | Y84: =OFFSET('STANDARDS CASE DCF'!$E$14,0,MATCH(Standard_Year,DATES,0)+1)/ OFFSET('BASE CASE DCF'!$E$14,0,MATCH(Standard_Year,DATES,0)+1) -> 0.9999988126 | AC84: Amortization Years | AD84: =$AD$7 -> 3
E85: Selected Markup | G85: Baseline | H85: EL 1 | I85: EL 2 | J85: EL 3 | L85: Baseline | M85: EL 1 | N85: EL 2 | O85: EL 3 | Q85: Baseline | R85: EL 1 | S85: EL 2 | T85: EL 3
C86: Baseline | E86: =OFFSET(E86,0,(MATCH(Markup_Scenario_X,G$6:ZW$6,0) +MATCH(OFFSET('EL and TSL Setup'!$I$1,MATCH(OFFSET($C86,-(MATCH($C86,EL_List,0)+2),0),'EL and TSL Setup'!$C:$C,0),0),EL_List,0))) -> 0 | G86: =OFFSET(G86,-3,-2-(MATCH(G83,Markup_Scenario_List,0)-1)*(NAMES!$F$4+2)) -> 1.34 | H86: 0 | I86: 0 | J86: 0 | L86: =OFFSET(L86,-3,-2-(MATCH(L83,Markup_Scenario_List,0)-1)*(NAMES!$F$4+2)) -> 1.34 | M86: 0 | N86: 0 | O86: 0 | Q86: =G86 -> 1.34 | R86: =H86 -> 0 | S86: =I86 -> 0 | T86: =O86 -> 0 | X86: Compliant EL | Y86: Multiplier | AC86: Compliant EL | AD86: $ / Unit
C87: EL 1 | E87: =OFFSET(E87,0,(MATCH(Markup_Scenario_X,G$6:ZW$6,0) +MATCH(OFFSET('EL and TSL Setup'!$I$1,MATCH(OFFSET($C87,-(MATCH($C87,EL_List,0)+2),0),'EL and TSL Setup'!$C:$C,0),0),EL_List,0))) -> 0 | G87: =G86 -> 1.34 | H87: =IF(RIGHT(H$8,1)<=RIGHT($C87),G87,0) -> 1.34 | I87: 0 | J87: =IF(RIGHT(J$8,1)<=RIGHT($C87),H87,0) -> 0 | L87: =L86 -> 1.34 | M87: =IF(RIGHT(M$8,1)<RIGHT($C87),L87, IF(RIGHT(M$8,1)=RIGHT($C87),L87*$Y87,0)) -> 1.338315495 | N87: 0 | O87: 0 | Q87: =G87 -> 1.34 | R87: 1.34 | S87: 0 | T87: =O87 -> 0 | X87: EL1 | Y87: 0.9987429066 | AC87: EL1 | AD87: 0
C88: EL 2 | E88: =OFFSET(E88,0,(MATCH(Markup_Scenario_X,G$6:ZW$6,0) +MATCH(OFFSET('EL and TSL Setup'!$I$1,MATCH(OFFSET($C88,-(MATCH($C88,EL_List,0)+2),0),'EL and TSL Setup'!$C:$C,0),0),EL_List,0))) -> 0 | G88: =G87 -> 1.34 | H88: 1.34 | I88: 1.34 | J88: =IF(RIGHT(J$8,1)<=RIGHT($C88),H88,0) -> 0 | L88: =L87 -> 1.34 | M88: 1.34 | N88: 1.332613008 | O88: 0 | Q88: 1.34 | R88: 1.34 | S88: 1.34 | T88: =O88 -> 0 | X88: EL2 | Y88: 0.9944873191 | AC88: EL2 | AD88: 0
C89: EL 3 | E89: =OFFSET(E89,0,(MATCH(Markup_Scenario_X,G$6:ZW$6,0) +MATCH(OFFSET('EL and TSL Setup'!$I$1,MATCH(OFFSET($C89,-(MATCH($C89,EL_List,0)+2),0),'EL and TSL Setup'!$C:$C,0),0),EL_List,0))) -> 1.331789595 | G89: =G87 -> 1.34 | H89: 1.34 | I89: 1.34 | J89: =IF(RIGHT(J$8,1)<=RIGHT($C89),H89,0) -> 1.34 | L89: =Q89 -> 1.340751784 | M89: 1.340751784 | N89: 1.340751784 | O89: 1.331789595 | Q89: =R89 -> 1.340751784 | R89: 1.340751784 | S89: =T89 -> 1.340751784 | T89: =E83*('MPC Breakdown'!$E73+$AD89)/'MPC Breakdown'!$E73 -> 1.340751784 | X89: EL3 | Y89: 0.9933155497 | AC89: EL3 | AD89: ='Conversion Costs'!R79/SUM(OFFSET(Shipments!M429,0,0,1,$AD$84)) -> 0.05783688007
E93: Baseline Markup | X93: Preservation of OP Calibration | AC93: Amortized Software Calibration
C94: PG9 | E94: 1.34 | G94: =Markup_Scenario_1 -> Flat Markup | L94: Preservation of OP | Q94: Amortized Software
C95: =VLOOKUP(C94,PC_Table,2,FALSE) -> Satellite with DVR | X95: OP Ratio | Y95: =OFFSET('STANDARDS CASE DCF'!$E$14,0,MATCH(Standard_Year,DATES,0)+1)/ OFFSET('BASE CASE DCF'!$E$14,0,MATCH(Standard_Year,DATES,0)+1) -> 0.9999988126 | AC95: Amortization Years | AD95: =$AD$7 -> 3
E96: Selected Markup | G96: Baseline | H96: EL 1 | I96: EL 2 | J96: EL 3 | L96: Baseline | M96: EL 1 | N96: EL 2 | O96: EL 3 | Q96: Baseline | R96: EL 1 | S96: EL 2 | T96: EL 3
C97: Baseline | E97: =OFFSET(E97,0,(MATCH(Markup_Scenario_X,G$6:ZW$6,0) +MATCH(OFFSET('EL and TSL Setup'!$I$1,MATCH(OFFSET($C97,-(MATCH($C97,EL_List,0)+2),0),'EL and TSL Setup'!$C:$C,0),0),EL_List,0))) -> 0 | G97: =OFFSET(G97,-3,-2-(MATCH(G94,Markup_Scenario_List,0)-1)*(NAMES!$F$4+2)) -> 1.34 | H97: 0 | I97: 0 | J97: 0 | L97: =OFFSET(L97,-3,-2-(MATCH(L94,Markup_Scenario_List,0)-1)*(NAMES!$F$4+2)) -> 1.34 | M97: 0 | N97: 0 | O97: 0 | Q97: =G97 -> 1.34 | R97: =H97 -> 0 | S97: =I97 -> 0 | T97: =O97 -> 0 | X97: Compliant EL | Y97: Multiplier | AC97: Compliant EL | AD97: $ / Unit
C98: EL 1 | E98: =OFFSET(E98,0,(MATCH(Markup_Scenario_X,G$6:ZW$6,0) +MATCH(OFFSET('EL and TSL Setup'!$I$1,MATCH(OFFSET($C98,-(MATCH($C98,EL_List,0)+2),0),'EL and TSL Setup'!$C:$C,0),0),EL_List,0))) -> 0 | G98: =G97 -> 1.34 | H98: =IF(RIGHT(H$8,1)<=RIGHT($C98),G98,0) -> 1.34 | I98: 0 | J98: =IF(RIGHT(J$8,1)<=RIGHT($C98),H98,0) -> 0 | L98: =L97 -> 1.34 | M98: =IF(RIGHT(M$8,1)<RIGHT($C98),L98, IF(RIGHT(M$8,1)=RIGHT($C98),L98*$Y98,0)) -> 1.336172319 | N98: 0 | O98: 0 | Q98: =G98 -> 1.34 | R98: =H98 -> 1.34 | S98: =I98 -> 0 | T98: =O98 -> 0 | X98: EL1 | Y98: 0.9971435215 | AC98: EL1 | AD98: 0
C99: EL 2 | E99: =OFFSET(E99,0,(MATCH(Markup_Scenario_X,G$6:ZW$6,0) +MATCH(OFFSET('EL and TSL Setup'!$I$1,MATCH(OFFSET($C99,-(MATCH($C99,EL_List,0)+2),0),'EL and TSL Setup'!$C:$C,0),0),EL_List,0))) -> 0 | G99: =G98 -> 1.34 | H99: 1.34 | I99: 1.34 | J99: =IF(RIGHT(J$8,1)<=RIGHT($C99),H99,0) -> 0 | L99: =L98 -> 1.34 | M99: 1.34 | N99: 1.32862577 | O99: 0 | Q99: 1.34 | R99: 1.34 | S99: 1.34 | T99: =O99 -> 0 | X99: EL2 | Y99: 0.9915117683 | AC99: EL2 | AD99: 0
C100: EL 3 | E100: =OFFSET(E100,0,(MATCH(Markup_Scenario_X,G$6:ZW$6,0) +MATCH(OFFSET('EL and TSL Setup'!$I$1,MATCH(OFFSET($C100,-(MATCH($C100,EL_List,0)+2),0),'EL and TSL Setup'!$C:$C,0),0),EL_List,0))) -> 1.328056525 | G100: =G98 -> 1.34 | H100: 1.34 | I100: 1.34 | J100: =IF(RIGHT(J$8,1)<=RIGHT($C100),H100,0) -> 1.34 | L100: =Q100 -> 1.340937467 | M100: 1.340937467 | N100: 1.340937467 | O100: 1.328056525 | Q100: =R100 -> 1.340937467 | R100: 1.340937467 | S100: =T100 -> 1.340937467 | T100: =E94*('MPC Breakdown'!$E82+$AD100)/'MPC Breakdown'!$E82 -> 1.340937467 | X100: EL3 | Y100: 0.9903940774 | AC100: EL3 | AD100: ='Conversion Costs'!R88/SUM(OFFSET(Shipments!M436,0,0,1,$AD$95)) -> 0.08700253128
E104: Baseline Markup | X104: Preservation of OP Calibration | AC104: Amortized Software Calibration
C105: PG10 | E105: 1.34 | G105: =Markup_Scenario_1 -> Flat Markup | L105: Preservation of OP | Q105: Amortized Software
C106: =VLOOKUP(C105,PC_Table,2,FALSE) -> Satellite with DVR & Video Server | X106: OP Ratio | Y106: =OFFSET('STANDARDS CASE DCF'!$E$14,0,MATCH(Standard_Year,DATES,0)+1)/ OFFSET('BASE CASE DCF'!$E$14,0,MATCH(Standard_Year,DATES,0)+1) -> 0.9999988126 | AC106: Amortization Years | AD106: =$AD$7 -> 3
E107: Selected Markup | G107: Baseline | H107: EL 1 | I107: EL 2 | J107: EL 3 | L107: Baseline | M107: EL 1 | N107: EL 2 | O107: EL 3 | Q107: Baseline | R107: EL 1 | S107: EL 2 | T107: EL 3
C108: Baseline | E108: =OFFSET(E108,0,(MATCH(Markup_Scenario_X,G$6:ZW$6,0) +MATCH(OFFSET('EL and TSL Setup'!$I$1,MATCH(OFFSET($C108,-(MATCH($C108,EL_List,0)+2),0),'EL and TSL Setup'!$C:$C,0),0),EL_List,0))) -> 0 | G108: =OFFSET(G108,-3,-2-(MATCH(G105,Markup_Scenario_List,0)-1)*(NAMES!$F$4+2)) -> 1.34 | H108: 0 | I108: 0 | J108: 0 | L108: =OFFSET(L108,-3,-2-(MATCH(L105,Markup_Scenario_List,0)-1)*(NAMES!$F$4+2)) -> 1.34 | M108: 0 | N108: 0 | O108: 0 | Q108: =G108 -> 1.34 | R108: =H108 -> 0 | S108: =I108 -> 0 | T108: =O108 -> 0 | X108: Compliant EL | Y108: Multiplier | AC108: Compliant EL | AD108: $ / Unit
C109: EL 1 | E109: =OFFSET(E109,0,(MATCH(Markup_Scenario_X,G$6:ZW$6,0) +MATCH(OFFSET('EL and TSL Setup'!$I$1,MATCH(OFFSET($C109,-(MATCH($C109,EL_List,0)+2),0),'EL and TSL Setup'!$C:$C,0),0),EL_List,0))) -> 0 | G109: =G108 -> 1.34 | H109: =IF(RIGHT(H$8,1)<=RIGHT($C109),G109,0) -> 1.34 | I109: 0 | J109: =IF(RIGHT(J$8,1)<=RIGHT($C109),H109,0) -> 0 | L109: =L108 -> 1.34 | M109: =IF(RIGHT(M$8,1)<RIGHT($C109),L109, IF(RIGHT(M$8,1)=RIGHT($C109),L109*$Y109,0)) -> 1.336153526 | N109: 0 | O109: 0 | Q109: =G109 -> 1.34 | R109: =H109 -> 1.34 | S109: =I109 -> 0 | T109: =O109 -> 0 | X109: EL1 | Y109: 0.9971294971 | AC109: EL1 | AD109: 0
C110: EL 2 | E110: =OFFSET(E110,0,(MATCH(Markup_Scenario_X,G$6:ZW$6,0) +MATCH(OFFSET('EL and TSL Setup'!$I$1,MATCH(OFFSET($C110,-(MATCH($C110,EL_List,0)+2),0),'EL and TSL Setup'!$C:$C,0),0),EL_List,0))) -> 0 | G110: =G109 -> 1.34 | H110: 1.34 | I110: 1.34 | J110: =IF(RIGHT(J$8,1)<=RIGHT($C110),H110,0) -> 0 | L110: =L109 -> 1.34 | M110: 1.34 | N110: 1.330764464 | O110: 0 | Q110: 1.34 | R110: 1.34 | S110: 1.34 | T110: =O110 -> 0 | X110: EL2 | Y110: 0.993107809 | AC110: EL2 | AD110: 0
C111: EL 3 | E111: =OFFSET(E111,0,(MATCH(Markup_Scenario_X,G$6:ZW$6,0) +MATCH(OFFSET('EL and TSL Setup'!$I$1,MATCH(OFFSET($C111,-(MATCH($C111,EL_List,0)+2),0),'EL and TSL Setup'!$C:$C,0),0),EL_List,0))) -> 1.330335853 | G111: =G109 -> 1.34 | H111: 1.34 | I111: 1.34 | J111: =IF(RIGHT(J$8,1)<=RIGHT($C111),H111,0) -> 1.34 | L111: =Q111 -> 1.340565483 | M111: 1.340565483 | N111: 1.340565483 | O111: 1.330335853 | Q111: =R111 -> 1.340565483 | R111: 1.340565483 | S111: =T111 -> 1.340565483 | T111: =E105*('MPC Breakdown'!$E91+$AD111)/'MPC Breakdown'!$E91 -> 1.340565483 | X111: EL3 | Y111: 0.9923691679 | AC111: EL3 | AD111: ='Conversion Costs'!R97/SUM(OFFSET(Shipments!M443,0,0,1,$AD$106)) -> 0.07135217266
E115: Baseline Markup | X115: Preservation of OP Calibration | AC115: Amortized Software Calibration
C116: PG11 | E116: 1.34 | G116: =Markup_Scenario_1 -> Flat Markup | L116: Preservation of OP | Q116: Amortized Software
C117: =VLOOKUP(C116,PC_Table,2,FALSE) -> IP Base | X117: OP Ratio | Y117: =OFFSET('STANDARDS CASE DCF'!$E$14,0,MATCH(Standard_Year,DATES,0)+1)/ OFFSET('BASE CASE DCF'!$E$14,0,MATCH(Standard_Year,DATES,0)+1) -> 0.9999988126 | AC117: Amortization Years | AD117: =$AD$7 -> 3
E118: Selected Markup | G118: Baseline | H118: EL 1 | I118: EL 2 | J118: EL 3 | L118: Baseline | M118: EL 1 | N118: EL 2 | O118: EL 3 | Q118: Baseline | R118: EL 1 | S118: EL 2 | T118: EL 3
C119: Baseline | E119: =OFFSET(E119,0,(MATCH(Markup_Scenario_X,G$6:ZW$6,0) +MATCH(OFFSET('EL and TSL Setup'!$I$1,MATCH(OFFSET($C119,-(MATCH($C119,EL_List,0)+2),0),'EL and TSL Setup'!$C:$C,0),0),EL_List,0))) -> 0 | G119: =OFFSET(G119,-3,-2-(MATCH(G116,Markup_Scenario_List,0)-1)*(NAMES!$F$4+2)) -> 1.34 | H119: 0 | I119: 0 | J119: 0 | L119: =OFFSET(L119,-3,-2-(MATCH(L116,Markup_Scenario_List,0)-1)*(NAMES!$F$4+2)) -> 1.34 | M119: 0 | N119: 0 | O119: 0 | Q119: =G119 -> 1.34 | R119: =H119 -> 0 | S119: =I119 -> 0 | T119: =O119 -> 0 | X119: Compliant EL | Y119: Multiplier | AC119: Compliant EL | AD119: $ / Unit
C120: EL 1 | E120: =OFFSET(E120,0,(MATCH(Markup_Scenario_X,G$6:ZW$6,0) +MATCH(OFFSET('EL and TSL Setup'!$I$1,MATCH(OFFSET($C120,-(MATCH($C120,EL_List,0)+2),0),'EL and TSL Setup'!$C:$C,0),0),EL_List,0))) -> 0 | G120: =G119 -> 1.34 | H120: =IF(RIGHT(H$8,1)<=RIGHT($C120),G120,0) -> 1.34 | I120: 0 | J120: =IF(RIGHT(J$8,1)<=RIGHT($C120),H120,0) -> 0 | L120: =L119 -> 1.34 | M120: =IF(RIGHT(M$8,1)<RIGHT($C120),L120, IF(RIGHT(M$8,1)=RIGHT($C120),L120*$Y120,0)) -> 1.339327865 | N120: =IF(RIGHT(N$8,1)<RIGHT($C120),M120, IF(RIGHT(N$8,1)=RIGHT($C120),M120*$Y120,0)) -> 0 | O120: 0 | Q120: =G120 -> 1.34 | R120: =H120 -> 1.34 | S120: =I120 -> 0 | T120: =O120 -> 0 | X120: EL1 | Y120: 0.9994984064 | AC120: EL1 | AD120: 0
C121: EL 2 | E121: =OFFSET(E121,0,(MATCH(Markup_Scenario_X,G$6:ZW$6,0) +MATCH(OFFSET('EL and TSL Setup'!$I$1,MATCH(OFFSET($C121,-(MATCH($C121,EL_List,0)+2),0),'EL and TSL Setup'!$C:$C,0),0),EL_List,0))) -> 0 | G121: =G120 -> 1.34 | H121: 1.34 | I121: 1.34 | J121: =IF(RIGHT(J$8,1)<=RIGHT($C121),H121,0) -> 0 | L121: =L120 -> 1.34 | M121: 1.34 | N121: 1.334672837 | O121: 0 | Q121: 1.34 | R121: 1.34 | S121: 1.34 | T121: =O121 -> 0 | X121: EL2 | Y121: 0.9960245051 | AC121: EL2 | AD121: 0
C122: EL 3 | E122: =OFFSET(E122,0,(MATCH(Markup_Scenario_X,G$6:ZW$6,0) +MATCH(OFFSET('EL and TSL Setup'!$I$1,MATCH(OFFSET($C122,-(MATCH($C122,EL_List,0)+2),0),'EL and TSL Setup'!$C:$C,0),0),EL_List,0))) -> 1.334510769 | G122: =G120 -> 1.34 | H122: 1.34 | I122: 1.34 | J122: =IF(RIGHT(J$8,1)<=RIGHT($C122),H122,0) -> 1.34 | L122: =Q122 -> 1.373415067 | M122: 1.373415067 | N122: 1.373415067 | O122: 1.334510769 | Q122: =R122 -> 1.373415067 | R122: 1.373415067 | S122: =T122 -> 1.373415067 | T122: =E116*('MPC Breakdown'!$E100+$AD122)/'MPC Breakdown'!$E100 -> 1.373415067 | X122: EL3 | Y122: 0.9716733135 | AC122: EL3 | AD122: ='Conversion Costs'!R106/SUM(OFFSET(Shipments!M450,0,0,1,$AD$117)) -> 1.278749735
E126: Baseline Markup | X126: Preservation of OP Calibration | AC126: Amortized Software Calibration
C127: PG12 | E127: 1.34 | G127: =Markup_Scenario_1 -> Flat Markup | L127: Preservation of OP | Q127: Amortized Software
C128: =VLOOKUP(C127,PC_Table,2,FALSE) -> IP Video Client | X128: OP Ratio | Y128: =OFFSET('STANDARDS CASE DCF'!$E$14,0,MATCH(Standard_Year,DATES,0)+1)/ OFFSET('BASE CASE DCF'!$E$14,0,MATCH(Standard_Year,DATES,0)+1) -> 0.9999988126 | AC128: Amortization Years | AD128: =$AD$7 -> 3
E129: Selected Markup | G129: Baseline | H129: EL 1 | I129: EL 2 | J129: EL 3 | L129: Baseline | M129: EL 1 | N129: EL 2 | O129: EL 3 | Q129: Baseline | R129: EL 1 | S129: EL 2 | T129: EL 3
C130: Baseline | E130: =OFFSET(E130,0,(MATCH(Markup_Scenario_X,G$6:ZW$6,0) +MATCH(OFFSET('EL and TSL Setup'!$I$1,MATCH(OFFSET($C130,-(MATCH($C130,EL_List,0)+2),0),'EL and TSL Setup'!$C:$C,0),0),EL_List,0))) -> 0 | G130: =OFFSET(G130,-3,-2-(MATCH(G127,Markup_Scenario_List,0)-1)*(NAMES!$F$4+2)) -> 1.34 | H130: 0 | I130: 0 | J130: 0 | L130: =OFFSET(L130,-3,-2-(MATCH(L127,Markup_Scenario_List,0)-1)*(NAMES!$F$4+2)) -> 1.34 | M130: 0 | N130: 0 | O130: 0 | Q130: =G130 -> 1.34 | R130: =H130 -> 0 | S130: =I130 -> 0 | T130: =O130 -> 0 | X130: Compliant EL | Y130: Multiplier | AC130: Compliant EL | AD130: $ / Unit
C131: EL 1 | E131: =OFFSET(E131,0,(MATCH(Markup_Scenario_X,G$6:ZW$6,0) +MATCH(OFFSET('EL and TSL Setup'!$I$1,MATCH(OFFSET($C131,-(MATCH($C131,EL_List,0)+2),0),'EL and TSL Setup'!$C:$C,0),0),EL_List,0))) -> 0 | G131: =G130 -> 1.34 | H131: =IF(RIGHT(H$8,1)<=RIGHT($C131),G131,0) -> 1.34 | I131: 0 | J131: =IF(RIGHT(J$8,1)<=RIGHT($C131),H131,0) -> 0 | L131: =L130 -> 1.34 | M131: =IF(RIGHT(M$8,1)<RIGHT($C131),L131, IF(RIGHT(M$8,1)=RIGHT($C131),L131*$Y131,0)) -> 1.339394998 | N131: 0 | O131: 0 | Q131: =G131 -> 1.34 | R131: =H131 -> 1.34 | S131: =I131 -> 0 | T131: =O131 -> 0 | X131: EL1 | Y131: 0.9995485059 | AC131: EL1 | AD131: 0
C132: EL 2 | E132: =OFFSET(E132,0,(MATCH(Markup_Scenario_X,G$6:ZW$6,0) +MATCH(OFFSET('EL and TSL Setup'!$I$1,MATCH(OFFSET($C132,-(MATCH($C132,EL_List,0)+2),0),'EL and TSL Setup'!$C:$C,0),0),EL_List,0))) -> 0 | G132: =G131 -> 1.34 | H132: 1.34 | I132: 1.34 | J132: =IF(RIGHT(J$8,1)<=RIGHT($C132),H132,0) -> 0 | L132: =L131 -> 1.34 | M132: 1.34 | N132: 1.335171724 | O132: 0 | Q132: 1.34 | R132: 1.34 | S132: 1.34 | T132: =O132 -> 0 | X132: EL2 | Y132: 0.9963968088 | AC132: EL2 | AD132: 0
C133: EL 3 | E133: =OFFSET(E133,0,(MATCH(Markup_Scenario_X,G$6:ZW$6,0) +MATCH(OFFSET('EL and TSL Setup'!$I$1,MATCH(OFFSET($C133,-(MATCH($C133,EL_List,0)+2),0),'EL and TSL Setup'!$C:$C,0),0),EL_List,0))) -> 1.33493828 | G133: =G131 -> 1.34 | H133: 1.34 | I133: 1.34 | J133: =IF(RIGHT(J$8,1)<=RIGHT($C133),H133,0) -> 1.34 | L133: =Q133 -> 1.363864391 | M133: 1.363864391 | N133: 1.363864391 | O133: 1.33493828 | Q133: =R133 -> 1.363864391 | R133: 1.363864391 | S133: =T133 -> 1.363864391 | T133: =E127*('MPC Breakdown'!$E109+$AD133)/'MPC Breakdown'!$E109 -> 1.363864391 | X133: EL3 | Y133: 0.9787910652 | AC133: EL3 | AD133: ='Conversion Costs'!R115/SUM(OFFSET(Shipments!M457,0,0,1,$AD$128)) -> 1.00675674
E137: Baseline Markup | X137: Preservation of OP Calibration | AC137: Amortized Software Calibration
C138: PG13 | E138: 1.34 | G138: =Markup_Scenario_1 -> Flat Markup | L138: Preservation of OP | Q138: Amortized Software
C139: =VLOOKUP(C138,PC_Table,2,FALSE) -> IP Video Server | X139: OP Ratio | Y139: =OFFSET('STANDARDS CASE DCF'!$E$14,0,MATCH(Standard_Year,DATES,0)+1)/ OFFSET('BASE CASE DCF'!$E$14,0,MATCH(Standard_Year,DATES,0)+1) -> 0.9999988126 | AC139: Amortization Years | AD139: =$AD$7 -> 3
E140: Selected Markup | G140: Baseline | H140: EL 1 | I140: EL 2 | J140: EL 3 | L140: Baseline | M140: EL 1 | N140: EL 2 | O140: EL 3 | Q140: Baseline | R140: EL 1 | S140: EL 2 | T140: EL 3
C141: Baseline | E141: =OFFSET(E141,0,(MATCH(Markup_Scenario_X,G$6:ZW$6,0) +MATCH(OFFSET('EL and TSL Setup'!$I$1,MATCH(OFFSET($C141,-(MATCH($C141,EL_List,0)+2),0),'EL and TSL Setup'!$C:$C,0),0),EL_List,0))) -> 0 | G141: =OFFSET(G141,-3,-2-(MATCH(G138,Markup_Scenario_List,0)-1)*(NAMES!$F$4+2)) -> 1.34 | H141: 0 | I141: 0 | J141: 0 | L141: =OFFSET(L141,-3,-2-(MATCH(L138,Markup_Scenario_List,0)-1)*(NAMES!$F$4+2)) -> 1.34 | M141: 0 | N141: 0 | O141: 0 | Q141: =G141 -> 1.34 | R141: =H141 -> 0 | S141: =I141 -> 0 | T141: =O141 -> 0 | X141: Compliant EL | Y141: Multiplier | AC141: Compliant EL | AD141: $ / Unit
C142: EL 1 | E142: =OFFSET(E142,0,(MATCH(Markup_Scenario_X,G$6:ZW$6,0) +MATCH(OFFSET('EL and TSL Setup'!$I$1,MATCH(OFFSET($C142,-(MATCH($C142,EL_List,0)+2),0),'EL and TSL Setup'!$C:$C,0),0),EL_List,0))) -> 0 | G142: =G141 -> 1.34 | H142: =IF(RIGHT(H$8,1)<=RIGHT($C142),G142,0) -> 1.34 | I142: 0 | J142: =IF(RIGHT(J$8,1)<=RIGHT($C142),H142,0) -> 0 | L142: =L141 -> 1.34 | M142: =IF(RIGHT(M$8,1)<RIGHT($C142),L142, IF(RIGHT(M$8,1)=RIGHT($C142),L142*$Y142,0)) -> 1.339394998 | N142: 0 | O142: 0 | Q142: =G142 -> 1.34 | R142: =H142 -> 1.34 | S142: =I142 -> 0 | T142: =O142 -> 0 | X142: EL1 | Y142: 0.9995485059 | AC142: EL1 | AD142: 0
C143: EL 2 | E143: =OFFSET(E143,0,(MATCH(Markup_Scenario_X,G$6:ZW$6,0) +MATCH(OFFSET('EL and TSL Setup'!$I$1,MATCH(OFFSET($C143,-(MATCH($C143,EL_List,0)+2),0),'EL and TSL Setup'!$C:$C,0),0),EL_List,0))) -> 0 | G143: =G142 -> 1.34 | H143: 1.34 | I143: 1.34 | J143: =IF(RIGHT(J$8,1)<=RIGHT($C143),H143,0) -> 0 | L143: =L142 -> 1.34 | M143: 1.34 | N143: 1.335171724 | O143: 0 | Q143: 1.34 | R143: 1.34 | S143: 1.34 | T143: =O143 -> 0 | X143: EL2 | Y143: 0.9963968088 | AC143: EL2 | AD143: 0
C144: EL 3 | E144: =OFFSET(E144,0,(MATCH(Markup_Scenario_X,G$6:ZW$6,0) +MATCH(OFFSET('EL and TSL Setup'!$I$1,MATCH(OFFSET($C144,-(MATCH($C144,EL_List,0)+2),0),'EL and TSL Setup'!$C:$C,0),0),EL_List,0))) -> 1.334940541 | G144: =G142 -> 1.34 | H144: 1.34 | I144: 1.34 | J144: =IF(RIGHT(J$8,1)<=RIGHT($C144),H144,0) -> 1.34 | L144: =Q144 -> 1.364042841 | M144: 1.364042841 | N144: 1.364042841 | O144: 1.334940541 | Q144: =R144 -> 1.364042841 | R144: 1.364042841 | S144: =T144 -> 1.364042841 | T144: =E138*('MPC Breakdown'!$E118+$AD144)/'MPC Breakdown'!$E118 -> 1.364042841 | X144: EL3 | Y144: 0.978664673 | AC144: EL3 | AD144: ='Conversion Costs'!R124/SUM(OFFSET(Shipments!M464,0,0,1,$AD$139)) -> 1.01428492
E148: Baseline Markup | X148: Preservation of OP Calibration | AC148: Amortized Software Calibration
C149: PG14 | E149: 1.34 | G149: =Markup_Scenario_1 -> Flat Markup | L149: Preservation of OP | Q149: Amortized Software
C150: =VLOOKUP(C149,PC_Table,2,FALSE) -> IP with DVR | X150: OP Ratio | Y150: =OFFSET('STANDARDS CASE DCF'!$E$14,0,MATCH(Standard_Year,DATES,0)+1)/ OFFSET('BASE CASE DCF'!$E$14,0,MATCH(Standard_Year,DATES,0)+1) -> 0.9999988126 | AC150: Amortization Years | AD150: =$AD$7 -> 3
E151: Selected Markup | G151: Baseline | H151: EL 1 | I151: EL 2 | J151: EL 3 | L151: Baseline | M151: EL 1 | N151: EL 2 | O151: EL 3 | Q151: Baseline | R151: EL 1 | S151: EL 2 | T151: EL 3
C152: Baseline | E152: =OFFSET(E152,0,(MATCH(Markup_Scenario_X,G$6:ZW$6,0) +MATCH(OFFSET('EL and TSL Setup'!$I$1,MATCH(OFFSET($C152,-(MATCH($C152,EL_List,0)+2),0),'EL and TSL Setup'!$C:$C,0),0),EL_List,0))) -> 0 | G152: =OFFSET(G152,-3,-2-(MATCH(G149,Markup_Scenario_List,0)-1)*(NAMES!$F$4+2)) -> 1.34 | H152: 0 | I152: 0 | J152: 0 | L152: =OFFSET(L152,-3,-2-(MATCH(L149,Markup_Scenario_List,0)-1)*(NAMES!$F$4+2)) -> 1.34 | M152: 0 | N152: 0 | O152: 0 | Q152: =G152 -> 1.34 | R152: =H152 -> 0 | S152: =I152 -> 0 | T152: =O152 -> 0 | X152: Compliant EL | Y152: Multiplier | AC152: Compliant EL | AD152: $ / Unit
C153: EL 1 | E153: =OFFSET(E153,0,(MATCH(Markup_Scenario_X,G$6:ZW$6,0) +MATCH(OFFSET('EL and TSL Setup'!$I$1,MATCH(OFFSET($C153,-(MATCH($C153,EL_List,0)+2),0),'EL and TSL Setup'!$C:$C,0),0),EL_List,0))) -> 0 | G153: =G152 -> 1.34 | H153: =IF(RIGHT(H$8,1)<=RIGHT($C153),G153,0) -> 1.34 | I153: 0 | J153: =IF(RIGHT(J$8,1)<=RIGHT($C153),H153,0) -> 0 | L153: =L152 -> 1.34 | M153: =IF(RIGHT(M$8,1)<RIGHT($C153),L153, IF(RIGHT(M$8,1)=RIGHT($C153),L153*$Y153,0)) -> 1.337162715 | N153: 0 | O153: 0 | Q153: =G153 -> 1.34 | R153: =H153 -> 1.34 | S153: =I153 -> 0 | T153: =O153 -> 0 | X153: EL1 | Y153: 0.9978826233 | AC153: EL1 | AD153: 0
C154: EL 2 | E154: =OFFSET(E154,0,(MATCH(Markup_Scenario_X,G$6:ZW$6,0) +MATCH(OFFSET('EL and TSL Setup'!$I$1,MATCH(OFFSET($C154,-(MATCH($C154,EL_List,0)+2),0),'EL and TSL Setup'!$C:$C,0),0),EL_List,0))) -> 0 | G154: =G153 -> 1.34 | H154: 1.34 | I154: 1.34 | J154: =IF(RIGHT(J$8,1)<=RIGHT($C154),H154,0) -> 0 | L154: =L153 -> 1.34 | M154: 1.34 | N154: 1.327323388 | O154: 0 | Q154: 1.34 | R154: 1.34 | S154: 1.34 | T154: =O154 -> 0 | X154: EL2 | Y154: 0.9905398416 | AC154: EL2 | AD154: 0
C155: EL 3 | E155: =OFFSET(E155,0,(MATCH(Markup_Scenario_X,G$6:ZW$6,0) +MATCH(OFFSET('EL and TSL Setup'!$I$1,MATCH(OFFSET($C155,-(MATCH($C155,EL_List,0)+2),0),'EL and TSL Setup'!$C:$C,0),0),EL_List,0))) -> 1.326815866 | G155: =G153 -> 1.34 | H155: 1.34 | I155: 1.34 | J155: =IF(RIGHT(J$8,1)<=RIGHT($C155),H155,0) -> 1.34 | L155: =Q155 -> 1.35557508 | M155: 1.35557508 | N155: 1.35557508 | O155: 1.326815866 | Q155: =R155 -> 1.35557508 | R155: 1.35557508 | S155: =T155 -> 1.35557508 | T155: =E149*('MPC Breakdown'!$E127+$AD155)/'MPC Breakdown'!$E127 -> 1.35557508 | X155: EL3 | Y155: 0.9787844922 | AC155: EL3 | AD155: ='Conversion Costs'!R133/SUM(OFFSET(Shipments!M471,0,0,1,$AD$150)) -> 1.199164897
E159: Baseline Markup | X159: Preservation of OP Calibration | AC159: Amortized Software Calibration
C160: PG15 | E160: 1.34 | G160: =Markup_Scenario_1 -> Flat Markup | L160: Preservation of OP | Q160: Amortized Software
C161: =VLOOKUP(C160,PC_Table,2,FALSE) -> IP with DVR & Video Server | X161: OP Ratio | Y161: =OFFSET('STANDARDS CASE DCF'!$E$14,0,MATCH(Standard_Year,DATES,0)+1)/ OFFSET('BASE CASE DCF'!$E$14,0,MATCH(Standard_Year,DATES,0)+1) -> 0.9999988126 | AC161: Amortization Years | AD161: =$AD$7 -> 3
E162: Selected Markup | G162: Baseline | H162: EL 1 | I162: EL 2 | J162: EL 3 | L162: Baseline | M162: EL 1 | N162: EL 2 | O162: EL 3 | Q162: Baseline | R162: EL 1 | S162: EL 2 | T162: EL 3
C163: Baseline | E163: =OFFSET(E163,0,(MATCH(Markup_Scenario_X,G$6:ZW$6,0) +MATCH(OFFSET('EL and TSL Setup'!$I$1,MATCH(OFFSET($C163,-(MATCH($C163,EL_List,0)+2),0),'EL and TSL Setup'!$C:$C,0),0),EL_List,0))) -> 0 | G163: =OFFSET(G163,-3,-2-(MATCH(G160,Markup_Scenario_List,0)-1)*(NAMES!$F$4+2)) -> 1.34 | H163: 0 | I163: 0 | J163: 0 | L163: =OFFSET(L163,-3,-2-(MATCH(L160,Markup_Scenario_List,0)-1)*(NAMES!$F$4+2)) -> 1.34 | M163: 0 | N163: 0 | O163: 0 | Q163: =G163 -> 1.34 | R163: =H163 -> 0 | S163: =I163 -> 0 | T163: =O163 -> 0 | X163: Compliant EL | Y163: Multiplier | AC163: Compliant EL | AD163: $ / Unit
C164: EL 1 | E164: =OFFSET(E164,0,(MATCH(Markup_Scenario_X,G$6:ZW$6,0) +MATCH(OFFSET('EL and TSL Setup'!$I$1,MATCH(OFFSET($C164,-(MATCH($C164,EL_List,0)+2),0),'EL and TSL Setup'!$C:$C,0),0),EL_List,0))) -> 0 | G164: =G163 -> 1.34 | H164: =IF(RIGHT(H$8,1)<=RIGHT($C164),G164,0) -> 1.34 | I164: 0 | J164: =IF(RIGHT(J$8,1)<=RIGHT($C164),H164,0) -> 0 | L164: =L163 -> 1.34 | M164: =IF(RIGHT(M$8,1)<RIGHT($C164),L164, IF(RIGHT(M$8,1)=RIGHT($C164),L164*$Y164,0)) -> 1.337600514 | N164: 0 | O164: 0 | Q164: =G164 -> 1.34 | R164: =H164 -> 1.34 | S164: =I164 -> 0 | T164: =O164 -> 0 | X164: EL1 | Y164: 0.9982093385 | AC164: EL1 | AD164: 0
C165: EL 2 | E165: =OFFSET(E165,0,(MATCH(Markup_Scenario_X,G$6:ZW$6,0) +MATCH(OFFSET('EL and TSL Setup'!$I$1,MATCH(OFFSET($C165,-(MATCH($C165,EL_List,0)+2),0),'EL and TSL Setup'!$C:$C,0),0),EL_List,0))) -> 0 | G165: =G164 -> 1.34 | H165: 1.34 | I165: 1.34 | J165: =IF(RIGHT(J$8,1)<=RIGHT($C165),H165,0) -> 0 | L165: =L164 -> 1.34 | M165: 1.34 | N165: 1.329021796 | O165: 0 | Q165: 1.34 | R165: 1.34 | S165: 1.34 | T165: =O165 -> 0 | X165: EL2 | Y165: 0.9918073101 | AC165: EL2 | AD165: 0
C166: EL 3 | E166: =OFFSET(E166,0,(MATCH(Markup_Scenario_X,G$6:ZW$6,0) +MATCH(OFFSET('EL and TSL Setup'!$I$1,MATCH(OFFSET($C166,-(MATCH($C166,EL_List,0)+2),0),'EL and TSL Setup'!$C:$C,0),0),EL_List,0))) -> 1.328657787 | G166: =G164 -> 1.34 | H166: 1.34 | I166: 1.34 | J166: =IF(RIGHT(J$8,1)<=RIGHT($C166),H166,0) -> 1.34 | L166: =Q166 -> 1.361147886 | M166: 1.361147886 | N166: 1.361147886 | O166: 1.328657787 | Q166: =R166 -> 1.361147886 | R166: 1.361147886 | S166: =T166 -> 1.361147886 | T166: =E160*('MPC Breakdown'!$E136+$AD166)/'MPC Breakdown'!$E136 -> 1.361147886 | X166: EL3 | Y166: 0.9761303688 | AC166: EL3 | AD166: ='Conversion Costs'!R142/SUM(OFFSET(Shipments!M478,0,0,1,$AD$161)) -> 1.876953752
E170: Baseline Markup | X170: Preservation of OP Calibration | AC170: Amortized Software Calibration
C171: PG16 | E171: 1.34 | G171: =Markup_Scenario_1 -> Flat Markup | L171: Preservation of OP | Q171: Amortized Software
C172: =VLOOKUP(C171,PC_Table,2,FALSE) -> OTT | X172: OP Ratio | Y172: =OFFSET('STANDARDS CASE DCF'!$E$14,0,MATCH(Standard_Year,DATES,0)+1)/ OFFSET('BASE CASE DCF'!$E$14,0,MATCH(Standard_Year,DATES,0)+1) -> 0.9999988126 | AC172: Amortization Years | AD172: =$AD$7 -> 3
E173: Selected Markup | G173: Baseline | H173: EL 1 | I173: EL 2 | J173: EL 3 | L173: Baseline | M173: EL 1 | N173: EL 2 | O173: EL 3 | Q173: Baseline | R173: EL 1 | S173: EL 2 | T173: EL 3
C174: Baseline | E174: =OFFSET(E174,0,(MATCH(Markup_Scenario_X,G$6:ZW$6,0) +MATCH(OFFSET('EL and TSL Setup'!$I$1,MATCH(OFFSET($C174,-(MATCH($C174,EL_List,0)+2),0),'EL and TSL Setup'!$C:$C,0),0),EL_List,0))) -> 0 | G174: =OFFSET(G174,-3,-2-(MATCH(G171,Markup_Scenario_List,0)-1)*(NAMES!$F$4+2)) -> 1.34 | H174: 0 | I174: 0 | J174: 0 | L174: =OFFSET(L174,-3,-2-(MATCH(L171,Markup_Scenario_List,0)-1)*(NAMES!$F$4+2)) -> 1.34 | M174: 0 | N174: 0 | O174: 0 | Q174: =G174 -> 1.34 | R174: =H174 -> 0 | S174: =I174 -> 0 | T174: =O174 -> 0 | X174: Compliant EL | Y174: Multiplier | AC174: Compliant EL | AD174: $ / Unit
C175: EL 1 | E175: =OFFSET(E175,0,(MATCH(Markup_Scenario_X,G$6:ZW$6,0) +MATCH(OFFSET('EL and TSL Setup'!$I$1,MATCH(OFFSET($C175,-(MATCH($C175,EL_List,0)+2),0),'EL and TSL Setup'!$C:$C,0),0),EL_List,0))) -> 0 | G175: =G174 -> 1.34 | H175: =IF(RIGHT(H$8,1)<=RIGHT($C175),G175,0) -> 1.34 | I175: =IF(RIGHT(I$8,1)<=RIGHT($C175),H175,0) -> 0 | J175: =IF(RIGHT(J$8,1)<=RIGHT($C175),H175,0) -> 0 | L175: =L174 -> 1.34 | M175: =IF(RIGHT(M$8,1)<RIGHT($C175),L175, IF(RIGHT(M$8,1)=RIGHT($C175),L175*$Y175,0)) -> 1.347052694 | N175: 0 | O175: 0 | Q175: =G175 -> 1.34 | R175: =H175 -> 1.34 | S175: =I175 -> 0 | T175: =O175 -> 0 | X175: EL1 | Y175: 1.005263204 | AC175: EL1 | AD175: 0
C176: EL 2 | E176: =OFFSET(E176,0,(MATCH(Markup_Scenario_X,G$6:ZW$6,0) +MATCH(OFFSET('EL and TSL Setup'!$I$1,MATCH(OFFSET($C176,-(MATCH($C176,EL_List,0)+2),0),'EL and TSL Setup'!$C:$C,0),0),EL_List,0))) -> 1.341620417 | G176: =G175 -> 1.34 | H176: =IF(RIGHT(H$8,1)<=RIGHT($C176),G176,0) -> 1.34 | I176: =IF(RIGHT(I$8,1)<=RIGHT($C176),H176,0) -> 1.34 | J176: =IF(RIGHT(J$8,1)<=RIGHT($C176),H176,0) -> 0 | L176: =L175 -> 1.34 | M176: 1.34 | N176: 1.341620417 | O176: =N176 -> 1.341620417 | Q176: 1.34 | R176: 1.34 | S176: 1.34 | T176: =S176 -> 1.34 | X176: EL2 | Y176: 1.001209266 | AC176: EL2 | AD176: ='Conversion Costs'!R150/SUM(OFFSET(Shipments!M362,0,0,1,$AD$172)) -> 0
E180: Baseline Markup | X180: Preservation of OP Calibration | AC180: Amortized Software Calibration
C181: PG17 | E181: 1.34 | G181: =Markup_Scenario_1 -> Flat Markup | L181: Preservation of OP | Q181: Amortized Software
C182: =VLOOKUP(C181,PC_Table,2,FALSE) -> Thin-client | X182: OP Ratio | Y182: =OFFSET('STANDARDS CASE DCF'!$E$14,0,MATCH(Standard_Year,DATES,0)+1)/ OFFSET('BASE CASE DCF'!$E$14,0,MATCH(Standard_Year,DATES,0)+1) -> 0.9999988126 | AC182: Amortization Years | AD182: =$AD$7 -> 3
E183: Selected Markup | G183: Baseline | H183: EL 1 | I183: EL 2 | J183: EL 3 | L183: Baseline | M183: EL 1 | N183: EL 2 | O183: EL 3 | Q183: Baseline | R183: EL 1 | S183: EL 2 | T183: EL 3
C184: Baseline | E184: =OFFSET(E184,0,(MATCH(Markup_Scenario_X,G$6:ZW$6,0) +MATCH(OFFSET('EL and TSL Setup'!$I$1,MATCH(OFFSET($C184,-(MATCH($C184,EL_List,0)+2),0),'EL and TSL Setup'!$C:$C,0),0),EL_List,0))) -> 0 | G184: =OFFSET(G184,-3,-2-(MATCH(G181,Markup_Scenario_List,0)-1)*(NAMES!$F$4+2)) -> 1.34 | H184: 0 | I184: 0 | J184: 0 | L184: =OFFSET(L184,-3,-2-(MATCH(L181,Markup_Scenario_List,0)-1)*(NAMES!$F$4+2)) -> 1.34 | M184: 0 | N184: 0 | O184: 0 | Q184: =G184 -> 1.34 | R184: =H184 -> 0 | S184: =I184 -> 0 | T184: =O184 -> 0 | X184: Compliant EL | Y184: Multiplier | AC184: Compliant EL | AD184: $ / Unit
C185: EL 1 | E185: =OFFSET(E185,0,(MATCH(Markup_Scenario_X,G$6:ZW$6,0) +MATCH(OFFSET('EL and TSL Setup'!$I$1,MATCH(OFFSET($C185,-(MATCH($C185,EL_List,0)+2),0),'EL and TSL Setup'!$C:$C,0),0),EL_List,0))) -> 0 | G185: =G184 -> 1.34 | H185: =IF(RIGHT(H$8,1)<=RIGHT($C185),G185,0) -> 1.34 | I185: 0 | J185: =IF(RIGHT(J$8,1)<=RIGHT($C185),H185,0) -> 0 | L185: =L184 -> 1.34 | M185: =IF(RIGHT(M$8,1)<RIGHT($C185),L185, IF(RIGHT(M$8,1)=RIGHT($C185),L185*$Y185,0)) -> 1.335445876 | N185: 0 | O185: 0 | Q185: =G185 -> 1.34 | R185: =H185 -> 1.34 | S185: =I185 -> 0 | T185: =O185 -> 0 | X185: EL1 | Y185: 0.9966013997 | AC185: EL1 | AD185: 0
C186: EL 2 | E186: =OFFSET(E186,0,(MATCH(Markup_Scenario_X,G$6:ZW$6,0) +MATCH(OFFSET('EL and TSL Setup'!$I$1,MATCH(OFFSET($C186,-(MATCH($C186,EL_List,0)+2),0),'EL and TSL Setup'!$C:$C,0),0),EL_List,0))) -> 0 | G186: =G185 -> 1.34 | H186: 1.34 | I186: 1.34 | J186: =IF(RIGHT(J$8,1)<=RIGHT($C186),H186,0) -> 0 | L186: =L185 -> 1.34 | M186: 1.34 | N186: 1.332862503 | O186: 0 | Q186: 1.34 | R186: 1.34 | S186: 1.34 | T186: =O186 -> 0 | X186: EL2 | Y186: 0.99467351 | AC186: EL2 | AD186: 0
C187: EL 3 | E187: =OFFSET(E187,0,(MATCH(Markup_Scenario_X,G$6:ZW$6,0) +MATCH(OFFSET('EL and TSL Setup'!$I$1,MATCH(OFFSET($C187,-(MATCH($C187,EL_List,0)+2),0),'EL and TSL Setup'!$C:$C,0),0),EL_List,0))) -> 1.33229018 | G187: =G186 -> 1.34 | H187: 1.34 | I187: 1.34 | J187: =IF(RIGHT(J$8,1)<=RIGHT($C187),H187,0) -> 1.34 | L187: =L186 -> 1.34 | M187: =IF(RIGHT(M$8,1)<RIGHT($C187),L187, IF(RIGHT(M$8,1)=RIGHT($C187),L187*$Y187,0)) -> 1.34 | N187: =IF(RIGHT(N$8,1)<RIGHT($C187),M187, IF(RIGHT(N$8,1)=RIGHT($C187),M187*$Y187,0)) -> 1.34 | O187: =IF(RIGHT(O$8,1)<RIGHT($C187),N187, IF(RIGHT(O$8,1)=RIGHT($C187),N187*$Y187,0)) -> 1.33229018 | Q187: 1.34 | R187: 1.34 | S187: 1.34 | T187: =J187 -> 1.34 | X187: EL2 | Y187: 0.9942464033 | AC187: EL2 | AD187: ='Conversion Costs'!R164/SUM(OFFSET(Shipments!M370,0,0,1,$AD$161)) -> 0

Sheet MPC Breakdown
C2: Manufacturing Production Costs (MPCs) | E2: * MPCs from INPUT - Engineering Analysis | G2: Navigation
C5: PG1
C6: =VLOOKUP(C5,PC_Table,2,FALSE) -> Cable Base | E6: MPC | F6: Mtrls, Lbr, Ovrhd | G6: Depreciation
C7: Baseline | E7: =OFFSET('INPUT - Engineering Analysis'!$D$8,(MATCH(C5,PC_LIST,0)-1)*12,MATCH(C7,EL_List,0)) -> 79.28 | F7: =1-G7 -> 0.9531 | G7: =Depreciation*VLOOKUP(OFFSET(G7,-2,-4),Markups!C1:E188,3,FALSE) -> 0.0469
C8: EL 1 | E8: =OFFSET('INPUT - Engineering Analysis'!$D$8,(MATCH(C5,PC_LIST,0)-1)*12,MATCH(C8,EL_List,0)) -> 83.18 | F8: =1-G8 -> 0.9552989661 | G8: =G7*(E7/E8) -> 0.0447010339
C9: EL 2 | E9: =OFFSET('INPUT - Engineering Analysis'!$D$8,(MATCH(C5,PC_LIST,0)-1)*12,MATCH(C9,EL_List,0)) -> 83.97 | F9: 0.9557195189 | G9: =G7*(E7/E9) -> 0.04428048112
C10: EL 3 | E10: =OFFSET('INPUT - Engineering Analysis'!$D$8,(MATCH(C5,PC_LIST,0)-1)*12,MATCH(C10,EL_List,0)) -> 84.41 | F10: 0.9559503376 | G10: =G7*(E7/E10) -> 0.04404966236
C14: PG2
C15: =VLOOKUP(C14,PC_Table,2,FALSE) -> Cable Video Client | E15: MPC | F15: Mtrls, Lbr, Ovrhd | G15: Depreciation
C16: Baseline | E16: =OFFSET('INPUT - Engineering Analysis'!$D$8,(MATCH(C14,PC_LIST,0)-1)*12,MATCH(C16,EL_List,0)) -> 85.08 | F16: =1-G16 -> 0.9531 | G16: =Depreciation*VLOOKUP(OFFSET(G16,-2,-4),Markups!C10:E197,3,FALSE) -> 0.0469
C17: EL 1 | E17: =OFFSET('INPUT - Engineering Analysis'!$D$8,(MATCH(C14,PC_LIST,0)-1)*12,MATCH(C17,EL_List,0)) -> 88.98 | F17: =1-G17 -> 0.9551556305 | G17: =G16*(E16/E17) -> 0.04484436952
C18: EL 2 | E18: =OFFSET('INPUT - Engineering Analysis'!$D$8,(MATCH(C14,PC_LIST,0)-1)*12,MATCH(C18,EL_List,0)) -> 93.97 | F18: 0.9575369586 | G18: =G16*(E16/E18) -> 0.0424630414
C19: EL 3 | E19: =OFFSET('INPUT - Engineering Analysis'!$D$8,(MATCH(C14,PC_LIST,0)-1)*12,MATCH(C19,EL_List,0)) -> 94.41 | F19: 0.9577348586 | G19: =G16*(E16/E19) -> 0.0422651414
C23: PG3
C24: =VLOOKUP(C23,PC_Table,2,FALSE) -> Cable Video Server | E24: MPC | F24: Mtrls, Lbr, Ovrhd | G24: Depreciation
C25: Baseline | E25: =OFFSET('INPUT - Engineering Analysis'!$D$8,(MATCH(C23,PC_LIST,0)-1)*12,MATCH(C25,EL_List,0)) -> 159.07 | F25: =1-G25 -> 0.9531 | G25: =Depreciation*VLOOKUP(OFFSET(G25,-2,-4),Markups!C19:E206,3,FALSE) -> 0.0469
C26: EL 1 | E26: =OFFSET('INPUT - Engineering Analysis'!$D$8,(MATCH(C23,PC_LIST,0)-1)*12,MATCH(C26,EL_List,0)) -> 164.54 | F26: =1-G26 -> 0.9546591528 | G26: =G25*(E25/E26) -> 0.04534084721
C27: EL 2 | E27: =OFFSET('INPUT - Engineering Analysis'!$D$8,(MATCH(C23,PC_LIST,0)-1)*12,MATCH(C27,EL_List,0)) -> 174.23 | F27: 0.9571808357 | G27: =G25*(E25/E27) -> 0.04281916432
C28: EL 3 | E28: =OFFSET('INPUT - Engineering Analysis'!$D$8,(MATCH(C23,PC_LIST,0)-1)*12,MATCH(C28,EL_List,0)) -> 175.55 | F28: 0.9575028026 | G28: =G25*(E25/E28) -> 0.04249719738
C32: PG4
C33: =VLOOKUP(C32,PC_Table,2,FALSE) -> Cable with DVR | E33: MPC | F33: Mtrls, Lbr, Ovrhd | G33: Depreciation
C34: Baseline | E34: =OFFSET('INPUT - Engineering Analysis'!$D$8,(MATCH(C32,PC_LIST,0)-1)*12,MATCH(C34,EL_List,0)) -> 119.38 | F34: =1-G34 -> 0.9531 | G34: =Depreciation*VLOOKUP(OFFSET(G34,-2,-4),Markups!C28:E215,3,FALSE) -> 0.0469
C35: EL 1 | E35: =OFFSET('INPUT - Engineering Analysis'!$D$8,(MATCH(C32,PC_LIST,0)-1)*12,MATCH(C35,EL_List,0)) -> 129.35 | F35: =1-G35 -> 0.956714944 | G35: =G34*(E34/E35) -> 0.04328505605
C36: EL 2 | E36: =OFFSET('INPUT - Engineering Analysis'!$D$8,(MATCH(C32,PC_LIST,0)-1)*12,MATCH(C36,EL_List,0)) -> 146.83 | F36: 0.961867997 | G36: =G34*(E34/E36) -> 0.038132003
C37: EL 3 | E37: =OFFSET('INPUT - Engineering Analysis'!$D$8,(MATCH(C32,PC_LIST,0)-1)*12,MATCH(C37,EL_List,0)) -> 148.15 | F37: 0.9622077489 | G37: =G34*(E34/E37) -> 0.0377922511
C41: PG5
C42: =VLOOKUP(C41,PC_Table,2,FALSE) -> Cable with DVR & Video Server | E42: MPC | F42: Mtrls, Lbr, Ovrhd | G42: Depreciation
C43: Baseline | E43: =OFFSET('INPUT - Engineering Analysis'!$D$8,(MATCH(C41,PC_LIST,0)-1)*12,MATCH(C43,EL_List,0)) -> 208.57 | F43: =1-G43 -> 0.9531 | G43: =Depreciation*VLOOKUP(OFFSET(G43,-2,-4),Markups!C37:E224,3,FALSE) -> 0.0469
C44: EL 1 | E44: =OFFSET('INPUT - Engineering Analysis'!$D$8,(MATCH(C41,PC_LIST,0)-1)*12,MATCH(C44,EL_List,0)) -> 222.74 | F44: =1-G44 -> 0.9560836266 | G44: =G43*(E43/E44) -> 0.04391637335
C45: EL 2 | E45: =OFFSET('INPUT - Engineering Analysis'!$D$8,(MATCH(C41,PC_LIST,0)-1)*12,MATCH(C45,EL_List,0)) -> 240.22 | F45: 0.9592792732 | G45: =G43*(E43/E45) -> 0.04072072683
C46: EL 3 | E46: =OFFSET('INPUT - Engineering Analysis'!$D$8,(MATCH(C41,PC_LIST,0)-1)*12,MATCH(C46,EL_List,0)) -> 241.54 | F46: 0.9595018092 | G46: =G43*(E43/E46) -> 0.04049819078
C50: PG6
C51: =VLOOKUP(C50,PC_Table,2,FALSE) -> Satellite Base | E51: MPC | F51: Mtrls, Lbr, Ovrhd | G51: Depreciation
C52: Baseline | E52: =OFFSET('INPUT - Engineering Analysis'!$D$8,(MATCH(C50,PC_LIST,0)-1)*12,MATCH(C52,EL_List,0)) -> 48.52 | F52: =1-G52 -> 0.9531 | G52: =Depreciation*VLOOKUP(OFFSET(G52,-2,-4),Markups!C46:E233,3,FALSE) -> 0.0469
C53: EL 1 | E53: =OFFSET('INPUT - Engineering Analysis'!$D$8,(MATCH(C50,PC_LIST,0)-1)*12,MATCH(C53,EL_List,0)) -> 52.37 | F53: =1-G53 -> 0.9565478709 | G53: =G52*(E52/E53) -> 0.04345212908
C54: EL 2 | E54: =OFFSET('INPUT - Engineering Analysis'!$D$8,(MATCH(C50,PC_LIST,0)-1)*12,MATCH(C54,EL_List,0)) -> 55.24 | F54: 0.9588054308 | G54: =G52*(E52/E54) -> 0.04119456915
C55: EL 3 | E55: =OFFSET('INPUT - Engineering Analysis'!$D$8,(MATCH(C50,PC_LIST,0)-1)*12,MATCH(C55,EL_List,0)) -> 55.68 | F55: 0.9591309626 | G55: =G52*(E52/E55) -> 0.04086903736
C59: PG7
C60: =VLOOKUP(C59,PC_Table,2,FALSE) -> Satellite Video Client | E60: MPC | F60: Mtrls, Lbr, Ovrhd | G60: Depreciation
C61: Baseline | E61: =OFFSET('INPUT - Engineering Analysis'!$D$8,(MATCH(C59,PC_LIST,0)-1)*12,MATCH(C61,EL_List,0)) -> 54.32 | F61: =1-G61 -> 0.9531 | G61: =Depreciation*VLOOKUP(OFFSET(G61,-2,-4),Markups!C55:E242,3,FALSE) -> 0.0469
C62: EL 1 | E62: =OFFSET('INPUT - Engineering Analysis'!$D$8,(MATCH(C59,PC_LIST,0)-1)*12,MATCH(C62,EL_List,0)) -> 58.17 | F62: =1-G62 -> 0.9562040915 | G62: =G61*(E61/E62) -> 0.04379590854
C63: EL 2 | E63: =OFFSET('INPUT - Engineering Analysis'!$D$8,(MATCH(C59,PC_LIST,0)-1)*12,MATCH(C63,EL_List,0)) -> 62.37 | F63: 0.9591533109 | G63: =G61*(E61/E63) -> 0.04084668911
C64: EL 3 | E64: =OFFSET('INPUT - Engineering Analysis'!$D$8,(MATCH(C59,PC_LIST,0)-1)*12,MATCH(C64,EL_List,0)) -> 62.81 | F64: 0.9594394523 | G64: =G61*(E61/E64) -> 0.04056054768
C68: PG8
C69: =VLOOKUP(C68,PC_Table,2,FALSE) -> Satellite Video Server | E69: MPC | F69: Mtrls, Lbr, Ovrhd | G69: Depreciation
C70: Baseline | E70: =OFFSET('INPUT - Engineering Analysis'!$D$8,(MATCH(C68,PC_LIST,0)-1)*12,MATCH(C70,EL_List,0)) -> 89.04 | F70: =1-G70 -> 0.9531 | G70: =Depreciation*VLOOKUP(OFFSET(G70,-2,-4),Markups!C64:E251,3,FALSE) -> 0.0469
C71: EL 1 | E71: =OFFSET('INPUT - Engineering Analysis'!$D$8,(MATCH(C68,PC_LIST,0)-1)*12,MATCH(C71,EL_List,0)) -> 92.93 | F71: =1-G71 -> 0.9550632089 | G71: =G70*(E70/E71) -> 0.04493679113
C72: EL 2 | E72: =OFFSET('INPUT - Engineering Analysis'!$D$8,(MATCH(C68,PC_LIST,0)-1)*12,MATCH(C72,EL_List,0)) -> 101.77 | F72: 0.9589665324 | G72: =G70*(E70/E72) -> 0.04103346762
C73: EL 3 | E73: =OFFSET('INPUT - Engineering Analysis'!$D$8,(MATCH(C68,PC_LIST,0)-1)*12,MATCH(C73,EL_List,0)) -> 103.09 | F73: 0.9594919391 | G73: =G70*(E70/E73) -> 0.04050806092
C77: PG9
C78: =VLOOKUP(C77,PC_Table,2,FALSE) -> Satellite with DVR | E78: MPC | F78: Mtrls, Lbr, Ovrhd | G78: Depreciation
C79: Baseline | E79: =OFFSET('INPUT - Engineering Analysis'!$D$8,(MATCH(C77,PC_LIST,0)-1)*12,MATCH(C79,EL_List,0)) -> 98.02 | F79: =1-G79 -> 0.9531 | G79: =Depreciation*VLOOKUP(OFFSET(G79,-2,-4),Markups!C73:E260,3,FALSE) -> 0.0469
C80: EL 1 | E80: =OFFSET('INPUT - Engineering Analysis'!$D$8,(MATCH(C77,PC_LIST,0)-1)*12,MATCH(C80,EL_List,0)) -> 107.99 | F80: =1-G80 -> 0.9574299657 | G80: =G79*(E79/E80) -> 0.04257003426
C81: EL 2 | E81: =OFFSET('INPUT - Engineering Analysis'!$D$8,(MATCH(C77,PC_LIST,0)-1)*12,MATCH(C81,EL_List,0)) -> 123.04 | F81: 0.9626370449 | G81: =G79*(E79/E81) -> 0.03736295514
C82: EL 3 | E82: =OFFSET('INPUT - Engineering Analysis'!$D$8,(MATCH(C77,PC_LIST,0)-1)*12,MATCH(C82,EL_List,0)) -> 124.36 | F82: 0.9630336282 | G82: =G79*(E79/E82) -> 0.03696637182
C86: PG10
C87: =VLOOKUP(C86,PC_Table,2,FALSE) -> Satellite with DVR & Video Server | E87: MPC | F87: Mtrls, Lbr, Ovrhd | G87: Depreciation
C88: Baseline | E88: =OFFSET('INPUT - Engineering Analysis'!$D$8,(MATCH(C86,PC_LIST,0)-1)*12,MATCH(C88,EL_List,0)) -> 138.54 | F88: =1-G88 -> 0.9531 | G88: =Depreciation*VLOOKUP(OFFSET(G88,-2,-4),Markups!C82:E269,3,FALSE) -> 0.0469
C89: EL 1 | E89: =OFFSET('INPUT - Engineering Analysis'!$D$8,(MATCH(C86,PC_LIST,0)-1)*12,MATCH(C89,EL_List,0)) -> 152.71 | F89: =1-G89 -> 0.957451863 | G89: =G88*(E88/E89) -> 0.04254813699
C90: EL 2 | E90: =OFFSET('INPUT - Engineering Analysis'!$D$8,(MATCH(C86,PC_LIST,0)-1)*12,MATCH(C90,EL_List,0)) -> 167.76 | F90: 0.9612689199 | G90: =G88*(E88/E90) -> 0.03873108011
C91: EL 3 | E91: =OFFSET('INPUT - Engineering Analysis'!$D$8,(MATCH(C86,PC_LIST,0)-1)*12,MATCH(C91,EL_List,0)) -> 169.08 | F91: 0.9615712917 | G91: =G88*(E88/E91) -> 0.0384287083
C95: PG11
C96: =VLOOKUP(C95,PC_Table,2,FALSE) -> IP Base | E96: MPC | F96: Mtrls, Lbr, Ovrhd | G96: Depreciation
C97: Baseline | E97: =OFFSET('INPUT - Engineering Analysis'!$D$8,(MATCH(C95,PC_LIST,0)-1)*12,MATCH(C97,EL_List,0)) -> 46.55 | F97: =1-G97 -> 0.9531 | G97: =Depreciation*VLOOKUP(OFFSET(G97,-2,-4),Markups!C91:E278,3,FALSE) -> 0.0469
C98: EL 1 | E98: =OFFSET('INPUT - Engineering Analysis'!$D$8,(MATCH(C95,PC_LIST,0)-1)*12,MATCH(C98,EL_List,0)) -> 47.34 | F98: =1-G98 -> 0.9538826574 | G98: =G97*(E97/E98) -> 0.04611734263
C99: EL 2 | E99: =OFFSET('INPUT - Engineering Analysis'!$D$8,(MATCH(C95,PC_LIST,0)-1)*12,MATCH(C99,EL_List,0)) -> 50.84 | F99: 0.9570575334 | G99: =G97*(E97/E99) -> 0.04294246656
C100: EL 3 | E100: =OFFSET('INPUT - Engineering Analysis'!$D$8,(MATCH(C95,PC_LIST,0)-1)*12,MATCH(C100,EL_List,0)) -> 51.28 | F100: 0.9574259945 | G100: =G97*(E97/E100) -> 0.04257400546
C104: PG12
C105: =VLOOKUP(C104,PC_Table,2,FALSE) -> IP Video Client | E105: MPC | F105: Mtrls, Lbr, Ovrhd | G105: Depreciation
C106: Baseline | E106: =OFFSET('INPUT - Engineering Analysis'!$D$8,(MATCH(C104,PC_LIST,0)-1)*12,MATCH(C106,EL_List,0)) -> 51.8 | F106: =1-G106 -> 0.9531 | G106: =Depreciation*VLOOKUP(OFFSET(G106,-2,-4),Markups!C100:E287,3,FALSE) -> 0.0469
C107: EL 1 | E107: =OFFSET('INPUT - Engineering Analysis'!$D$8,(MATCH(C104,PC_LIST,0)-1)*12,MATCH(C107,EL_List,0)) -> 52.59 | F107: =1-G107 -> 0.9538045256 | G107: =G106*(E106/E107) -> 0.04619547442
C108: EL 2 | E108: =OFFSET('INPUT - Engineering Analysis'!$D$8,(MATCH(C104,PC_LIST,0)-1)*12,MATCH(C108,EL_List,0)) -> 56.09 | F108: 0.95668711 | G108: =G106*(E106/E108) -> 0.04331289
C109: EL 3 | E109: =OFFSET('INPUT - Engineering Analysis'!$D$8,(MATCH(C104,PC_LIST,0)-1)*12,MATCH(C109,EL_List,0)) -> 56.53 | F109: 0.9570242349 | G109: =G106*(E106/E109) -> 0.04297576508
C113: PG13
C114: =VLOOKUP(C113,PC_Table,2,FALSE) -> IP Video Server | E114: MPC | F114: Mtrls, Lbr, Ovrhd | G114: Depreciation
C115: Baseline | E115: =OFFSET('INPUT - Engineering Analysis'!$D$8,(MATCH(C113,PC_LIST,0)-1)*12,MATCH(C115,EL_List,0)) -> 51.8 | F115: =1-G115 -> 0.9531 | G115: =Depreciation*VLOOKUP(OFFSET(G115,-2,-4),Markups!C109:E296,3,FALSE) -> 0.0469
C116: EL 1 | E116: =OFFSET('INPUT - Engineering Analysis'!$D$8,(MATCH(C113,PC_LIST,0)-1)*12,MATCH(C116,EL_List,0)) -> 52.59 | F116: =1-G116 -> 0.9538045256 | G116: =G115*(E115/E116) -> 0.04619547442
C117: EL 2 | E117: =OFFSET('INPUT - Engineering Analysis'!$D$8,(MATCH(C113,PC_LIST,0)-1)*12,MATCH(C117,EL_List,0)) -> 56.09 | F117: 0.95668711 | G117: =G115*(E115/E117) -> 0.04331289
C118: EL 3 | E118: =OFFSET('INPUT - Engineering Analysis'!$D$8,(MATCH(C113,PC_LIST,0)-1)*12,MATCH(C118,EL_List,0)) -> 56.53 | F118: 0.9570242349 | G118: =G115*(E115/E118) -> 0.04297576508
C122: PG14
C123: =VLOOKUP(C122,PC_Table,2,FALSE) -> IP with DVR | E123: MPC | F123: Mtrls, Lbr, Ovrhd | G123: Depreciation
C124: Baseline | E124: =OFFSET('INPUT - Engineering Analysis'!$D$8,(MATCH(C122,PC_LIST,0)-1)*12,MATCH(C124,EL_List,0)) -> 80.28 | F124: =1-G124 -> 0.9531 | G124: =Depreciation*VLOOKUP(OFFSET(G124,-2,-4),Markups!C118:E305,3,FALSE) -> 0.0469
C125: EL 1 | E125: =OFFSET('INPUT - Engineering Analysis'!$D$8,(MATCH(C122,PC_LIST,0)-1)*12,MATCH(C125,EL_List,0)) -> 86.36 | F125: =1-G125 -> 0.956401899 | G125: =G124*(E124/E125) -> 0.04359810097
C126: EL 2 | E126: =OFFSET('INPUT - Engineering Analysis'!$D$8,(MATCH(C122,PC_LIST,0)-1)*12,MATCH(C126,EL_List,0)) -> 101.85 | F126: 0.9630325773 | G126: =G124*(E124/E126) -> 0.03696742268
C127: EL 3 | E127: =OFFSET('INPUT - Engineering Analysis'!$D$8,(MATCH(C122,PC_LIST,0)-1)*12,MATCH(C127,EL_List,0)) -> 103.17 | F127: 0.9635055539 | G127: =G124*(E124/E127) -> 0.03649444606
C131: PG15
C132: =VLOOKUP(C131,PC_Table,2,FALSE) -> IP with DVR & Video Server | E132: MPC | F132: Mtrls, Lbr, Ovrhd | G132: Depreciation
C133: Baseline | E133: =OFFSET('INPUT - Engineering Analysis'!$D$8,(MATCH(C131,PC_LIST,0)-1)*12,MATCH(C133,EL_List,0)) -> 96.04 | F133: =1-G133 -> 0.9531 | G133: =Depreciation*VLOOKUP(OFFSET(G133,-2,-4),Markups!C127:E314,3,FALSE) -> 0.0469
C134: EL 1 | E134: =OFFSET('INPUT - Engineering Analysis'!$D$8,(MATCH(C131,PC_LIST,0)-1)*12,MATCH(C134,EL_List,0)) -> 102.12 | F134: =1-G134 -> 0.9558923228 | G134: =G133*(E133/E134) -> 0.04410767724
C135: EL 2 | E135: =OFFSET('INPUT - Engineering Analysis'!$D$8,(MATCH(C131,PC_LIST,0)-1)*12,MATCH(C135,EL_List,0)) -> 117.61 | F135: 0.96170159 | G135: =G133*(E133/E135) -> 0.03829841
C136: EL 3 | E136: =OFFSET('INPUT - Engineering Analysis'!$D$8,(MATCH(C131,PC_LIST,0)-1)*12,MATCH(C136,EL_List,0)) -> 118.93 | F136: 0.9621266627 | G136: =G133*(E133/E136) -> 0.03787333726
C140: PG16
C141: =VLOOKUP(C140,PC_Table,2,FALSE) -> OTT | E141: MPC | F141: Mtrls, Lbr, Ovrhd | G141: Depreciation
C142: Baseline | E142: =OFFSET('INPUT - Engineering Analysis'!$D$8,(MATCH(C140,PC_LIST,0)-1)*12,MATCH(C142,EL_List,0)) -> 57.67 | F142: =1-G142 -> 0.9531 | G142: =Depreciation*VLOOKUP(OFFSET(G142,-2,-4),Markups!C136:E323,3,FALSE) -> 0.0469
C143: EL 1 | E143: =OFFSET('INPUT - Engineering Analysis'!$D$8,(MATCH(C140,PC_LIST,0)-1)*12,MATCH(C143,EL_List,0)) -> 49.28 | F143: =1-G143 -> 0.9451151989 | G143: =G142*(E142/E143) -> 0.05488480114
C144: EL 2 | E144: =OFFSET('INPUT - Engineering Analysis'!$D$8,(MATCH(C140,PC_LIST,0)-1)*12,MATCH(C144,EL_List,0)) -> 52.36 | F144: 0.9483437166 | G144: =G142*(E142/E144) -> 0.05165628342
C148: PG17
C149: =VLOOKUP(C148,PC_Table,2,FALSE) -> Thin-client | E149: MPC | F149: Mtrls, Lbr, Ovrhd | G149: Depreciation
C150: Baseline | E150: =OFFSET('INPUT - Engineering Analysis'!$D$8,(MATCH(C148,PC_LIST,0)-1)*12,MATCH(C150,EL_List,0)) -> 40.44 | F150: =1-G150 -> 0.9531 | G150: =Depreciation*VLOOKUP(OFFSET(G150,-2,-4),Markups!C144:E331,3,FALSE) -> 0.0469
C151: EL 1 | E151: =OFFSET('INPUT - Engineering Analysis'!$D$8,(MATCH(C148,PC_LIST,0)-1)*12,MATCH(C151,EL_List,0)) -> 45.43 | F151: =1-G151 -> 0.9582514638 | G151: =G150*(E150/E151) -> 0.04174853621
C152: EL 2 | E152: =OFFSET('INPUT - Engineering Analysis'!$D$8,(MATCH(C148,PC_LIST,0)-1)*12,MATCH(C152,EL_List,0)) -> 47.78 | F152: 0.9603048137 | G152: =G150*(E150/E152) -> 0.03969518627
C153: EL 3 | E153: =OFFSET('INPUT - Engineering Analysis'!$D$8,(MATCH(C148,PC_LIST,0)-1)*12,MATCH(C153,EL_List,0)) -> 48.22 | F153: 0.9606670261 | G153: =G150*(E150/E153) -> 0.03933297387

Sheet Price Trends
C2: Multipliers for Price Trend Projections | G2: Navigation | I2: * Price Trends "Yes" data from INPUT - Price Trends
C5: Year | D5: =Learning_Scenario_1 -> Constant | E5: =Learning_Scenario_2 & " *" -> Yes * | G5: Selection | K5: Price Trends over the Analysis Period (2013 to 2047)
C6: =Base_Year - 1 -> 2011 | D6: 1 | E6: 1 | G6: =OFFSET($C6,0,MATCH(Learning_Scenario_X,Learning_Scenario_List,0)) -> 1
C7: =OFFSET(C7,-1,0)+1 -> 2012 | D7: 1 | E7: 1 | G7: 1
C8: =OFFSET(C8,-1,0)+1 -> 2013 | D8: 1 | E8: 1 | G8: 1
C9: 2014 | D9: 1 | E9: 1 | G9: 1
C10: 2015 | D10: 1 | E10: 1 | G10: 1
C11: 2016 | D11: 1 | E11: 1 | G11: 1
C12: 2017 | D12: 1 | E12: 1 | G12: 1
C13: 2018 | D13: 1 | E13: ='INPUT - Price Trends'!D6 -> 1 | G13: 1
C14: 2019 | D14: 1 | E14: ='INPUT - Price Trends'!D7 -> 0.9182743254 | G14: 0.9182743254
C15: 2020 | D15: 1 | E15: ='INPUT - Price Trends'!D8 -> 0.8432277366 | G15: 0.8432277366
C16: 2021 | D16: 1 | E16: ='INPUT - Price Trends'!D9 -> 0.7743143809 | G16: 0.7743143809
C17: 2022 | D17: 1 | E17: ='INPUT - Price Trends'!D10 -> 0.7110330158 | G17: 0.7110330158
C18: 2023 | D18: 1 | E18: ='INPUT - Price Trends'!D11 -> 0.6529233629 | G18: 0.6529233629
C19: 2024 | D19: 1 | E19: ='INPUT - Price Trends'!D12 -> 0.5995627605 | G19: 0.5995627605
C20: 2025 | D20: 1 | E20: ='INPUT - Price Trends'!D13 -> 0.5505630894 | G20: 0.5505630894
C21: 2026 | D21: 1 | E21: ='INPUT - Price Trends'!D14 -> 0.5055679495 | G21: 0.5055679495
C22: 2027 | D22: 1 | E22: ='INPUT - Price Trends'!D15 -> 0.4642500678 | G22: 0.4642500678
C23: 2028 | D23: 1 | E23: ='INPUT - Price Trends'!D16 -> 0.4263089178 | G23: 0.4263089178
C24: 2029 | D24: 1 | E24: ='INPUT - Price Trends'!D17 -> 0.3914685339 | G24: 0.3914685339
C25: 2030 | D25: 1 | E25: ='INPUT - Price Trends'!D18 -> 0.3594755038 | G25: 0.3594755038
C26: 2031 | D26: 1 | E26: ='INPUT - Price Trends'!D19 -> 0.3300971258 | G26: 0.3300971258
C27: 2032 | D27: 1 | E27: ='INPUT - Price Trends'!D20 -> 0.3031197155 | G27: 0.3031197155
C28: 2033 | D28: 1 | E28: ='INPUT - Price Trends'!D21 -> 0.2783470522 | G28: 0.2783470522
C29: 2034 | D29: 1 | E29: ='INPUT - Price Trends'!D22 -> 0.2555989516 | G29: 0.2555989516
C30: 2035 | D30: 1 | E30: ='INPUT - Price Trends'!D23 -> 0.2347099548 | G30: 0.2347099548
C31: 2036 | D31: 1 | E31: ='INPUT - Price Trends'!D24 -> 0.2155281254 | G31: 0.2155281254
C32: 2037 | D32: 1 | E32: ='INPUT - Price Trends'!D25 -> 0.197913944 | G32: 0.197913944
C33: 2038 | D33: 1 | E33: ='INPUT - Price Trends'!D26 -> 0.1817392934 | G33: 0.1817392934
C34: 2039 | D34: 1 | E34: ='INPUT - Price Trends'!D27 -> 0.166886527 | G34: 0.166886527
C35: 2040 | D35: 1 | E35: ='INPUT - Price Trends'!D28 -> 0.153247613 | G35: 0.153247613
C36: 2041 | D36: 1 | E36: ='INPUT - Price Trends'!D29 -> 0.1407233484 | G36: 0.1407233484
C37: 2042 | D37: 1 | E37: ='INPUT - Price Trends'!D30 -> 0.1292226379 | G37: 0.1292226379
C38: 2043 | D38: 1 | E38: ='INPUT - Price Trends'!D31 -> 0.1186618306 | G38: 0.1186618306
C39: 2044 | D39: 1 | E39: ='INPUT - Price Trends'!D32 -> 0.1089641124 | G39: 0.1089641124
C40: 2045 | D40: 1 | E40: ='INPUT - Price Trends'!D33 -> 0.1000589468 | G40: 0.1000589468
C41: 2046 | D41: 1 | E41: ='INPUT - Price Trends'!D34 -> 0.0918815619 | G41: 0.0918815619
C42: 2047 | D42: 1 | E42: ='INPUT - Price Trends'!D35 -> 0.08437247927 | G42: 0.08437247927

Sheet Shipments
C2: Shipments - INPUT | D2: * from INPUT - Shipments Analysis and INPUT - Efficiency Distribution | J2: Navigation
C5: TSL | D5: Product Group | E5: EL | F5: =NAMES!$O$6 -> Shipments from INPUT - Shipments Analysis Tab
C9: Base Case
D10: PG1 | F10: =Base_Year - 1 -> 2011 | G10: =OFFSET(G10,0,-1)+1 -> 2012 | H10: =OFFSET(H10,0,-1)+1 -> 2013 | I10: 2014 | J10: 2015 | K10: 2016 | L10: 2017 | M10: 2018 | N10: 2019 | O10: 2020 | P10: 2021 | Q10: 2022 | R10: 2023 | S10: 2024 | T10: 2025 | U10: 2026 | V10: 2027 | W10: 2028 | X10: 2029 | Y10: 2030 | Z10: 2031 | AA10: 2032 | AB10: 2033 | AC10: 2034 | AD10: 2035 | AE10: 2036 | AF10: 2037 | AG10: 2038 | AH10: 2039 | AI10: 2040 | AJ10: 2041 | AK10: 2042 | AL10: 2043 | AM10: 2044 | AN10: 2045 | AO10: 2046 | AP10: 2047
D11: =VLOOKUP(D10,PC_Table,2,FALSE) -> Cable Base | E11: Baseline | F11: =F$519*OFFSET(F11,4,0) -> 8.837885291 | G11: =G$519*OFFSET(G11,4,0) -> 5.959356203 | H11: 4.272705007 | I11: 4.052043883 | J11: 2.343702115 | K11: 0.6353603464 | L11: 0.6417139499 | M11: 0.6481310894 | N11: 0.5727858502 | O11: 0.4958688932 | P11: 0.4173563185 | Q11: 0.3372239053 | R11: 0.2554471083 | S11: 0.1720010529 | T11: 0.08686053172 | U11: 0 | V11: 0 | W11: 0 | X11: 0 | Y11: 0 | Z11: 0 | AA11: 0 | AB11: 0 | AC11: 0 | AD11: 0 | AE11: 0 | AF11: 0 | AG11: 0 | AH11: 0 | AI11: 0 | AJ11: 0 | AK11: 0 | AL11: 0 | AM11: 0 | AN11: 0 | AO11: 0 | AP11: 0
E12: EL 1 | F12: =F$520*OFFSET(F12,3,0) -> 7.070308233 | G12: =G$520*OFFSET(G12,3,0) -> 4.767484962 | H12: 3.418164005 | I12: 3.241635106 | J12: 1.874961692 | K12: 0.5082882771 | L12: 0.5133711599 | M12: 0.5185048715 | N12: 0.5400552302 | O12: 0.5619847456 | P12: 0.5842988458 | Q12: 0.6070030296 | R12: 0.6301028671 | S12: 0.653604001 | T12: 0.6775121474 | U12: 0.7018330963 | V12: 0.7088514272 | W12: 0.7159399415 | X12: 0.7230993409 | Y12: 0.7303303343 | Z12: 0.7376336377 | AA12: 0.745009974 | AB12: 0.7524600738 | AC12: 0.7599846745 | AD12: 0.7675845213 | AE12: 0.7752603665 | AF12: 0.7830129701 | AG12: 0.7908430999 | AH12: 0.7987515308 | AI12: 0.8067390462 | AJ12: 0.8148064366 | AK12: 0.822954501 | AL12: 0.831184046 | AM12: 0.8394958865 | AN12: 0.8478908453 | AO12: 0.8563697538 | AP12: 0.8649334513
E13: EL 2 | F13: =F$521*OFFSET(F13,2,0) -> 1.767577058 | G13: =G$521*OFFSET(G13,2,0) -> 1.191871241 | H13: 0.8545410013 | I13: 0.8104087766 | J13: 0.4687404229 | K13: 0.1270720693 | L13: 0.12834279 | M13: 0.1296262179 | N13: 0.1800184101 | O13: 0.2314054835 | P13: 0.2838022965 | Q13: 0.3372239053 | R13: 0.391685566 | S13: 0.4472027375 | T13: 0.503791084 | U13: 0.561466477 | V13: 0.5670811418 | W13: 0.5727519532 | X13: 0.5784794727 | Y13: 0.5842642675 | Z13: 0.5901069101 | AA13: 0.5960079792 | AB13: 0.601968059 | AC13: 0.6079877396 | AD13: 0.614067617 | AE13: 0.6202082932 | AF13: 0.6264103761 | AG13: 0.6326744799 | AH13: 0.6390012247 | AI13: 0.6453912369 | AJ13: 0.6518451493 | AK13: 0.6583636008 | AL13: 0.6649472368 | AM13: 0.6715967092 | AN13: 0.6783126763 | AO13: 0.685095803 | AP13: 0.691946761
E14: EL 3 | F14: =F$522*OFFSET(F14,1,0) -> 0 | G14: =G$522*OFFSET(G14,1,0) -> 0 | H14: 0 | I14: 0 | J14: 0 | K14: 0 | L14: 0 | M14: 0 | N14: 0.01636531001 | O14: 0.03305792621 | P14: 0.05008275821 | Q14: 0.06744478106 | R14: 0.08514903609 | S14: 0.1032006317 | T14: 0.1216047444 | U14: 0.1403666193 | V14: 0.1417702854 | W14: 0.1431879883 | X14: 0.1446198682 | Y14: 0.1460660669 | Z14: 0.1475267275 | AA14: 0.1490019948 | AB14: 0.1504920148 | AC14: 0.1519969349 | AD14: 0.1535169043 | AE14: 0.1550520733 | AF14: 0.156602594 | AG14: 0.15816862 | AH14: 0.1597503062 | AI14: 0.1613478092 | AJ14: 0.1629612873 | AK14: 0.1645909002 | AL14: 0.1662368092 | AM14: 0.1678991773 | AN14: 0.1695781691 | AO14: 0.1712739508 | AP14: 0.1729866903
E15: Total | F15: =OFFSET($E$497,MATCH($D10,NAMES!$D$6:$D$22,0),MATCH(F$10,DATES,0)) -> 17.67577058 | G15: =OFFSET($E$497,MATCH($D10,NAMES!$D$6:$D$22,0),MATCH(G$10,DATES,0)) -> 11.91871241 | H15: =OFFSET($E$497,MATCH($D10,NAMES!$D$6:$D$22,0),MATCH(H$10,DATES,0)) -> 8.545410013 | I15: =OFFSET($E$497,MATCH($D10,NAMES!$D$6:$D$22,0),MATCH(I$10,DATES,0)) -> 8.104087766 | J15: =OFFSET($E$497,MATCH($D10,NAMES!$D$6:$D$22,0),MATCH(J$10,DATES,0)) -> 4.687404229 | K15: =OFFSET($E$497,MATCH($D10,NAMES!$D$6:$D$22,0),MATCH(K$10,DATES,0)) -> 1.270720693 | L15: =OFFSET($E$497,MATCH($D10,NAMES!$D$6:$D$22,0),MATCH(L$10,DATES,0)) -> 1.2834279 | M15: =OFFSET($E$497,MATCH($D10,NAMES!$D$6:$D$22,0),MATCH(M$10,DATES,0)) -> 1.296262179 | N15: =OFFSET($E$497,MATCH($D10,NAMES!$D$6:$D$22,0),MATCH(N$10,DATES,0)) -> 1.309224801 | O15: =OFFSET($E$497,MATCH($D10,NAMES!$D$6:$D$22,0),MATCH(O$10,DATES,0)) -> 1.322317049 | P15: =OFFSET($E$497,MATCH($D10,NAMES!$D$6:$D$22,0),MATCH(P$10,DATES,0)) -> 1.335540219 | Q15: =OFFSET($E$497,MATCH($D10,NAMES!$D$6:$D$22,0),MATCH(Q$10,DATES,0)) -> 1.348895621 | R15: =OFFSET($E$497,MATCH($D10,NAMES!$D$6:$D$22,0),MATCH(R$10,DATES,0)) -> 1.362384577 | S15: =OFFSET($E$497,MATCH($D10,NAMES!$D$6:$D$22,0),MATCH(S$10,DATES,0)) -> 1.376008423 | T15: =OFFSET($E$497,MATCH($D10,NAMES!$D$6:$D$22,0),MATCH(T$10,DATES,0)) -> 1.389768507 | U15: =OFFSET($E$497,MATCH($D10,NAMES!$D$6:$D$22,0),MATCH(U$10,DATES,0)) -> 1.403666193 | V15: =OFFSET($E$497,MATCH($D10,NAMES!$D$6:$D$22,0),MATCH(V$10,DATES,0)) -> 1.417702854 | W15: =OFFSET($E$497,MATCH($D10,NAMES!$D$6:$D$22,0),MATCH(W$10,DATES,0)) -> 1.431879883 | X15: =OFFSET($E$497,MATCH($D10,NAMES!$D$6:$D$22,0),MATCH(X$10,DATES,0)) -> 1.446198682 | Y15: =OFFSET($E$497,MATCH($D10,NAMES!$D$6:$D$22,0),MATCH(Y$10,DATES,0)) -> 1.460660669 | Z15: =OFFSET($E$497,MATCH($D10,NAMES!$D$6:$D$22,0),MATCH(Z$10,DATES,0)) -> 1.475267275 | AA15: =OFFSET($E$497,MATCH($D10,NAMES!$D$6:$D$22,0),MATCH(AA$10,DATES,0)) -> 1.490019948 | AB15: =OFFSET($E$497,MATCH($D10,NAMES!$D$6:$D$22,0),MATCH(AB$10,DATES,0)) -> 1.504920148 | AC15: =OFFSET($E$497,MATCH($D10,NAMES!$D$6:$D$22,0),MATCH(AC$10,DATES,0)) -> 1.519969349 | AD15: =OFFSET($E$497,MATCH($D10,NAMES!$D$6:$D$22,0),MATCH(AD$10,DATES,0)) -> 1.535169043 | AE15: =OFFSET($E$497,MATCH($D10,NAMES!$D$6:$D$22,0),MATCH(AE$10,DATES,0)) -> 1.550520733 | AF15: =OFFSET($E$497,MATCH($D10,NAMES!$D$6:$D$22,0),MATCH(AF$10,DATES,0)) -> 1.56602594 | AG15: =OFFSET($E$497,MATCH($D10,NAMES!$D$6:$D$22,0),MATCH(AG$10,DATES,0)) -> 1.5816862 | AH15: =OFFSET($E$497,MATCH($D10,NAMES!$D$6:$D$22,0),MATCH(AH$10,DATES,0)) -> 1.597503062 | AI15: =OFFSET($E$497,MATCH($D10,NAMES!$D$6:$D$22,0),MATCH(AI$10,DATES,0)) -> 1.613478092 | AJ15: =OFFSET($E$497,MATCH($D10,NAMES!$D$6:$D$22,0),MATCH(AJ$10,DATES,0)) -> 1.629612873 | AK15: =OFFSET($E$497,MATCH($D10,NAMES!$D$6:$D$22,0),MATCH(AK$10,DATES,0)) -> 1.645909002 | AL15: =OFFSET($E$497,MATCH($D10,NAMES!$D$6:$D$22,0),MATCH(AL$10,DATES,0)) -> 1.662368092 | AM15: =OFFSET($E$497,MATCH($D10,NAMES!$D$6:$D$22,0),MATCH(AM$10,DATES,0)) -> 1.678991773 | AN15: =OFFSET($E$497,MATCH($D10,NAMES!$D$6:$D$22,0),MATCH(AN$10,DATES,0)) -> 1.695781691 | AO15: =OFFSET($E$497,MATCH($D10,NAMES!$D$6:$D$22,0),MATCH(AO$10,DATES,0)) -> 1.712739508 | AP15: =OFFSET($E$497,MATCH($D10,NAMES!$D$6:$D$22,0),MATCH(AP$10,DATES,0)) -> 1.729866903
D17: PG2 | F17: =Base_Year - 1 -> 2011 | G17: =OFFSET(G17,0,-1)+1 -> 2012 | H17: =OFFSET(H17,0,-1)+1 -> 2013 | I17: 2014 | J17: 2015 | K17: 2016 | L17: 2017 | M17: 2018 | N17: 2019 | O17: 2020 | P17: 2021 | Q17: 2022 | R17: 2023 | S17: 2024 | T17: 2025 | U17: 2026 | V17: 2027 | W17: 2028 | X17: 2029 | Y17: 2030 | Z17: 2031 | AA17: 2032 | AB17: 2033 | AC17: 2034 | AD17: 2035 | AE17: 2036 | AF17: 2037 | AG17: 2038 | AH17: 2039 | AI17: 2040 | AJ17: 2041 | AK17: 2042 | AL17: 2043 | AM17: 2044 | AN17: 2045 | AO17: 2046 | AP17: 2047
D18: =VLOOKUP(D17,PC_Table,2,FALSE) -> Cable Video Client | E18: Baseline | F18: =F$519*OFFSET(F18,4,0) -> 0.0007075546938 | G18: =G$519*OFFSET(G18,4,0) -> 0.07731878877 | H18: 0.1178247762 | I18: 0.2048238859 | J18: 0.3250007633 | K18: 0.4451776407 | L18: 0.4496294171 | M18: 0.4541257112 | N18: 0.4013335973 | O18: 0.3474402285 | P18: 0.292428859 | Q18: 0.2362825181 | R18: 0.1789840074 | S18: 0.1205158983 | T18: 0.06086052867 | U18: 0 | V18: 0 | W18: 0 | X18: 0 | Y18: 0 | Z18: 0 | AA18: 0 | AB18: 0 | AC18: 0 | AD18: 0 | AE18: 0 | AF18: 0 | AG18: 0 | AH18: 0 | AI18: 0 | AJ18: 0 | AK18: 0 | AL18: 0 | AM18: 0 | AN18: 0 | AO18: 0 | AP18: 0
E19: EL 1 | F19: =F$520*OFFSET(F19,3,0) -> 0.0005660437551 | G19: =G$520*OFFSET(G19,3,0) -> 0.06185503102 | H19: 0.09425982095 | I19: 0.1638591087 | J19: 0.2600006106 | K19: 0.3561421125 | L19: 0.3597035337 | M19: 0.363300569 | N19: 0.3784002489 | O19: 0.3937655923 | P19: 0.4094004026 | Q19: 0.4253085325 | R19: 0.441493885 | S19: 0.4579604137 | T19: 0.4747121236 | U19: 0.4917530716 | V19: 0.4966706023 | W19: 0.5016373084 | X19: 0.5066536814 | Y19: 0.5117202183 | Z19: 0.5168374204 | AA19: 0.5220057946 | AB19: 0.5272258526 | AC19: 0.5324981111 | AD19: 0.5378230922 | AE19: 0.5432013231 | AF19: 0.5486333364 | AG19: 0.5541196697 | AH19: 0.5596608664 | AI19: 0.5652574751 | AJ19: 0.5709100499 | AK19: 0.5766191504 | AL19: 0.5823853419 | AM19: 0.5882091953 | AN19: 0.5940912872 | AO19: 0.6000322001 | AP19: 0.6060325221
E20: EL 2 | F20: =F$521*OFFSET(F20,2,0) -> 0.0001415109388 | G20: =G$521*OFFSET(G20,2,0) -> 0.01546375775 | H20: 0.02356495524 | I20: 0.04096477719 | J20: 0.06500015266 | K20: 0.08903552813 | L20: 0.08992588341 | M20: 0.09082514225 | N20: 0.1261334163 | O20: 0.1621387733 | P20: 0.1988516241 | Q20: 0.2362825181 | R20: 0.2744421448 | S20: 0.3133413357 | T20: 0.3529910663 | U20: 0.3934024573 | V20: 0.3973364819 | W20: 0.4013098467 | X20: 0.4053229452 | Y20: 0.4093761746 | Z20: 0.4134699363 | AA20: 0.4176046357 | AB20: 0.4217806821 | AC20: 0.4259984889 | AD20: 0.4302584738 | AE20: 0.4345610585 | AF20: 0.4389066691 | AG20: 0.4432957358 | AH20: 0.4477286932 | AI20: 0.4522059801 | AJ20: 0.4567280399 | AK20: 0.4612953203 | AL20: 0.4659082735 | AM20: 0.4705673562 | AN20: 0.4752730298 | AO20: 0.4800257601 | AP20: 0.4848260177
E21: EL 3 | F21: =F$522*OFFSET(F21,1,0) -> 0 | G21: =G$522*OFFSET(G21,1,0) -> 0 | H21: 0 | I21: 0 | J21: 0 | K21: 0 | L21: 0 | M21: 0 | N21: 0.01146667421 | O21: 0.0231626819 | P21: 0.03509146308 | Q21: 0.04725650362 | R21: 0.05966133582 | S21: 0.07230953901 | T21: 0.08520474013 | U21: 0.09835061432 | V21: 0.09933412047 | W21: 0.1003274617 | X21: 0.1013307363 | Y21: 0.1023440437 | Z21: 0.1033674841 | AA21: 0.1044011589 | AB21: 0.1054451705 | AC21: 0.1064996222 | AD21: 0.1075646184 | AE21: 0.1086402646 | AF21: 0.1097266673 | AG21: 0.1108239339 | AH21: 0.1119321733 | AI21: 0.113051495 | AJ21: 0.11418201 | AK21: 0.1153238301 | AL21: 0.1164770684 | AM21: 0.1176418391 | AN21: 0.1188182574 | AO21: 0.12000644 | AP21: 0.1212065044
E22: Total | F22: =OFFSET($E$497,MATCH($D17,NAMES!$D$6:$D$22,0),MATCH(F$10,DATES,0)) -> 0.001415109388 | G22: =OFFSET($E$497,MATCH($D17,NAMES!$D$6:$D$22,0),MATCH(G$10,DATES,0)) -> 0.1546375775 | H22: =OFFSET($E$497,MATCH($D17,NAMES!$D$6:$D$22,0),MATCH(H$10,DATES,0)) -> 0.2356495524 | I22: =OFFSET($E$497,MATCH($D17,NAMES!$D$6:$D$22,0),MATCH(I$10,DATES,0)) -> 0.4096477719 | J22: =OFFSET($E$497,MATCH($D17,NAMES!$D$6:$D$22,0),MATCH(J$10,DATES,0)) -> 0.6500015266 | K22: =OFFSET($E$497,MATCH($D17,NAMES!$D$6:$D$22,0),MATCH(K$10,DATES,0)) -> 0.8903552813 | L22: =OFFSET($E$497,MATCH($D17,NAMES!$D$6:$D$22,0),MATCH(L$10,DATES,0)) -> 0.8992588341 | M22: =OFFSET($E$497,MATCH($D17,NAMES!$D$6:$D$22,0),MATCH(M$10,DATES,0)) -> 0.9082514225 | N22: =OFFSET($E$497,MATCH($D17,NAMES!$D$6:$D$22,0),MATCH(N$10,DATES,0)) -> 0.9173339367 | O22: =OFFSET($E$497,MATCH($D17,NAMES!$D$6:$D$22,0),MATCH(O$10,DATES,0)) -> 0.9265072761 | P22: =OFFSET($E$497,MATCH($D17,NAMES!$D$6:$D$22,0),MATCH(P$10,DATES,0)) -> 0.9357723488 | Q22: =OFFSET($E$497,MATCH($D17,NAMES!$D$6:$D$22,0),MATCH(Q$10,DATES,0)) -> 0.9451300723 | R22: =OFFSET($E$497,MATCH($D17,NAMES!$D$6:$D$22,0),MATCH(R$10,DATES,0)) -> 0.954581373 | S22: =OFFSET($E$497,MATCH($D17,NAMES!$D$6:$D$22,0),MATCH(S$10,DATES,0)) -> 0.9641271868 | T22: =OFFSET($E$497,MATCH($D17,NAMES!$D$6:$D$22,0),MATCH(T$10,DATES,0)) -> 0.9737684586 | U22: =OFFSET($E$497,MATCH($D17,NAMES!$D$6:$D$22,0),MATCH(U$10,DATES,0)) -> 0.9835061432 | V22: =OFFSET($E$497,MATCH($D17,NAMES!$D$6:$D$22,0),MATCH(V$10,DATES,0)) -> 0.9933412047 | W22: =OFFSET($E$497,MATCH($D17,NAMES!$D$6:$D$22,0),MATCH(W$10,DATES,0)) -> 1.003274617 | X22: =OFFSET($E$497,MATCH($D17,NAMES!$D$6:$D$22,0),MATCH(X$10,DATES,0)) -> 1.013307363 | Y22: =OFFSET($E$497,MATCH($D17,NAMES!$D$6:$D$22,0),MATCH(Y$10,DATES,0)) -> 1.023440437 | Z22: =OFFSET($E$497,MATCH($D17,NAMES!$D$6:$D$22,0),MATCH(Z$10,DATES,0)) -> 1.033674841 | AA22: =OFFSET($E$497,MATCH($D17,NAMES!$D$6:$D$22,0),MATCH(AA$10,DATES,0)) -> 1.044011589 | AB22: =OFFSET($E$497,MATCH($D17,NAMES!$D$6:$D$22,0),MATCH(AB$10,DATES,0)) -> 1.054451705 | AC22: =OFFSET($E$497,MATCH($D17,NAMES!$D$6:$D$22,0),MATCH(AC$10,DATES,0)) -> 1.064996222 | AD22: =OFFSET($E$497,MATCH($D17,NAMES!$D$6:$D$22,0),MATCH(AD$10,DATES,0)) -> 1.075646184 | AE22: =OFFSET($E$497,MATCH($D17,NAMES!$D$6:$D$22,0),MATCH(AE$10,DATES,0)) -> 1.086402646 | AF22: =OFFSET($E$497,MATCH($D17,NAMES!$D$6:$D$22,0),MATCH(AF$10,DATES,0)) -> 1.097266673 | AG22: =OFFSET($E$497,MATCH($D17,NAMES!$D$6:$D$22,0),MATCH(AG$10,DATES,0)) -> 1.108239339 | AH22: =OFFSET($E$497,MATCH($D17,NAMES!$D$6:$D$22,0),MATCH(AH$10,DATES,0)) -> 1.119321733 | AI22: =OFFSET($E$497,MATCH($D17,NAMES!$D$6:$D$22,0),MATCH(AI$10,DATES,0)) -> 1.13051495 | AJ22: =OFFSET($E$497,MATCH($D17,NAMES!$D$6:$D$22,0),MATCH(AJ$10,DATES,0)) -> 1.1418201 | AK22: =OFFSET($E$497,MATCH($D17,NAMES!$D$6:$D$22,0),MATCH(AK$10,DATES,0)) -> 1.153238301 | AL22: =OFFSET($E$497,MATCH($D17,NAMES!$D$6:$D$22,0),MATCH(AL$10,DATES,0)) -> 1.164770684 | AM22: =OFFSET($E$497,MATCH($D17,NAMES!$D$6:$D$22,0),MATCH(AM$10,DATES,0)) -> 1.176418391 | AN22: =OFFSET($E$497,MATCH($D17,NAMES!$D$6:$D$22,0),MATCH(AN$10,DATES,0)) -> 1.188182574 | AO22: =OFFSET($E$497,MATCH($D17,NAMES!$D$6:$D$22,0),MATCH(AO$10,DATES,0)) -> 1.2000644 | AP22: =OFFSET($E$497,MATCH($D17,NAMES!$D$6:$D$22,0),MATCH(AP$10,DATES,0)) -> 1.212065044
D24: PG3 | F24: =Base_Year - 1 -> 2011 | G24: =OFFSET(G24,0,-1)+1 -> 2012 | H24: =OFFSET(H24,0,-1)+1 -> 2013 | I24: 2014 | J24: 2015 | K24: 2016 | L24: 2017 | M24: 2018 | N24: 2019 | O24: 2020 | P24: 2021 | Q24: 2022 | R24: 2023 | S24: 2024 | T24: 2025 | U24: 2026 | V24: 2027 | W24: 2028 | X24: 2029 | Y24: 2030 | Z24: 2031 | AA24: 2032 | AB24: 2033 | AC24: 2034 | AD24: 2035 | AE24: 2036 | AF24: 2037 | AG24: 2038 | AH24: 2039 | AI24: 2040 | AJ24: 2041 | AK24: 2042 | AL24: 2043 | AM24: 2044 | AN24: 2045 | AO24: 2046 | AP24: 2047
D25: =VLOOKUP(D24,PC_Table,2,FALSE) -> Cable Video Server | E25: Baseline | F25: =F$519*OFFSET(F25,4,0) -> 0.5662661388 | G25: =G$519*OFFSET(G25,4,0) -> 0.3742562098 | H25: 0.4381281076 | I25: 0.6168390331 | J25: 0.6440960575 | K25: 0.6713530819 | L25: 0.6780666127 | M25: 0.6848472789 | N25: 0.6052337827 | O25: 0.5239595319 | P25: 0.4409992727 | Q25: 0.3563274123 | R25: 0.2699180148 | S25: 0.1817447966 | T25: 0.09178112231 | U25: 0 | V25: 0 | W25: 0 | X25: 0 | Y25: 0 | Z25: 0 | AA25: 0 | AB25: 0 | AC25: 0 | AD25: 0 | AE25: 0 | AF25: 0 | AG25: 0 | AH25: 0 | AI25: 0 | AJ25: 0 | AK25: 0 | AL25: 0 | AM25: 0 | AN25: 0 | AO25: 0 | AP25: 0
E26: EL 1 | F26: =F$520*OFFSET(F26,3,0) -> 0.453012911 | G26: =G$520*OFFSET(G26,3,0) -> 0.2994049678 | H26: 0.350502486 | I26: 0.4934712265 | J26: 0.515276846 | K26: 0.5370824655 | L26: 0.5424532902 | M26: 0.5478778231 | N26: 0.5706489951 | O26: 0.5938208028 | P26: 0.6173989817 | Q26: 0.6413893421 | R26: 0.6657977699 | S26: 0.6906302273 | T26: 0.715892754 | U26: 0.7415914682 | V26: 0.7490073829 | W26: 0.7564974567 | X26: 0.7640624313 | Y26: 0.7717030556 | Z26: 0.7794200862 | AA26: 0.787214287 | AB26: 0.7950864299 | AC26: 0.8030372942 | AD26: 0.8110676672 | AE26: 0.8191783438 | AF26: 0.8273701273 | AG26: 0.8356438285 | AH26: 0.8440002668 | AI26: 0.8524402695 | AJ26: 0.8609646722 | AK26: 0.8695743189 | AL26: 0.8782700621 | AM26: 0.8870527627 | AN26: 0.8959232903 | AO26: 0.9048825233 | AP26: 0.9139313485
E27: EL 2 | F27: =F$521*OFFSET(F27,2,0) -> 0.1132532278 | G27: =G$521*OFFSET(G27,2,0) -> 0.07485124196 | H27: 0.08762562151 | I27: 0.1233678066 | J27: 0.1288192115 | K27: 0.1342706164 | L27: 0.1356133225 | M27: 0.1369694558 | N27: 0.1902163317 | O27: 0.2445144482 | P27: 0.2998795054 | Q27: 0.3563274123 | R27: 0.4138742894 | S27: 0.4725364713 | T27: 0.5323305094 | U27: 0.5932731746 | V27: 0.5992059063 | W27: 0.6051979654 | X27: 0.6112499451 | Y27: 0.6173624445 | Z27: 0.6235360689 | AA27: 0.6297714296 | AB27: 0.6360691439 | AC27: 0.6424298354 | AD27: 0.6488541337 | AE27: 0.6553426751 | AF27: 0.6618961018 | AG27: 0.6685150628 | AH27: 0.6752002135 | AI27: 0.6819522156 | AJ27: 0.6887717378 | AK27: 0.6956594551 | AL27: 0.7026160497 | AM27: 0.7096422102 | AN27: 0.7167386323 | AO27: 0.7239060186 | AP27: 0.7311450788
E28: EL 3 | F28: =F$522*OFFSET(F28,1,0) -> 0 | G28: =G$522*OFFSET(G28,1,0) -> 0 | H28: 0 | I28: 0 | J28: 0 | K28: 0 | L28: 0 | M28: 0 | N28: 0.01729239379 | O28: 0.03493063546 | P28: 0.05291991272 | Q28: 0.07126548246 | R28: 0.08997267161 | S28: 0.109046878 | T28: 0.1284935712 | U28: 0.1483182936 | V28: 0.1498014766 | W28: 0.1512994913 | X28: 0.1528124863 | Y28: 0.1543406111 | Z28: 0.1558840172 | AA28: 0.1574428574 | AB28: 0.159017286 | AC28: 0.1606074588 | AD28: 0.1622135334 | AE28: 0.1638356688 | AF28: 0.1654740255 | AG28: 0.1671287657 | AH28: 0.1688000534 | AI28: 0.1704880539 | AJ28: 0.1721929344 | AK28: 0.1739148638 | AL28: 0.1756540124 | AM28: 0.1774105525 | AN28: 0.1791846581 | AO28: 0.1809765047 | AP28: 0.1827862697
E29: Total | F29: =OFFSET($E$497,MATCH($D24,NAMES!$D$6:$D$22,0),MATCH(F$10,DATES,0)) -> 1.132532278 | G29: =OFFSET($E$497,MATCH($D24,NAMES!$D$6:$D$22,0),MATCH(G$10,DATES,0)) -> 0.7485124196 | H29: =OFFSET($E$497,MATCH($D24,NAMES!$D$6:$D$22,0),MATCH(H$10,DATES,0)) -> 0.8762562151 | I29: =OFFSET($E$497,MATCH($D24,NAMES!$D$6:$D$22,0),MATCH(I$10,DATES,0)) -> 1.233678066 | J29: =OFFSET($E$497,MATCH($D24,NAMES!$D$6:$D$22,0),MATCH(J$10,DATES,0)) -> 1.288192115 | K29: =OFFSET($E$497,MATCH($D24,NAMES!$D$6:$D$22,0),MATCH(K$10,DATES,0)) -> 1.342706164 | L29: =OFFSET($E$497,MATCH($D24,NAMES!$D$6:$D$22,0),MATCH(L$10,DATES,0)) -> 1.356133225 | M29: =OFFSET($E$497,MATCH($D24,NAMES!$D$6:$D$22,0),MATCH(M$10,DATES,0)) -> 1.369694558 | N29: =OFFSET($E$497,MATCH($D24,NAMES!$D$6:$D$22,0),MATCH(N$10,DATES,0)) -> 1.383391503 | O29: =OFFSET($E$497,MATCH($D24,NAMES!$D$6:$D$22,0),MATCH(O$10,DATES,0)) -> 1.397225418 | P29: =OFFSET($E$497,MATCH($D24,NAMES!$D$6:$D$22,0),MATCH(P$10,DATES,0)) -> 1.411197672 | Q29: =OFFSET($E$497,MATCH($D24,NAMES!$D$6:$D$22,0),MATCH(Q$10,DATES,0)) -> 1.425309649 | R29: =OFFSET($E$497,MATCH($D24,NAMES!$D$6:$D$22,0),MATCH(R$10,DATES,0)) -> 1.439562746 | S29: =OFFSET($E$497,MATCH($D24,NAMES!$D$6:$D$22,0),MATCH(S$10,DATES,0)) -> 1.453958373 | T29: =OFFSET($E$497,MATCH($D24,NAMES!$D$6:$D$22,0),MATCH(T$10,DATES,0)) -> 1.468497957 | U29: =OFFSET($E$497,MATCH($D24,NAMES!$D$6:$D$22,0),MATCH(U$10,DATES,0)) -> 1.483182936 | V29: =OFFSET($E$497,MATCH($D24,NAMES!$D$6:$D$22,0),MATCH(V$10,DATES,0)) -> 1.498014766 | W29: =OFFSET($E$497,MATCH($D24,NAMES!$D$6:$D$22,0),MATCH(W$10,DATES,0)) -> 1.512994913 | X29: =OFFSET($E$497,MATCH($D24,NAMES!$D$6:$D$22,0),MATCH(X$10,DATES,0)) -> 1.528124863 | Y29: =OFFSET($E$497,MATCH($D24,NAMES!$D$6:$D$22,0),MATCH(Y$10,DATES,0)) -> 1.543406111 | Z29: =OFFSET($E$497,MATCH($D24,NAMES!$D$6:$D$22,0),MATCH(Z$10,DATES,0)) -> 1.558840172 | AA29: =OFFSET($E$497,MATCH($D24,NAMES!$D$6:$D$22,0),MATCH(AA$10,DATES,0)) -> 1.574428574 | AB29: =OFFSET($E$497,MATCH($D24,NAMES!$D$6:$D$22,0),MATCH(AB$10,DATES,0)) -> 1.59017286 | AC29: =OFFSET($E$497,MATCH($D24,NAMES!$D$6:$D$22,0),MATCH(AC$10,DATES,0)) -> 1.606074588 | AD29: =OFFSET($E$497,MATCH($D24,NAMES!$D$6:$D$22,0),MATCH(AD$10,DATES,0)) -> 1.622135334 | AE29: =OFFSET($E$497,MATCH($D24,NAMES!$D$6:$D$22,0),MATCH(AE$10,DATES,0)) -> 1.638356688 | AF29: =OFFSET($E$497,MATCH($D24,NAMES!$D$6:$D$22,0),MATCH(AF$10,DATES,0)) -> 1.654740255 | AG29: =OFFSET($E$497,MATCH($D24,NAMES!$D$6:$D$22,0),MATCH(AG$10,DATES,0)) -> 1.671287657 | AH29: =OFFSET($E$497,MATCH($D24,NAMES!$D$6:$D$22,0),MATCH(AH$10,DATES,0)) -> 1.688000534 | AI29: =OFFSET($E$497,MATCH($D24,NAMES!$D$6:$D$22,0),MATCH(AI$10,DATES,0)) -> 1.704880539 | AJ29: =OFFSET($E$497,MATCH($D24,NAMES!$D$6:$D$22,0),MATCH(AJ$10,DATES,0)) -> 1.721929344 | AK29: =OFFSET($E$497,MATCH($D24,NAMES!$D$6:$D$22,0),MATCH(AK$10,DATES,0)) -> 1.739148638 | AL29: =OFFSET($E$497,MATCH($D24,NAMES!$D$6:$D$22,0),MATCH(AL$10,DATES,0)) -> 1.756540124 | AM29: =OFFSET($E$497,MATCH($D24,NAMES!$D$6:$D$22,0),MATCH(AM$10,DATES,0)) -> 1.774105525 | AN29: =OFFSET($E$497,MATCH($D24,NAMES!$D$6:$D$22,0),MATCH(AN$10,DATES,0)) -> 1.791846581 | AO29: =OFFSET($E$497,MATCH($D24,NAMES!$D$6:$D$22,0),MATCH(AO$10,DATES,0)) -> 1.809765047 | AP29: =OFFSET($E$497,MATCH($D24,NAMES!$D$6:$D$22,0),MATCH(AP$10,DATES,0)) -> 1.827862697
D31: PG4 | F31: =Base_Year - 1 -> 2011 | G31: =OFFSET(G31,0,-1)+1 -> 2012 | H31: =OFFSET(H31,0,-1)+1 -> 2013 | I31: 2014 | J31: 2015 | K31: 2016 | L31: 2017 | M31: 2018 | N31: 2019 | O31: 2020 | P31: 2021 | Q31: 2022 | R31: 2023 | S31: 2024 | T31: 2025 | U31: 2026 | V31: 2027 | W31: 2028 | X31: 2029 | Y31: 2030 | Z31: 2031 | AA31: 2032 | AB31: 2033 | AC31: 2034 | AD31: 2035 | AE31: 2036 | AF31: 2037 | AG31: 2038 | AH31: 2039 | AI31: 2040 | AJ31: 2041 | AK31: 2042 | AL31: 2043 | AM31: 2044 | AN31: 2045 | AO31: 2046 | AP31: 2047
D32: =VLOOKUP(D31,PC_Table,2,FALSE) -> Cable with DVR | E32: Baseline | F32: =F$519*OFFSET(F32,4,0) -> 1.43688797 | G32: =G$519*OFFSET(G32,4,0) -> 0.9496669655 | H32: 1.111740512 | I32: 1.565215586 | J32: 1.634379691 | K32: 1.703543795 | L32: 1.720579233 | M32: 1.737785026 | N32: 1.535767516 | O32: 1.329535878 | P32: 1.119026031 | Q32: 0.9041730331 | R32: 0.6849110726 | S32: 0.4611734555 | T32: 0.232892595 | U32: 0 | V32: 0 | W32: 0 | X32: 0 | Y32: 0 | Z32: 0 | AA32: 0 | AB32: 0 | AC32: 0 | AD32: 0 | AE32: 0 | AF32: 0 | AG32: 0 | AH32: 0 | AI32: 0 | AJ32: 0 | AK32: 0 | AL32: 0 | AM32: 0 | AN32: 0 | AO32: 0 | AP32: 0
E33: EL 1 | F33: =F$520*OFFSET(F33,3,0) -> 1.149510376 | G33: =G$520*OFFSET(G33,3,0) -> 0.7597335724 | H33: 0.8893924098 | I33: 1.252172469 | J33: 1.307503753 | K33: 1.362835036 | L33: 1.376463387 | M33: 1.39022802 | N33: 1.448009373 | O33: 1.506807329 | P33: 1.566636443 | Q33: 1.62751146 | R33: 1.689447312 | S33: 1.752459131 | T33: 1.816562241 | U33: 1.881772168 | V33: 1.90058989 | W33: 1.919595789 | X33: 1.938791746 | Y33: 1.958179664 | Z33: 1.97776146 | AA33: 1.997539075 | AB33: 2.017514466 | AC33: 2.037689611 | AD33: 2.058066507 | AE33: 2.078647172 | AF33: 2.099433643 | AG33: 2.12042798 | AH33: 2.14163226 | AI33: 2.163048582 | AJ33: 2.184679068 | AK33: 2.206525859 | AL33: 2.228591117 | AM33: 2.250877028 | AN33: 2.273385799 | AO33: 2.296119657 | AP33: 2.319080853
E34: EL 2 | F34: =F$521*OFFSET(F34,2,0) -> 0.2873775941 | G34: =G$521*OFFSET(G34,2,0) -> 0.1899333931 | H34: 0.2223481025 | I34: 0.3130431172 | J34: 0.3268759381 | K34: 0.3407087591 | L34: 0.3441158467 | M34: 0.3475570051 | N34: 0.4826697909 | O34: 0.6204500766 | P34: 0.7609377011 | Q34: 0.9041730331 | R34: 1.050196978 | S34: 1.199050984 | T34: 1.350777051 | U34: 1.505417734 | V34: 1.520471912 | W34: 1.535676631 | X34: 1.551033397 | Y34: 1.566543731 | Z34: 1.582209168 | AA34: 1.59803126 | AB34: 1.614011573 | AC34: 1.630151688 | AD34: 1.646453205 | AE34: 1.662917737 | AF34: 1.679546915 | AG34: 1.696342384 | AH34: 1.713305808 | AI34: 1.730438866 | AJ34: 1.747743254 | AK34: 1.765220687 | AL34: 1.782872894 | AM34: 1.800701623 | AN34: 1.818708639 | AO34: 1.836895725 | AP34: 1.855264683
E35: EL 3 | F35: =F$522*OFFSET(F35,1,0) -> 0 | G35: =G$522*OFFSET(G35,1,0) -> 0 | H35: 0 | I35: 0 | J35: 0 | K35: 0 | L35: 0 | M35: 0 | N35: 0.0438790719 | O35: 0.08863572523 | P35: 0.1342831237 | Q35: 0.1808346066 | R35: 0.2283036909 | S35: 0.2767040733 | T35: 0.3260496331 | U35: 0.3763544336 | V35: 0.3801179779 | W35: 0.3839191577 | X35: 0.3877583493 | Y35: 0.3916359328 | Z35: 0.3955522921 | AA35: 0.399507815 | AB35: 0.4035028932 | AC35: 0.4075379221 | AD35: 0.4116133013 | AE35: 0.4157294343 | AF35: 0.4198867287 | AG35: 0.424085596 | AH35: 0.4283264519 | AI35: 0.4326097164 | AJ35: 0.4369358136 | AK35: 0.4413051717 | AL35: 0.4457182235 | AM35: 0.4501754057 | AN35: 0.4546771598 | AO35: 0.4592239314 | AP35: 0.4638161707
E36: Total | F36: =OFFSET($E$497,MATCH($D31,NAMES!$D$6:$D$22,0),MATCH(F$10,DATES,0)) -> 2.873775941 | G36: =OFFSET($E$497,MATCH($D31,NAMES!$D$6:$D$22,0),MATCH(G$10,DATES,0)) -> 1.899333931 | H36: =OFFSET($E$497,MATCH($D31,NAMES!$D$6:$D$22,0),MATCH(H$10,DATES,0)) -> 2.223481025 | I36: =OFFSET($E$497,MATCH($D31,NAMES!$D$6:$D$22,0),MATCH(I$10,DATES,0)) -> 3.130431172 | J36: =OFFSET($E$497,MATCH($D31,NAMES!$D$6:$D$22,0),MATCH(J$10,DATES,0)) -> 3.268759381 | K36: =OFFSET($E$497,MATCH($D31,NAMES!$D$6:$D$22,0),MATCH(K$10,DATES,0)) -> 3.407087591 | L36: =OFFSET($E$497,MATCH($D31,NAMES!$D$6:$D$22,0),MATCH(L$10,DATES,0)) -> 3.441158467 | M36: =OFFSET($E$497,MATCH($D31,NAMES!$D$6:$D$22,0),MATCH(M$10,DATES,0)) -> 3.475570051 | N36: =OFFSET($E$497,MATCH($D31,NAMES!$D$6:$D$22,0),MATCH(N$10,DATES,0)) -> 3.510325752 | O36: =OFFSET($E$497,MATCH($D31,NAMES!$D$6:$D$22,0),MATCH(O$10,DATES,0)) -> 3.545429009 | P36: =OFFSET($E$497,MATCH($D31,NAMES!$D$6:$D$22,0),MATCH(P$10,DATES,0)) -> 3.580883299 | Q36: =OFFSET($E$497,MATCH($D31,NAMES!$D$6:$D$22,0),MATCH(Q$10,DATES,0)) -> 3.616692132 | R36: =OFFSET($E$497,MATCH($D31,NAMES!$D$6:$D$22,0),MATCH(R$10,DATES,0)) -> 3.652859054 | S36: =OFFSET($E$497,MATCH($D31,NAMES!$D$6:$D$22,0),MATCH(S$10,DATES,0)) -> 3.689387644 | T36: =OFFSET($E$497,MATCH($D31,NAMES!$D$6:$D$22,0),MATCH(T$10,DATES,0)) -> 3.726281521 | U36: =OFFSET($E$497,MATCH($D31,NAMES!$D$6:$D$22,0),MATCH(U$10,DATES,0)) -> 3.763544336 | V36: =OFFSET($E$497,MATCH($D31,NAMES!$D$6:$D$22,0),MATCH(V$10,DATES,0)) -> 3.801179779 | W36: =OFFSET($E$497,MATCH($D31,NAMES!$D$6:$D$22,0),MATCH(W$10,DATES,0)) -> 3.839191577 | X36: =OFFSET($E$497,MATCH($D31,NAMES!$D$6:$D$22,0),MATCH(X$10,DATES,0)) -> 3.877583493 | Y36: =OFFSET($E$497,MATCH($D31,NAMES!$D$6:$D$22,0),MATCH(Y$10,DATES,0)) -> 3.916359328 | Z36: =OFFSET($E$497,MATCH($D31,NAMES!$D$6:$D$22,0),MATCH(Z$10,DATES,0)) -> 3.955522921 | AA36: =OFFSET($E$497,MATCH($D31,NAMES!$D$6:$D$22,0),MATCH(AA$10,DATES,0)) -> 3.99507815 | AB36: =OFFSET($E$497,MATCH($D31,NAMES!$D$6:$D$22,0),MATCH(AB$10,DATES,0)) -> 4.035028932 | AC36: =OFFSET($E$497,MATCH($D31,NAMES!$D$6:$D$22,0),MATCH(AC$10,DATES,0)) -> 4.075379221 | AD36: =OFFSET($E$497,MATCH($D31,NAMES!$D$6:$D$22,0),MATCH(AD$10,DATES,0)) -> 4.116133013 | AE36: =OFFSET($E$497,MATCH($D31,NAMES!$D$6:$D$22,0),MATCH(AE$10,DATES,0)) -> 4.157294343 | AF36: =OFFSET($E$497,MATCH($D31,NAMES!$D$6:$D$22,0),MATCH(AF$10,DATES,0)) -> 4.198867287 | AG36: =OFFSET($E$497,MATCH($D31,NAMES!$D$6:$D$22,0),MATCH(AG$10,DATES,0)) -> 4.24085596 | AH36: =OFFSET($E$497,MATCH($D31,NAMES!$D$6:$D$22,0),MATCH(AH$10,DATES,0)) -> 4.283264519 | AI36: =OFFSET($E$497,MATCH($D31,NAMES!$D$6:$D$22,0),MATCH(AI$10,DATES,0)) -> 4.326097164 | AJ36: =OFFSET($E$497,MATCH($D31,NAMES!$D$6:$D$22,0),MATCH(AJ$10,DATES,0)) -> 4.369358136 | AK36: =OFFSET($E$497,MATCH($D31,NAMES!$D$6:$D$22,0),MATCH(AK$10,DATES,0)) -> 4.413051717 | AL36: =OFFSET($E$497,MATCH($D31,NAMES!$D$6:$D$22,0),MATCH(AL$10,DATES,0)) -> 4.457182235 | AM36: =OFFSET($E$497,MATCH($D31,NAMES!$D$6:$D$22,0),MATCH(AM$10,DATES,0)) -> 4.501754057 | AN36: =OFFSET($E$497,MATCH($D31,NAMES!$D$6:$D$22,0),MATCH(AN$10,DATES,0)) -> 4.546771598 | AO36: =OFFSET($E$497,MATCH($D31,NAMES!$D$6:$D$22,0),MATCH(AO$10,DATES,0)) -> 4.592239314 | AP36: =OFFSET($E$497,MATCH($D31,NAMES!$D$6:$D$22,0),MATCH(AP$10,DATES,0)) -> 4.638161707
D38: PG5 | F38: =Base_Year - 1 -> 2011 | G38: =OFFSET(G38,0,-1)+1 -> 2012 | H38: =OFFSET(H38,0,-1)+1 -> 2013 | I38: 2014 | J38: 2015 | K38: 2016 | L38: 2017 | M38: 2018 | N38: 2019 | O38: 2020 | P38: 2021 | Q38: 2022 | R38: 2023 | S38: 2024 | T38: 2025 | U38: 2026 | V38: 2027 | W38: 2028 | X38: 2029 | Y38: 2030 | Z38: 2031 | AA38: 2032 | AB38: 2033 | AC38: 2034 | AD38: 2035 | AE38: 2036 | AF38: 2037 | AG38: 2038 | AH38: 2039 | AI38: 2040 | AJ38: 2041 | AK38: 2042 | AL38: 2043 | AM38: 2044 | AN38: 2045 | AO38: 2046 | AP38: 2047
D39: =VLOOKUP(D38,PC_Table,2,FALSE) -> Cable with DVR & Video Server | E39: Baseline | F39: =F$519*OFFSET(F39,4,0) -> 1.224015678 | G39: =G$519*OFFSET(G39,4,0) -> 0.8089755632 | H39: 0.9470382142 | I39: 1.333331795 | J39: 1.392249366 | K39: 1.451166937 | L39: 1.465678606 | M39: 1.480335392 | N39: 1.308246403 | O39: 1.1325676 | P39: 0.9532443968 | Q39: 0.7702214726 | R39: 0.5834427655 | S39: 0.3928514621 | T39: 0.1983899884 | U39: 0 | V39: 0 | W39: 0 | X39: 0 | Y39: 0 | Z39: 0 | AA39: 0 | AB39: 0 | AC39: 0 | AD39: 0 | AE39: 0 | AF39: 0 | AG39: 0 | AH39: 0 | AI39: 0 | AJ39: 0 | AK39: 0 | AL39: 0 | AM39: 0 | AN39: 0 | AO39: 0 | AP39: 0
E40: EL 1 | F40: =F$520*OFFSET(F40,3,0) -> 0.9792125427 | G40: =G$520*OFFSET(G40,3,0) -> 0.6471804505 | H40: 0.7576305713 | I40: 1.066665436 | J40: 1.113799493 | K40: 1.160933549 | L40: 1.172542885 | M40: 1.184268314 | N40: 1.233489466 | O40: 1.283576614 | P40: 1.334542156 | Q40: 1.386398651 | R40: 1.439158822 | S40: 1.492835556 | T40: 1.547441909 | U40: 1.602991106 | V40: 1.619021017 | W40: 1.635211227 | X40: 1.65156334 | Y40: 1.668078973 | Z40: 1.684759763 | AA40: 1.70160736 | AB40: 1.718623434 | AC40: 1.735809668 | AD40: 1.753167765 | AE40: 1.770699443 | AF40: 1.788406437 | AG40: 1.806290501 | AH40: 1.824353406 | AI40: 1.84259694 | AJ40: 1.86102291 | AK40: 1.879633139 | AL40: 1.89842947 | AM40: 1.917413765 | AN40: 1.936587903 | AO40: 1.955953782 | AP40: 1.975513319
E41: EL 2 | F41: =F$521*OFFSET(F41,2,0) -> 0.2448031357 | G41: =G$521*OFFSET(G41,2,0) -> 0.1617951126 | H41: 0.1894076428 | I41: 0.2666663591 | J41: 0.2784498732 | K41: 0.2902333874 | L41: 0.2931357212 | M41: 0.2960670784 | N41: 0.4111631552 | O41: 0.5285315468 | P41: 0.6482061898 | Q41: 0.7702214726 | R41: 0.8946122405 | S41: 1.021413801 | T41: 1.150661933 | U41: 1.282392885 | V41: 1.295216814 | W41: 1.308168982 | X41: 1.321250672 | Y41: 1.334463178 | Z41: 1.34780781 | AA41: 1.361285888 | AB41: 1.374898747 | AC41: 1.388647735 | AD41: 1.402534212 | AE41: 1.416559554 | AF41: 1.43072515 | AG41: 1.445032401 | AH41: 1.459482725 | AI41: 1.474077552 | AJ41: 1.488818328 | AK41: 1.503706511 | AL41: 1.518743576 | AM41: 1.533931012 | AN41: 1.549270322 | AO41: 1.564763025 | AP41: 1.580410656
E42: EL 3 | F42: =F$522*OFFSET(F42,1,0) -> 0 | G42: =G$522*OFFSET(G42,1,0) -> 0 | H42: 0 | I42: 0 | J42: 0 | K42: 0 | L42: 0 | M42: 0 | N42: 0.03737846865 | O42: 0.07550450668 | P42: 0.1143893276 | Q42: 0.1540442945 | R42: 0.1944809218 | S42: 0.2357108773 | T42: 0.2777459837 | U42: 0.3205982212 | V42: 0.3238042034 | W42: 0.3270422454 | X42: 0.3303126679 | Y42: 0.3336157946 | Z42: 0.3369519525 | AA42: 0.3403214721 | AB42: 0.3437246868 | AC42: 0.3471619336 | AD42: 0.350633553 | AE42: 0.3541398885 | AF42: 0.3576812874 | AG42: 0.3612581003 | AH42: 0.3648706813 | AI42: 0.3685193881 | AJ42: 0.372204582 | AK42: 0.3759266278 | AL42: 0.3796858941 | AM42: 0.383482753 | AN42: 0.3873175805 | AO42: 0.3911907563 | AP42: 0.3951026639
E43: Total | F43: =OFFSET($E$497,MATCH($D38,NAMES!$D$6:$D$22,0),MATCH(F$10,DATES,0)) -> 2.448031357 | G43: =OFFSET($E$497,MATCH($D38,NAMES!$D$6:$D$22,0),MATCH(G$10,DATES,0)) -> 1.617951126 | H43: =OFFSET($E$497,MATCH($D38,NAMES!$D$6:$D$22,0),MATCH(H$10,DATES,0)) -> 1.894076428 | I43: =OFFSET($E$497,MATCH($D38,NAMES!$D$6:$D$22,0),MATCH(I$10,DATES,0)) -> 2.666663591 | J43: =OFFSET($E$497,MATCH($D38,NAMES!$D$6:$D$22,0),MATCH(J$10,DATES,0)) -> 2.784498732 | K43: =OFFSET($E$497,MATCH($D38,NAMES!$D$6:$D$22,0),MATCH(K$10,DATES,0)) -> 2.902333874 | L43: =OFFSET($E$497,MATCH($D38,NAMES!$D$6:$D$22,0),MATCH(L$10,DATES,0)) -> 2.931357212 | M43: =OFFSET($E$497,MATCH($D38,NAMES!$D$6:$D$22,0),MATCH(M$10,DATES,0)) -> 2.960670784 | N43: =OFFSET($E$497,MATCH($D38,NAMES!$D$6:$D$22,0),MATCH(N$10,DATES,0)) -> 2.990277492 | O43: =OFFSET($E$497,MATCH($D38,NAMES!$D$6:$D$22,0),MATCH(O$10,DATES,0)) -> 3.020180267 | P43: =OFFSET($E$497,MATCH($D38,NAMES!$D$6:$D$22,0),MATCH(P$10,DATES,0)) -> 3.05038207 | Q43: =OFFSET($E$497,MATCH($D38,NAMES!$D$6:$D$22,0),MATCH(Q$10,DATES,0)) -> 3.080885891 | R43: =OFFSET($E$497,MATCH($D38,NAMES!$D$6:$D$22,0),MATCH(R$10,DATES,0)) -> 3.111694749 | S43: =OFFSET($E$497,MATCH($D38,NAMES!$D$6:$D$22,0),MATCH(S$10,DATES,0)) -> 3.142811697 | T43: =OFFSET($E$497,MATCH($D38,NAMES!$D$6:$D$22,0),MATCH(T$10,DATES,0)) -> 3.174239814 | U43: =OFFSET($E$497,MATCH($D38,NAMES!$D$6:$D$22,0),MATCH(U$10,DATES,0)) -> 3.205982212 | V43: =OFFSET($E$497,MATCH($D38,NAMES!$D$6:$D$22,0),MATCH(V$10,DATES,0)) -> 3.238042034 | W43: =OFFSET($E$497,MATCH($D38,NAMES!$D$6:$D$22,0),MATCH(W$10,DATES,0)) -> 3.270422454 | X43: =OFFSET($E$497,MATCH($D38,NAMES!$D$6:$D$22,0),MATCH(X$10,DATES,0)) -> 3.303126679 | Y43: =OFFSET($E$497,MATCH($D38,NAMES!$D$6:$D$22,0),MATCH(Y$10,DATES,0)) -> 3.336157946 | Z43: =OFFSET($E$497,MATCH($D38,NAMES!$D$6:$D$22,0),MATCH(Z$10,DATES,0)) -> 3.369519525 | AA43: =OFFSET($E$497,MATCH($D38,NAMES!$D$6:$D$22,0),MATCH(AA$10,DATES,0)) -> 3.403214721 | AB43: =OFFSET($E$497,MATCH($D38,NAMES!$D$6:$D$22,0),MATCH(AB$10,DATES,0)) -> 3.437246868 | AC43: =OFFSET($E$497,MATCH($D38,NAMES!$D$6:$D$22,0),MATCH(AC$10,DATES,0)) -> 3.471619336 | AD43: =OFFSET($E$497,MATCH($D38,NAMES!$D$6:$D$22,0),MATCH(AD$10,DATES,0)) -> 3.50633553 | AE43: =OFFSET($E$497,MATCH($D38,NAMES!$D$6:$D$22,0),MATCH(AE$10,DATES,0)) -> 3.541398885 | AF43: =OFFSET($E$497,MATCH($D38,NAMES!$D$6:$D$22,0),MATCH(AF$10,DATES,0)) -> 3.576812874 | AG43: =OFFSET($E$497,MATCH($D38,NAMES!$D$6:$D$22,0),MATCH(AG$10,DATES,0)) -> 3.612581003 | AH43: =OFFSET($E$497,MATCH($D38,NAMES!$D$6:$D$22,0),MATCH(AH$10,DATES,0)) -> 3.648706813 | AI43: =OFFSET($E$497,MATCH($D38,NAMES!$D$6:$D$22,0),MATCH(AI$10,DATES,0)) -> 3.685193881 | AJ43: =OFFSET($E$497,MATCH($D38,NAMES!$D$6:$D$22,0),MATCH(AJ$10,DATES,0)) -> 3.72204582 | AK43: =OFFSET($E$497,MATCH($D38,NAMES!$D$6:$D$22,0),MATCH(AK$10,DATES,0)) -> 3.759266278 | AL43: =OFFSET($E$497,MATCH($D38,NAMES!$D$6:$D$22,0),MATCH(AL$10,DATES,0)) -> 3.796858941 | AM43: =OFFSET($E$497,MATCH($D38,NAMES!$D$6:$D$22,0),MATCH(AM$10,DATES,0)) -> 3.83482753 | AN43: =OFFSET($E$497,MATCH($D38,NAMES!$D$6:$D$22,0),MATCH(AN$10,DATES,0)) -> 3.873175805 | AO43: =OFFSET($E$497,MATCH($D38,NAMES!$D$6:$D$22,0),MATCH(AO$10,DATES,0)) -> 3.911907563 | AP43: =OFFSET($E$497,MATCH($D38,NAMES!$D$6:$D$22,0),MATCH(AP$10,DATES,0)) -> 3.951026639
D45: PG6 | F45: =Base_Year - 1 -> 2011 | G45: =OFFSET(G45,0,-1)+1 -> 2012 | H45: =OFFSET(H45,0,-1)+1 -> 2013 | I45: 2014 | J45: 2015 | K45: 2016 | L45: 2017 | M45: 2018 | N45: 2019 | O45: 2020 | P45: 2021 | Q45: 2022 | R45: 2023 | S45: 2024 | T45: 2025 | U45: 2026 | V45: 2027 | W45: 2028 | X45: 2029 | Y45: 2030 | Z45: 2031 | AA45: 2032 | AB45: 2033 | AC45: 2034 | AD45: 2035 | AE45: 2036 | AF45: 2037 | AG45: 2038 | AH45: 2039 | AI45: 2040 | AJ45: 2041 | AK45: 2042 | AL45: 2043 | AM45: 2044 | AN45: 2045 | AO45: 2046 | AP45: 2047
D46: =VLOOKUP(D45,PC_Table,2,FALSE) -> Satellite Base | E46: Baseline | F46: =F$519*OFFSET(F46,4,0) -> 4.021952518 | G46: =G$519*OFFSET(G46,4,0) -> 2.476267393 | H46: 2.275557778 | I46: 1.604697711 | J46: 0.960834838 | K46: 0.957377436 | L46: 0.9669512103 | M46: 0.9766207224 | N46: 0.8630885634 | O46: 0.7471880992 | P46: 0.6288833168 | Q46: 0.50813772 | R46: 0.3849143229 | S46: 0.2591756441 | T46: 0.1308837003 | U46: 0 | V46: 0 | W46: 0 | X46: 0 | Y46: 0 | Z46: 0 | AA46: 0 | AB46: 0 | AC46: 0 | AD46: 0 | AE46: 0 | AF46: 0 | AG46: 0 | AH46: 0 | AI46: 0 | AJ46: 0 | AK46: 0 | AL46: 0 | AM46: 0 | AN46: 0 | AO46: 0 | AP46: 0
E47: EL 1 | F47: =F$520*OFFSET(F47,3,0) -> 3.217562015 | G47: =G$520*OFFSET(G47,3,0) -> 1.981013914 | H47: 1.820446223 | I47: 1.283758169 | J47: 0.7686678704 | K47: 0.7659019488 | L47: 0.7735609683 | M47: 0.7812965779 | N47: 0.813769217 | O47: 0.8468131791 | P47: 0.8804366436 | Q47: 0.914647896 | R47: 0.9494553298 | S47: 0.9848674475 | T47: 1.020892862 | U47: 1.057540298 | V47: 1.068115701 | W47: 1.078796858 | X47: 1.089584827 | Y47: 1.100480675 | Z47: 1.111485482 | AA47: 1.122600337 | AB47: 1.13382634 | AC47: 1.145164603 | AD47: 1.156616249 | AE47: 1.168182412 | AF47: 1.179864236 | AG47: 1.191662878 | AH47: 1.203579507 | AI47: 1.215615302 | AJ47: 1.227771455 | AK47: 1.24004917 | AL47: 1.252449661 | AM47: 1.264974158 | AN47: 1.2776239 | AO47: 1.290400139 | AP47: 1.30330414
E48: EL 2 | F48: =F$521*OFFSET(F48,2,0) -> 0.8043905036 | G48: =G$521*OFFSET(G48,2,0) -> 0.4952534786 | H48: 0.4551115557 | I48: 0.3209395422 | J48: 0.1921669676 | K48: 0.1914754872 | L48: 0.1933902421 | M48: 0.1953241445 | N48: 0.2712564057 | O48: 0.3486877796 | P48: 0.4276406554 | Q48: 0.50813772 | R48: 0.5902019618 | S48: 0.6738566746 | T48: 0.7591254615 | U48: 0.8460322385 | V48: 0.8544925609 | W48: 0.8630374865 | X48: 0.8716678614 | Y48: 0.88038454 | Z48: 0.8891883854 | AA48: 0.8980802692 | AB48: 0.9070610719 | AC48: 0.9161316826 | AD48: 0.9252929995 | AE48: 0.9345459295 | AF48: 0.9438913888 | AG48: 0.9533303026 | AH48: 0.9628636057 | AI48: 0.9724922417 | AJ48: 0.9822171641 | AK48: 0.9920393358 | AL48: 1.001959729 | AM48: 1.011979326 | AN48: 1.02209912 | AO48: 1.032320111 | AP48: 1.042643312
E49: EL 3 | F49: =F$522*OFFSET(F49,1,0) -> 0 | G49: =G$522*OFFSET(G49,1,0) -> 0 | H49: 0 | I49: 0 | J49: 0 | K49: 0 | L49: 0 | M49: 0 | N49: 0.02465967324 | O49: 0.04981253995 | P49: 0.07546599802 | Q49: 0.101627544 | R49: 0.1283047743 | S49: 0.1555053865 | T49: 0.1832371804 | U49: 0.2115080596 | V49: 0.2136231402 | W49: 0.2157593716 | X49: 0.2179169653 | Y49: 0.220096135 | Z49: 0.2222970963 | AA49: 0.2245200673 | AB49: 0.226765268 | AC49: 0.2290329207 | AD49: 0.2313232499 | AE49: 0.2336364824 | AF49: 0.2359728472 | AG49: 0.2383325757 | AH49: 0.2407159014 | AI49: 0.2431230604 | AJ49: 0.245554291 | AK49: 0.2480098339 | AL49: 0.2504899323 | AM49: 0.2529948316 | AN49: 0.2555247799 | AO49: 0.2580800277 | AP49: 0.260660828
E50: Total | F50: =OFFSET($E$497,MATCH($D45,NAMES!$D$6:$D$22,0),MATCH(F$10,DATES,0)) -> 8.043905036 | G50: =OFFSET($E$497,MATCH($D45,NAMES!$D$6:$D$22,0),MATCH(G$10,DATES,0)) -> 4.952534786 | H50: =OFFSET($E$497,MATCH($D45,NAMES!$D$6:$D$22,0),MATCH(H$10,DATES,0)) -> 4.551115557 | I50: =OFFSET($E$497,MATCH($D45,NAMES!$D$6:$D$22,0),MATCH(I$10,DATES,0)) -> 3.209395422 | J50: =OFFSET($E$497,MATCH($D45,NAMES!$D$6:$D$22,0),MATCH(J$10,DATES,0)) -> 1.921669676 | K50: =OFFSET($E$497,MATCH($D45,NAMES!$D$6:$D$22,0),MATCH(K$10,DATES,0)) -> 1.914754872 | L50: =OFFSET($E$497,MATCH($D45,NAMES!$D$6:$D$22,0),MATCH(L$10,DATES,0)) -> 1.933902421 | M50: =OFFSET($E$497,MATCH($D45,NAMES!$D$6:$D$22,0),MATCH(M$10,DATES,0)) -> 1.953241445 | N50: =OFFSET($E$497,MATCH($D45,NAMES!$D$6:$D$22,0),MATCH(N$10,DATES,0)) -> 1.972773859 | O50: =OFFSET($E$497,MATCH($D45,NAMES!$D$6:$D$22,0),MATCH(O$10,DATES,0)) -> 1.992501598 | P50: =OFFSET($E$497,MATCH($D45,NAMES!$D$6:$D$22,0),MATCH(P$10,DATES,0)) -> 2.012426614 | Q50: =OFFSET($E$497,MATCH($D45,NAMES!$D$6:$D$22,0),MATCH(Q$10,DATES,0)) -> 2.03255088 | R50: =OFFSET($E$497,MATCH($D45,NAMES!$D$6:$D$22,0),MATCH(R$10,DATES,0)) -> 2.052876389 | S50: =OFFSET($E$497,MATCH($D45,NAMES!$D$6:$D$22,0),MATCH(S$10,DATES,0)) -> 2.073405153 | T50: =OFFSET($E$497,MATCH($D45,NAMES!$D$6:$D$22,0),MATCH(T$10,DATES,0)) -> 2.094139204 | U50: =OFFSET($E$497,MATCH($D45,NAMES!$D$6:$D$22,0),MATCH(U$10,DATES,0)) -> 2.115080596 | V50: =OFFSET($E$497,MATCH($D45,NAMES!$D$6:$D$22,0),MATCH(V$10,DATES,0)) -> 2.136231402 | W50: =OFFSET($E$497,MATCH($D45,NAMES!$D$6:$D$22,0),MATCH(W$10,DATES,0)) -> 2.157593716 | X50: =OFFSET($E$497,MATCH($D45,NAMES!$D$6:$D$22,0),MATCH(X$10,DATES,0)) -> 2.179169653 | Y50: =OFFSET($E$497,MATCH($D45,NAMES!$D$6:$D$22,0),MATCH(Y$10,DATES,0)) -> 2.20096135 | Z50: =OFFSET($E$497,MATCH($D45,NAMES!$D$6:$D$22,0),MATCH(Z$10,DATES,0)) -> 2.222970963 | AA50: =OFFSET($E$497,MATCH($D45,NAMES!$D$6:$D$22,0),MATCH(AA$10,DATES,0)) -> 2.245200673 | AB50: =OFFSET($E$497,MATCH($D45,NAMES!$D$6:$D$22,0),MATCH(AB$10,DATES,0)) -> 2.26765268 | AC50: =OFFSET($E$497,MATCH($D45,NAMES!$D$6:$D$22,0),MATCH(AC$10,DATES,0)) -> 2.290329207 | AD50: =OFFSET($E$497,MATCH($D45,NAMES!$D$6:$D$22,0),MATCH(AD$10,DATES,0)) -> 2.313232499 | AE50: =OFFSET($E$497,MATCH($D45,NAMES!$D$6:$D$22,0),MATCH(AE$10,DATES,0)) -> 2.336364824 | AF50: =OFFSET($E$497,MATCH($D45,NAMES!$D$6:$D$22,0),MATCH(AF$10,DATES,0)) -> 2.359728472 | AG50: =OFFSET($E$497,MATCH($D45,NAMES!$D$6:$D$22,0),MATCH(AG$10,DATES,0)) -> 2.383325757 | AH50: =OFFSET($E$497,MATCH($D45,NAMES!$D$6:$D$22,0),MATCH(AH$10,DATES,0)) -> 2.407159014 | AI50: =OFFSET($E$497,MATCH($D45,NAMES!$D$6:$D$22,0),MATCH(AI$10,DATES,0)) -> 2.431230604 | AJ50: =OFFSET($E$497,MATCH($D45,NAMES!$D$6:$D$22,0),MATCH(AJ$10,DATES,0)) -> 2.45554291 | AK50: =OFFSET($E$497,MATCH($D45,NAMES!$D$6:$D$22,0),MATCH(AK$10,DATES,0)) -> 2.480098339 | AL50: =OFFSET($E$497,MATCH($D45,NAMES!$D$6:$D$22,0),MATCH(AL$10,DATES,0)) -> 2.504899323 | AM50: =OFFSET($E$497,MATCH($D45,NAMES!$D$6:$D$22,0),MATCH(AM$10,DATES,0)) -> 2.529948316 | AN50: =OFFSET($E$497,MATCH($D45,NAMES!$D$6:$D$22,0),MATCH(AN$10,DATES,0)) -> 2.555247799 | AO50: =OFFSET($E$497,MATCH($D45,NAMES!$D$6:$D$22,0),MATCH(AO$10,DATES,0)) -> 2.580800277 | AP50: =OFFSET($E$497,MATCH($D45,NAMES!$D$6:$D$22,0),MATCH(AP$10,DATES,0)) -> 2.60660828
D52: PG7 | F52: =Base_Year - 1 -> 2011 | G52: =OFFSET(G52,0,-1)+1 -> 2012 | H52: =OFFSET(H52,0,-1)+1 -> 2013 | I52: 2014 | J52: 2015 | K52: 2016 | L52: 2017 | M52: 2018 | N52: 2019 | O52: 2020 | P52: 2021 | Q52: 2022 | R52: 2023 | S52: 2024 | T52: 2025 | U52: 2026 | V52: 2027 | W52: 2028 | X52: 2029 | Y52: 2030 | Z52: 2031 | AA52: 2032 | AB52: 2033 | AC52: 2034 | AD52: 2035 | AE52: 2036 | AF52: 2037 | AG52: 2038 | AH52: 2039 | AI52: 2040 | AJ52: 2041 | AK52: 2042 | AL52: 2043 | AM52: 2044 | AN52: 2045 | AO52: 2046 | AP52: 2047
D53: =VLOOKUP(D52,PC_Table,2,FALSE) -> Satellite Video Client | E53: Baseline | F53: =F$519*OFFSET(F53,4,0) -> 5.480438108e-05 | G53: =G$519*OFFSET(G53,4,0) -> 0.05858728458 | H53: 0.1585672828 | I53: 0.3405528935 | J53: 0.6418965249 | K53: 0.7651849884 | L53: 0.7728368383 | M53: 0.7805652067 | N53: 0.6898245014 | O53: 0.5971909255 | P53: 0.5026356956 | Q53: 0.4061296421 | R53: 0.3076432039 | S53: 0.2071464239 | T53: 0.1046089441 | U53: 0 | V53: 0 | W53: 0 | X53: 0 | Y53: 0 | Z53: 0 | AA53: 0 | AB53: 0 | AC53: 0 | AD53: 0 | AE53: 0 | AF53: 0 | AG53: 0 | AH53: 0 | AI53: 0 | AJ53: 0 | AK53: 0 | AL53: 0 | AM53: 0 | AN53: 0 | AO53: 0 | AP53: 0
E54: EL 1 | F54: =F$520*OFFSET(F54,3,0) -> 4.384350486e-05 | G54: =G$520*OFFSET(G54,3,0) -> 0.04686982766 | H54: 0.1268538262 | I54: 0.2724423148 | J54: 0.5135172199 | K54: 0.6121479907 | L54: 0.6182694706 | M54: 0.6244521653 | N54: 0.6504059585 | O54: 0.6768163822 | P54: 0.7036899739 | Q54: 0.7310333557 | R54: 0.7588532362 | S54: 0.787156411 | T54: 0.8159497639 | U54: 0.8452402682 | V54: 0.8536926709 | W54: 0.8622295976 | X54: 0.8708518936 | Y54: 0.8795604125 | Z54: 0.8883560167 | AA54: 0.8972395768 | AB54: 0.9062119726 | AC54: 0.9152740923 | AD54: 0.9244268332 | AE54: 0.9336711016 | AF54: 0.9430078126 | AG54: 0.9524378907 | AH54: 0.9619622696 | AI54: 0.9715818923 | AJ54: 0.9812977112 | AK54: 0.9911106884 | AL54: 1.001021795 | AM54: 1.011032013 | AN54: 1.021142333 | AO54: 1.031353757 | AP54: 1.041667294
E55: EL 2 | F55: =F$521*OFFSET(F55,2,0) -> 1.096087622e-05 | G55: =G$521*OFFSET(G55,2,0) -> 0.01171745692 | H55: 0.03171345656 | I55: 0.0681105787 | J55: 0.128379305 | K55: 0.1530369977 | L55: 0.1545673677 | M55: 0.1561130413 | N55: 0.2168019862 | O55: 0.2786890986 | P55: 0.341792273 | Q55: 0.4061296421 | R55: 0.4717195793 | S55: 0.5385807022 | T55: 0.6067318757 | U55: 0.6761922146 | V55: 0.6829541367 | W55: 0.6897836781 | X55: 0.6966815149 | Y55: 0.70364833 | Z55: 0.7106848133 | AA55: 0.7177916615 | AB55: 0.7249695781 | AC55: 0.7322192739 | AD55: 0.7395414666 | AE55: 0.7469368813 | AF55: 0.7544062501 | AG55: 0.7619503126 | AH55: 0.7695698157 | AI55: 0.7772655139 | AJ55: 0.785038169 | AK55: 0.7928885507 | AL55: 0.8008174362 | AM55: 0.8088256105 | AN55: 0.8169138667 | AO55: 0.8250830053 | AP55: 0.8333338354
E56: EL 3 | F56: =F$522*OFFSET(F56,1,0) -> 0 | G56: =G$522*OFFSET(G56,1,0) -> 0 | H56: 0 | I56: 0 | J56: 0 | K56: 0 | L56: 0 | M56: 0 | N56: 0.01970927147 | O56: 0.03981272837 | P56: 0.06031628347 | Q56: 0.08122592841 | R56: 0.1025477346 | S56: 0.1242878544 | T56: 0.1464525217 | U56: 0.1690480536 | V56: 0.1707385342 | W56: 0.1724459195 | X56: 0.1741703787 | Y56: 0.1759120825 | Z56: 0.1776712033 | AA56: 0.1794479154 | AB56: 0.1812423945 | AC56: 0.1830548185 | AD56: 0.1848853666 | AE56: 0.1867342203 | AF56: 0.1886015625 | AG56: 0.1904875781 | AH56: 0.1923924539 | AI56: 0.1943163785 | AJ56: 0.1962595422 | AK56: 0.1982221377 | AL56: 0.200204359 | AM56: 0.2022064026 | AN56: 0.2042284667 | AO56: 0.2062707513 | AP56: 0.2083334588
E57: Total | F57: =OFFSET($E$497,MATCH($D52,NAMES!$D$6:$D$22,0),MATCH(F$10,DATES,0)) -> 0.0001096087622 | G57: =OFFSET($E$497,MATCH($D52,NAMES!$D$6:$D$22,0),MATCH(G$10,DATES,0)) -> 0.1171745692 | H57: =OFFSET($E$497,MATCH($D52,NAMES!$D$6:$D$22,0),MATCH(H$10,DATES,0)) -> 0.3171345656 | I57: =OFFSET($E$497,MATCH($D52,NAMES!$D$6:$D$22,0),MATCH(I$10,DATES,0)) -> 0.681105787 | J57: =OFFSET($E$497,MATCH($D52,NAMES!$D$6:$D$22,0),MATCH(J$10,DATES,0)) -> 1.28379305 | K57: =OFFSET($E$497,MATCH($D52,NAMES!$D$6:$D$22,0),MATCH(K$10,DATES,0)) -> 1.530369977 | L57: =OFFSET($E$497,MATCH($D52,NAMES!$D$6:$D$22,0),MATCH(L$10,DATES,0)) -> 1.545673677 | M57: =OFFSET($E$497,MATCH($D52,NAMES!$D$6:$D$22,0),MATCH(M$10,DATES,0)) -> 1.561130413 | N57: =OFFSET($E$497,MATCH($D52,NAMES!$D$6:$D$22,0),MATCH(N$10,DATES,0)) -> 1.576741717 | O57: =OFFSET($E$497,MATCH($D52,NAMES!$D$6:$D$22,0),MATCH(O$10,DATES,0)) -> 1.592509135 | P57: =OFFSET($E$497,MATCH($D52,NAMES!$D$6:$D$22,0),MATCH(P$10,DATES,0)) -> 1.608434226 | Q57: =OFFSET($E$497,MATCH($D52,NAMES!$D$6:$D$22,0),MATCH(Q$10,DATES,0)) -> 1.624518568 | R57: =OFFSET($E$497,MATCH($D52,NAMES!$D$6:$D$22,0),MATCH(R$10,DATES,0)) -> 1.640763754 | S57: =OFFSET($E$497,MATCH($D52,NAMES!$D$6:$D$22,0),MATCH(S$10,DATES,0)) -> 1.657171391 | T57: =OFFSET($E$497,MATCH($D52,NAMES!$D$6:$D$22,0),MATCH(T$10,DATES,0)) -> 1.673743105 | U57: =OFFSET($E$497,MATCH($D52,NAMES!$D$6:$D$22,0),MATCH(U$10,DATES,0)) -> 1.690480536 | V57: =OFFSET($E$497,MATCH($D52,NAMES!$D$6:$D$22,0),MATCH(V$10,DATES,0)) -> 1.707385342 | W57: =OFFSET($E$497,MATCH($D52,NAMES!$D$6:$D$22,0),MATCH(W$10,DATES,0)) -> 1.724459195 | X57: =OFFSET($E$497,MATCH($D52,NAMES!$D$6:$D$22,0),MATCH(X$10,DATES,0)) -> 1.741703787 | Y57: =OFFSET($E$497,MATCH($D52,NAMES!$D$6:$D$22,0),MATCH(Y$10,DATES,0)) -> 1.759120825 | Z57: =OFFSET($E$497,MATCH($D52,NAMES!$D$6:$D$22,0),MATCH(Z$10,DATES,0)) -> 1.776712033 | AA57: =OFFSET($E$497,MATCH($D52,NAMES!$D$6:$D$22,0),MATCH(AA$10,DATES,0)) -> 1.794479154 | AB57: =OFFSET($E$497,MATCH($D52,NAMES!$D$6:$D$22,0),MATCH(AB$10,DATES,0)) -> 1.812423945 | AC57: =OFFSET($E$497,MATCH($D52,NAMES!$D$6:$D$22,0),MATCH(AC$10,DATES,0)) -> 1.830548185 | AD57: =OFFSET($E$497,MATCH($D52,NAMES!$D$6:$D$22,0),MATCH(AD$10,DATES,0)) -> 1.848853666 | AE57: =OFFSET($E$497,MATCH($D52,NAMES!$D$6:$D$22,0),MATCH(AE$10,DATES,0)) -> 1.867342203 | AF57: =OFFSET($E$497,MATCH($D52,NAMES!$D$6:$D$22,0),MATCH(AF$10,DATES,0)) -> 1.886015625 | AG57: =OFFSET($E$497,MATCH($D52,NAMES!$D$6:$D$22,0),MATCH(AG$10,DATES,0)) -> 1.904875781 | AH57: =OFFSET($E$497,MATCH($D52,NAMES!$D$6:$D$22,0),MATCH(AH$10,DATES,0)) -> 1.923924539 | AI57: =OFFSET($E$497,MATCH($D52,NAMES!$D$6:$D$22,0),MATCH(AI$10,DATES,0)) -> 1.943163785 | AJ57: =OFFSET($E$497,MATCH($D52,NAMES!$D$6:$D$22,0),MATCH(AJ$10,DATES,0)) -> 1.962595422 | AK57: =OFFSET($E$497,MATCH($D52,NAMES!$D$6:$D$22,0),MATCH(AK$10,DATES,0)) -> 1.982221377 | AL57: =OFFSET($E$497,MATCH($D52,NAMES!$D$6:$D$22,0),MATCH(AL$10,DATES,0)) -> 2.00204359 | AM57: =OFFSET($E$497,MATCH($D52,NAMES!$D$6:$D$22,0),MATCH(AM$10,DATES,0)) -> 2.022064026 | AN57: =OFFSET($E$497,MATCH($D52,NAMES!$D$6:$D$22,0),MATCH(AN$10,DATES,0)) -> 2.042284667 | AO57: =OFFSET($E$497,MATCH($D52,NAMES!$D$6:$D$22,0),MATCH(AO$10,DATES,0)) -> 2.062707513 | AP57: =OFFSET($E$497,MATCH($D52,NAMES!$D$6:$D$22,0),MATCH(AP$10,DATES,0)) -> 2.083334588
D59: PG8 | F59: =Base_Year - 1 -> 2011 | G59: =OFFSET(G59,0,-1)+1 -> 2012 | H59: =OFFSET(H59,0,-1)+1 -> 2013 | I59: 2014 | J59: 2015 | K59: 2016 | L59: 2017 | M59: 2018 | N59: 2019 | O59: 2020 | P59: 2021 | Q59: 2022 | R59: 2023 | S59: 2024 | T59: 2025 | U59: 2026 | V59: 2027 | W59: 2028 | X59: 2029 | Y59: 2030 | Z59: 2031 | AA59: 2032 | AB59: 2033 | AC59: 2034 | AD59: 2035 | AE59: 2036 | AF59: 2037 | AG59: 2038 | AH59: 2039 | AI59: 2040 | AJ59: 2041 | AK59: 2042 | AL59: 2043 | AM59: 2044 | AN59: 2045 | AO59: 2046 | AP59: 2047
D60: =VLOOKUP(D59,PC_Table,2,FALSE) -> Satellite Video Server | E60: Baseline | F60: =F$519*OFFSET(F60,4,0) -> 0.643629425 | G60: =G$519*OFFSET(G60,4,0) -> 0.6854474569 | H60: 0.8281354678 | I60: 0.8771503391 | J60: 0.9938263734 | K60: 1.015937457 | L60: 1.026096832 | M60: 1.0363578 | N60: 0.9158812058 | O60: 0.7928914439 | P60: 0.6673502986 | Q60: 0.5392190413 | R60: 0.4084584238 | S60: 0.275028672 | T60: 0.1388894794 | U60: 0 | V60: 0 | W60: 0 | X60: 0 | Y60: 0 | Z60: 0 | AA60: 0 | AB60: 0 | AC60: 0 | AD60: 0 | AE60: 0 | AF60: 0 | AG60: 0 | AH60: 0 | AI60: 0 | AJ60: 0 | AK60: 0 | AL60: 0 | AM60: 0 | AN60: 0 | AO60: 0 | AP60: 0
E61: EL 1 | F61: =F$520*OFFSET(F61,3,0) -> 0.51490354 | G61: =G$520*OFFSET(G61,3,0) -> 0.5483579655 | H61: 0.6625083743 | I61: 0.7017202713 | J61: 0.7950610987 | K61: 0.8127499658 | L61: 0.8208774654 | M61: 0.8290862401 | N61: 0.8635451369 | O61: 0.8986103031 | P61: 0.9342904181 | Q61: 0.9705942743 | R61: 1.007530779 | S61: 1.045108954 | T61: 1.083337939 | U61: 1.122226993 | V61: 1.133449263 | W61: 1.144783756 | X61: 1.156231593 | Y61: 1.167793909 | Z61: 1.179471848 | AA61: 1.191266567 | AB61: 1.203179233 | AC61: 1.215211025 | AD61: 1.227363135 | AE61: 1.239636767 | AF61: 1.252033134 | AG61: 1.264553466 | AH61: 1.277199 | AI61: 1.28997099 | AJ61: 1.3028707 | AK61: 1.315899407 | AL61: 1.329058401 | AM61: 1.342348985 | AN61: 1.355772475 | AO61: 1.3693302 | AP61: 1.383023502
E62: EL 2 | F62: =F$521*OFFSET(F62,2,0) -> 0.128725885 | G62: =G$521*OFFSET(G62,2,0) -> 0.1370894914 | H62: 0.1656270936 | I62: 0.1754300678 | J62: 0.1987652747 | K62: 0.2031874914 | L62: 0.2052193664 | M62: 0.20727156 | N62: 0.287848379 | O62: 0.3700160072 | P62: 0.4537982031 | Q62: 0.5392190413 | R62: 0.6263029165 | S62: 0.7150745472 | T62: 0.8055589803 | U62: 0.8977815946 | V62: 0.9067594106 | W62: 0.9158270047 | X62: 0.9249852747 | Y62: 0.9342351275 | Z62: 0.9435774787 | AA62: 0.9530132535 | AB62: 0.9625433861 | AC62: 0.9721688199 | AD62: 0.9818905081 | AE62: 0.9917094132 | AF62: 1.001626507 | AG62: 1.011642772 | AH62: 1.0217592 | AI62: 1.031976792 | AJ62: 1.04229656 | AK62: 1.052719526 | AL62: 1.063246721 | AM62: 1.073879188 | AN62: 1.08461798 | AO62: 1.09546416 | AP62: 1.106418801
E63: EL 3 | F63: =F$522*OFFSET(F63,1,0) -> 0 | G63: =G$522*OFFSET(G63,1,0) -> 0 | H63: 0 | I63: 0 | J63: 0 | K63: 0 | L63: 0 | M63: 0 | N63: 0.02616803445 | O63: 0.05285942959 | P63: 0.08008203584 | Q63: 0.1078438083 | R63: 0.1361528079 | S63: 0.1650172032 | T63: 0.1944452711 | U63: 0.2244453987 | V63: 0.2266898526 | W63: 0.2289567512 | X63: 0.2312463187 | Y63: 0.2335587819 | Z63: 0.2358943697 | AA63: 0.2382533134 | AB63: 0.2406358465 | AC63: 0.243042205 | AD63: 0.245472627 | AE63: 0.2479273533 | AF63: 0.2504066268 | AG63: 0.2529106931 | AH63: 0.2554398 | AI63: 0.257994198 | AJ63: 0.26057414 | AK63: 0.2631798814 | AL63: 0.2658116802 | AM63: 0.268469797 | AN63: 0.271154495 | AO63: 0.27386604 | AP63: 0.2766047004
E64: Total | F64: =OFFSET($E$497,MATCH($D59,NAMES!$D$6:$D$22,0),MATCH(F$10,DATES,0)) -> 1.28725885 | G64: =OFFSET($E$497,MATCH($D59,NAMES!$D$6:$D$22,0),MATCH(G$10,DATES,0)) -> 1.370894914 | H64: =OFFSET($E$497,MATCH($D59,NAMES!$D$6:$D$22,0),MATCH(H$10,DATES,0)) -> 1.656270936 | I64: =OFFSET($E$497,MATCH($D59,NAMES!$D$6:$D$22,0),MATCH(I$10,DATES,0)) -> 1.754300678 | J64: =OFFSET($E$497,MATCH($D59,NAMES!$D$6:$D$22,0),MATCH(J$10,DATES,0)) -> 1.987652747 | K64: =OFFSET($E$497,MATCH($D59,NAMES!$D$6:$D$22,0),MATCH(K$10,DATES,0)) -> 2.031874914 | L64: =OFFSET($E$497,MATCH($D59,NAMES!$D$6:$D$22,0),MATCH(L$10,DATES,0)) -> 2.052193664 | M64: =OFFSET($E$497,MATCH($D59,NAMES!$D$6:$D$22,0),MATCH(M$10,DATES,0)) -> 2.0727156 | N64: =OFFSET($E$497,MATCH($D59,NAMES!$D$6:$D$22,0),MATCH(N$10,DATES,0)) -> 2.093442756 | O64: =OFFSET($E$497,MATCH($D59,NAMES!$D$6:$D$22,0),MATCH(O$10,DATES,0)) -> 2.114377184 | P64: =OFFSET($E$497,MATCH($D59,NAMES!$D$6:$D$22,0),MATCH(P$10,DATES,0)) -> 2.135520956 | Q64: =OFFSET($E$497,MATCH($D59,NAMES!$D$6:$D$22,0),MATCH(Q$10,DATES,0)) -> 2.156876165 | R64: =OFFSET($E$497,MATCH($D59,NAMES!$D$6:$D$22,0),MATCH(R$10,DATES,0)) -> 2.178444927 | S64: =OFFSET($E$497,MATCH($D59,NAMES!$D$6:$D$22,0),MATCH(S$10,DATES,0)) -> 2.200229376 | T64: =OFFSET($E$497,MATCH($D59,NAMES!$D$6:$D$22,0),MATCH(T$10,DATES,0)) -> 2.22223167 | U64: =OFFSET($E$497,MATCH($D59,NAMES!$D$6:$D$22,0),MATCH(U$10,DATES,0)) -> 2.244453987 | V64: =OFFSET($E$497,MATCH($D59,NAMES!$D$6:$D$22,0),MATCH(V$10,DATES,0)) -> 2.266898526 | W64: =OFFSET($E$497,MATCH($D59,NAMES!$D$6:$D$22,0),MATCH(W$10,DATES,0)) -> 2.289567512 | X64: =OFFSET($E$497,MATCH($D59,NAMES!$D$6:$D$22,0),MATCH(X$10,DATES,0)) -> 2.312463187 | Y64: =OFFSET($E$497,MATCH($D59,NAMES!$D$6:$D$22,0),MATCH(Y$10,DATES,0)) -> 2.335587819 | Z64: =OFFSET($E$497,MATCH($D59,NAMES!$D$6:$D$22,0),MATCH(Z$10,DATES,0)) -> 2.358943697 | AA64: =OFFSET($E$497,MATCH($D59,NAMES!$D$6:$D$22,0),MATCH(AA$10,DATES,0)) -> 2.382533134 | AB64: =OFFSET($E$497,MATCH($D59,NAMES!$D$6:$D$22,0),MATCH(AB$10,DATES,0)) -> 2.406358465 | AC64: =OFFSET($E$497,MATCH($D59,NAMES!$D$6:$D$22,0),MATCH(AC$10,DATES,0)) -> 2.43042205 | AD64: =OFFSET($E$497,MATCH($D59,NAMES!$D$6:$D$22,0),MATCH(AD$10,DATES,0)) -> 2.45472627 | AE64: =OFFSET($E$497,MATCH($D59,NAMES!$D$6:$D$22,0),MATCH(AE$10,DATES,0)) -> 2.479273533 | AF64: =OFFSET($E$497,MATCH($D59,NAMES!$D$6:$D$22,0),MATCH(AF$10,DATES,0)) -> 2.504066268 | AG64: =OFFSET($E$497,MATCH($D59,NAMES!$D$6:$D$22,0),MATCH(AG$10,DATES,0)) -> 2.529106931 | AH64: =OFFSET($E$497,MATCH($D59,NAMES!$D$6:$D$22,0),MATCH(AH$10,DATES,0)) -> 2.554398 | AI64: =OFFSET($E$497,MATCH($D59,NAMES!$D$6:$D$22,0),MATCH(AI$10,DATES,0)) -> 2.57994198 | AJ64: =OFFSET($E$497,MATCH($D59,NAMES!$D$6:$D$22,0),MATCH(AJ$10,DATES,0)) -> 2.6057414 | AK64: =OFFSET($E$497,MATCH($D59,NAMES!$D$6:$D$22,0),MATCH(AK$10,DATES,0)) -> 2.631798814 | AL64: =OFFSET($E$497,MATCH($D59,NAMES!$D$6:$D$22,0),MATCH(AL$10,DATES,0)) -> 2.658116802 | AM64: =OFFSET($E$497,MATCH($D59,NAMES!$D$6:$D$22,0),MATCH(AM$10,DATES,0)) -> 2.68469797 | AN64: =OFFSET($E$497,MATCH($D59,NAMES!$D$6:$D$22,0),MATCH(AN$10,DATES,0)) -> 2.71154495 | AO64: =OFFSET($E$497,MATCH($D59,NAMES!$D$6:$D$22,0),MATCH(AO$10,DATES,0)) -> 2.7386604 | AP64: =OFFSET($E$497,MATCH($D59,NAMES!$D$6:$D$22,0),MATCH(AP$10,DATES,0)) -> 2.766047004
D66: PG9 | F66: =Base_Year - 1 -> 2011 | G66: =OFFSET(G66,0,-1)+1 -> 2012 | H66: =OFFSET(H66,0,-1)+1 -> 2013 | I66: 2014 | J66: 2015 | K66: 2016 | L66: 2017 | M66: 2018 | N66: 2019 | O66: 2020 | P66: 2021 | Q66: 2022 | R66: 2023 | S66: 2024 | T66: 2025 | U66: 2026 | V66: 2027 | W66: 2028 | X66: 2029 | Y66: 2030 | Z66: 2031 | AA66: 2032 | AB66: 2033 | AC66: 2034 | AD66: 2035 | AE66: 2036 | AF66: 2037 | AG66: 2038 | AH66: 2039 | AI66: 2040 | AJ66: 2041 | AK66: 2042 | AL66: 2043 | AM66: 2044 | AN66: 2045 | AO66: 2046 | AP66: 2047
D67: =VLOOKUP(D66,PC_Table,2,FALSE) -> Satellite with DVR | E67: Baseline | F67: =F$519*OFFSET(F67,4,0) -> 1.568845912 | G67: =G$519*OFFSET(G67,4,0) -> 1.670777312 | H67: 2.018579158 | I67: 2.138052845 | J67: 2.422450532 | K67: 2.476346271 | L67: 2.501109733 | M67: 2.526120831 | N67: 2.232459284 | O67: 1.932671895 | P67: 1.626665511 | Q67: 1.314345733 | R67: 0.9956168928 | S67: 0.6703820411 | T67: 0.3385429308 | U67: 0 | V67: 0 | W67: 0 | X67: 0 | Y67: 0 | Z67: 0 | AA67: 0 | AB67: 0 | AC67: 0 | AD67: 0 | AE67: 0 | AF67: 0 | AG67: 0 | AH67: 0 | AI67: 0 | AJ67: 0 | AK67: 0 | AL67: 0 | AM67: 0 | AN67: 0 | AO67: 0 | AP67: 0
E68: EL 1 | F68: =F$520*OFFSET(F68,3,0) -> 1.255076729 | G68: =G$520*OFFSET(G68,3,0) -> 1.336621849 | H68: 1.614863327 | I68: 1.710442276 | J68: 1.937960425 | K68: 1.981077016 | L68: 2.000887787 | M68: 2.020896665 | N68: 2.104890182 | O68: 2.19036148 | P68: 2.277331716 | Q68: 2.36582232 | R68: 2.455855002 | S68: 2.547451756 | T68: 2.64063486 | U68: 2.735426881 | V68: 2.76278115 | W68: 2.790408961 | X68: 2.818313051 | Y68: 2.846496181 | Z68: 2.874961143 | AA68: 2.903710754 | AB68: 2.932747862 | AC68: 2.962075341 | AD68: 2.991696094 | AE68: 3.021613055 | AF68: 3.051829185 | AG68: 3.082347477 | AH68: 3.113170952 | AI68: 3.144302662 | AJ68: 3.175745688 | AK68: 3.207503145 | AL68: 3.239578177 | AM68: 3.271973958 | AN68: 3.304693698 | AO68: 3.337740635 | AP68: 3.371118041
E69: EL 2 | F69: =F$521*OFFSET(F69,2,0) -> 0.3137691823 | G69: =G$521*OFFSET(G69,2,0) -> 0.3341554623 | H69: 0.4037158317 | I69: 0.427610569 | J69: 0.4844901063 | K69: 0.4952692541 | L69: 0.5002219467 | M69: 0.5052241661 | N69: 0.7016300607 | O69: 0.9019135508 | P69: 1.106132548 | Q69: 1.314345733 | R69: 1.526612569 | S69: 1.742993307 | T69: 1.963548999 | U69: 2.188341505 | V69: 2.21022492 | W69: 2.232327169 | X69: 2.25465044 | Y69: 2.277196945 | Z69: 2.299968914 | AA69: 2.322968603 | AB69: 2.34619829 | AC69: 2.369660272 | AD69: 2.393356875 | AE69: 2.417290444 | AF69: 2.441463348 | AG69: 2.465877982 | AH69: 2.490536762 | AI69: 2.515442129 | AJ69: 2.540596551 | AK69: 2.566002516 | AL69: 2.591662541 | AM69: 2.617579167 | AN69: 2.643754958 | AO69: 2.670192508 | AP69: 2.696894433
E70: EL 3 | F70: =F$522*OFFSET(F70,1,0) -> 0 | G70: =G$522*OFFSET(G70,1,0) -> 0 | H70: 0 | I70: 0 | J70: 0 | K70: 0 | L70: 0 | M70: 0 | N70: 0.06378455097 | O70: 0.128844793 | P70: 0.1951998613 | Q70: 0.2628691466 | R70: 0.3318722976 | S70: 0.4022292247 | T70: 0.4739601031 | U70: 0.5470853761 | V70: 0.5525562299 | W70: 0.5580817922 | X70: 0.5636626101 | Y70: 0.5692992362 | Z70: 0.5749922286 | AA70: 0.5807421509 | AB70: 0.5865495724 | AC70: 0.5924150681 | AD70: 0.5983392188 | AE70: 0.604322611 | AF70: 0.6103658371 | AG70: 0.6164694955 | AH70: 0.6226341904 | AI70: 0.6288605323 | AJ70: 0.6351491376 | AK70: 0.641500629 | AL70: 0.6479156353 | AM70: 0.6543947917 | AN70: 0.6609387396 | AO70: 0.667548127 | AP70: 0.6742236082
E71: Total | F71: =OFFSET($E$497,MATCH($D66,NAMES!$D$6:$D$22,0),MATCH(F$10,DATES,0)) -> 3.137691823 | G71: =OFFSET($E$497,MATCH($D66,NAMES!$D$6:$D$22,0),MATCH(G$10,DATES,0)) -> 3.341554623 | H71: =OFFSET($E$497,MATCH($D66,NAMES!$D$6:$D$22,0),MATCH(H$10,DATES,0)) -> 4.037158317 | I71: =OFFSET($E$497,MATCH($D66,NAMES!$D$6:$D$22,0),MATCH(I$10,DATES,0)) -> 4.27610569 | J71: =OFFSET($E$497,MATCH($D66,NAMES!$D$6:$D$22,0),MATCH(J$10,DATES,0)) -> 4.844901063 | K71: =OFFSET($E$497,MATCH($D66,NAMES!$D$6:$D$22,0),MATCH(K$10,DATES,0)) -> 4.952692541 | L71: =OFFSET($E$497,MATCH($D66,NAMES!$D$6:$D$22,0),MATCH(L$10,DATES,0)) -> 5.002219467 | M71: =OFFSET($E$497,MATCH($D66,NAMES!$D$6:$D$22,0),MATCH(M$10,DATES,0)) -> 5.052241661 | N71: =OFFSET($E$497,MATCH($D66,NAMES!$D$6:$D$22,0),MATCH(N$10,DATES,0)) -> 5.102764078 | O71: =OFFSET($E$497,MATCH($D66,NAMES!$D$6:$D$22,0),MATCH(O$10,DATES,0)) -> 5.153791719 | P71: =OFFSET($E$497,MATCH($D66,NAMES!$D$6:$D$22,0),MATCH(P$10,DATES,0)) -> 5.205329636 | Q71: =OFFSET($E$497,MATCH($D66,NAMES!$D$6:$D$22,0),MATCH(Q$10,DATES,0)) -> 5.257382932 | R71: =OFFSET($E$497,MATCH($D66,NAMES!$D$6:$D$22,0),MATCH(R$10,DATES,0)) -> 5.309956762 | S71: =OFFSET($E$497,MATCH($D66,NAMES!$D$6:$D$22,0),MATCH(S$10,DATES,0)) -> 5.363056329 | T71: =OFFSET($E$497,MATCH($D66,NAMES!$D$6:$D$22,0),MATCH(T$10,DATES,0)) -> 5.416686892 | U71: =OFFSET($E$497,MATCH($D66,NAMES!$D$6:$D$22,0),MATCH(U$10,DATES,0)) -> 5.470853761 | V71: =OFFSET($E$497,MATCH($D66,NAMES!$D$6:$D$22,0),MATCH(V$10,DATES,0)) -> 5.525562299 | W71: =OFFSET($E$497,MATCH($D66,NAMES!$D$6:$D$22,0),MATCH(W$10,DATES,0)) -> 5.580817922 | X71: =OFFSET($E$497,MATCH($D66,NAMES!$D$6:$D$22,0),MATCH(X$10,DATES,0)) -> 5.636626101 | Y71: =OFFSET($E$497,MATCH($D66,NAMES!$D$6:$D$22,0),MATCH(Y$10,DATES,0)) -> 5.692992362 | Z71: =OFFSET($E$497,MATCH($D66,NAMES!$D$6:$D$22,0),MATCH(Z$10,DATES,0)) -> 5.749922286 | AA71: =OFFSET($E$497,MATCH($D66,NAMES!$D$6:$D$22,0),MATCH(AA$10,DATES,0)) -> 5.807421509 | AB71: =OFFSET($E$497,MATCH($D66,NAMES!$D$6:$D$22,0),MATCH(AB$10,DATES,0)) -> 5.865495724 | AC71: =OFFSET($E$497,MATCH($D66,NAMES!$D$6:$D$22,0),MATCH(AC$10,DATES,0)) -> 5.924150681 | AD71: =OFFSET($E$497,MATCH($D66,NAMES!$D$6:$D$22,0),MATCH(AD$10,DATES,0)) -> 5.983392188 | AE71: =OFFSET($E$497,MATCH($D66,NAMES!$D$6:$D$22,0),MATCH(AE$10,DATES,0)) -> 6.04322611 | AF71: =OFFSET($E$497,MATCH($D66,NAMES!$D$6:$D$22,0),MATCH(AF$10,DATES,0)) -> 6.103658371 | AG71: =OFFSET($E$497,MATCH($D66,NAMES!$D$6:$D$22,0),MATCH(AG$10,DATES,0)) -> 6.164694955 | AH71: =OFFSET($E$497,MATCH($D66,NAMES!$D$6:$D$22,0),MATCH(AH$10,DATES,0)) -> 6.226341904 | AI71: =OFFSET($E$497,MATCH($D66,NAMES!$D$6:$D$22,0),MATCH(AI$10,DATES,0)) -> 6.288605323 | AJ71: =OFFSET($E$497,MATCH($D66,NAMES!$D$6:$D$22,0),MATCH(AJ$10,DATES,0)) -> 6.351491376 | AK71: =OFFSET($E$497,MATCH($D66,NAMES!$D$6:$D$22,0),MATCH(AK$10,DATES,0)) -> 6.41500629 | AL71: =OFFSET($E$497,MATCH($D66,NAMES!$D$6:$D$22,0),MATCH(AL$10,DATES,0)) -> 6.479156353 | AM71: =OFFSET($E$497,MATCH($D66,NAMES!$D$6:$D$22,0),MATCH(AM$10,DATES,0)) -> 6.543947917 | AN71: =OFFSET($E$497,MATCH($D66,NAMES!$D$6:$D$22,0),MATCH(AN$10,DATES,0)) -> 6.609387396 | AO71: =OFFSET($E$497,MATCH($D66,NAMES!$D$6:$D$22,0),MATCH(AO$10,DATES,0)) -> 6.67548127 | AP71: =OFFSET($E$497,MATCH($D66,NAMES!$D$6:$D$22,0),MATCH(AP$10,DATES,0)) -> 6.742236082
D73: PG10 | F73: =Base_Year - 1 -> 2011 | G73: =OFFSET(G73,0,-1)+1 -> 2012 | H73: =OFFSET(H73,0,-1)+1 -> 2013 | I73: 2014 | J73: 2015 | K73: 2016 | L73: 2017 | M73: 2018 | N73: 2019 | O73: 2020 | P73: 2021 | Q73: 2022 | R73: 2023 | S73: 2024 | T73: 2025 | U73: 2026 | V73: 2027 | W73: 2028 | X73: 2029 | Y73: 2030 | Z73: 2031 | AA73: 2032 | AB73: 2033 | AC73: 2034 | AD73: 2035 | AE73: 2036 | AF73: 2037 | AG73: 2038 | AH73: 2039 | AI73: 2040 | AJ73: 2041 | AK73: 2042 | AL73: 2043 | AM73: 2044 | AN73: 2045 | AO73: 2046 | AP73: 2047
D74: =VLOOKUP(D73,PC_Table,2,FALSE) -> Satellite with DVR & Video Server | E74: Baseline | F74: =F$519*OFFSET(F74,4,0) -> 1.391240714 | G74: =G$519*OFFSET(G74,4,0) -> 1.48163271 | H74: 1.790060763 | I74: 1.896009127 | J74: 2.148210849 | K74: 2.196005183 | L74: 2.217965235 | M74: 2.240144888 | N74: 1.979728044 | O74: 1.71387885 | P74: 1.442514699 | Q74: 1.165551876 | R74: 0.8829055464 | S74: 0.5944897346 | T74: 0.300217316 | U74: 0 | V74: 0 | W74: 0 | X74: 0 | Y74: 0 | Z74: 0 | AA74: 0 | AB74: 0 | AC74: 0 | AD74: 0 | AE74: 0 | AF74: 0 | AG74: 0 | AH74: 0 | AI74: 0 | AJ74: 0 | AK74: 0 | AL74: 0 | AM74: 0 | AN74: 0 | AO74: 0 | AP74: 0
E75: EL 1 | F75: =F$520*OFFSET(F75,3,0) -> 1.112992571 | G75: =G$520*OFFSET(G75,3,0) -> 1.185306168 | H75: 1.43204861 | I75: 1.516807301 | J75: 1.718568679 | K75: 1.756804147 | L75: 1.774372188 | M75: 1.79211591 | N75: 1.866600728 | O75: 1.94239603 | P75: 2.019520578 | Q75: 2.097993378 | R75: 2.177833681 | S75: 2.259060991 | T75: 2.341695065 | U75: 2.425755913 | V75: 2.450013472 | W75: 2.474513607 | X75: 2.499258743 | Y75: 2.52425133 | Z75: 2.549493844 | AA75: 2.574988782 | AB75: 2.60073867 | AC75: 2.626746057 | AD75: 2.653013517 | AE75: 2.679543652 | AF75: 2.706339089 | AG75: 2.73340248 | AH75: 2.760736505 | AI75: 2.78834387 | AJ75: 2.816227308 | AK75: 2.844389581 | AL75: 2.872833477 | AM75: 2.901561812 | AN75: 2.93057743 | AO75: 2.959883204 | AP75: 2.989482037
E76: EL 2 | F76: =F$521*OFFSET(F76,2,0) -> 0.2782481428 | G76: =G$521*OFFSET(G76,2,0) -> 0.2963265421 | H76: 0.3580121526 | I76: 0.3792018254 | J76: 0.4296421698 | K76: 0.4392010367 | L76: 0.443593047 | M76: 0.4480289775 | N76: 0.6222002425 | O76: 0.7998101299 | P76: 0.9809099951 | Q76: 1.165551876 | R76: 1.353788505 | S76: 1.54567331 | T76: 1.741260433 | U76: 1.94060473 | V76: 1.960010778 | W76: 1.979610886 | X76: 1.999406994 | Y76: 2.019401064 | Z76: 2.039595075 | AA76: 2.059991026 | AB76: 2.080590936 | AC76: 2.101396845 | AD76: 2.122410814 | AE76: 2.143634922 | AF76: 2.165071271 | AG76: 2.186721984 | AH76: 2.208589204 | AI76: 2.230675096 | AJ76: 2.252981847 | AK76: 2.275511665 | AL76: 2.298266782 | AM76: 2.32124945 | AN76: 2.344461944 | AO76: 2.367906564 | AP76: 2.391585629
E77: EL 3 | F77: =F$522*OFFSET(F77,1,0) -> 0 | G77: =G$522*OFFSET(G77,1,0) -> 0 | H77: 0 | I77: 0 | J77: 0 | K77: 0 | L77: 0 | M77: 0 | N77: 0.05656365841 | O77: 0.11425859 | P77: 0.1731017638 | Q77: 0.2331103753 | R77: 0.2943018488 | S77: 0.3566938408 | T77: 0.4203042424 | U77: 0.4851511826 | V77: 0.4900026944 | W77: 0.4949027214 | X77: 0.4998517486 | Y77: 0.5048502661 | Z77: 0.5098987687 | AA77: 0.5149977564 | AB77: 0.520147734 | AC77: 0.5253492113 | AD77: 0.5306027035 | AE77: 0.5359087305 | AF77: 0.5412678178 | AG77: 0.546680496 | AH77: 0.5521473009 | AI77: 0.5576687739 | AJ77: 0.5632454617 | AK77: 0.5688779163 | AL77: 0.5745666955 | AM77: 0.5803123624 | AN77: 0.586115486 | AO77: 0.5919766409 | AP77: 0.5978964073
E78: Total | F78: =OFFSET($E$497,MATCH($D73,NAMES!$D$6:$D$22,0),MATCH(F$10,DATES,0)) -> 2.782481428 | G78: =OFFSET($E$497,MATCH($D73,NAMES!$D$6:$D$22,0),MATCH(G$10,DATES,0)) -> 2.963265421 | H78: =OFFSET($E$497,MATCH($D73,NAMES!$D$6:$D$22,0),MATCH(H$10,DATES,0)) -> 3.580121526 | I78: =OFFSET($E$497,MATCH($D73,NAMES!$D$6:$D$22,0),MATCH(I$10,DATES,0)) -> 3.792018254 | J78: =OFFSET($E$497,MATCH($D73,NAMES!$D$6:$D$22,0),MATCH(J$10,DATES,0)) -> 4.296421698 | K78: =OFFSET($E$497,MATCH($D73,NAMES!$D$6:$D$22,0),MATCH(K$10,DATES,0)) -> 4.392010367 | L78: =OFFSET($E$497,MATCH($D73,NAMES!$D$6:$D$22,0),MATCH(L$10,DATES,0)) -> 4.43593047 | M78: =OFFSET($E$497,MATCH($D73,NAMES!$D$6:$D$22,0),MATCH(M$10,DATES,0)) -> 4.480289775 | N78: =OFFSET($E$497,MATCH($D73,NAMES!$D$6:$D$22,0),MATCH(N$10,DATES,0)) -> 4.525092673 | O78: =OFFSET($E$497,MATCH($D73,NAMES!$D$6:$D$22,0),MATCH(O$10,DATES,0)) -> 4.5703436 | P78: =OFFSET($E$497,MATCH($D73,NAMES!$D$6:$D$22,0),MATCH(P$10,DATES,0)) -> 4.616047036 | Q78: =OFFSET($E$497,MATCH($D73,NAMES!$D$6:$D$22,0),MATCH(Q$10,DATES,0)) -> 4.662207506 | R78: =OFFSET($E$497,MATCH($D73,NAMES!$D$6:$D$22,0),MATCH(R$10,DATES,0)) -> 4.708829581 | S78: =OFFSET($E$497,MATCH($D73,NAMES!$D$6:$D$22,0),MATCH(S$10,DATES,0)) -> 4.755917877 | T78: =OFFSET($E$497,MATCH($D73,NAMES!$D$6:$D$22,0),MATCH(T$10,DATES,0)) -> 4.803477056 | U78: =OFFSET($E$497,MATCH($D73,NAMES!$D$6:$D$22,0),MATCH(U$10,DATES,0)) -> 4.851511826 | V78: =OFFSET($E$497,MATCH($D73,NAMES!$D$6:$D$22,0),MATCH(V$10,DATES,0)) -> 4.900026944 | W78: =OFFSET($E$497,MATCH($D73,NAMES!$D$6:$D$22,0),MATCH(W$10,DATES,0)) -> 4.949027214 | X78: =OFFSET($E$497,MATCH($D73,NAMES!$D$6:$D$22,0),MATCH(X$10,DATES,0)) -> 4.998517486 | Y78: =OFFSET($E$497,MATCH($D73,NAMES!$D$6:$D$22,0),MATCH(Y$10,DATES,0)) -> 5.048502661 | Z78: =OFFSET($E$497,MATCH($D73,NAMES!$D$6:$D$22,0),MATCH(Z$10,DATES,0)) -> 5.098987687 | AA78: =OFFSET($E$497,MATCH($D73,NAMES!$D$6:$D$22,0),MATCH(AA$10,DATES,0)) -> 5.149977564 | AB78: =OFFSET($E$497,MATCH($D73,NAMES!$D$6:$D$22,0),MATCH(AB$10,DATES,0)) -> 5.20147734 | AC78: =OFFSET($E$497,MATCH($D73,NAMES!$D$6:$D$22,0),MATCH(AC$10,DATES,0)) -> 5.253492113 | AD78: =OFFSET($E$497,MATCH($D73,NAMES!$D$6:$D$22,0),MATCH(AD$10,DATES,0)) -> 5.306027035 | AE78: =OFFSET($E$497,MATCH($D73,NAMES!$D$6:$D$22,0),MATCH(AE$10,DATES,0)) -> 5.359087305 | AF78: =OFFSET($E$497,MATCH($D73,NAMES!$D$6:$D$22,0),MATCH(AF$10,DATES,0)) -> 5.412678178 | AG78: =OFFSET($E$497,MATCH($D73,NAMES!$D$6:$D$22,0),MATCH(AG$10,DATES,0)) -> 5.46680496 | AH78: =OFFSET($E$497,MATCH($D73,NAMES!$D$6:$D$22,0),MATCH(AH$10,DATES,0)) -> 5.521473009 | AI78: =OFFSET($E$497,MATCH($D73,NAMES!$D$6:$D$22,0),MATCH(AI$10,DATES,0)) -> 5.576687739 | AJ78: =OFFSET($E$497,MATCH($D73,NAMES!$D$6:$D$22,0),MATCH(AJ$10,DATES,0)) -> 5.632454617 | AK78: =OFFSET($E$497,MATCH($D73,NAMES!$D$6:$D$22,0),MATCH(AK$10,DATES,0)) -> 5.688779163 | AL78: =OFFSET($E$497,MATCH($D73,NAMES!$D$6:$D$22,0),MATCH(AL$10,DATES,0)) -> 5.745666955 | AM78: =OFFSET($E$497,MATCH($D73,NAMES!$D$6:$D$22,0),MATCH(AM$10,DATES,0)) -> 5.803123624 | AN78: =OFFSET($E$497,MATCH($D73,NAMES!$D$6:$D$22,0),MATCH(AN$10,DATES,0)) -> 5.86115486 | AO78: =OFFSET($E$497,MATCH($D73,NAMES!$D$6:$D$22,0),MATCH(AO$10,DATES,0)) -> 5.919766409 | AP78: =OFFSET($E$497,MATCH($D73,NAMES!$D$6:$D$22,0),MATCH(AP$10,DATES,0)) -> 5.978964073
D80: PG11 | F80: =Base_Year - 1 -> 2011 | G80: =OFFSET(G80,0,-1)+1 -> 2012 | H80: =OFFSET(H80,0,-1)+1 -> 2013 | I80: 2014 | J80: 2015 | K80: 2016 | L80: 2017 | M80: 2018 | N80: 2019 | O80: 2020 | P80: 2021 | Q80: 2022 | R80: 2023 | S80: 2024 | T80: 2025 | U80: 2026 | V80: 2027 | W80: 2028 | X80: 2029 | Y80: 2030 | Z80: 2031 | AA80: 2032 | AB80: 2033 | AC80: 2034 | AD80: 2035 | AE80: 2036 | AF80: 2037 | AG80: 2038 | AH80: 2039 | AI80: 2040 | AJ80: 2041 | AK80: 2042 | AL80: 2043 | AM80: 2044 | AN80: 2045 | AO80: 2046 | AP80: 2047
D81: =VLOOKUP(D80,PC_Table,2,FALSE) -> IP Base | E81: Baseline | F81: =F$519*OFFSET(F81,4,0) -> 0.6109038208 | G81: =G$519*OFFSET(G81,4,0) -> 0.8534003812 | H81: 1.134925661 | I81: 0.9982646496 | J81: 0.8120218901 | K81: 0.6506309533 | L81: 0.6571372628 | M81: 0.6637086355 | N81: 0.5865525066 | O81: 0.5077868843 | P81: 0.4273872943 | Q81: 0.3453289338 | R81: 0.2615866673 | S81: 0.1761350227 | T81: 0.08894818645 | U81: 0 | V81: 0 | W81: 0 | X81: 0 | Y81: 0 | Z81: 0 | AA81: 0 | AB81: 0 | AC81: 0 | AD81: 0 | AE81: 0 | AF81: 0 | AG81: 0 | AH81: 0 | AI81: 0 | AJ81: 0 | AK81: 0 | AL81: 0 | AM81: 0 | AN81: 0 | AO81: 0 | AP81: 0
E82: EL 1 | F82: =F$520*OFFSET(F82,3,0) -> 0.4887230567 | G82: =G$520*OFFSET(G82,3,0) -> 0.6827203049 | H82: 0.9079405288 | I82: 0.7986117197 | J82: 0.6496175121 | K82: 0.5205047626 | L82: 0.5257098103 | M82: 0.5309669084 | N82: 0.5530352205 | O82: 0.5754918022 | P82: 0.598342212 | Q82: 0.6215920808 | R82: 0.6452471127 | S82: 0.6693130861 | T82: 0.6937958543 | U82: 0.7187013465 | V82: 0.7258883599 | W82: 0.7331472435 | X82: 0.740478716 | Y82: 0.7478835031 | Z82: 0.7553623382 | AA82: 0.7629159616 | AB82: 0.7705451212 | AC82: 0.7782505724 | AD82: 0.7860330781 | AE82: 0.7938934089 | AF82: 0.801832343 | AG82: 0.8098506664 | AH82: 0.8179491731 | AI82: 0.8261286648 | AJ82: 0.8343899515 | AK82: 0.842733851 | AL82: 0.8511611895 | AM82: 0.8596728014 | AN82: 0.8682695294 | AO82: 0.8769522247 | AP82: 0.8857217469
E83: EL 2 | F83: =F$521*OFFSET(F83,2,0) -> 0.1221807642 | G83: =G$521*OFFSET(G83,2,0) -> 0.1706800762 | H83: 0.2269851322 | I83: 0.1996529299 | J83: 0.162404378 | K83: 0.1301261907 | L83: 0.1314274526 | M83: 0.1327417271 | N83: 0.1843450735 | O83: 0.2369672127 | P83: 0.2906233601 | Q83: 0.3453289338 | R83: 0.4010995566 | S83: 0.4579510589 | T83: 0.5158994814 | U83: 0.5749610772 | V83: 0.580710688 | W83: 0.5865177948 | X83: 0.5923829728 | Y83: 0.5983068025 | Z83: 0.6042898705 | AA83: 0.6103327692 | AB83: 0.6164360969 | AC83: 0.6226004579 | AD83: 0.6288264625 | AE83: 0.6351147271 | AF83: 0.6414658744 | AG83: 0.6478805331 | AH83: 0.6543593385 | AI83: 0.6609029318 | AJ83: 0.6675119612 | AK83: 0.6741870808 | AL83: 0.6809289516 | AM83: 0.6877382411 | AN83: 0.6946156235 | AO83: 0.7015617797 | AP83: 0.7085773975
E84: EL 3 | F84: =F$522*OFFSET(F84,1,0) -> 0 | G84: =G$522*OFFSET(G84,1,0) -> 0 | H84: 0 | I84: 0 | J84: 0 | K84: 0 | L84: 0 | M84: 0 | N84: 0.01675864305 | O84: 0.03385245895 | P84: 0.05128647531 | Q84: 0.06906578675 | R84: 0.08719555577 | S84: 0.1056810136 | T84: 0.124527461 | U84: 0.1437402693 | V84: 0.145177672 | W84: 0.1466294487 | X84: 0.1480957432 | Y84: 0.1495767006 | Z84: 0.1510724676 | AA84: 0.1525831923 | AB84: 0.1541090242 | AC84: 0.1556501145 | AD84: 0.1572066156 | AE84: 0.1587786818 | AF84: 0.1603664686 | AG84: 0.1619701333 | AH84: 0.1635898346 | AI84: 0.165225733 | AJ84: 0.1668779903 | AK84: 0.1685467702 | AL84: 0.1702322379 | AM84: 0.1719345603 | AN84: 0.1736539059 | AO84: 0.1753904449 | AP84: 0.1771443494
E85: Total | F85: =OFFSET($E$497,MATCH($D80,NAMES!$D$6:$D$22,0),MATCH(F$10,DATES,0)) -> 1.221807642 | G85: =OFFSET($E$497,MATCH($D80,NAMES!$D$6:$D$22,0),MATCH(G$10,DATES,0)) -> 1.706800762 | H85: =OFFSET($E$497,MATCH($D80,NAMES!$D$6:$D$22,0),MATCH(H$10,DATES,0)) -> 2.269851322 | I85: =OFFSET($E$497,MATCH($D80,NAMES!$D$6:$D$22,0),MATCH(I$10,DATES,0)) -> 1.996529299 | J85: =OFFSET($E$497,MATCH($D80,NAMES!$D$6:$D$22,0),MATCH(J$10,DATES,0)) -> 1.62404378 | K85: =OFFSET($E$497,MATCH($D80,NAMES!$D$6:$D$22,0),MATCH(K$10,DATES,0)) -> 1.301261907 | L85: =OFFSET($E$497,MATCH($D80,NAMES!$D$6:$D$22,0),MATCH(L$10,DATES,0)) -> 1.314274526 | M85: =OFFSET($E$497,MATCH($D80,NAMES!$D$6:$D$22,0),MATCH(M$10,DATES,0)) -> 1.327417271 | N85: =OFFSET($E$497,MATCH($D80,NAMES!$D$6:$D$22,0),MATCH(N$10,DATES,0)) -> 1.340691444 | O85: =OFFSET($E$497,MATCH($D80,NAMES!$D$6:$D$22,0),MATCH(O$10,DATES,0)) -> 1.354098358 | P85: =OFFSET($E$497,MATCH($D80,NAMES!$D$6:$D$22,0),MATCH(P$10,DATES,0)) -> 1.367639342 | Q85: =OFFSET($E$497,MATCH($D80,NAMES!$D$6:$D$22,0),MATCH(Q$10,DATES,0)) -> 1.381315735 | R85: =OFFSET($E$497,MATCH($D80,NAMES!$D$6:$D$22,0),MATCH(R$10,DATES,0)) -> 1.395128892 | S85: =OFFSET($E$497,MATCH($D80,NAMES!$D$6:$D$22,0),MATCH(S$10,DATES,0)) -> 1.409080181 | T85: =OFFSET($E$497,MATCH($D80,NAMES!$D$6:$D$22,0),MATCH(T$10,DATES,0)) -> 1.423170983 | U85: =OFFSET($E$497,MATCH($D80,NAMES!$D$6:$D$22,0),MATCH(U$10,DATES,0)) -> 1.437402693 | V85: =OFFSET($E$497,MATCH($D80,NAMES!$D$6:$D$22,0),MATCH(V$10,DATES,0)) -> 1.45177672 | W85: =OFFSET($E$497,MATCH($D80,NAMES!$D$6:$D$22,0),MATCH(W$10,DATES,0)) -> 1.466294487 | X85: =OFFSET($E$497,MATCH($D80,NAMES!$D$6:$D$22,0),MATCH(X$10,DATES,0)) -> 1.480957432 | Y85: =OFFSET($E$497,MATCH($D80,NAMES!$D$6:$D$22,0),MATCH(Y$10,DATES,0)) -> 1.495767006 | Z85: =OFFSET($E$497,MATCH($D80,NAMES!$D$6:$D$22,0),MATCH(Z$10,DATES,0)) -> 1.510724676 | AA85: =OFFSET($E$497,MATCH($D80,NAMES!$D$6:$D$22,0),MATCH(AA$10,DATES,0)) -> 1.525831923 | AB85: =OFFSET($E$497,MATCH($D80,NAMES!$D$6:$D$22,0),MATCH(AB$10,DATES,0)) -> 1.541090242 | AC85: =OFFSET($E$497,MATCH($D80,NAMES!$D$6:$D$22,0),MATCH(AC$10,DATES,0)) -> 1.556501145 | AD85: =OFFSET($E$497,MATCH($D80,NAMES!$D$6:$D$22,0),MATCH(AD$10,DATES,0)) -> 1.572066156 | AE85: =OFFSET($E$497,MATCH($D80,NAMES!$D$6:$D$22,0),MATCH(AE$10,DATES,0)) -> 1.587786818 | AF85: =OFFSET($E$497,MATCH($D80,NAMES!$D$6:$D$22,0),MATCH(AF$10,DATES,0)) -> 1.603664686 | AG85: =OFFSET($E$497,MATCH($D80,NAMES!$D$6:$D$22,0),MATCH(AG$10,DATES,0)) -> 1.619701333 | AH85: =OFFSET($E$497,MATCH($D80,NAMES!$D$6:$D$22,0),MATCH(AH$10,DATES,0)) -> 1.635898346 | AI85: =OFFSET($E$497,MATCH($D80,NAMES!$D$6:$D$22,0),MATCH(AI$10,DATES,0)) -> 1.65225733 | AJ85: =OFFSET($E$497,MATCH($D80,NAMES!$D$6:$D$22,0),MATCH(AJ$10,DATES,0)) -> 1.668779903 | AK85: =OFFSET($E$497,MATCH($D80,NAMES!$D$6:$D$22,0),MATCH(AK$10,DATES,0)) -> 1.685467702 | AL85: =OFFSET($E$497,MATCH($D80,NAMES!$D$6:$D$22,0),MATCH(AL$10,DATES,0)) -> 1.702322379 | AM85: =OFFSET($E$497,MATCH($D80,NAMES!$D$6:$D$22,0),MATCH(AM$10,DATES,0)) -> 1.719345603 | AN85: =OFFSET($E$497,MATCH($D80,NAMES!$D$6:$D$22,0),MATCH(AN$10,DATES,0)) -> 1.736539059 | AO85: =OFFSET($E$497,MATCH($D80,NAMES!$D$6:$D$22,0),MATCH(AO$10,DATES,0)) -> 1.753904449 | AP85: =OFFSET($E$497,MATCH($D80,NAMES!$D$6:$D$22,0),MATCH(AP$10,DATES,0)) -> 1.771443494
D87: PG12 | F87: =Base_Year - 1 -> 2011 | G87: =OFFSET(G87,0,-1)+1 -> 2012 | H87: =OFFSET(H87,0,-1)+1 -> 2013 | I87: 2014 | J87: 2015 | K87: 2016 | L87: 2017 | M87: 2018 | N87: 2019 | O87: 2020 | P87: 2021 | Q87: 2022 | R87: 2023 | S87: 2024 | T87: 2025 | U87: 2026 | V87: 2027 | W87: 2028 | X87: 2029 | Y87: 2030 | Z87: 2031 | AA87: 2032 | AB87: 2033 | AC87: 2034 | AD87: 2035 | AE87: 2036 | AF87: 2037 | AG87: 2038 | AH87: 2039 | AI87: 2040 | AJ87: 2041 | AK87: 2042 | AL87: 2043 | AM87: 2044 | AN87: 2045 | AO87: 2046 | AP87: 2047
D88: =VLOOKUP(D87,PC_Table,2,FALSE) -> IP Video Client | E88: Baseline | F88: =F$519*OFFSET(F88,4,0) -> 0.0004982709499 | G88: =G$519*OFFSET(G88,4,0) -> 0.106998322 | H88: 0.2047340967 | I88: 0.2759663617 | J88: 0.3983321879 | K88: 0.4958461915 | L88: 0.5008046534 | M88: 0.5058126999 | N88: 0.4470119736 | O88: 0.3869846514 | P88: 0.3257120816 | Q88: 0.2631753619 | R88: 0.1993553367 | S88: 0.1342325934 | T88: 0.06778745964 | U88: 0 | V88: 0 | W88: 0 | X88: 0 | Y88: 0 | Z88: 0 | AA88: 0 | AB88: 0 | AC88: 0 | AD88: 0 | AE88: 0 | AF88: 0 | AG88: 0 | AH88: 0 | AI88: 0 | AJ88: 0 | AK88: 0 | AL88: 0 | AM88: 0 | AN88: 0 | AO88: 0 | AP88: 0
E89: EL 1 | F89: =F$520*OFFSET(F89,3,0) -> 0.0003986167599 | G89: =G$520*OFFSET(G89,3,0) -> 0.08559865756 | H89: 0.1637872774 | I89: 0.2207730893 | J89: 0.3186657503 | K89: 0.3966769532 | L89: 0.4006437227 | M89: 0.40465016 | N89: 0.4214684322 | O89: 0.4385826049 | P89: 0.4559969142 | Q89: 0.4737156515 | R89: 0.4917431638 | S89: 0.5100838548 | T89: 0.5287421852 | U89: 0.5477226739 | V89: 0.5531999007 | W89: 0.5587318997 | X89: 0.5643192187 | Y89: 0.5699624109 | Z89: 0.575662035 | AA89: 0.5814186553 | AB89: 0.5872328419 | AC89: 0.5931051703 | AD89: 0.599036222 | AE89: 0.6050265842 | AF89: 0.6110768501 | AG89: 0.6171876186 | AH89: 0.6233594947 | AI89: 0.6295930897 | AJ89: 0.6358890206 | AK89: 0.6422479108 | AL89: 0.6486703899 | AM89: 0.6551570938 | AN89: 0.6617086647 | AO89: 0.6683257514 | AP89: 0.6750090089
E90: EL 2 | F90: =F$521*OFFSET(F90,2,0) -> 9.965418998e-05 | G90: =G$521*OFFSET(G90,2,0) -> 0.02139966439 | H90: 0.04094681934 | I90: 0.05519327233 | J90: 0.07966643759 | K90: 0.0991692383 | L90: 0.1001609307 | M90: 0.10116254 | N90: 0.1404894774 | O90: 0.1805928373 | P90: 0.2214842155 | Q90: 0.2631753619 | R90: 0.3056781829 | S90: 0.3490047427 | T90: 0.3931672659 | U90: 0.4381781391 | V90: 0.4425599205 | W90: 0.4469855197 | X90: 0.4514553749 | Y90: 0.4559699287 | Z90: 0.460529628 | AA90: 0.4651349243 | AB90: 0.4697862735 | AC90: 0.4744841362 | AD90: 0.4792289776 | AE90: 0.4840212674 | AF90: 0.48886148 | AG90: 0.4937500948 | AH90: 0.4986875958 | AI90: 0.5036744717 | AJ90: 0.5087112165 | AK90: 0.5137983286 | AL90: 0.5189363119 | AM90: 0.524125675 | AN90: 0.5293669318 | AO90: 0.5346606011 | AP90: 0.5400072071
E91: EL 3 | F91: =F$522*OFFSET(F91,1,0) -> 0 | G91: =G$522*OFFSET(G91,1,0) -> 0 | H91: 0 | I91: 0 | J91: 0 | K91: 0 | L91: 0 | M91: 0 | N91: 0.01277177067 | O91: 0.02579897676 | P91: 0.03908544979 | Q91: 0.05263507239 | R91: 0.06645177889 | S91: 0.08053955601 | T91: 0.0949024435 | U91: 0.1095445348 | V91: 0.1106399801 | W91: 0.1117463799 | X91: 0.1128638437 | Y91: 0.1139924822 | Z91: 0.115132407 | AA91: 0.1162837311 | AB91: 0.1174465684 | AC91: 0.1186210341 | AD91: 0.1198072444 | AE91: 0.1210053168 | AF91: 0.12221537 | AG91: 0.1234375237 | AH91: 0.1246718989 | AI91: 0.1259186179 | AJ91: 0.1271778041 | AK91: 0.1284495822 | AL91: 0.129734078 | AM91: 0.1310314188 | AN91: 0.1323417329 | AO91: 0.1336651503 | AP91: 0.1350018018
E92: Total | F92: =OFFSET($E$497,MATCH($D87,NAMES!$D$6:$D$22,0),MATCH(F$10,DATES,0)) -> 0.0009965418998 | G92: =OFFSET($E$497,MATCH($D87,NAMES!$D$6:$D$22,0),MATCH(G$10,DATES,0)) -> 0.2139966439 | H92: =OFFSET($E$497,MATCH($D87,NAMES!$D$6:$D$22,0),MATCH(H$10,DATES,0)) -> 0.4094681934 | I92: =OFFSET($E$497,MATCH($D87,NAMES!$D$6:$D$22,0),MATCH(I$10,DATES,0)) -> 0.5519327233 | J92: =OFFSET($E$497,MATCH($D87,NAMES!$D$6:$D$22,0),MATCH(J$10,DATES,0)) -> 0.7966643759 | K92: =OFFSET($E$497,MATCH($D87,NAMES!$D$6:$D$22,0),MATCH(K$10,DATES,0)) -> 0.991692383 | L92: =OFFSET($E$497,MATCH($D87,NAMES!$D$6:$D$22,0),MATCH(L$10,DATES,0)) -> 1.001609307 | M92: =OFFSET($E$497,MATCH($D87,NAMES!$D$6:$D$22,0),MATCH(M$10,DATES,0)) -> 1.0116254 | N92: =OFFSET($E$497,MATCH($D87,NAMES!$D$6:$D$22,0),MATCH(N$10,DATES,0)) -> 1.021741654 | O92: =OFFSET($E$497,MATCH($D87,NAMES!$D$6:$D$22,0),MATCH(O$10,DATES,0)) -> 1.03195907 | P92: =OFFSET($E$497,MATCH($D87,NAMES!$D$6:$D$22,0),MATCH(P$10,DATES,0)) -> 1.042278661 | Q92: =OFFSET($E$497,MATCH($D87,NAMES!$D$6:$D$22,0),MATCH(Q$10,DATES,0)) -> 1.052701448 | R92: =OFFSET($E$497,MATCH($D87,NAMES!$D$6:$D$22,0),MATCH(R$10,DATES,0)) -> 1.063228462 | S92: =OFFSET($E$497,MATCH($D87,NAMES!$D$6:$D$22,0),MATCH(S$10,DATES,0)) -> 1.073860747 | T92: =OFFSET($E$497,MATCH($D87,NAMES!$D$6:$D$22,0),MATCH(T$10,DATES,0)) -> 1.084599354 | U92: =OFFSET($E$497,MATCH($D87,NAMES!$D$6:$D$22,0),MATCH(U$10,DATES,0)) -> 1.095445348 | V92: =OFFSET($E$497,MATCH($D87,NAMES!$D$6:$D$22,0),MATCH(V$10,DATES,0)) -> 1.106399801 | W92: =OFFSET($E$497,MATCH($D87,NAMES!$D$6:$D$22,0),MATCH(W$10,DATES,0)) -> 1.117463799 | X92: =OFFSET($E$497,MATCH($D87,NAMES!$D$6:$D$22,0),MATCH(X$10,DATES,0)) -> 1.128638437 | Y92: =OFFSET($E$497,MATCH($D87,NAMES!$D$6:$D$22,0),MATCH(Y$10,DATES,0)) -> 1.139924822 | Z92: =OFFSET($E$497,MATCH($D87,NAMES!$D$6:$D$22,0),MATCH(Z$10,DATES,0)) -> 1.15132407 | AA92: =OFFSET($E$497,MATCH($D87,NAMES!$D$6:$D$22,0),MATCH(AA$10,DATES,0)) -> 1.162837311 | AB92: =OFFSET($E$497,MATCH($D87,NAMES!$D$6:$D$22,0),MATCH(AB$10,DATES,0)) -> 1.174465684 | AC92: =OFFSET($E$497,MATCH($D87,NAMES!$D$6:$D$22,0),MATCH(AC$10,DATES,0)) -> 1.186210341 | AD92: =OFFSET($E$497,MATCH($D87,NAMES!$D$6:$D$22,0),MATCH(AD$10,DATES,0)) -> 1.198072444 | AE92: =OFFSET($E$497,MATCH($D87,NAMES!$D$6:$D$22,0),MATCH(AE$10,DATES,0)) -> 1.210053168 | AF92: =OFFSET($E$497,MATCH($D87,NAMES!$D$6:$D$22,0),MATCH(AF$10,DATES,0)) -> 1.2221537 | AG92: =OFFSET($E$497,MATCH($D87,NAMES!$D$6:$D$22,0),MATCH(AG$10,DATES,0)) -> 1.234375237 | AH92: =OFFSET($E$497,MATCH($D87,NAMES!$D$6:$D$22,0),MATCH(AH$10,DATES,0)) -> 1.246718989 | AI92: =OFFSET($E$497,MATCH($D87,NAMES!$D$6:$D$22,0),MATCH(AI$10,DATES,0)) -> 1.259186179 | AJ92: =OFFSET($E$497,MATCH($D87,NAMES!$D$6:$D$22,0),MATCH(AJ$10,DATES,0)) -> 1.271778041 | AK92: =OFFSET($E$497,MATCH($D87,NAMES!$D$6:$D$22,0),MATCH(AK$10,DATES,0)) -> 1.284495822 | AL92: =OFFSET($E$497,MATCH($D87,NAMES!$D$6:$D$22,0),MATCH(AL$10,DATES,0)) -> 1.29734078 | AM92: =OFFSET($E$497,MATCH($D87,NAMES!$D$6:$D$22,0),MATCH(AM$10,DATES,0)) -> 1.310314188 | AN92: =OFFSET($E$497,MATCH($D87,NAMES!$D$6:$D$22,0),MATCH(AN$10,DATES,0)) -> 1.323417329 | AO92: =OFFSET($E$497,MATCH($D87,NAMES!$D$6:$D$22,0),MATCH(AO$10,DATES,0)) -> 1.336651503 | AP92: =OFFSET($E$497,MATCH($D87,NAMES!$D$6:$D$22,0),MATCH(AP$10,DATES,0)) -> 1.350018018
D94: PG13 | F94: =Base_Year - 1 -> 2011 | G94: =OFFSET(G94,0,-1)+1 -> 2012 | H94: =OFFSET(H94,0,-1)+1 -> 2013 | I94: 2014 | J94: 2015 | K94: 2016 | L94: 2017 | M94: 2018 | N94: 2019 | O94: 2020 | P94: 2021 | Q94: 2022 | R94: 2023 | S94: 2024 | T94: 2025 | U94: 2026 | V94: 2027 | W94: 2028 | X94: 2029 | Y94: 2030 | Z94: 2031 | AA94: 2032 | AB94: 2033 | AC94: 2034 | AD94: 2035 | AE94: 2036 | AF94: 2037 | AG94: 2038 | AH94: 2039 | AI94: 2040 | AJ94: 2041 | AK94: 2042 | AL94: 2043 | AM94: 2044 | AN94: 2045 | AO94: 2046 | AP94: 2047
D95: =VLOOKUP(D94,PC_Table,2,FALSE) -> IP Video Server | E95: Baseline | F95: =F$519*OFFSET(F95,4,0) -> 0.08748867177 | G95: =G$519*OFFSET(G95,4,0) -> 0.1136283287 | H95: 0.1670245645 | I95: 0.182336273 | J95: 0.1731957939 | K95: 0.1640553148 | L95: 0.1656958679 | M95: 0.1673528266 | N95: 0.1478980605 | O95: 0.1280374638 | P95: 0.1077648654 | Q95: 0.08707401122 | R95: 0.0659585635 | S95: 0.04441209942 | T95: 0.02242811021 | U95: 0 | V95: 0 | W95: 0 | X95: 0 | Y95: 0 | Z95: 0 | AA95: 0 | AB95: 0 | AC95: 0 | AD95: 0 | AE95: 0 | AF95: 0 | AG95: 0 | AH95: 0 | AI95: 0 | AJ95: 0 | AK95: 0 | AL95: 0 | AM95: 0 | AN95: 0 | AO95: 0 | AP95: 0
E96: EL 1 | F96: =F$520*OFFSET(F96,3,0) -> 0.06999093742 | G96: =G$520*OFFSET(G96,3,0) -> 0.09090266296 | H96: 0.1336196516 | I96: 0.1458690184 | J96: 0.1385566351 | K96: 0.1312442518 | L96: 0.1325566943 | M96: 0.1338822613 | N96: 0.1394467428 | O96: 0.1451091256 | P96: 0.1508708115 | Q96: 0.1567332202 | R96: 0.16269779 | S96: 0.1687659778 | T96: 0.1749392596 | U96: 0.1812191305 | V96: 0.1830313218 | W96: 0.184861635 | X96: 0.1867102514 | Y96: 0.1885773539 | Z96: 0.1904631274 | AA96: 0.1923677587 | AB96: 0.1942914363 | AC96: 0.1962343506 | AD96: 0.1981966941 | AE96: 0.2001786611 | AF96: 0.2021804477 | AG96: 0.2042022522 | AH96: 0.2062442747 | AI96: 0.2083067174 | AJ96: 0.2103897846 | AK96: 0.2124936825 | AL96: 0.2146186193 | AM96: 0.2167648055 | AN96: 0.2189324535 | AO96: 0.2211217781 | AP96: 0.2233329958
E97: EL 2 | F97: =F$521*OFFSET(F97,2,0) -> 0.01749773435 | G97: =G$521*OFFSET(G97,2,0) -> 0.02272566574 | H97: 0.0334049129 | I97: 0.0364672546 | J97: 0.03463915877 | K97: 0.03281106295 | L97: 0.03313917358 | M97: 0.03347056532 | N97: 0.04648224759 | O97: 0.05975081644 | P97: 0.07328010845 | Q97: 0.08707401122 | R97: 0.101136464 | S97: 0.1154714585 | T97: 0.1300830392 | U97: 0.1449753044 | V97: 0.1464250574 | W97: 0.147889308 | X97: 0.1493682011 | Y97: 0.1508618831 | Z97: 0.1523705019 | AA97: 0.1538942069 | AB97: 0.155433149 | AC97: 0.1569874805 | AD97: 0.1585573553 | AE97: 0.1601429289 | AF97: 0.1617443582 | AG97: 0.1633618017 | AH97: 0.1649954198 | AI97: 0.1666453739 | AJ97: 0.1683118277 | AK97: 0.169994946 | AL97: 0.1716948954 | AM97: 0.1734118444 | AN97: 0.1751459628 | AO97: 0.1768974225 | AP97: 0.1786663967
E98: EL 3 | F98: =F$522*OFFSET(F98,1,0) -> 0 | G98: =G$522*OFFSET(G98,1,0) -> 0 | H98: 0 | I98: 0 | J98: 0 | K98: 0 | L98: 0 | M98: 0 | N98: 0.004225658871 | O98: 0.00853583092 | P98: 0.01293178384 | Q98: 0.01741480224 | R98: 0.02198618783 | S98: 0.02664725965 | T98: 0.03139935429 | U98: 0.0362438261 | V98: 0.03660626436 | W98: 0.036972327 | X98: 0.03734205027 | Y98: 0.03771547077 | Z98: 0.03809262548 | AA98: 0.03847355174 | AB98: 0.03885828725 | AC98: 0.03924687013 | AD98: 0.03963933883 | AE98: 0.04003573222 | AF98: 0.04043608954 | AG98: 0.04084045043 | AH98: 0.04124885494 | AI98: 0.04166134349 | AJ98: 0.04207795692 | AK98: 0.04249873649 | AL98: 0.04292372386 | AM98: 0.04335296109 | AN98: 0.04378649071 | AO98: 0.04422435561 | AP98: 0.04466659917
E99: Total | F99: =OFFSET($E$497,MATCH($D94,NAMES!$D$6:$D$22,0),MATCH(F$10,DATES,0)) -> 0.1749773435 | G99: =OFFSET($E$497,MATCH($D94,NAMES!$D$6:$D$22,0),MATCH(G$10,DATES,0)) -> 0.2272566574 | H99: =OFFSET($E$497,MATCH($D94,NAMES!$D$6:$D$22,0),MATCH(H$10,DATES,0)) -> 0.334049129 | I99: =OFFSET($E$497,MATCH($D94,NAMES!$D$6:$D$22,0),MATCH(I$10,DATES,0)) -> 0.364672546 | J99: =OFFSET($E$497,MATCH($D94,NAMES!$D$6:$D$22,0),MATCH(J$10,DATES,0)) -> 0.3463915877 | K99: =OFFSET($E$497,MATCH($D94,NAMES!$D$6:$D$22,0),MATCH(K$10,DATES,0)) -> 0.3281106295 | L99: =OFFSET($E$497,MATCH($D94,NAMES!$D$6:$D$22,0),MATCH(L$10,DATES,0)) -> 0.3313917358 | M99: =OFFSET($E$497,MATCH($D94,NAMES!$D$6:$D$22,0),MATCH(M$10,DATES,0)) -> 0.3347056532 | N99: =OFFSET($E$497,MATCH($D94,NAMES!$D$6:$D$22,0),MATCH(N$10,DATES,0)) -> 0.3380527097 | O99: =OFFSET($E$497,MATCH($D94,NAMES!$D$6:$D$22,0),MATCH(O$10,DATES,0)) -> 0.3414332368 | P99: =OFFSET($E$497,MATCH($D94,NAMES!$D$6:$D$22,0),MATCH(P$10,DATES,0)) -> 0.3448475692 | Q99: =OFFSET($E$497,MATCH($D94,NAMES!$D$6:$D$22,0),MATCH(Q$10,DATES,0)) -> 0.3482960449 | R99: =OFFSET($E$497,MATCH($D94,NAMES!$D$6:$D$22,0),MATCH(R$10,DATES,0)) -> 0.3517790053 | S99: =OFFSET($E$497,MATCH($D94,NAMES!$D$6:$D$22,0),MATCH(S$10,DATES,0)) -> 0.3552967954 | T99: =OFFSET($E$497,MATCH($D94,NAMES!$D$6:$D$22,0),MATCH(T$10,DATES,0)) -> 0.3588497633 | U99: =OFFSET($E$497,MATCH($D94,NAMES!$D$6:$D$22,0),MATCH(U$10,DATES,0)) -> 0.362438261 | V99: =OFFSET($E$497,MATCH($D94,NAMES!$D$6:$D$22,0),MATCH(V$10,DATES,0)) -> 0.3660626436 | W99: =OFFSET($E$497,MATCH($D94,NAMES!$D$6:$D$22,0),MATCH(W$10,DATES,0)) -> 0.36972327 | X99: =OFFSET($E$497,MATCH($D94,NAMES!$D$6:$D$22,0),MATCH(X$10,DATES,0)) -> 0.3734205027 | Y99: =OFFSET($E$497,MATCH($D94,NAMES!$D$6:$D$22,0),MATCH(Y$10,DATES,0)) -> 0.3771547077 | Z99: =OFFSET($E$497,MATCH($D94,NAMES!$D$6:$D$22,0),MATCH(Z$10,DATES,0)) -> 0.3809262548 | AA99: =OFFSET($E$497,MATCH($D94,NAMES!$D$6:$D$22,0),MATCH(AA$10,DATES,0)) -> 0.3847355174 | AB99: =OFFSET($E$497,MATCH($D94,NAMES!$D$6:$D$22,0),MATCH(AB$10,DATES,0)) -> 0.3885828725 | AC99: =OFFSET($E$497,MATCH($D94,NAMES!$D$6:$D$22,0),MATCH(AC$10,DATES,0)) -> 0.3924687013 | AD99: =OFFSET($E$497,MATCH($D94,NAMES!$D$6:$D$22,0),MATCH(AD$10,DATES,0)) -> 0.3963933883 | AE99: =OFFSET($E$497,MATCH($D94,NAMES!$D$6:$D$22,0),MATCH(AE$10,DATES,0)) -> 0.4003573222 | AF99: =OFFSET($E$497,MATCH($D94,NAMES!$D$6:$D$22,0),MATCH(AF$10,DATES,0)) -> 0.4043608954 | AG99: =OFFSET($E$497,MATCH($D94,NAMES!$D$6:$D$22,0),MATCH(AG$10,DATES,0)) -> 0.4084045043 | AH99: =OFFSET($E$497,MATCH($D94,NAMES!$D$6:$D$22,0),MATCH(AH$10,DATES,0)) -> 0.4124885494 | AI99: =OFFSET($E$497,MATCH($D94,NAMES!$D$6:$D$22,0),MATCH(AI$10,DATES,0)) -> 0.4166134349 | AJ99: =OFFSET($E$497,MATCH($D94,NAMES!$D$6:$D$22,0),MATCH(AJ$10,DATES,0)) -> 0.4207795692 | AK99: =OFFSET($E$497,MATCH($D94,NAMES!$D$6:$D$22,0),MATCH(AK$10,DATES,0)) -> 0.4249873649 | AL99: =OFFSET($E$497,MATCH($D94,NAMES!$D$6:$D$22,0),MATCH(AL$10,DATES,0)) -> 0.4292372386 | AM99: =OFFSET($E$497,MATCH($D94,NAMES!$D$6:$D$22,0),MATCH(AM$10,DATES,0)) -> 0.4335296109 | AN99: =OFFSET($E$497,MATCH($D94,NAMES!$D$6:$D$22,0),MATCH(AN$10,DATES,0)) -> 0.4378649071 | AO99: =OFFSET($E$497,MATCH($D94,NAMES!$D$6:$D$22,0),MATCH(AO$10,DATES,0)) -> 0.4422435561 | AP99: =OFFSET($E$497,MATCH($D94,NAMES!$D$6:$D$22,0),MATCH(AP$10,DATES,0)) -> 0.4466659917
D101: PG14 | F101: =Base_Year - 1 -> 2011 | G101: =OFFSET(G101,0,-1)+1 -> 2012 | H101: =OFFSET(H101,0,-1)+1 -> 2013 | I101: 2014 | J101: 2015 | K101: 2016 | L101: 2017 | M101: 2018 | N101: 2019 | O101: 2020 | P101: 2021 | Q101: 2022 | R101: 2023 | S101: 2024 | T101: 2025 | U101: 2026 | V101: 2027 | W101: 2028 | X101: 2029 | Y101: 2030 | Z101: 2031 | AA101: 2032 | AB101: 2033 | AC101: 2034 | AD101: 2035 | AE101: 2036 | AF101: 2037 | AG101: 2038 | AH101: 2039 | AI101: 2040 | AJ101: 2041 | AK101: 2042 | AL101: 2043 | AM101: 2044 | AN101: 2045 | AO101: 2046 | AP101: 2047
D102: =VLOOKUP(D101,PC_Table,2,FALSE) -> IP with DVR | E102: Baseline | F102: =F$519*OFFSET(F102,4,0) -> 0.2220005955 | G102: =G$519*OFFSET(G102,4,0) -> 0.2883294045 | H102: 0.4238211877 | I102: 0.4626743138 | J102: 0.4394805475 | K102: 0.4162867813 | L102: 0.4204496491 | M102: 0.4246541456 | N102: 0.3752881012 | O102: 0.3248922704 | P102: 0.2734509943 | Q102: 0.2209484034 | R102: 0.1673684156 | S102: 0.1126947331 | T102: 0.05691084024 | U102: 0 | V102: 0 | W102: 0 | X102: 0 | Y102: 0 | Z102: 0 | AA102: 0 | AB102: 0 | AC102: 0 | AD102: 0 | AE102: 0 | AF102: 0 | AG102: 0 | AH102: 0 | AI102: 0 | AJ102: 0 | AK102: 0 | AL102: 0 | AM102: 0 | AN102: 0 | AO102: 0 | AP102: 0
E103: EL 1 | F103: =F$520*OFFSET(F103,3,0) -> 0.1776004764 | G103: =G$520*OFFSET(G103,3,0) -> 0.2306635236 | H103: 0.3390569502 | I103: 0.370139451 | J103: 0.351584438 | K103: 0.333029425 | L103: 0.3363597193 | M103: 0.3397233165 | N103: 0.3538430668 | O103: 0.3682112398 | P103: 0.382831392 | Q103: 0.3977071261 | R103: 0.4128420917 | S103: 0.4282399859 | T103: 0.4439045538 | U103: 0.4598395891 | V103: 0.464437985 | W103: 0.4690823648 | X103: 0.4737731885 | Y103: 0.4785109204 | Z103: 0.4832960296 | AA103: 0.4881289899 | AB103: 0.4930102798 | AC103: 0.4979403826 | AD103: 0.5029197864 | AE103: 0.5079489843 | AF103: 0.5130284741 | AG103: 0.5181587589 | AH103: 0.5233403464 | AI103: 0.5285737499 | AJ103: 0.5338594874 | AK103: 0.5391980823 | AL103: 0.5445900631 | AM103: 0.5500359637 | AN103: 0.5555363234 | AO103: 0.5610916866 | AP103: 0.5667026035
E104: EL 2 | F104: =F$521*OFFSET(F104,2,0) -> 0.0444001191 | G104: =G$521*OFFSET(G104,2,0) -> 0.0576658809 | H104: 0.08476423754 | I104: 0.09253486276 | J104: 0.08789610951 | K104: 0.08325735625 | L104: 0.08408992982 | M104: 0.08493082911 | N104: 0.1179476889 | O104: 0.1516163929 | P104: 0.1859466761 | Q104: 0.2209484034 | R104: 0.2566315705 | S104: 0.2930063062 | T104: 0.3300828734 | U104: 0.3678716713 | V104: 0.371550388 | W104: 0.3752658919 | X104: 0.3790185508 | Y104: 0.3828087363 | Z104: 0.3866368237 | AA104: 0.3905031919 | AB104: 0.3944082238 | AC104: 0.3983523061 | AD104: 0.4023358291 | AE104: 0.4063591874 | AF104: 0.4104227793 | AG104: 0.4145270071 | AH104: 0.4186722772 | AI104: 0.4228589999 | AJ104: 0.4270875899 | AK104: 0.4313584658 | AL104: 0.4356720505 | AM104: 0.440028771 | AN104: 0.4444290587 | AO104: 0.4488733493 | AP104: 0.4533620828
E105: EL 3 | F105: =F$522*OFFSET(F105,1,0) -> 0 | G105: =G$522*OFFSET(G105,1,0) -> 0 | H105: 0 | I105: 0 | J105: 0 | K105: 0 | L105: 0 | M105: 0 | N105: 0.01072251718 | O105: 0.02165948469 | P105: 0.03281411931 | Q105: 0.04418968067 | R105: 0.05578947185 | S105: 0.06761683988 | T105: 0.07967517633 | U105: 0.09196791782 | V105: 0.092887597 | W105: 0.09381647297 | X105: 0.0947546377 | Y105: 0.09570218408 | Z105: 0.09665920592 | AA105: 0.09762579798 | AB105: 0.09860205596 | AC105: 0.09958807652 | AD105: 0.1005839573 | AE105: 0.1015897969 | AF105: 0.1026056948 | AG105: 0.1036317518 | AH105: 0.1046680693 | AI105: 0.10571475 | AJ105: 0.1067718975 | AK105: 0.1078396165 | AL105: 0.1089180126 | AM105: 0.1100071927 | AN105: 0.1111072647 | AO105: 0.1122183373 | AP105: 0.1133405207
E106: Total | F106: =OFFSET($E$497,MATCH($D101,NAMES!$D$6:$D$22,0),MATCH(F$10,DATES,0)) -> 0.444001191 | G106: =OFFSET($E$497,MATCH($D101,NAMES!$D$6:$D$22,0),MATCH(G$10,DATES,0)) -> 0.576658809 | H106: =OFFSET($E$497,MATCH($D101,NAMES!$D$6:$D$22,0),MATCH(H$10,DATES,0)) -> 0.8476423754 | I106: =OFFSET($E$497,MATCH($D101,NAMES!$D$6:$D$22,0),MATCH(I$10,DATES,0)) -> 0.9253486276 | J106: =OFFSET($E$497,MATCH($D101,NAMES!$D$6:$D$22,0),MATCH(J$10,DATES,0)) -> 0.8789610951 | K106: =OFFSET($E$497,MATCH($D101,NAMES!$D$6:$D$22,0),MATCH(K$10,DATES,0)) -> 0.8325735625 | L106: =OFFSET($E$497,MATCH($D101,NAMES!$D$6:$D$22,0),MATCH(L$10,DATES,0)) -> 0.8408992982 | M106: =OFFSET($E$497,MATCH($D101,NAMES!$D$6:$D$22,0),MATCH(M$10,DATES,0)) -> 0.8493082911 | N106: =OFFSET($E$497,MATCH($D101,NAMES!$D$6:$D$22,0),MATCH(N$10,DATES,0)) -> 0.8578013741 | O106: =OFFSET($E$497,MATCH($D101,NAMES!$D$6:$D$22,0),MATCH(O$10,DATES,0)) -> 0.8663793878 | P106: =OFFSET($E$497,MATCH($D101,NAMES!$D$6:$D$22,0),MATCH(P$10,DATES,0)) -> 0.8750431817 | Q106: =OFFSET($E$497,MATCH($D101,NAMES!$D$6:$D$22,0),MATCH(Q$10,DATES,0)) -> 0.8837936135 | R106: =OFFSET($E$497,MATCH($D101,NAMES!$D$6:$D$22,0),MATCH(R$10,DATES,0)) -> 0.8926315496 | S106: =OFFSET($E$497,MATCH($D101,NAMES!$D$6:$D$22,0),MATCH(S$10,DATES,0)) -> 0.9015578651 | T106: =OFFSET($E$497,MATCH($D101,NAMES!$D$6:$D$22,0),MATCH(T$10,DATES,0)) -> 0.9105734438 | U106: =OFFSET($E$497,MATCH($D101,NAMES!$D$6:$D$22,0),MATCH(U$10,DATES,0)) -> 0.9196791782 | V106: =OFFSET($E$497,MATCH($D101,NAMES!$D$6:$D$22,0),MATCH(V$10,DATES,0)) -> 0.92887597 | W106: =OFFSET($E$497,MATCH($D101,NAMES!$D$6:$D$22,0),MATCH(W$10,DATES,0)) -> 0.9381647297 | X106: =OFFSET($E$497,MATCH($D101,NAMES!$D$6:$D$22,0),MATCH(X$10,DATES,0)) -> 0.947546377 | Y106: =OFFSET($E$497,MATCH($D101,NAMES!$D$6:$D$22,0),MATCH(Y$10,DATES,0)) -> 0.9570218408 | Z106: =OFFSET($E$497,MATCH($D101,NAMES!$D$6:$D$22,0),MATCH(Z$10,DATES,0)) -> 0.9665920592 | AA106: =OFFSET($E$497,MATCH($D101,NAMES!$D$6:$D$22,0),MATCH(AA$10,DATES,0)) -> 0.9762579798 | AB106: =OFFSET($E$497,MATCH($D101,NAMES!$D$6:$D$22,0),MATCH(AB$10,DATES,0)) -> 0.9860205596 | AC106: =OFFSET($E$497,MATCH($D101,NAMES!$D$6:$D$22,0),MATCH(AC$10,DATES,0)) -> 0.9958807652 | AD106: =OFFSET($E$497,MATCH($D101,NAMES!$D$6:$D$22,0),MATCH(AD$10,DATES,0)) -> 1.005839573 | AE106: =OFFSET($E$497,MATCH($D101,NAMES!$D$6:$D$22,0),MATCH(AE$10,DATES,0)) -> 1.015897969 | AF106: =OFFSET($E$497,MATCH($D101,NAMES!$D$6:$D$22,0),MATCH(AF$10,DATES,0)) -> 1.026056948 | AG106: =OFFSET($E$497,MATCH($D101,NAMES!$D$6:$D$22,0),MATCH(AG$10,DATES,0)) -> 1.036317518 | AH106: =OFFSET($E$497,MATCH($D101,NAMES!$D$6:$D$22,0),MATCH(AH$10,DATES,0)) -> 1.046680693 | AI106: =OFFSET($E$497,MATCH($D101,NAMES!$D$6:$D$22,0),MATCH(AI$10,DATES,0)) -> 1.0571475 | AJ106: =OFFSET($E$497,MATCH($D101,NAMES!$D$6:$D$22,0),MATCH(AJ$10,DATES,0)) -> 1.067718975 | AK106: =OFFSET($E$497,MATCH($D101,NAMES!$D$6:$D$22,0),MATCH(AK$10,DATES,0)) -> 1.078396165 | AL106: =OFFSET($E$497,MATCH($D101,NAMES!$D$6:$D$22,0),MATCH(AL$10,DATES,0)) -> 1.089180126 | AM106: =OFFSET($E$497,MATCH($D101,NAMES!$D$6:$D$22,0),MATCH(AM$10,DATES,0)) -> 1.100071927 | AN106: =OFFSET($E$497,MATCH($D101,NAMES!$D$6:$D$22,0),MATCH(AN$10,DATES,0)) -> 1.111072647 | AO106: =OFFSET($E$497,MATCH($D101,NAMES!$D$6:$D$22,0),MATCH(AO$10,DATES,0)) -> 1.122183373 | AP106: =OFFSET($E$497,MATCH($D101,NAMES!$D$6:$D$22,0),MATCH(AP$10,DATES,0)) -> 1.133405207
D108: PG15 | F108: =Base_Year - 1 -> 2011 | G108: =OFFSET(G108,0,-1)+1 -> 2012 | H108: =OFFSET(H108,0,-1)+1 -> 2013 | I108: 2014 | J108: 2015 | K108: 2016 | L108: 2017 | M108: 2018 | N108: 2019 | O108: 2020 | P108: 2021 | Q108: 2022 | R108: 2023 | S108: 2024 | T108: 2025 | U108: 2026 | V108: 2027 | W108: 2028 | X108: 2029 | Y108: 2030 | Z108: 2031 | AA108: 2032 | AB108: 2033 | AC108: 2034 | AD108: 2035 | AE108: 2036 | AF108: 2037 | AG108: 2038 | AH108: 2039 | AI108: 2040 | AJ108: 2041 | AK108: 2042 | AL108: 2043 | AM108: 2044 | AN108: 2045 | AO108: 2046 | AP108: 2047
D109: =VLOOKUP(D108,PC_Table,2,FALSE) -> IP with DVR & Video Server | E109: Baseline | F109: =F$519*OFFSET(F109,4,0) -> 0.1891116184 | G109: =G$519*OFFSET(G109,4,0) -> 0.2456139372 | H109: 0.3610328636 | I109: 0.394129971 | J109: 0.3743723183 | K109: 0.3546146655 | L109: 0.3581608122 | M109: 0.3617424203 | N109: 0.3196898639 | O109: 0.2767600822 | P109: 0.2329397359 | Q109: 0.1882153066 | R109: 0.1425730947 | S109: 0.09599921712 | T109: 0.04847960465 | U109: 0 | V109: 0 | W109: 0 | X109: 0 | Y109: 0 | Z109: 0 | AA109: 0 | AB109: 0 | AC109: 0 | AD109: 0 | AE109: 0 | AF109: 0 | AG109: 0 | AH109: 0 | AI109: 0 | AJ109: 0 | AK109: 0 | AL109: 0 | AM109: 0 | AN109: 0 | AO109: 0 | AP109: 0
E110: EL 1 | F110: =F$520*OFFSET(F110,3,0) -> 0.1512892947 | G110: =G$520*OFFSET(G110,3,0) -> 0.1964911497 | H110: 0.2888262909 | I110: 0.3153039768 | J110: 0.2994978546 | K110: 0.2836917324 | L110: 0.2865286497 | M110: 0.2893939362 | N110: 0.3014218717 | O110: 0.3136614265 | P110: 0.3261156302 | Q110: 0.3387875518 | R110: 0.3516803003 | S110: 0.3647970251 | T110: 0.3781409162 | U110: 0.3917152055 | V110: 0.3956323576 | W110: 0.3995886812 | X110: 0.403584568 | Y110: 0.4076204137 | Z110: 0.4116966178 | AA110: 0.415813584 | AB110: 0.4199717198 | AC110: 0.424171437 | AD110: 0.4284131514 | AE110: 0.4326972829 | AF110: 0.4370242557 | AG110: 0.4413944983 | AH110: 0.4458084433 | AI110: 0.4502665277 | AJ110: 0.454769193 | AK110: 0.4593168849 | AL110: 0.4639100538 | AM110: 0.4685491543 | AN110: 0.4732346458 | AO110: 0.4779669923 | AP110: 0.4827466622
E111: EL 2 | F111: =F$521*OFFSET(F111,2,0) -> 0.03782232367 | G111: =G$521*OFFSET(G111,2,0) -> 0.04912278744 | H111: 0.07220657272 | I111: 0.0788259942 | J111: 0.07487446365 | K111: 0.07092293311 | L111: 0.07163216244 | M111: 0.07234848406 | N111: 0.1004739572 | O111: 0.129154705 | P111: 0.1583990204 | Q111: 0.1882153066 | R111: 0.2186120786 | S111: 0.2495979645 | T111: 0.2811817069 | U111: 0.3133721644 | V111: 0.3165058861 | W111: 0.3196709449 | X111: 0.3228676544 | Y111: 0.3260963309 | Z111: 0.3293572942 | AA111: 0.3326508672 | AB111: 0.3359773759 | AC111: 0.3393371496 | AD111: 0.3427305211 | AE111: 0.3461578263 | AF111: 0.3496194046 | AG111: 0.3531155986 | AH111: 0.3566467546 | AI111: 0.3602132222 | AJ111: 0.3638153544 | AK111: 0.3674535079 | AL111: 0.371128043 | AM111: 0.3748393234 | AN111: 0.3785877167 | AO111: 0.3823735938 | AP111: 0.3861973298
E112: EL 3 | F112: =F$522*OFFSET(F112,1,0) -> 0 | G112: =G$522*OFFSET(G112,1,0) -> 0 | H112: 0 | I112: 0 | J112: 0 | K112: 0 | L112: 0 | M112: 0 | N112: 0.009133996113 | O112: 0.01845067215 | P112: 0.0279527683 | Q112: 0.03764306132 | R112: 0.04752436491 | S112: 0.05759953027 | T112: 0.0678714465 | U112: 0.07834304111 | V112: 0.07912647152 | W112: 0.07991773623 | X112: 0.0807169136 | Y112: 0.08152408273 | Z112: 0.08233932356 | AA112: 0.08316271679 | AB112: 0.08399434396 | AC112: 0.0848342874 | AD112: 0.08568263028 | AE112: 0.08653945658 | AF112: 0.08740485114 | AG112: 0.08827889966 | AH112: 0.08916168865 | AI112: 0.09005330554 | AJ112: 0.09095383859 | AK112: 0.09186337698 | AL112: 0.09278201075 | AM112: 0.09370983086 | AN112: 0.09464692917 | AO112: 0.09559339846 | AP112: 0.09654933244
E113: Total | F113: =OFFSET($E$497,MATCH($D108,NAMES!$D$6:$D$22,0),MATCH(F$10,DATES,0)) -> 0.3782232367 | G113: =OFFSET($E$497,MATCH($D108,NAMES!$D$6:$D$22,0),MATCH(G$10,DATES,0)) -> 0.4912278744 | H113: =OFFSET($E$497,MATCH($D108,NAMES!$D$6:$D$22,0),MATCH(H$10,DATES,0)) -> 0.7220657272 | I113: =OFFSET($E$497,MATCH($D108,NAMES!$D$6:$D$22,0),MATCH(I$10,DATES,0)) -> 0.788259942 | J113: =OFFSET($E$497,MATCH($D108,NAMES!$D$6:$D$22,0),MATCH(J$10,DATES,0)) -> 0.7487446365 | K113: =OFFSET($E$497,MATCH($D108,NAMES!$D$6:$D$22,0),MATCH(K$10,DATES,0)) -> 0.7092293311 | L113: =OFFSET($E$497,MATCH($D108,NAMES!$D$6:$D$22,0),MATCH(L$10,DATES,0)) -> 0.7163216244 | M113: =OFFSET($E$497,MATCH($D108,NAMES!$D$6:$D$22,0),MATCH(M$10,DATES,0)) -> 0.7234848406 | N113: =OFFSET($E$497,MATCH($D108,NAMES!$D$6:$D$22,0),MATCH(N$10,DATES,0)) -> 0.730719689 | O113: =OFFSET($E$497,MATCH($D108,NAMES!$D$6:$D$22,0),MATCH(O$10,DATES,0)) -> 0.7380268859 | P113: =OFFSET($E$497,MATCH($D108,NAMES!$D$6:$D$22,0),MATCH(P$10,DATES,0)) -> 0.7454071548 | Q113: =OFFSET($E$497,MATCH($D108,NAMES!$D$6:$D$22,0),MATCH(Q$10,DATES,0)) -> 0.7528612263 | R113: =OFFSET($E$497,MATCH($D108,NAMES!$D$6:$D$22,0),MATCH(R$10,DATES,0)) -> 0.7603898386 | S113: =OFFSET($E$497,MATCH($D108,NAMES!$D$6:$D$22,0),MATCH(S$10,DATES,0)) -> 0.767993737 | T113: =OFFSET($E$497,MATCH($D108,NAMES!$D$6:$D$22,0),MATCH(T$10,DATES,0)) -> 0.7756736743 | U113: =OFFSET($E$497,MATCH($D108,NAMES!$D$6:$D$22,0),MATCH(U$10,DATES,0)) -> 0.7834304111 | V113: =OFFSET($E$497,MATCH($D108,NAMES!$D$6:$D$22,0),MATCH(V$10,DATES,0)) -> 0.7912647152 | W113: =OFFSET($E$497,MATCH($D108,NAMES!$D$6:$D$22,0),MATCH(W$10,DATES,0)) -> 0.7991773623 | X113: =OFFSET($E$497,MATCH($D108,NAMES!$D$6:$D$22,0),MATCH(X$10,DATES,0)) -> 0.807169136 | Y113: =OFFSET($E$497,MATCH($D108,NAMES!$D$6:$D$22,0),MATCH(Y$10,DATES,0)) -> 0.8152408273 | Z113: =OFFSET($E$497,MATCH($D108,NAMES!$D$6:$D$22,0),MATCH(Z$10,DATES,0)) -> 0.8233932356 | AA113: =OFFSET($E$497,MATCH($D108,NAMES!$D$6:$D$22,0),MATCH(AA$10,DATES,0)) -> 0.8316271679 | AB113: =OFFSET($E$497,MATCH($D108,NAMES!$D$6:$D$22,0),MATCH(AB$10,DATES,0)) -> 0.8399434396 | AC113: =OFFSET($E$497,MATCH($D108,NAMES!$D$6:$D$22,0),MATCH(AC$10,DATES,0)) -> 0.848342874 | AD113: =OFFSET($E$497,MATCH($D108,NAMES!$D$6:$D$22,0),MATCH(AD$10,DATES,0)) -> 0.8568263028 | AE113: =OFFSET($E$497,MATCH($D108,NAMES!$D$6:$D$22,0),MATCH(AE$10,DATES,0)) -> 0.8653945658 | AF113: =OFFSET($E$497,MATCH($D108,NAMES!$D$6:$D$22,0),MATCH(AF$10,DATES,0)) -> 0.8740485114 | AG113: =OFFSET($E$497,MATCH($D108,NAMES!$D$6:$D$22,0),MATCH(AG$10,DATES,0)) -> 0.8827889966 | AH113: =OFFSET($E$497,MATCH($D108,NAMES!$D$6:$D$22,0),MATCH(AH$10,DATES,0)) -> 0.8916168865 | AI113: =OFFSET($E$497,MATCH($D108,NAMES!$D$6:$D$22,0),MATCH(AI$10,DATES,0)) -> 0.9005330554 | AJ113: =OFFSET($E$497,MATCH($D108,NAMES!$D$6:$D$22,0),MATCH(AJ$10,DATES,0)) -> 0.9095383859 | AK113: =OFFSET($E$497,MATCH($D108,NAMES!$D$6:$D$22,0),MATCH(AK$10,DATES,0)) -> 0.9186337698 | AL113: =OFFSET($E$497,MATCH($D108,NAMES!$D$6:$D$22,0),MATCH(AL$10,DATES,0)) -> 0.9278201075 | AM113: =OFFSET($E$497,MATCH($D108,NAMES!$D$6:$D$22,0),MATCH(AM$10,DATES,0)) -> 0.9370983086 | AN113: =OFFSET($E$497,MATCH($D108,NAMES!$D$6:$D$22,0),MATCH(AN$10,DATES,0)) -> 0.9464692917 | AO113: =OFFSET($E$497,MATCH($D108,NAMES!$D$6:$D$22,0),MATCH(AO$10,DATES,0)) -> 0.9559339846 | AP113: =OFFSET($E$497,MATCH($D108,NAMES!$D$6:$D$22,0),MATCH(AP$10,DATES,0)) -> 0.9654933244
D115: PG16 | F115: =Base_Year - 1 -> 2011 | G115: =OFFSET(G115,0,-1)+1 -> 2012 | H115: =OFFSET(H115,0,-1)+1 -> 2013 | I115: 2014 | J115: 2015 | K115: 2016 | L115: 2017 | M115: 2018 | N115: 2019 | O115: 2020 | P115: 2021 | Q115: 2022 | R115: 2023 | S115: 2024 | T115: 2025 | U115: 2026 | V115: 2027 | W115: 2028 | X115: 2029 | Y115: 2030 | Z115: 2031 | AA115: 2032 | AB115: 2033 | AC115: 2034 | AD115: 2035 | AE115: 2036 | AF115: 2037 | AG115: 2038 | AH115: 2039 | AI115: 2040 | AJ115: 2041 | AK115: 2042 | AL115: 2043 | AM115: 2044 | AN115: 2045 | AO115: 2046 | AP115: 2047
D116: =VLOOKUP(D115,PC_Table,2,FALSE) -> OTT | E116: Baseline | F116: =F$519*OFFSET(F116,3,0) -> 3.083333333 | G116: =G$519*OFFSET(G116,3,0) -> 3.933333333 | H116: 5 | I116: 6.15 | J116: 7.5 | K116: 9.563294126 | L116: 9.658927067 | M116: 9.755516338 | N116: 8.621437563 | O116: =O$519*OFFSET(O116,3,0) -> 7.463701662 | P116: 6.281948899 | Q116: 5.07581471 | R116: 3.844929643 | S116: 2.588919293 | T116: 1.307404243 | U116: 0 | V116: 0 | W116: 0 | X116: 0 | Y116: 0 | Z116: 0 | AA116: 0 | AB116: 0 | AC116: 0 | AD116: 0 | AE116: 0 | AF116: 0 | AG116: 0 | AH116: 0 | AI116: 0 | AJ116: 0 | AK116: 0 | AL116: 0 | AM116: 0 | AN116: 0 | AO116: 0 | AP116: 0
E117: EL 1 | F117: =F$520*OFFSET(F117,2,0) -> 2.466666667 | G117: =G$520*OFFSET(G117,2,0) -> 3.146666667 | H117: 4 | I117: 4.92 | J117: 6 | K117: 7.650635301 | L117: 7.727141654 | M117: 7.80441307 | N117: 8.128783988 | O117: 8.458861884 | P117: 8.794728458 | Q117: 9.136466478 | R117: 9.484159786 | S117: 9.837893313 | T117: 10.1977531 | U117: 10.56382628 | V117: 10.66946455 | W117: 10.77615919 | X117: 10.88392078 | Y117: 10.99275999 | Z117: 11.10268759 | AA117: 11.21371447 | AB117: 11.32585161 | AC117: 11.43911013 | AD117: 11.55350123 | AE117: 11.66903624 | AF117: 11.7857266 | AG117: 11.90358387 | AH117: 12.02261971 | AI117: 12.14284591 | AJ117: 12.26427436 | AK117: 12.38691711 | AL117: 12.51078628 | AM117: 12.63589414 | AN117: 12.76225308 | AO117: 12.88987561 | AP117: 13.01877437
E118: EL 2 | F118: =(F$521+F$522)*OFFSET(F118,1,0) -> 0.6166666667 | G118: =(G$521+G$522)*OFFSET(G118,1,0) -> 0.7866666667 | H118: 1 | I118: 1.23 | J118: 1.5 | K118: 1.912658825 | L118: 1.931785413 | M118: 1.951103268 | N118: 2.95592145 | O118: 3.980640886 | P118: 5.025559119 | Q118: 6.090977652 | R118: 7.177202 | S118: 8.284541738 | T118: 9.413310549 | U118: 10.56382628 | V118: 10.66946455 | W118: 10.77615919 | X118: 10.88392078 | Y118: 10.99275999 | Z118: 11.10268759 | AA118: 11.21371447 | AB118: 11.32585161 | AC118: 11.43911013 | AD118: 11.55350123 | AE118: 11.66903624 | AF118: 11.7857266 | AG118: 11.90358387 | AH118: 12.02261971 | AI118: 12.14284591 | AJ118: 12.26427436 | AK118: 12.38691711 | AL118: 12.51078628 | AM118: 12.63589414 | AN118: 12.76225308 | AO118: 12.88987561 | AP118: 13.01877437
E119: Total | F119: =OFFSET($E$497,MATCH($D115,NAMES!$D$6:$D$22,0),MATCH(F$10,DATES,0)) -> 6.166666667 | G119: =OFFSET($E$497,MATCH($D115,NAMES!$D$6:$D$22,0),MATCH(G$10,DATES,0)) -> 7.866666667 | H119: =OFFSET($E$497,MATCH($D115,NAMES!$D$6:$D$22,0),MATCH(H$10,DATES,0)) -> 10 | I119: =OFFSET($E$497,MATCH($D115,NAMES!$D$6:$D$22,0),MATCH(I$10,DATES,0)) -> 12.3 | J119: =OFFSET($E$497,MATCH($D115,NAMES!$D$6:$D$22,0),MATCH(J$10,DATES,0)) -> 15 | K119: =OFFSET($E$497,MATCH($D115,NAMES!$D$6:$D$22,0),MATCH(K$10,DATES,0)) -> 19.12658825 | L119: =OFFSET($E$497,MATCH($D115,NAMES!$D$6:$D$22,0),MATCH(L$10,DATES,0)) -> 19.31785413 | M119: =OFFSET($E$497,MATCH($D115,NAMES!$D$6:$D$22,0),MATCH(M$10,DATES,0)) -> 19.51103268 | N119: =OFFSET($E$497,MATCH($D115,NAMES!$D$6:$D$22,0),MATCH(N$10,DATES,0)) -> 19.706143 | O119: =OFFSET($E$497,MATCH($D115,NAMES!$D$6:$D$22,0),MATCH(O$10,DATES,0)) -> 19.90320443 | P119: =OFFSET($E$497,MATCH($D115,NAMES!$D$6:$D$22,0),MATCH(P$10,DATES,0)) -> 20.10223648 | Q119: =OFFSET($E$497,MATCH($D115,NAMES!$D$6:$D$22,0),MATCH(Q$10,DATES,0)) -> 20.30325884 | R119: =OFFSET($E$497,MATCH($D115,NAMES!$D$6:$D$22,0),MATCH(R$10,DATES,0)) -> 20.50629143 | S119: =OFFSET($E$497,MATCH($D115,NAMES!$D$6:$D$22,0),MATCH(S$10,DATES,0)) -> 20.71135434 | T119: =OFFSET($E$497,MATCH($D115,NAMES!$D$6:$D$22,0),MATCH(T$10,DATES,0)) -> 20.91846789 | U119: =OFFSET($E$497,MATCH($D115,NAMES!$D$6:$D$22,0),MATCH(U$10,DATES,0)) -> 21.12765257 | V119: =OFFSET($E$497,MATCH($D115,NAMES!$D$6:$D$22,0),MATCH(V$10,DATES,0)) -> 21.33892909 | W119: =OFFSET($E$497,MATCH($D115,NAMES!$D$6:$D$22,0),MATCH(W$10,DATES,0)) -> 21.55231838 | X119: =OFFSET($E$497,MATCH($D115,NAMES!$D$6:$D$22,0),MATCH(X$10,DATES,0)) -> 21.76784157 | Y119: =OFFSET($E$497,MATCH($D115,NAMES!$D$6:$D$22,0),MATCH(Y$10,DATES,0)) -> 21.98551998 | Z119: =OFFSET($E$497,MATCH($D115,NAMES!$D$6:$D$22,0),MATCH(Z$10,DATES,0)) -> 22.20537518 | AA119: =OFFSET($E$497,MATCH($D115,NAMES!$D$6:$D$22,0),MATCH(AA$10,DATES,0)) -> 22.42742893 | AB119: =OFFSET($E$497,MATCH($D115,NAMES!$D$6:$D$22,0),MATCH(AB$10,DATES,0)) -> 22.65170322 | AC119: =OFFSET($E$497,MATCH($D115,NAMES!$D$6:$D$22,0),MATCH(AC$10,DATES,0)) -> 22.87822026 | AD119: =OFFSET($E$497,MATCH($D115,NAMES!$D$6:$D$22,0),MATCH(AD$10,DATES,0)) -> 23.10700246 | AE119: =OFFSET($E$497,MATCH($D115,NAMES!$D$6:$D$22,0),MATCH(AE$10,DATES,0)) -> 23.33807248 | AF119: =OFFSET($E$497,MATCH($D115,NAMES!$D$6:$D$22,0),MATCH(AF$10,DATES,0)) -> 23.57145321 | AG119: =OFFSET($E$497,MATCH($D115,NAMES!$D$6:$D$22,0),MATCH(AG$10,DATES,0)) -> 23.80716774 | AH119: =OFFSET($E$497,MATCH($D115,NAMES!$D$6:$D$22,0),MATCH(AH$10,DATES,0)) -> 24.04523942 | AI119: =OFFSET($E$497,MATCH($D115,NAMES!$D$6:$D$22,0),MATCH(AI$10,DATES,0)) -> 24.28569181 | AJ119: =OFFSET($E$497,MATCH($D115,NAMES!$D$6:$D$22,0),MATCH(AJ$10,DATES,0)) -> 24.52854873 | AK119: =OFFSET($E$497,MATCH($D115,NAMES!$D$6:$D$22,0),MATCH(AK$10,DATES,0)) -> 24.77383422 | AL119: =OFFSET($E$497,MATCH($D115,NAMES!$D$6:$D$22,0),MATCH(AL$10,DATES,0)) -> 25.02157256 | AM119: =OFFSET($E$497,MATCH($D115,NAMES!$D$6:$D$22,0),MATCH(AM$10,DATES,0)) -> 25.27178828 | AN119: =OFFSET($E$497,MATCH($D115,NAMES!$D$6:$D$22,0),MATCH(AN$10,DATES,0)) -> 25.52450617 | AO119: =OFFSET($E$497,MATCH($D115,NAMES!$D$6:$D$22,0),MATCH(AO$10,DATES,0)) -> 25.77975123 | AP119: =OFFSET($E$497,MATCH($D115,NAMES!$D$6:$D$22,0),MATCH(AP$10,DATES,0)) -> 26.03754874
D121: PG17 | F121: =Base_Year - 1 -> 2011 | G121: =OFFSET(G121,0,-1)+1 -> 2012 | H121: =OFFSET(H121,0,-1)+1 -> 2013 | I121: 2014 | J121: 2015 | K121: 2016 | L121: 2017 | M121: =OFFSET(M121,0,-1)+1 -> 2018 | N121: 2019 | O121: 2020 | P121: 2021 | Q121: 2022 | R121: 2023 | S121: 2024 | T121: 2025 | U121: 2026 | V121: 2027 | W121: 2028 | X121: 2029 | Y121: 2030 | Z121: 2031 | AA121: 2032 | AB121: 2033 | AC121: 2034 | AD121: 2035 | AE121: 2036 | AF121: 2037 | AG121: 2038 | AH121: 2039 | AI121: 2040 | AJ121: 2041 | AK121: 2042 | AL121: 2043 | AM121: 2044 | AN121: 2045 | AO121: 2046 | AP121: 2047
D122: =VLOOKUP(D121,PC_Table,2,FALSE) -> Thin-client | E122: Baseline | F122: =F$519*OFFSET(F122,4,0) -> 0.004047560999 | G122: =G$519*OFFSET(G122,4,0) -> 0.4788530008 | H122: 0.7778645554 | I122: 1.397324087 | J122: 2.287734679 | K122: 3.054412018 | L122: 3.084956138 | M122: 3.115805699 | N122: 2.753593287 | O122: 2.383825045 | P122: 2.00638608 | Q122: 1.621159953 | R122: 1.228028664 | S122: 0.8268726338 | T122: 0.4175706801 | U122: 0 | V122: 0 | W122: 0 | X122: 0 | Y122: 0 | Z122: 0 | AA122: 0 | AB122: 0 | AC122: 0 | AD122: 0 | AE122: 0 | AF122: 0 | AG122: 0 | AH122: 0 | AI122: 0 | AJ122: 0 | AK122: 0 | AL122: 0 | AM122: 0 | AN122: 0 | AO122: 0 | AP122: 0
E123: EL 1 | F123: =F$520*OFFSET(F123,3,0) -> 0.003238048799 | G123: =G$520*OFFSET(G123,3,0) -> 0.3830824006 | H123: 0.6222916443 | I123: 1.11785927 | J123: 1.830187743 | K123: 2.443529614 | L123: 2.46796491 | M123: 2.49264456 | N123: 2.596245099 | O123: 2.701668385 | P123: 2.808940512 | Q123: 2.918087915 | R123: 3.029137371 | S123: 3.142116009 | T123: 3.257051305 | U123: 3.373971095 | V123: 3.407710806 | W123: 3.441787914 | X123: 3.476205793 | Y123: 3.510967851 | Z123: 3.54607753 | AA123: 3.581538305 | AB123: 3.617353688 | AC123: 3.653527225 | AD123: 3.690062497 | AE123: 3.726963122 | AF123: 3.764232753 | AG123: 3.801875081 | AH123: 3.839893832 | AI123: 3.87829277 | AJ123: 3.917075698 | AK123: 3.956246455 | AL123: 3.995808919 | AM123: 4.035767008 | AN123: 4.076124678 | AO123: 4.116885925 | AP123: 4.158054785
E124: EL 2 | F124: =F$521*OFFSET(F124,2,0) -> 0.0008095121998 | G124: =G$521*OFFSET(G124,2,0) -> 0.09577060016 | H124: 0.1555729111 | I124: 0.2794648175 | J124: 0.4575469358 | K124: 0.6108824036 | L124: 0.6169912276 | M124: 0.6231611399 | N124: 0.865415033 | O124: 1.112451688 | P124: 1.364342534 | Q124: 1.621159953 | R124: 1.882977285 | S124: 2.149868848 | T124: 2.421909944 | U124: 2.699176876 | V124: 2.726168645 | W124: 2.753430331 | X124: 2.780964635 | Y124: 2.808774281 | Z124: 2.836862024 | AA124: 2.865230644 | AB124: 2.89388295 | AC124: 2.92282178 | AD124: 2.952049998 | AE124: 2.981570498 | AF124: 3.011386203 | AG124: 3.041500065 | AH124: 3.071915065 | AI124: 3.102634216 | AJ124: 3.133660558 | AK124: 3.164997164 | AL124: 3.196647135 | AM124: 3.228613607 | AN124: 3.260899743 | AO124: 3.29350874 | AP124: 3.326443828
E125: EL 3 | F125: =F$522*OFFSET(F125,1,0) -> 0 | G125: =G$522*OFFSET(G125,1,0) -> 0 | H125: 0 | I125: 0 | J125: 0 | K125: 0 | L125: 0 | M125: 0 | N125: 0.07867409391 | O125: 0.1589216697 | P125: 0.2407663296 | Q125: 0.3242319905 | R125: 0.409342888 | S125: 0.4961235803 | T125: 0.5845989521 | U125: 0.674794219 | V125: 0.6815421612 | W125: 0.6883575828 | X125: 0.6952411586 | Y125: 0.7021935702 | Z125: 0.7092155059 | AA125: 0.716307661 | AB125: 0.7234707376 | AC125: 0.730705445 | AD125: 0.7380124994 | AE125: 0.7453926244 | AF125: 0.7528465507 | AG125: 0.7603750162 | AH125: 0.7679787663 | AI125: 0.775658554 | AJ125: 0.7834151395 | AK125: 0.7912492909 | AL125: 0.7991617838 | AM125: 0.8071534017 | AN125: 0.8152249357 | AO125: 0.8233771851 | AP125: 0.8316109569
E126: Total | F126: =OFFSET($E$497,MATCH($D121,NAMES!$D$6:$D$22,0),MATCH(F$10,DATES,0)) -> 0.008095121998 | G126: =OFFSET($E$497,MATCH($D121,NAMES!$D$6:$D$22,0),MATCH(G$10,DATES,0)) -> 0.9577060016 | H126: =OFFSET($E$497,MATCH($D121,NAMES!$D$6:$D$22,0),MATCH(H$10,DATES,0)) -> 1.555729111 | I126: =OFFSET($E$497,MATCH($D121,NAMES!$D$6:$D$22,0),MATCH(I$10,DATES,0)) -> 2.794648175 | J126: =OFFSET($E$497,MATCH($D121,NAMES!$D$6:$D$22,0),MATCH(J$10,DATES,0)) -> 4.575469358 | K126: =OFFSET($E$497,MATCH($D121,NAMES!$D$6:$D$22,0),MATCH(K$10,DATES,0)) -> 6.108824036 | L126: =OFFSET($E$497,MATCH($D121,NAMES!$D$6:$D$22,0),MATCH(L$10,DATES,0)) -> 6.169912276 | M126: =OFFSET($E$497,MATCH($D121,NAMES!$D$6:$D$22,0),MATCH(M$10,DATES,0)) -> 6.231611399 | N126: =OFFSET($E$497,MATCH($D121,NAMES!$D$6:$D$22,0),MATCH(N$10,DATES,0)) -> 6.293927513 | O126: =OFFSET($E$497,MATCH($D121,NAMES!$D$6:$D$22,0),MATCH(O$10,DATES,0)) -> 6.356866788 | P126: =OFFSET($E$497,MATCH($D121,NAMES!$D$6:$D$22,0),MATCH(P$10,DATES,0)) -> 6.420435456 | Q126: =OFFSET($E$497,MATCH($D121,NAMES!$D$6:$D$22,0),MATCH(Q$10,DATES,0)) -> 6.48463981 | R126: =OFFSET($E$497,MATCH($D121,NAMES!$D$6:$D$22,0),MATCH(R$10,DATES,0)) -> 6.549486208 | S126: =OFFSET($E$497,MATCH($D121,NAMES!$D$6:$D$22,0),MATCH(S$10,DATES,0)) -> 6.614981071 | T126: =OFFSET($E$497,MATCH($D121,NAMES!$D$6:$D$22,0),MATCH(T$10,DATES,0)) -> 6.681130881 | U126: =OFFSET($E$497,MATCH($D121,NAMES!$D$6:$D$22,0),MATCH(U$10,DATES,0)) -> 6.74794219 | V126: =OFFSET($E$497,MATCH($D121,NAMES!$D$6:$D$22,0),MATCH(V$10,DATES,0)) -> 6.815421612 | W126: =OFFSET($E$497,MATCH($D121,NAMES!$D$6:$D$22,0),MATCH(W$10,DATES,0)) -> 6.883575828 | X126: =OFFSET($E$497,MATCH($D121,NAMES!$D$6:$D$22,0),MATCH(X$10,DATES,0)) -> 6.952411586 | Y126: =OFFSET($E$497,MATCH($D121,NAMES!$D$6:$D$22,0),MATCH(Y$10,DATES,0)) -> 7.021935702 | Z126: =OFFSET($E$497,MATCH($D121,NAMES!$D$6:$D$22,0),MATCH(Z$10,DATES,0)) -> 7.092155059 | AA126: =OFFSET($E$497,MATCH($D121,NAMES!$D$6:$D$22,0),MATCH(AA$10,DATES,0)) -> 7.16307661 | AB126: =OFFSET($E$497,MATCH($D121,NAMES!$D$6:$D$22,0),MATCH(AB$10,DATES,0)) -> 7.234707376 | AC126: =OFFSET($E$497,MATCH($D121,NAMES!$D$6:$D$22,0),MATCH(AC$10,DATES,0)) -> 7.30705445 | AD126: =OFFSET($E$497,MATCH($D121,NAMES!$D$6:$D$22,0),MATCH(AD$10,DATES,0)) -> 7.380124994 | AE126: =OFFSET($E$497,MATCH($D121,NAMES!$D$6:$D$22,0),MATCH(AE$10,DATES,0)) -> 7.453926244 | AF126: =OFFSET($E$497,MATCH($D121,NAMES!$D$6:$D$22,0),MATCH(AF$10,DATES,0)) -> 7.528465507 | AG126: =OFFSET($E$497,MATCH($D121,NAMES!$D$6:$D$22,0),MATCH(AG$10,DATES,0)) -> 7.603750162 | AH126: =OFFSET($E$497,MATCH($D121,NAMES!$D$6:$D$22,0),MATCH(AH$10,DATES,0)) -> 7.679787663 | AI126: =OFFSET($E$497,MATCH($D121,NAMES!$D$6:$D$22,0),MATCH(AI$10,DATES,0)) -> 7.75658554 | AJ126: =OFFSET($E$497,MATCH($D121,NAMES!$D$6:$D$22,0),MATCH(AJ$10,DATES,0)) -> 7.834151395 | AK126: =OFFSET($E$497,MATCH($D121,NAMES!$D$6:$D$22,0),MATCH(AK$10,DATES,0)) -> 7.912492909 | AL126: =OFFSET($E$497,MATCH($D121,NAMES!$D$6:$D$22,0),MATCH(AL$10,DATES,0)) -> 7.991617838 | AM126: =OFFSET($E$497,MATCH($D121,NAMES!$D$6:$D$22,0),MATCH(AM$10,DATES,0)) -> 8.071534017 | AN126: =OFFSET($E$497,MATCH($D121,NAMES!$D$6:$D$22,0),MATCH(AN$10,DATES,0)) -> 8.152249357 | AO126: =OFFSET($E$497,MATCH($D121,NAMES!$D$6:$D$22,0),MATCH(AO$10,DATES,0)) -> 8.233771851 | AP126: =OFFSET($E$497,MATCH($D121,NAMES!$D$6:$D$22,0),MATCH(AP$10,DATES,0)) -> 8.316109569
C131: TSL 1
D132: PG1 | F132: =Base_Year - 1 -> 2011 | G132: =OFFSET(G132,0,-1)+1 -> 2012 | H132: =OFFSET(H132,0,-1)+1 -> 2013 | I132: 2014 | J132: 2015 | K132: 2016 | L132: 2017 | M132: 2018 | N132: 2019 | O132: 2020 | P132: 2021 | Q132: 2022 | R132: 2023 | S132: 2024 | T132: 2025 | U132: 2026 | V132: 2027 | W132: 2028 | X132: 2029 | Y132: 2030 | Z132: 2031 | AA132: 2032 | AB132: 2033 | AC132: 2034 | AD132: 2035 | AE132: 2036 | AF132: 2037 | AG132: 2038 | AH132: 2039 | AI132: 2040 | AJ132: 2041 | AK132: 2042 | AL132: 2043 | AM132: 2044 | AN132: 2045 | AO132: 2046 | AP132: 2047
D133: =VLOOKUP(D132,PC_Table,2,FALSE) -> Cable Base | E133: Baseline | F133: =F$526*OFFSET(F133,4,0) -> 8.837885291 | G133: =G$526*OFFSET(G133,4,0) -> 5.959356203 | H133: 4.272705007 | I133: 4.052043883 | J133: 2.343702115 | K133: 0.6353603464 | L133: 0.6417139499 | M133: 0 | N133: 0 | O133: 0 | P133: 0 | Q133: 0 | R133: 0 | S133: 0 | T133: 0 | U133: 0 | V133: 0 | W133: 0 | X133: 0 | Y133: 0 | Z133: 0 | AA133: 0 | AB133: 0 | AC133: 0 | AD133: 0 | AE133: 0 | AF133: 0 | AG133: 0 | AH133: 0 | AI133: 0 | AJ133: 0 | AK133: 0 | AL133: 0 | AM133: 0 | AN133: 0 | AO133: 0 | AP133: 0
E134: EL 1 | F134: =F$527*OFFSET(F134,3,0) -> 7.070308233 | G134: =G$527*OFFSET(G134,3,0) -> 4.767484962 | H134: 3.418164005 | I134: 3.241635106 | J134: 1.874961692 | K134: 0.5082882771 | L134: 0.5133711599 | M134: 1.166635961 | N134: 1.11284108 | O134: 1.057853639 | P134: 1.001655164 | Q134: 0.9442269349 | R134: 0.8855499753 | S134: 0.8256050539 | T134: 0.7643726791 | U134: 0.7018330963 | V134: 0.7088514272 | W134: 0.7159399415 | X134: 0.7230993409 | Y134: 0.7303303343 | Z134: 0.7376336377 | AA134: 0.745009974 | AB134: 0.7524600738 | AC134: 0.7599846745 | AD134: 0.7675845213 | AE134: 0.7752603665 | AF134: 0.7830129701 | AG134: 0.7908430999 | AH134: 0.7987515308 | AI134: 0.8067390462 | AJ134: 0.8148064366 | AK134: 0.822954501 | AL134: 0.831184046 | AM134: 0.8394958865 | AN134: 0.8478908453 | AO134: 0.8563697538 | AP134: 0.8649334513
E135: EL 2 | F135: =F$528*OFFSET(F135,2,0) -> 1.767577058 | G135: =G$528*OFFSET(G135,2,0) -> 1.191871241 | H135: 0.8545410013 | I135: 0.8104087766 | J135: 0.4687404229 | K135: 0.1270720693 | L135: 0.12834279 | M135: 0.1296262179 | N135: 0.1800184101 | O135: 0.2314054835 | P135: 0.2838022965 | Q135: 0.3372239053 | R135: 0.391685566 | S135: 0.4472027375 | T135: 0.503791084 | U135: 0.561466477 | V135: 0.5670811418 | W135: 0.5727519532 | X135: 0.5784794727 | Y135: 0.5842642675 | Z135: 0.5901069101 | AA135: 0.5960079792 | AB135: 0.601968059 | AC135: 0.6079877396 | AD135: 0.614067617 | AE135: 0.6202082932 | AF135: 0.6264103761 | AG135: 0.6326744799 | AH135: 0.6390012247 | AI135: 0.6453912369 | AJ135: 0.6518451493 | AK135: 0.6583636008 | AL135: 0.6649472368 | AM135: 0.6715967092 | AN135: 0.6783126763 | AO135: 0.685095803 | AP135: 0.691946761
E136: EL 3 | F136: =F$529*OFFSET(F136,1,0) -> 0 | G136: =G$529*OFFSET(G136,1,0) -> 0 | H136: 0 | I136: 0 | J136: 0 | K136: 0 | L136: 0 | M136: 0 | N136: 0.01636531001 | O136: 0.03305792621 | P136: 0.05008275821 | Q136: 0.06744478106 | R136: 0.08514903609 | S136: 0.1032006317 | T136: 0.1216047444 | U136: 0.1403666193 | V136: 0.1417702854 | W136: 0.1431879883 | X136: 0.1446198682 | Y136: 0.1460660669 | Z136: 0.1475267275 | AA136: 0.1490019948 | AB136: 0.1504920148 | AC136: 0.1519969349 | AD136: 0.1535169043 | AE136: 0.1550520733 | AF136: 0.156602594 | AG136: 0.15816862 | AH136: 0.1597503062 | AI136: 0.1613478092 | AJ136: 0.1629612873 | AK136: 0.1645909002 | AL136: 0.1662368092 | AM136: 0.1678991773 | AN136: 0.1695781691 | AO136: 0.1712739508 | AP136: 0.1729866903
